Workbook

Sheet Portada
B2: MODELO DE TARIFA TÉCNICA
B3: Transporte Convencional
B4: Fecha actualización | D4: =+TODAY() -> 2017-06-26
B7: CONTENIDO
B9: Este modelo se realiza con base en estimaciones unitarias para diferentes tipologías de bus, asociadas a los tres tipos de servicio existentes para el transporte convencional del Distrito Metropolitano de Quito, estos son servicio urbano, servicio intraparroquial y servicio interparroquial. El servicio intraparroquial se presta con vehículos de tipología minibús, mientras los servicios urbano e interparroquial se prestan con buses tipo. Se presenta la información por tipo de servicio.
B13: No. | C13: Hoja | D13: Descripción
B14: 1 | C14: Sup Generales | D14: Variables macro y precios de la energía
B15: =B14+1 -> 2 | C15: Sup Fijo | D15: Resumen de los supuestos de entrada fijos sobre: las características de los vehículos, el kilometraje, la demanda, los costos de operación, mantenimiento y administración por tipo de servicio. Adicionalmente, se establecen los supuestos sobre los costos y plazos de financiación; así como, de la estructura de capital.
B16: =B15+1 -> 3 | C16: Sup Personal Directo | D16: Supuestos sobre la vinculación de personal directo que incluyen cantidad de personas por bus, salarios y factor prestacional. Se plantean escenarios de remuneración, en el primero se tienen los parámetros del esquema actual de remuneración basado principalmente en un pago diario al personal que trabajan jornadas de 16 horas; en el segundo se emplea un esquema propuesto de operación con todas las prestaciones legales para el 100% del personal de acuerdo a la normatividad laboral, pasando a jornadas de 8 horas de trabajo.
B17: 4 | C17: Sup Personal Indirecto | D17: Supuestos sobre la cantidad de personal, salario mensual por cargo y factor prestacional.
B18: 5 | C18: CAPEX Vehículo | D18: Costos del vehículo según tipología
B19: 6 | C19: OPEX Combustible | D19: Estimación de los costos de combustible por tipología de vehículo
B20: 7 | C20: OPEX Mtto | D20: Estimación de los costos de mantenimiento por tipología de vehículo
B21: 8 | C21: OPEX Personal Directo | D21: Estimación de los costos de personal para los conductores y ayudantes
B22: 9 | C22: OPEX Personal Indirecto | D22: Estimación de los costos de personal administrativo y de mantenimiento
B23: 10 | C23: Actividades Mtto | D23: Listado de repuestos y servicios asociado al mantenimiento de los vehículos con sus costos unitarios y rendimiento
B24: 11 | C24: OPEX Otros gastos | D24: Estimación de costos Administrativos, Seguros y Recaudo
B25: 12 | C25: OPEX Impuestos | D25: Estimación de los impuestos por tipología de vehículo
B26: 13 | C26: Componentes de costos | D26: Componentes de costos del sistema para alternativas con y sin SITP-Q
B27: 14 | C27: FO con SITPQ | D27: Flujo de caja para escenario con implementación del SITP-Q
B28: 15 | C28: FO sin SITPQ | D28: Flujo de caja para escenario sin implementación del SITP-Q
B29: 16 | C29: Resultados | D29: Resumen de los resultados con tablas y gráficos que fueron utilizados en el Producto 1.
B30: 17 | C30: Indicadores | D30: Listado de indicadores aplicados al transporte convencional
B31: 18 | C31: Datos históricos | D31: Registro de históricos de simulaciones.
B34: - Codificación de Fuentes de Información
C36: Código | D36: Subsistema Transporte Convencional
C37: SDM | D37: Secretaria de Movilidad
C38: Oper | D38: Información recolectada en entrevistas/reportes a los operadores de convencional
C39: Bench | D39: Valor que proviende de una o varias referencias de otros subsistemas a través de un ejercicio de benchmark
C40: Calc | D40: Cálculos
C41: Sup | D41: Supuestos
C42: Mdo | D42: Cotizaciones de mercado
C43: M2014 | D43: Mesas de negociación con operadores 2014
C44: NA | D44: No Aplica

Sheet Sup Generales
W1: Público | X1: DCSA | Y1: Con ramal a Pisulí
B2: Estructura de costos Transporte Convencional | W2: Privado | X2: Politécnica | Y2: Sin ramal a Pisulí
B3: SUPUESTOS GENERALES
B5: Variables Macroeconómicas
B6: Variable | C6: 0 | D6: =C6+1 -> 1 | E6: =D6+1 -> 2 | F6: 3 | G6: 4 | H6: 5 | I6: 6 | J6: 7 | K6: 8 | L6: 9 | M6: 10 | N6: =M6+1 -> 11 | O6: 12 | P6: 13 | Q6: 14 | R6: 15 | S6: 16 | T6: 17 | U6: =T6+1 -> 18 | V6: =U6+1 -> 19 | W6: 20 | X6: 21 | Y6: 22 | Z6: 23
B7: Inflación1 | C7: 0.024 | D7: 0.016 | E7: 0.026 | F7: 0.00432 | G7: 0.0027 | H7: 0.0067 | I7: 0.01941125 | J7: 0.01735390625 | K7: 0.01456064453 | L7: 0.0133807251 | M7: 0.01305331573 | N7: 0.0114349802 | O7: 0.01232435273 | P7: 0.01352739682 | Q7: 0.01438082142 | R7: 0.01375201785 | S7: 0.0133017818 | T7: 0.01314442396 | U7: 0.01311488631 | V7: 0.01312258263 | W7: 0.01333353294 | X7: 0.01345968047 | Y7: 0.01345121592 | Z7: 0.01333501523
B8: Incremento acumulado Inflación | C8: =C7 -> 0.024 | D8: =((1+D7)*(1+C8))-1 -> 0.040384 | E8: 0.067433984 | F8: 0.07204529881 | G8: 0.07493982112 | H8: 0.08214191792 | I8: 0.1031476452 | J8: 0.122291566 | K8: 0.1386328546 | L8: 0.1538685878 | M8: 0.1689303988 | N8: =((1+N7)*(1+M8))-1 -> 0.1822970948 | O8: =((1+O7)*(1+N8))-1 -> 0.1968681412 | P8: =((1+P7)*(1+O8))-1 -> 0.2130586515 | Q8: =((1+Q7)*(1+P8))-1 -> 0.2305034313 | R8: =((1+R7)*(1+Q8))-1 -> 0.2474253365 | S8: =((1+S7)*(1+R8))-1 -> 0.2640183161 | T8: =((1+T7)*(1+S8))-1 -> 0.2806331087 | U8: =((1+U7)*(1+T8))-1 -> 0.2974284664 | V8: =((1+V7)*(1+U8))-1 -> 0.3144540786 | W8: =((1+W7)*(1+V8))-1 -> 0.3319803954 | X8: =((1+X7)*(1+W8))-1 -> 0.3499084259 | Y8: =((1+Y7)*(1+X8))-1 -> 0.3680663356 | Z8: =((1+Z7)*(1+Y8))-1 -> 0.386309521
B9: Crec. costos de mantenimiento y servicios | C9: =C7 -> 0.024 | D9: 0.016 | E9: 0.026 | F9: 0.00432 | G9: 0.0027 | H9: 0.0067 | I9: 0.01941125 | J9: 0.01735390625 | K9: 0.01456064453 | L9: 0.0133807251 | M9: 0.01305331573 | N9: =N7 -> 0.0114349802 | O9: 0.01232435273 | P9: 0.01352739682 | Q9: 0.01438082142 | R9: 0.01375201785 | S9: 0.0133017818 | T9: 0.01314442396 | U9: =U7 -> 0.01311488631 | V9: 0.01312258263 | W9: 0.01333353294 | X9: 0.01345968047 | Y9: 0.01345121592 | Z9: 0.01333501523
B10: Crec. Acumulado de mantenimiento y servicios | C10: =C9 -> 0.024 | D10: =((1+D9))*(1+C10)-1 -> 0.040384 | E10: =((1+E5)*(1+E9))*(1+D10)-1 -> 0.067433984 | F10: 0.07204529881 | G10: 0.07493982112 | H10: 0.08214191792 | I10: 0.1031476452 | J10: 0.122291566 | K10: 0.1386328546 | L10: 0.1538685878 | M10: 0.1689303988 | N10: =((1+N5)*(1+N9))*(1+M10)-1 -> 0.1822970948 | O10: =((1+O5)*(1+O9))*(1+N10)-1 -> 0.1968681412 | P10: =((1+P5)*(1+P9))*(1+O10)-1 -> 0.2130586515 | Q10: =((1+Q5)*(1+Q9))*(1+P10)-1 -> 0.2305034313 | R10: =((1+R5)*(1+R9))*(1+Q10)-1 -> 0.2474253365 | S10: =((1+S5)*(1+S9))*(1+R10)-1 -> 0.2640183161 | T10: =((1+T5)*(1+T9))*(1+S10)-1 -> 0.2806331087 | U10: =((1+U5)*(1+U9))*(1+T10)-1 -> 0.2974284664 | V10: =((1+V5)*(1+V9))*(1+U10)-1 -> 0.3144540786 | W10: =((1+W5)*(1+W9))*(1+V10)-1 -> 0.3319803954 | X10: =((1+X5)*(1+X9))*(1+W10)-1 -> 0.3499084259 | Y10: =((1+Y5)*(1+Y9))*(1+X10)-1 -> 0.3680663356 | Z10: =((1+Z5)*(1+Z9))*(1+Y10)-1 -> 0.386309521
B11: Incremento real salario mínimo | C11: =C9 -> 0.024 | D11: 0.0005763319672 | E11: 0.008 | F11: 0.008 | G11: 0.008 | H11: 0.008 | I11: 0.008 | J11: 0.008 | K11: 0.008 | L11: 0.008 | M11: 0.008 | N11: 0.008 | O11: 0.008 | P11: 0.008 | Q11: 0.008 | R11: 0.008 | S11: 0.008 | T11: 0.008 | U11: 0.008 | V11: 0.008 | W11: 0.008 | X11: 0.008 | Y11: 0.008 | Z11: 0.008
B12: Incremento acumulado salario mínimo | D12: =((1+C7)*(1+D11))*(1+C12)-1 -> 0.02459016393 | E12: =((1+D7)*(1+E11))*(1+D12)-1 -> 0.04931147541 | F12: 0.08520632236 | G12: 0.09861356898 | H12: 0.1103924642 | I12: 0.1267747505 | J12: 0.1578360317 | K12: 0.1873524417 | L12: 0.214278187 | M12: 0.2403703185 | N12: =((1+M7)*(1+N11))*(1+M12)-1 -> 0.266613754 | O12: =((1+N7)*(1+O11))*(1+N12)-1 -> 0.2913462369 | P12: =((1+O7)*(1+P11))*(1+O12)-1 -> 0.3177193334 | Q12: =((1+P7)*(1+Q11))*(1+P12)-1 -> 0.3462290028 | R12: =((1+Q7)*(1+R11))*(1+Q12)-1 -> 0.3765135928 | S12: =((1+R7)*(1+S11))*(1+R12)-1 -> 0.4066069797 | T12: =((1+S7)*(1+T11))*(1+S12)-1 -> 0.4367198977 | U12: =((1+T7)*(1+U11))*(1+T12)-1 -> 0.4672495912 | V12: =((1+U7)*(1+V11))*(1+U12)-1 -> 0.498384342 | W12: =((1+V7)*(1+W11))*(1+V12)-1 -> 0.5301913905 | X12: =((1+W7)*(1+X11))*(1+W12)-1 -> 0.5629990017 | Y12: =((1+X7)*(1+Y11))*(1+X12)-1 -> 0.5967087606 | Z12: =((1+Y7)*(1+Z11))*(1+Y12)-1 -> 0.6311319264
B13: Salario Mínimo | C13: 366 | D13: =(1+D12)*smmlv -> 375 | E13: 384.048 | F13: 397.185514 | G13: 402.0925662 | H13: 406.4036419 | I13: 412.3995587 | J13: 423.7679876 | K13: 434.5709937 | L13: 444.4258165 | M13: 453.9755366 | N13: =(1+N12)*smmlv -> 463.580634 | O13: 472.6327227 | P13: 482.285276 | Q13: 492.719815 | R13: 503.803975 | S13: 514.8181546 | T13: 525.8394826 | U13: =(1+U12)*smmlv -> 537.0133504 | V13: 548.4086692 | W13: 560.0500489 | X13: 572.0576346 | Y13: 584.3954064 | Z13: 596.9942851
B14: 1. Inflación proyectada Fondo Monetario Internacional
B17: Precios de energía
B18: Variable | C18: 0 | D18: =C18+1 -> 1 | E18: =D18+1 -> 2 | F18: 3 | G18: 4 | H18: 5 | I18: 6 | J18: 7 | K18: 8 | L18: 9 | M18: 10 | N18: 11 | O18: 12 | P18: 13 | Q18: 14 | R18: 15 | S18: 16 | T18: 17 | U18: 18 | V18: =U18+1 -> 19 | W18: 20 | X18: 21 | Y18: 22 | Z18: 23
B19: Aumento % Precios WTI | C19: =(1+33%)^(1/3)-1 -> 0.09972444889
B20: Aumento en precios diésel | C20: =C19 -> 0.09972444889 | D20: =+D7 -> 0.016 | E20: =+E7 -> 0.026 | F20: 0.00432 | G20: 0.0027 | H20: 0.0067 | I20: 0.01941125 | J20: 0.01735390625 | K20: 0.01456064453 | L20: 0.0133807251 | M20: 0.01305331573 | N20: 0.0114349802 | O20: 0.01232435273 | P20: 0.01352739682 | Q20: 0.01438082142 | R20: 0.01375201785 | S20: 0.0133017818 | T20: 0.01314442396 | U20: 0.01311488631 | V20: 0.01312258263 | W20: 0.01333353294 | X20: 0.01345968047 | Y20: 0.01345121592 | Z20: 0.01333501523
B21: Costo diésel | C21: ='Sup fijo'!D107 -> 1.04 | D21: =(C21*(1+C20))*(1+D20) -> 1.162012842 | E21: =(D21)*(1+E20) -> 1.192225176 | F21: =(E21)*(1+F20) -> 1.197375588 | G21: =(F21)*(1+G20) -> 1.200608502 | H21: =(G21)*(1+H20) -> 1.208652579 | I21: =(H21)*(1+I20) -> 1.232114037 | J21: =(I21)*(1+J20) -> 1.253496028 | K21: =(J21)*(1+K20) -> 1.271747738 | L21: =(K21)*(1+L20) -> 1.288764645 | M21: =(L21)*(1+M20) -> 1.305587297 | N21: =(M21)*(1+N20) -> 1.320516662 | O21: =(N21)*(1+O20) -> 1.336791175 | P21: =(O21)*(1+P20) -> 1.35487448 | Q21: =(P21)*(1+Q20) -> 1.374358688 | R21: =(Q21)*(1+R20) -> 1.393258893 | S21: =(R21)*(1+S20) -> 1.411791719 | T21: =(S21)*(1+T20) -> 1.430348908 | U21: =(T21)*(1+U20) -> 1.449107771 | V21: =(U21)*(1+V20) -> 1.468123807 | W21: =(V21)*(1+W20) -> 1.487699084 | X21: =(W21)*(1+X20) -> 1.507723039 | Y21: =(X21)*(1+Y20) -> 1.528003747 | Z21: =(Y21)*(1+Z20) -> 1.5483797
B22: Aumento en precios de energía | C22: =50%*C19+50%*C7 -> 0.06186222444 | D22: =+D7 -> 0.016 | E22: 0.026 | F22: 0.00432 | G22: 0.0027 | H22: 0.0067 | I22: 0.01941125 | J22: 0.01735390625 | K22: 0.01456064453 | L22: 0.0133807251 | M22: 0.01305331573 | N22: =+N7 -> 0.0114349802 | O22: 0.01232435273 | P22: 0.01352739682 | Q22: 0.01438082142 | R22: 0.01375201785 | S22: 0.0133017818 | T22: 0.01314442396 | U22: =+U7 -> 0.01311488631 | V22: 0.01312258263 | W22: 0.01333353294 | X22: 0.01345968047 | Y22: 0.01345121592 | Z22: 0.01333501523
B23: Costo KWH | C23: ='Sup fijo'!D109 -> 0.06 | D23: =(C23*(1+C22))*(1+D22) -> 0.0647311212 | E23: =(D23)*(1+E22) -> 0.06641413035 | F23: 0.0667010394 | G23: 0.0668811322 | H23: 0.06732923579 | I23: 0.06863618042 | J23: 0.06982728626 | K23: 0.07084401655 | L23: 0.07179196086 | M23: 0.07272908399 | N23: =(M23)*(1+N22) -> 0.07356073963 | O23: =(N23)*(1+O22) -> 0.07446732813 | P23: =(O23)*(1+P22) -> 0.07547467723 | Q23: =(P23)*(1+Q22) -> 0.07656006508 | R23: =(Q23)*(1+R22) -> 0.07761292047 | S23: =(R23)*(1+S22) -> 0.0786453106 | T23: =(S23)*(1+T22) -> 0.0796790579 | U23: =(T23)*(1+U22) -> 0.08072403969 | V23: =(U23)*(1+V22) -> 0.08178334757 | W23: =(V23)*(1+W22) -> 0.08287380853 | X23: =(W23)*(1+X22) -> 0.08398926351 | Y23: =(X23)*(1+Y22) -> 0.08511902123 | Z23: =(Y23)*(1+Z22) -> 0.08625408467
B25: Inflación

Sheet Sup fijo
AO1: =C96 -> Euro III | AP1: =D96 -> Euro IV | AQ1: =E96 -> Euro V | AR1: =F96 -> Euro VI | AS1: =G96 -> Híbrido | AT1: =I96 -> Eléctrico | AU1: =J96 -> Gas
B2: Estructura de costos Transporte Convencional | AR2: Diésel | AS2: =AS1 -> Híbrido | AT2: =AT1 -> Eléctrico | AU2: =AU1 -> Gas
B3: SUPUESTOS FIJOS
B5: Parámetros Principales
B7: Parámetros operacionales
B8: Parámetro | C8: Unidad | D8: Fuente | E8: 1 | F8: =E8+1 -> 2 | G8: =F8+1 -> 3 | H8: 4 | I8: 5 | J8: 6 | K8: 7 | L8: 8 | M8: 9 | N8: 10 | O8: 11 | P8: 12 | Q8: =P8+1 -> 13 | R8: 14 | S8: 15 | T8: 16 | U8: 17 | V8: 18 | W8: 19 | X8: 20
B9: Días equivalentes de operación al mes
B10: Para Kilometraje | C10: días | D10: Oper | E10: 27.41666667 | F10: 27.41666667 | G10: 27.41666667 | H10: 27.41666667 | I10: 27.41666667 | J10: 27.41666667 | K10: 27.41666667 | L10: 27.41666667 | M10: 27.41666667 | N10: 27.41666667 | O10: 27.41666667 | P10: 27.41666667 | Q10: 27.41666667 | R10: 27.41666667 | S10: 27.41666667 | T10: 27.41666667 | U10: 27.41666667 | V10: 27.41666667 | W10: 27.41666667 | X10: 27.41666667
B11: Para Demanda | C11: días | D11: Oper | E11: 26.41666667 | F11: 26.41666667 | G11: 26.41666667 | H11: 26.41666667 | I11: 26.41666667 | J11: 26.41666667 | K11: 26.41666667 | L11: 26.41666667 | M11: 26.41666667 | N11: 26.41666667 | O11: 26.41666667 | P11: 26.41666667 | Q11: 26.41666667 | R11: 26.41666667 | S11: 26.41666667 | T11: 26.41666667 | U11: 26.41666667 | V11: 26.41666667 | W11: 26.41666667 | X11: 26.41666667
B12: % Demanda | C12: % | E12: 0 | F12: =+E12 -> 0 | G12: =+F12 -> 0 | H12: 0 | I12: 0 | J12: 0 | K12: 0 | L12: 0 | M12: 0 | N12: 0 | O12: 0 | P12: 0 | Q12: 0 | R12: 0 | S12: 0 | T12: 0 | U12: 0 | V12: 0 | W12: 0 | X12: 0
B13: KILOMETRAJE
B14: Intracantonal Rural
B15: Recorrido dia laborable | C15: km | D15: SDM | E15: 214 | F15: 214 | G15: 214 | H15: 214 | I15: 214 | J15: 214 | K15: 214 | L15: 214 | M15: 214 | N15: 214 | O15: 214 | P15: 214 | Q15: 214 | R15: 214 | S15: 214 | T15: 214 | U15: 214 | V15: 214 | W15: 214 | X15: 214
B16: Recorrido mes | C16: km | D16: Calc | E16: =+E15*E$10 -> 5867.166667 | F16: =+F15*F$10 -> 5867.166667 | G16: 5867.166667 | H16: 5867.166667 | I16: 5867.166667 | J16: 5867.166667 | K16: 5867.166667 | L16: 5867.166667 | M16: 5867.166667 | N16: 5867.166667 | O16: 5867.166667 | P16: 5867.166667 | Q16: 5867.166667 | R16: 5867.166667 | S16: 5867.166667 | T16: 5867.166667 | U16: 5867.166667 | V16: 5867.166667 | W16: 5867.166667 | X16: 5867.166667
B17: Recorrido Año | C17: km | D17: Calc | E17: =+E16*12 -> 70406 | F17: =+F16*12 -> 70406 | G17: 70406 | H17: 70406 | I17: 70406 | J17: 70406 | K17: 70406 | L17: 70406 | M17: 70406 | N17: 70406 | O17: 70406 | P17: 70406 | Q17: =+Q16*12 -> 70406 | R17: =+R16*12 -> 70406 | S17: =+S16*12 -> 70406 | T17: =+T16*12 -> 70406 | U17: =+U16*12 -> 70406 | V17: =+V16*12 -> 70406 | W17: =+W16*12 -> 70406 | X17: =+X16*12 -> 70406
B18: Intracantonal Urbano
B19: Recorrido dia laborable | C19: km | D19: SDM | E19: 194 | F19: 194 | G19: 194 | H19: 194 | I19: 194 | J19: 194 | K19: 194 | L19: 194 | M19: 194 | N19: 194 | O19: 194 | P19: 194 | Q19: 194 | R19: 194 | S19: 194 | T19: 194 | U19: 194 | V19: 194 | W19: 194 | X19: 194
B20: Recorrido mes | C20: km | D20: Calc | E20: =+E19*E$10 -> 5318.833333 | F20: =+F19*F$10 -> 5318.833333 | G20: =+G19*G$10 -> 5318.833333 | H20: =+H19*H$10 -> 5318.833333 | I20: =+I19*I$10 -> 5318.833333 | J20: =+J19*J$10 -> 5318.833333 | K20: =+K19*K$10 -> 5318.833333 | L20: =+L19*L$10 -> 5318.833333 | M20: =+M19*M$10 -> 5318.833333 | N20: =+N19*N$10 -> 5318.833333 | O20: =+O19*O$10 -> 5318.833333 | P20: =+P19*P$10 -> 5318.833333 | Q20: =+Q19*Q$10 -> 5318.833333 | R20: =+R19*R$10 -> 5318.833333 | S20: =+S19*S$10 -> 5318.833333 | T20: =+T19*T$10 -> 5318.833333 | U20: =+U19*U$10 -> 5318.833333 | V20: =+V19*V$10 -> 5318.833333 | W20: =+W19*W$10 -> 5318.833333 | X20: =+X19*X$10 -> 5318.833333
B21: Recorrido Año | C21: km | D21: Calc | E21: =+E20*12 -> 63826 | F21: =+F20*12 -> 63826 | G21: 63826 | H21: 63826 | I21: 63826 | J21: 63826 | K21: 63826 | L21: 63826 | M21: 63826 | N21: 63826 | O21: 63826 | P21: 63826 | Q21: =+Q20*12 -> 63826 | R21: =+R20*12 -> 63826 | S21: =+S20*12 -> 63826 | T21: =+T20*12 -> 63826 | U21: =+U20*12 -> 63826 | V21: =+V20*12 -> 63826 | W21: =+W20*12 -> 63826 | X21: =+X20*12 -> 63826
B22: Intracantonal Combinado
B23: Recorrido dia laborable | C23: km | D23: SDM | E23: 342 | F23: 342 | G23: 342 | H23: 342 | I23: 342 | J23: 342 | K23: 342 | L23: 342 | M23: 342 | N23: 342 | O23: 342 | P23: 342 | Q23: 342 | R23: 342 | S23: 342 | T23: 342 | U23: 342 | V23: 342 | W23: 342 | X23: 342
B24: Recorrido mes | C24: km | D24: Calc | E24: =+E23*E$10 -> 9376.5 | F24: =+F23*F$10 -> 9376.5 | G24: =+G23*G$10 -> 9376.5 | H24: =+H23*H$10 -> 9376.5 | I24: =+I23*I$10 -> 9376.5 | J24: =+J23*J$10 -> 9376.5 | K24: =+K23*K$10 -> 9376.5 | L24: =+L23*L$10 -> 9376.5 | M24: =+M23*M$10 -> 9376.5 | N24: =+N23*N$10 -> 9376.5 | O24: =+O23*O$10 -> 9376.5 | P24: =+P23*P$10 -> 9376.5 | Q24: =+Q23*Q$10 -> 9376.5 | R24: =+R23*R$10 -> 9376.5 | S24: =+S23*S$10 -> 9376.5 | T24: =+T23*T$10 -> 9376.5 | U24: =+U23*U$10 -> 9376.5 | V24: =+V23*V$10 -> 9376.5 | W24: =+W23*W$10 -> 9376.5 | X24: =+X23*X$10 -> 9376.5
B25: Recorrido Año | C25: km | D25: Calc | E25: =+E24*12 -> 112518 | F25: =+F24*12 -> 112518 | G25: 112518 | H25: 112518 | I25: 112518 | J25: 112518 | K25: 112518 | L25: 112518 | M25: 112518 | N25: 112518 | O25: 112518 | P25: 112518 | Q25: =+Q24*12 -> 112518 | R25: =+R24*12 -> 112518 | S25: =+S24*12 -> 112518 | T25: =+T24*12 -> 112518 | U25: =+U24*12 -> 112518 | V25: =+V24*12 -> 112518 | W25: =+W24*12 -> 112518 | X25: =+X24*12 -> 112518
B26: Otro
B27: Recorrido dia laborable | C27: km | D27: SDM | E27: 200 | F27: 200 | G27: 200 | H27: 200 | I27: 200 | J27: 200 | K27: 200 | L27: 200 | M27: 200 | N27: 200 | O27: 200 | P27: 200 | Q27: 200 | R27: 200 | S27: 200 | T27: 200 | U27: 200 | V27: 200 | W27: 200 | X27: 200
B28: Recorrido mes | C28: km | D28: Calc | E28: =+E27*E$10 -> 5483.333333 | F28: =+F27*F$10 -> 5483.333333 | G28: =+G27*G$10 -> 5483.333333 | H28: =+H27*H$10 -> 5483.333333 | I28: =+I27*I$10 -> 5483.333333 | J28: =+J27*J$10 -> 5483.333333 | K28: =+K27*K$10 -> 5483.333333 | L28: =+L27*L$10 -> 5483.333333 | M28: =+M27*M$10 -> 5483.333333 | N28: =+N27*N$10 -> 5483.333333 | O28: =+O27*O$10 -> 5483.333333 | P28: =+P27*P$10 -> 5483.333333 | Q28: =+Q27*Q$10 -> 5483.333333 | R28: =+R27*R$10 -> 5483.333333 | S28: =+S27*S$10 -> 5483.333333 | T28: =+T27*T$10 -> 5483.333333 | U28: =+U27*U$10 -> 5483.333333 | V28: =+V27*V$10 -> 5483.333333 | W28: =+W27*W$10 -> 5483.333333 | X28: =+X27*X$10 -> 5483.333333
B29: Recorrido Año | C29: km | D29: Calc | E29: =+E28*12 -> 65800 | F29: =+F28*12 -> 65800 | G29: 65800 | H29: 65800 | I29: 65800 | J29: 65800 | K29: 65800 | L29: 65800 | M29: 65800 | N29: 65800 | O29: 65800 | P29: 65800 | Q29: =+Q28*12 -> 65800 | R29: =+R28*12 -> 65800 | S29: =+S28*12 -> 65800 | T29: =+T28*12 -> 65800 | U29: =+U28*12 -> 65800 | V29: =+V28*12 -> 65800 | W29: =+W28*12 -> 65800 | X29: =+X28*12 -> 65800
B30: DEMANDA
B31: =+B14 -> Intracantonal Rural
B32: Demanda día laborable | C32: pas | D32: SDM | E32: 972 | F32: 972 | G32: 972 | H32: 972 | I32: 972 | J32: 972 | K32: 972 | L32: 972 | M32: 972 | N32: 972 | O32: 972 | P32: 972 | Q32: 972 | R32: 972 | S32: 972 | T32: 972 | U32: 972 | V32: 972 | W32: 972 | X32: 972
B33: Demanda mes | C33: pas | D33: Calc | E33: =+E32*E$11 -> 25677 | F33: =+F32*F$11 -> 25677 | G33: 25677 | H33: 25677 | I33: 25677 | J33: 25677 | K33: 25677 | L33: 25677 | M33: 25677 | N33: 25677 | O33: 25677 | P33: 25677 | Q33: 25677 | R33: 25677 | S33: 25677 | T33: 25677 | U33: 25677 | V33: 25677 | W33: 25677 | X33: 25677
B34: Demanda Año | C34: pas | D34: Calc | E34: =+E33*12 -> 308124 | F34: =+F33*12 -> 308124 | G34: 308124 | H34: 308124 | I34: 308124 | J34: 308124 | K34: 308124 | L34: 308124 | M34: 308124 | N34: 308124 | O34: 308124 | P34: 308124 | Q34: =+Q33*12 -> 308124 | R34: =+R33*12 -> 308124 | S34: =+S33*12 -> 308124 | T34: =+T33*12 -> 308124 | U34: =+U33*12 -> 308124 | V34: =+V33*12 -> 308124 | W34: =+W33*12 -> 308124 | X34: =+X33*12 -> 308124
B35: =+B18 -> Intracantonal Urbano
B36: Demanda día laborable | C36: pas | D36: SDM | E36: =864*1.1 -> 950.4 | F36: =+E36*(1+F12) -> 950.4 | G36: =+F36*(1+G12) -> 950.4 | H36: 950.4 | I36: 950.4 | J36: 950.4 | K36: 950.4 | L36: 950.4 | M36: 950.4 | N36: 950.4 | O36: 950.4 | P36: 950.4 | Q36: 950.4 | R36: 950.4 | S36: 950.4 | T36: 950.4 | U36: 950.4 | V36: 950.4 | W36: 950.4 | X36: 950.4
B37: Demanda mes | C37: pas | D37: Calc | E37: =+E36*E$11 -> 25106.4 | F37: =+F36*F$11 -> 25106.4 | G37: =+G36*G$11 -> 25106.4 | H37: =+H36*H$11 -> 25106.4 | I37: =+I36*I$11 -> 25106.4 | J37: =+J36*J$11 -> 25106.4 | K37: =+K36*K$11 -> 25106.4 | L37: =+L36*L$11 -> 25106.4 | M37: =+M36*M$11 -> 25106.4 | N37: =+N36*N$11 -> 25106.4 | O37: =+O36*O$11 -> 25106.4 | P37: =+P36*P$11 -> 25106.4 | Q37: =+Q36*Q$11 -> 25106.4 | R37: =+R36*R$11 -> 25106.4 | S37: =+S36*S$11 -> 25106.4 | T37: =+T36*T$11 -> 25106.4 | U37: =+U36*U$11 -> 25106.4 | V37: =+V36*V$11 -> 25106.4 | W37: =+W36*W$11 -> 25106.4 | X37: =+X36*X$11 -> 25106.4
B38: Demanda Año | C38: pas | D38: Calc | E38: =+E37*12 -> 301276.8 | F38: =+F37*12 -> 301276.8 | G38: 301276.8 | H38: 301276.8 | I38: 301276.8 | J38: 301276.8 | K38: 301276.8 | L38: 301276.8 | M38: 301276.8 | N38: 301276.8 | O38: 301276.8 | P38: 301276.8 | Q38: =+Q37*12 -> 301276.8 | R38: =+R37*12 -> 301276.8 | S38: =+S37*12 -> 301276.8 | T38: =+T37*12 -> 301276.8 | U38: =+U37*12 -> 301276.8 | V38: =+V37*12 -> 301276.8 | W38: =+W37*12 -> 301276.8 | X38: =+X37*12 -> 301276.8
B39: =+B22 -> Intracantonal Combinado
B40: Demanda día laborable | C40: pas | D40: SDM | E40: 972 | F40: 972 | G40: 972 | H40: 972 | I40: 972 | J40: 972 | K40: 972 | L40: 972 | M40: 972 | N40: 972 | O40: 972 | P40: 972 | Q40: 972 | R40: 972 | S40: 972 | T40: 972 | U40: 972 | V40: 972 | W40: 972 | X40: 972
B41: Demanda mes | C41: pas | D41: Calc | E41: =+E40*E$11 -> 25677 | F41: =+F40*F$11 -> 25677 | G41: =+G40*G$11 -> 25677 | H41: =+H40*H$11 -> 25677 | I41: =+I40*I$11 -> 25677 | J41: =+J40*J$11 -> 25677 | K41: =+K40*K$11 -> 25677 | L41: =+L40*L$11 -> 25677 | M41: =+M40*M$11 -> 25677 | N41: =+N40*N$11 -> 25677 | O41: =+O40*O$11 -> 25677 | P41: =+P40*P$11 -> 25677 | Q41: =+Q40*Q$11 -> 25677 | R41: =+R40*R$11 -> 25677 | S41: =+S40*S$11 -> 25677 | T41: =+T40*T$11 -> 25677 | U41: =+U40*U$11 -> 25677 | V41: =+V40*V$11 -> 25677 | W41: =+W40*W$11 -> 25677 | X41: =+X40*X$11 -> 25677
B42: Demanda Año | C42: pas | D42: Calc | E42: =+E41*12 -> 308124 | F42: =+F41*12 -> 308124 | G42: 308124 | H42: 308124 | I42: 308124 | J42: 308124 | K42: 308124 | L42: 308124 | M42: 308124 | N42: 308124 | O42: 308124 | P42: 308124 | Q42: =+Q41*12 -> 308124 | R42: =+R41*12 -> 308124 | S42: =+S41*12 -> 308124 | T42: =+T41*12 -> 308124 | U42: =+U41*12 -> 308124 | V42: =+V41*12 -> 308124 | W42: =+W41*12 -> 308124 | X42: =+X41*12 -> 308124
B43: Otro
B44: Demanda día laborable | C44: pas | D44: SDM | E44: 1100 | F44: 1100 | G44: 1100 | H44: 1100 | I44: 1100 | J44: 1100 | K44: 1100 | L44: 1100 | M44: 1100 | N44: 1100 | O44: 1100 | P44: 1100 | Q44: 1100 | R44: 1100 | S44: 1100 | T44: 1100 | U44: 1100 | V44: 1100 | W44: 1100 | X44: 1100
B45: Demanda mes | C45: pas | D45: Calc | E45: =+E44*E$11 -> 29058.33333 | F45: =+F44*F$11 -> 29058.33333 | G45: =+G44*G$11 -> 29058.33333 | H45: =+H44*H$11 -> 29058.33333 | I45: =+I44*I$11 -> 29058.33333 | J45: =+J44*J$11 -> 29058.33333 | K45: =+K44*K$11 -> 29058.33333 | L45: =+L44*L$11 -> 29058.33333 | M45: =+M44*M$11 -> 29058.33333 | N45: =+N44*N$11 -> 29058.33333 | O45: =+O44*O$11 -> 29058.33333 | P45: =+P44*P$11 -> 29058.33333 | Q45: =+Q44*Q$11 -> 29058.33333 | R45: =+R44*R$11 -> 29058.33333 | S45: =+S44*S$11 -> 29058.33333 | T45: =+T44*T$11 -> 29058.33333 | U45: =+U44*U$11 -> 29058.33333 | V45: =+V44*V$11 -> 29058.33333 | W45: =+W44*W$11 -> 29058.33333 | X45: =+X44*X$11 -> 29058.33333
B46: Demanda Año | C46: pas | D46: Calc | E46: =+E45*12 -> 348700 | F46: =+F45*12 -> 348700 | G46: 348700 | H46: 348700 | I46: 348700 | J46: 348700 | K46: 348700 | L46: 348700 | M46: 348700 | N46: 348700 | O46: 348700 | P46: 348700 | Q46: =+Q45*12 -> 348700 | R46: =+R45*12 -> 348700 | S46: =+S45*12 -> 348700 | T46: =+T45*12 -> 348700 | U46: =+U45*12 -> 348700 | V46: =+V45*12 -> 348700 | W46: =+W45*12 -> 348700 | X46: =+X45*12 -> 348700
B49: Selección de tipología de vehículo por servicio
B50: Denominación | C50: Tipología | D50: Tecnología | E50: Combustible | F50: Precio USD | G50: Vida útil flota | H50: Plazo a remunerar tarifa | I50: Valor salvamento
B51: =B31 -> Intracantonal Rural | C51: Minibús | D51: Euro III | E51: Diésel | F51: =IF(E51=$AR$2,IF(C51=$C$58,+VLOOKUP(D51,$B$59:$D$62,2,FALSE),0)+IF(C51=$D$58,+VLOOKUP(D51,$B$59:$D$62,3,FALSE),0)+IF(C51=$E$58,+VLOOKUP(D51,$B$59:$E$62,4,FALSE),0)+IF(C51=$F$58,+VLOOKUP(D51,$B$59:$F$62,5,FALSE),0),0)+IF(AND(E51=$G$57,$C51=$G$58),$G$62,0)+IF(AND(E51=$H$57,$C51=$H$58),$H$62,0)+IF(AND(E51=$I$57,$C51=$I$58),$I$62,0) -> 90000 | G51: 12 | H51: =G51 -> 12 | I51: =VLOOKUP(G51,$B$67:$C$86,2,FALSE) -> 0.2
B52: =B35 -> Intracantonal Urbano | C52: Bus Tipo | D52: Euro III | E52: Diésel | F52: =IF(E52=$AR$2,IF(C52=$C$58,+VLOOKUP(D52,$B$59:$D$62,2,FALSE),0)+IF(C52=$D$58,+VLOOKUP(D52,$B$59:$D$62,3,FALSE),0)+IF(C52=$E$58,+VLOOKUP(D52,$B$59:$E$62,4,FALSE),0)+IF(C52=$F$58,+VLOOKUP(D52,$B$59:$F$62,5,FALSE),0),0)+IF(AND(E52=$G$57,$C52=$G$58),$G$62,0)+IF(AND(E52=$H$57,$C52=$H$58),$H$62,0)+IF(AND(E52=$I$57,$C52=$I$58),$I$62,0) -> 122000 | G52: 12 | H52: =G52 -> 12 | I52: =VLOOKUP(G52,$B$67:$C$86,2,FALSE) -> 0.2
B53: =B39 -> Intracantonal Combinado | C53: Bus Tipo | D53: Euro III | E53: Diésel | F53: =IF(E53=$AR$2,IF(C53=$C$58,+VLOOKUP(D53,$B$59:$D$62,2,FALSE),0)+IF(C53=$D$58,+VLOOKUP(D53,$B$59:$D$62,3,FALSE),0)+IF(C53=$E$58,+VLOOKUP(D53,$B$59:$E$62,4,FALSE),0)+IF(C53=$F$58,+VLOOKUP(D53,$B$59:$F$62,5,FALSE),0),0)+IF(AND(E53=$G$57,$C53=$G$58),$G$62,0)+IF(AND(E53=$H$57,$C53=$H$58),$H$62,0)+IF(AND(E53=$I$57,$C53=$I$58),$I$62,0) -> 122000 | G53: 12 | H53: 12 | I53: =VLOOKUP(G53,$B$67:$C$86,2,FALSE) -> 0.2
B54: =B43 -> Otro | C54: Articulado | D54: Euro III | E54: Diésel | F54: =IF(E54=$AR$2,IF(C54=$C$58,+VLOOKUP(D54,$B$59:$D$62,2,FALSE),0)+IF(C54=$D$58,+VLOOKUP(D54,$B$59:$D$62,3,FALSE),0)+IF(C54=$E$58,+VLOOKUP(D54,$B$59:$E$62,4,FALSE),0)+IF(C54=$F$58,+VLOOKUP(D54,$B$59:$F$62,5,FALSE),0),0)+IF(AND(E54=$G$57,$C54=$G$58),$G$62,0)+IF(AND(E54=$H$57,$C54=$H$58),$H$62,0)+IF(AND(E54=$I$57,$C54=$I$58),$I$62,0) -> 206078.58 | G54: 12 | H54: 12 | I54: =VLOOKUP(G54,$B$67:$C$86,2,FALSE) -> 0.2
B56: Tabla de precios US ( chasis + carrocería)
B57: Combustible | C57: Diésel | G57: =AS2 -> Híbrido | H57: =AT2 -> Eléctrico | I57: =AU2 -> Gas | J57: Fuente
B58: Tipología | C58: Minibús | D58: Bus Tipo | E58: Articulado | F58: Biarticulado | G58: Bus Tipo | H58: Bus Tipo | I58: Bus Tipo | J58: Fuente
B59: Euro III | C59: 90000 | D59: 122000 | E59: =+E60*90% -> 206078.58 | F59: 288940.77 | G59: n/a | H59: n/a | I59: n/a | J59: Bench
B60: Euro IV | C60: 94950 | D60: 128790 | E60: 228976.2 | F60: 321045.3 | G60: n/a | H60: n/a | I60: n/a | J60: Bench
B61: Euro V | C61: 105500 | D61: 143100 | E61: 254418 | F61: 356717 | G61: n/a | H61: n/a | I61: n/a | J61: Bench
B62: Euro VI | C62: =+C61*1.2 -> 126600 | D62: =+D61*1.2 -> 171720 | E62: =+E61*1.2 -> 305301.6 | F62: =+F61*1.2 -> 428060.4 | G62: =500/330*D62 -> 260181.8182 | H62: 200000 | I62: 155000 | J62: Bench
B65: Tabla valor de salvamento según vida útil
B66: Vida útil | C66: % salvamento | D66: Fuente
B67: 20 | C67: 0.03 | D67: Sup
B68: =B67-1 -> 19 | C68: =C69-($C$75-$C$67)/8 -> 0.05125 | D68: Sup
B69: =B68-1 -> 18 | C69: 0.0725 | D69: Sup
B70: 17 | C70: 0.09375 | D70: Sup
B71: 16 | C71: 0.115 | D71: Sup
B72: 15 | C72: 0.13625 | D72: Sup
B73: 14 | C73: 0.1575 | D73: Sup
B74: 13 | C74: =C75-($C$75-$C$67)/8 -> 0.17875 | D74: Sup
B75: 12 | C75: 0.2 | D75: Sup
B76: 11 | C76: =$C77-($C$86-$C$75)/11 -> 0.2681818182 | D76: Sup
B77: 10 | C77: 0.3363636364 | D77: Sup
B78: 9 | C78: 0.4045454545 | D78: Sup
B79: 8 | C79: 0.4727272727 | D79: Sup
B80: 7 | C80: 0.5409090909 | D80: Sup
B81: 6 | C81: 0.6090909091 | D81: Sup
B82: 5 | C82: 0.6772727273 | D82: Sup
B83: 4 | C83: 0.7454545455 | D83: Sup
B84: 3 | C84: 0.8136363636 | D84: Sup
B85: 2 | C85: =$C86-($C$86-$C$75)/11 -> 0.8818181818 | D85: Sup
B86: 1 | C86: 0.95 | D86: Sup
B88: Combustible
B89: Tipología | C89: Combustible | D89: =+D50 -> Tecnología | E89: Rendimiento
B90: =+'Sup Personal Directo'!B46 -> Intracantonal Rural | C90: =+E51 -> Diésel | D90: =+D51 -> Euro III | E90: =+HLOOKUP(D90,$C$96:$J$97,2,FALSE) -> 9.735747769
B91: =+'Sup Personal Directo'!B47 -> Intracantonal Urbano | C91: =+E52 -> Diésel | D91: =+D52 -> Euro III | E91: =+HLOOKUP(D91,$C$96:$J$99,3,FALSE) -> 8.147500782
B92: =+'Sup Personal Directo'!B48 -> Intracantonal Combinado | C92: =+E53 -> Diésel | D92: =+D53 -> Euro III | E92: =+HLOOKUP(D92,$C$96:$J$99,4,FALSE) -> 8.766298309
B93: =+'Sup Personal Directo'!B49 -> Otro | C93: =+E54 -> Diésel | D93: =+D54 -> Euro III | E93: =+HLOOKUP(D93,$C$96:$J$100,5,FALSE) -> 5.426176
B95: Rendimientos de combustible | C95: Km/ Galón | I95: Otros
B96: Tipo | C96: Euro III | D96: Euro IV | E96: Euro V | F96: Euro VI | G96: Híbrido | H96: Fuente | I96: Eléctrico | J96: Gas | K96: Fuente
B97: =+B90 -> Intracantonal Rural | C97: =9.44/(2-(1+0.5%)^(9-3)) -> 9.735747769 | D97: =D98/C98*C97 -> 11.07256471 | E97: =E98/D98*D97 -> 11.1390666 | H97: Oper | K97: Bench
B98: =+B91 -> Intracantonal Urbano | C98: =7.9/(2-(1+0.5%)^(9-3)) -> 8.147500782 | D98: =D99/C99*C98 -> 9.266235294 | E98: =E99/D99*D98 -> 9.321888359 | F98: =F99/E99*E98 -> 9.321888359 | G98: =E98*1.3 -> 12.11845487 | H98: Oper | I98: 1 | J98: 3 | K98: Bench
B99: =+B92 -> Intracantonal Combinado | C99: =8.5/(2-(1+0.5%)^(9-3)) -> 8.766298309 | D99: 9.97 | E99: =E100/D100*D99 -> 10.02987988 | F99: =E99 -> 10.02987988 | G99: =E99*1.3 -> 13.03884384 | H99: Oper | I99: 1 | J99: 2.4 | K99: Bench
B100: =+B93 -> Otro | C100: 5.426176 | D100: 6.66 | E100: 6.7 | F100: =E100/D100*E100 -> 6.74024024 | G100: =E100*1.3 -> 8.71 | H100: Bench | I100: =I99/G99*G100 -> 0.668004012 | J100: 1.92 | K100: Bench
B102: Urea y Pérdida de Eficiencia | C102: Unidad | D102: Valor | E102: Fuente
B103: Urea para diésel | C103: % | D103: 0.05 | E103: Bench | F103: * Solo aplica para euro V y Euro VI
B104: Pérdida eficiencia vejez | C104: % | D104: 0.005 | E104: Bench | F104: * Aplica del tercer año en adelante
B106: Precios | C106: Unidad | D106: Valor | E106: Fuente
B107: =+C90 -> Diésel | C107: USD/Galón | D107: 1.04 | E107: Mdo
B108: Urea | C108: USD/Litro | D108: =475/710 -> 0.6690140845 | E108: Mdo
B109: Kwh | C109: USD/kw | D109: 0.06 | E109: Mdo
B110: m3/gas | C110: USD/m3 | D110: 1 | E110: Mdo
B113: SITP-Q
B114: Parámetro | C114: Unidad | D114: Valor | E114: Fuente
B115: SITP-Q
B116: Costo Por pasajero | C116: USD/Pas | D116: 0.02237251661 | E116: Calc
B117: Escenario
B118: Incluye año 2 SITP-Q | C118: - | D118: Si | E118: Sup | F118: * En caso de no mantiene gasto actual
B120: Gastos Administrativos
B121: Parámetro | C121: Unidad | D121: Valor | E121: Fuente
B122: Luz | C122: USD/mes | D122: 100 | E122: Oper
B123: Agua | C123: USD/mes | D123: 50 | E123: Oper
B124: Teléfonos | C124: USD/mes | D124: 400 | E124: Oper
B125: Internet | C125: USD/mes | D125: 50 | E125: Oper
B126: Limpieza oficina | C126: USD/mes | D126: 500 | E126: Oper
B127: Seguridad alarmas | C127: USD/mes | D127: 50 | E127: Oper
B128: Útiles oficina | C128: USD/mes | D128: 300 | E128: Oper
B129: Mantenimiento oficinas | C129: USD/mes | D129: 100 | E129: Oper
B130: Comunicación radios | C130: USD/mes | D130: 100 | E130: Oper
B131: Movilización auxilios | C131: USD/mes | D131: 500 | E131: Oper
B132: Arriendo y Mtto de patios | C132: USD/mes | D132: 4000 | E132: Oper
B133: Otros | C133: USD/mes | D133: =+SUM(D122:D132,D136:D137)*5% -> 447.25 | E133: Oper
B134: Subtotal | C134: USD/mes | D134: =SUM(D122:D133) -> 6597.25 | E134: Calc
B136: Medio de pago | C136: USD/mes | D136: 2295 | E136: Oper
B137: transporte valores | C137: USD/mes | D137: 500 | E137: Oper
B138: Total | C138: USD/mes | D138: =SUM(D134,SUM(D136:D137)) -> 9392.25 | E138: Calc
B140: Gasto medio por bus | C140: USD/mes | D140: =+D138/'Sup fijo'!$D$142 -> 187.845 | E140: Calc
B142: Flota promedio empresa | C142: Veh/Empresa | D142: 50 | E142: Sup | F142: * Tamaño medio empresa
B144: Flota administrada por el ente gestor
B145: Intracantonal rural | C145: Veh | D145: 46 | E145: SDM
B146: Intracantonal Urbano | C146: Veh | D146: 2007 | E146: SDM
B147: Intracantonal Combinado | C147: Veh | D147: 268 | E147: SDM
B149: Seguros
B150: Parámetro | C150: Unidad | D150: Valor | E150: Fuente
B151: Prima de seguros | C151: % | D151: =I151 -> 0.005 | E151: Mdo | H151: =3% -> 0.03 | I151: 0.005
B152: Superintendencia de Bancos | C152: % | D152: 0.035 | E152: Mdo
B153: Seguro Campesino | C153: % | D153: 0.005 | E153: Mdo
B155: Impuestos
B156: Costos de matrícula
B157: BASE IMPONIBLE (AVALUO) | D157: TARIFA | F157: FUENTE
B158: Desde - US | C158: Hasta - US | D158: Fracción Básica (USD) | E158: Sobre la Fracción Excedente (%)
B159: 0 | C159: 4000 | D159: 0 | E159: 0.005 | F159: Mdo
B160: 4001 | C160: 8000 | D160: 20 | E160: 0.01 | F160: Mdo
B161: 8001 | C161: 12000 | D161: 60 | E161: 0.02 | F161: Mdo
B162: 12001 | C162: 16000 | D162: 140 | E162: 0.03 | F162: Mdo
B163: 16001 | C163: 20000 | D163: 260 | E163: 0.04 | F163: Mdo
B164: 20001 | C164: 24000 | D164: 420 | E164: 0.05 | F164: Mdo
B165: 24001 | D165: 620 | E165: 0.06 | F165: Mdo
B166: Exoneración | C166: 0.8
B167: Impuesto rodaje
B168: BASE IMPONIBLE (AVALUO) | D168: TARIFA | E168: FUENTE
B169: Desde - US | C169: Hasta - US | D169: Tarifa (USD)
B170: 1001 | C170: 4000 | D170: 5 | E170: Mdo
B171: 4001 | C171: 8000 | D171: 10 | E171: Mdo
B172: 8001 | C172: 12000 | D172: 15 | E172: Mdo
B173: 12001 | C173: 16000 | D173: 20 | E173: Mdo
B174: 16001 | C174: 20000 | D174: 25 | E174: Mdo
B175: 20001 | C175: 30000 | D175: 30 | E175: Mdo
B176: 30001 | C176: 40000 | D176: 50 | E176: Mdo
B177: 40001 | D177: 70 | E177: Mdo
B178: Otros Impuestos | C178: Unidad | D178: Valor | E178: Fuente
B179: =+B31 -> Intracantonal Rural
B180: Valor Revisión Anual (una Semestral) | C180: USD/vehículo | D180: =35*2 -> 70 | E180: Mdo
B181: Valor SPPAT | C181: USD/vehículo | D181: 78 | E181: Mdo
B182: Valor permiso de operación | C182: USD/vehículo | D182: 25 | E182: Mdo
B183: =+B35 -> Intracantonal Urbano
B184: Valor Revisión Anual (una Semestral) | C184: USD/vehículo | D184: =35*2 -> 70 | E184: Mdo
B185: Valor SPPAT | C185: USD/vehículo | D185: 78 | E185: Mdo
B186: Valor permiso de operación | C186: USD/vehículo | D186: 25 | E186: Mdo
B187: =+B39 -> Intracantonal Combinado
B188: Valor Revisión Anual (una Semestral) | C188: USD/vehículo | D188: =35*2 -> 70 | E188: Mdo
B189: Valor SPPAT | C189: USD/vehículo | D189: 78 | E189: Mdo
B190: Valor permiso de operación | C190: USD/vehículo | D190: 25 | E190: Mdo
B191: =+B43 -> Otro
B192: Valor Revisión Anual (una Semestral) | C192: USD/vehículo | D192: =35*2 -> 70 | E192: Mdo
B193: Valor SPPAT | C193: USD/vehículo | D193: 78 | E193: Mdo
B194: Valor permiso de operación | C194: USD/vehículo | D194: 25 | E194: Mdo
B195: Impuestos Nacionales
B196: Participación Empleados | C196: % | D196: =15% -> 0.15 | E196: Mdo
B197: Impuesto a la Renta | C197: % | D197: =30% -> 0.3 | E197: Mdo
B198: IVA | C198: % | D198: 0.14 | E198: Mdo
B200: Pago de impuestos en escenario sin SITP-Q | C200: - | D200: No | E200: Sup
B201: Corrección mantenimiento para situación actual | C201: % | D201: 0.8 | E201: Sup
B203: Financiación
B204: Estructura de Capital | C204: Unidad | D204: Valor | E204: Fuente
B205: Capital | C205: % | D205: 0.4 | E205: Oper
B206: Deuda | C206: % | D206: =100%-D205 -> 0.6 | E206: Oper
B207: Tasa interés Efectiva Anual (E.A.) | C207: % | D207: 0.14 | E207: Mdo
B208: Plazo deuda | C208: Años | D208: 5 | E208: Mdo
B209: Periodo gracia | C209: Años | D209: 0 | E209: Mdo
B210: Parámetros Rentabilidad | C210: Unidad | D210: Valor | E210: Fuente
B211: Inflación anual | C211: % | D211: 0.03 | E211: Bench | F211: * Inflación promedio anual
B212: Costo de capital | C212: % | D212: =C223 -> 0.2609199873 | E212: Bench | F212: * Retorno capital invertido
B213: WACC | C213: % | D213: =((1+C225)/(1+D211)-1)*1 -> 0.1292893154 | E213: Calc
B214: Depreciación tributaria | C214: Años | D214: 5 | E214: Mdo
B215: Valor salvamento | C215: % | D215: 0.1 | E215: Mdo | F215: * Para efecto tributario
B216: TIR objetivo (real) | C216: % | D216: =ROUND(D213,2)*1+19%*0 -> 0.13 | E216: Calc
B220: Análisis de riesgo
B221: Cálculo del WACC
C222: Ke | D222: Kd | E222: Tax | F222: Fuente
B223: Capital | C223: =+F273+G273 -> 0.2609199873 | D223: =D207 -> 0.14 | E223: =D197 -> 0.3 | F223: Bench
B224: Peso | C224: 0.4 | D224: 0.6 | F224: Bench
B225: Wacc | C225: =+C223*C224+(D223*(1-E223))*D224 -> 0.1631679949 | F225: Calc
... 145 more rows

Sheet Sup Personal Directo
Q1: Actual
B2: Estructura de costos Transporte Convencional | Q2: Propuesta
B3: SUPUESTOS PERSONAL DIRECTO
B6: Selección de escenario
B8: Selección vinculación personal directo
B9: Conductor | C9: Actual | D9: * Esquema actual o propuesto
B10: Porcentaje personal con prestaciones sociales | C10: 0.5 | D10: * Porcentaje del personal actual que tiene prestaciones sociales en escenario actual (en selección de salarios propuestos siempre 100%)
B11: Ayudante | C11: Actual | D11: * Esquema actual o propuesto
B12: Porcentaje personal con prestaciones sociales | C12: 0 | D12: * Porcentaje del personal actual que tiene prestaciones sociales en escenario actual (en selección de salarios propuestos siempre 100%)
B13: Jornadas Nocturnas
B14: % de trabajo programado en jornada nocturna | C14: 0.2368421053
B16: Escenarios | C16: Aportes | D16: ACTUAL | H16: PROPUESTO | J16: SELECCIÓN
B17: Ítem | C17: % | D17: Conductor | F17: Ayudante | H17: Conductor | I17: Ayudante | J17: Conductor | K17: Ayudante
D18: Día | E18: +Prestaciones | F18: Día | G18: +Prestaciones | H18: +Prestaciones | I18: +Prestaciones
B19: Remuneración | D19: =30*4.33*6 -> 779.4 | E19: =D19 -> 779.4 | F19: =25*4.33*6 -> 649.5 | G19: =F19 -> 649.5 | H19: 600 | I19: =+F19*75%*(1-C21-C22-C23-C24)*0+375 -> 375 | J19: =IF($C$9=$Q$1,IF($C$10=100%,E19,E19*$C$10+D19*(1-$C$10)),H19) -> 779.4 | K19: =IF($C$11=$Q$1,IF($C$12=100%,G19,G19*$C$12+F19*(1-$C$12)),I19) -> 649.5
B20: Salario Base Cotización IESS | E20: =566 -> 566 | G20: 375 | H20: =+H19 -> 600 | I20: =+I19 -> 375 | J20: =IF($C$9=$Q$1,IF($C$10=100%,E20,E20),H20) -> 566 | K20: =IF($C$11=$Q$1,IF($C$12=100%,G20,G20),I20) -> 375
B21: Fondo de Reserva | C21: =1/12 -> 0.08333333333 | E21: =+$C21*E$20 -> 47.16666667 | G21: =+$C21*G$20 -> 31.25 | H21: =+$C21*$H$20 -> 50 | I21: =+$C21*$I$20 -> 31.25 | J21: =IF($C$9=$Q$1,IF($C$10=100%,E21,E21*$C$10+D21*(1-$C$10)),H21) -> 23.58333333 | K21: =IF($C$11=$Q$1,IF($C$12=100%,G21,G21*$C$12+F21*(1-$C$12)),I21) -> 0
B22: Decimo tercero | C22: =1/12 -> 0.08333333333 | H22: =+$C22*$H$20 -> 50 | I22: =+$C22*$I$20 -> 31.25 | J22: 0 | K22: 0
B23: Decimo cuarto | C23: =1/12 -> 0.08333333333 | H23: =+$C23*$C$38 -> 30.5 | I23: =+$C23*$C$38 -> 30.5 | J23: 0 | K23: 0
B24: Vacaciones | C24: =1/12*0.5 -> 0.04166666667 | E24: =$C24*E$20 -> 23.58333333 | G24: =$C24*G$20 -> 15.625 | H24: =+$C24*$H$20 -> 25 | I24: =+$C24*$I$20 -> 15.625 | J24: 11.79166667 | K24: 0
B25: Jornada nocturna (ponderando programación > 7 PM) | C25: =25%*$C$14 -> 0.05921052632 | G25: =$C25*G$20 -> 22.20394737 | H25: =+$C25*$H$20 -> 35.52631579 | I25: =+$C25*$I$20 -> 22.20394737 | J25: =IF($C$9=$Q$1,IF($C$10=100%,E25,E25*$C$10+D25*(1-$C$10)),H25) -> 0 | K25: =IF($C$11=$Q$1,IF($C$12=100%,G25,G25*$C$12+F25*(1-$C$12)),I25) -> 0
B26: IESS | C26: 0.1115 | E26: =$C26*E$20 -> 63.109 | G26: =$C26*G$20 -> 41.8125 | H26: =+$C26*$H$20 -> 66.9 | I26: =+$C26*$I$20 -> 41.8125 | J26: 31.5545 | K26: 0
B27: Auxilio Alimentación | D27: =5*4.33*6 -> 129.9 | E27: =5*4.33*6 -> 129.9 | F27: =5*4.33*6 -> 129.9 | G27: =5*4.33*6 -> 129.9 | H27: =5*4.33*6 -> 129.9 | I27: =+H27 -> 129.9 | J27: 129.9 | K27: 129.9
B29: Costo unitario total | D29: =+D19+SUM(D21:D27) -> 909.3 | E29: 1043.159 | F29: 779.4 | G29: 890.2914474 | H29: 987.8263158 | I29: 677.5414474 | J29: =IF($C$9=$Q$1,IF($C$10=100%,E29,E29*$C$10+D29*(1-$C$10)),H29) -> 976.2295 | K29: =IF($C$11=$Q$1,IF($C$12=100%,G29,G29*$C$12+F29*(1-$C$12)),I29) -> 779.4
B30: Factor salario total | D30: =+SUM(D21:D26)/D19 -> 0 | E30: 0.171746215 | F30: 0 | G30: 0.1707335602 | H30: 0.429877193 | I30: 0.460377193 | J30: 0.08587310752 | K30: 0
B32: Número de empleados | D32: =1+(0.142857142857143) -> 1.142857143 | E32: =+D32 -> 1.142857143 | F32: =+E32 -> 1.142857143 | G32: =+F32 -> 1.142857143 | H32: 2.2 | I32: 2.2 | J32: =IF($C$9=$Q$1,IF($C$10=100%,E32,E32*$C$10+D32*(1-$C$10)),H32) -> 1.142857143 | K32: =IF($C$11=$Q$1,IF($C$12=100%,G32,G32*$C$12+F32*(1-$C$12)),I32) -> 1.142857143
B33: Horas de trabajo | D33: 16 | E33: 16 | F33: 16 | G33: 16 | H33: 8 | I33: 8 | J33: =IF($C$9=$Q$1,IF($C$10=100%,E33,E33*$C$10+D33*(1-$C$10)),H33) -> 16 | K33: =IF($C$11=$Q$1,IF($C$12=100%,G33,G33*$C$12+F33*(1-$C$12)),I33) -> 16
B34: Remuneración recibida por el empleado | D34: =+D19+SUM(D21:D25)+D27 -> 909.3 | E34: =+E19+SUM(E21:E25)+E27 -> 980.05 | F34: 779.4 | G34: 848.4789474 | H34: 920.9263158 | I34: 635.7289474 | J34: =IF($C$9=$Q$1,IF($C$10=100%,E34,E34*$C$10+D34*(1-$C$10)),H34) -> 944.675 | K34: =IF($C$11=$Q$1,IF($C$12=100%,G34,G34*$C$12+F34*(1-$C$12)),I34) -> 779.4
B36: Aportación Patronal | C36: =C26 -> 0.1115
B37: Crecimiento salarios real | C37: 0.01 | D37: * Porcentaje de ajuste de salarios por arriba de inflación
B38: Salario básico 2016 | C38: 366
B42: Conductores y ayudantes en escenario seleccionado
B43: Parámetro | C43: Unidad | D43: 1 | E43: =D43+1 -> 2 | F43: =E43+1 -> 3 | G43: 4 | H43: 5 | I43: 6 | J43: 7 | K43: 8 | L43: 9 | M43: 10 | N43: 11 | O43: 12 | P43: 13 | Q43: 14 | R43: 15 | S43: 16 | T43: 17 | U43: 18 | V43: 19 | W43: 20
B44: CONDUCTORES
B45: No. Conductor Actual
B46: ='Sup fijo'!B51 -> Intracantonal Rural | C46: conductores/bus | D46: =$D$32 -> 1.142857143 | E46: =D46 -> 1.142857143 | F46: 1.142857143 | G46: 1.142857143 | H46: 1.142857143 | I46: 1.142857143 | J46: 1.142857143 | K46: 1.142857143 | L46: 1.142857143 | M46: 1.142857143 | N46: 1.142857143 | O46: 1.142857143 | P46: 1.142857143 | Q46: 1.142857143 | R46: 1.142857143 | S46: 1.142857143 | T46: 1.142857143 | U46: 1.142857143 | V46: 1.142857143 | W46: 1.142857143
B47: ='Sup fijo'!B52 -> Intracantonal Urbano | C47: conductores/bus | D47: =$D$32 -> 1.142857143 | E47: =D47 -> 1.142857143 | F47: 1.142857143 | G47: 1.142857143 | H47: 1.142857143 | I47: 1.142857143 | J47: 1.142857143 | K47: 1.142857143 | L47: 1.142857143 | M47: 1.142857143 | N47: 1.142857143 | O47: 1.142857143 | P47: 1.142857143 | Q47: 1.142857143 | R47: 1.142857143 | S47: 1.142857143 | T47: 1.142857143 | U47: 1.142857143 | V47: 1.142857143 | W47: 1.142857143
B48: ='Sup fijo'!B53 -> Intracantonal Combinado | C48: conductores/bus | D48: =$D$32 -> 1.142857143 | E48: =D48 -> 1.142857143 | F48: 1.142857143 | G48: 1.142857143 | H48: 1.142857143 | I48: 1.142857143 | J48: 1.142857143 | K48: 1.142857143 | L48: 1.142857143 | M48: 1.142857143 | N48: 1.142857143 | O48: 1.142857143 | P48: 1.142857143 | Q48: 1.142857143 | R48: 1.142857143 | S48: 1.142857143 | T48: 1.142857143 | U48: 1.142857143 | V48: 1.142857143 | W48: 1.142857143
B49: ='Sup fijo'!B54 -> Otro | C49: conductores/bus | D49: =$D$32 -> 1.142857143 | E49: =D49 -> 1.142857143 | F49: 1.142857143 | G49: 1.142857143 | H49: 1.142857143 | I49: 1.142857143 | J49: 1.142857143 | K49: 1.142857143 | L49: 1.142857143 | M49: 1.142857143 | N49: 1.142857143 | O49: 1.142857143 | P49: 1.142857143 | Q49: 1.142857143 | R49: 1.142857143 | S49: 1.142857143 | T49: 1.142857143 | U49: 1.142857143 | V49: 1.142857143 | W49: 1.142857143
B50: No. Conductor Propuesta
B51: =B46 -> Intracantonal Rural | C51: conductores/bus | D51: =$H$32 -> 2.2 | E51: =D51 -> 2.2 | F51: 2.2 | G51: 2.2 | H51: 2.2 | I51: 2.2 | J51: 2.2 | K51: 2.2 | L51: 2.2 | M51: 2.2 | N51: 2.2 | O51: 2.2 | P51: 2.2 | Q51: 2.2 | R51: 2.2 | S51: 2.2 | T51: 2.2 | U51: 2.2 | V51: 2.2 | W51: 2.2
B52: =B47 -> Intracantonal Urbano | C52: conductores/bus | D52: =$H$32 -> 2.2 | E52: =D52 -> 2.2 | F52: 2.2 | G52: 2.2 | H52: 2.2 | I52: 2.2 | J52: 2.2 | K52: 2.2 | L52: 2.2 | M52: 2.2 | N52: 2.2 | O52: 2.2 | P52: 2.2 | Q52: 2.2 | R52: 2.2 | S52: 2.2 | T52: 2.2 | U52: 2.2 | V52: 2.2 | W52: 2.2
B53: =B48 -> Intracantonal Combinado | C53: conductores/bus | D53: =$H$32 -> 2.2 | E53: =D53 -> 2.2 | F53: 2.2 | G53: 2.2 | H53: 2.2 | I53: 2.2 | J53: 2.2 | K53: 2.2 | L53: 2.2 | M53: 2.2 | N53: 2.2 | O53: 2.2 | P53: 2.2 | Q53: 2.2 | R53: 2.2 | S53: 2.2 | T53: 2.2 | U53: 2.2 | V53: 2.2 | W53: 2.2
B54: =B49 -> Otro | C54: conductores/bus | D54: =$H$32 -> 2.2 | E54: =D54 -> 2.2 | F54: 2.2 | G54: 2.2 | H54: 2.2 | I54: 2.2 | J54: 2.2 | K54: 2.2 | L54: 2.2 | M54: 2.2 | N54: 2.2 | O54: 2.2 | P54: 2.2 | Q54: 2.2 | R54: 2.2 | S54: 2.2 | T54: 2.2 | U54: 2.2 | V54: 2.2 | W54: 2.2
B55: Salario Actual diario
B56: =B46 -> Intracantonal Rural | C56: USD/conductor | D56: =$E$19 -> 779.4 | E56: =D56*(E$113/D$113) -> 798.2053632 | F56: 825.5103723 | G56: 835.7091897 | H56: 844.6693293 | I56: 857.1312428 | J56: 880.7593854 | K56: 903.2123533 | L56: 923.6946169 | M56: 943.5427552 | N56: 963.5059897 | O56: 982.3198509 | P56: 1002.381718 | Q56: 1024.068864 | R56: 1047.106182 | S56: 1069.998052 | T56: 1092.904781 | U56: 1116.128547 | V56: 1139.812578 | W56: 1164.008022
B57: =B47 -> Intracantonal Urbano | C57: USD/conductor | D57: =$E$19 -> 779.4 | E57: =D57*(E$113/D$113) -> 798.2053632 | F57: 825.5103723 | G57: 835.7091897 | H57: 844.6693293 | I57: 857.1312428 | J57: 880.7593854 | K57: 903.2123533 | L57: 923.6946169 | M57: 943.5427552 | N57: 963.5059897 | O57: 982.3198509 | P57: 1002.381718 | Q57: 1024.068864 | R57: 1047.106182 | S57: 1069.998052 | T57: 1092.904781 | U57: 1116.128547 | V57: 1139.812578 | W57: 1164.008022
B58: =B48 -> Intracantonal Combinado | C58: USD/conductor | D58: =$E$19 -> 779.4 | E58: =D58*(E$113/D$113) -> 798.2053632 | F58: 825.5103723 | G58: 835.7091897 | H58: 844.6693293 | I58: 857.1312428 | J58: 880.7593854 | K58: 903.2123533 | L58: 923.6946169 | M58: 943.5427552 | N58: 963.5059897 | O58: 982.3198509 | P58: 1002.381718 | Q58: 1024.068864 | R58: 1047.106182 | S58: 1069.998052 | T58: 1092.904781 | U58: 1116.128547 | V58: 1139.812578 | W58: 1164.008022
B59: =B49 -> Otro | C59: USD/conductor | D59: =$E$19 -> 779.4 | E59: =D59*(E$113/D$113) -> 798.2053632 | F59: 825.5103723 | G59: 835.7091897 | H59: 844.6693293 | I59: 857.1312428 | J59: 880.7593854 | K59: 903.2123533 | L59: 923.6946169 | M59: 943.5427552 | N59: 963.5059897 | O59: 982.3198509 | P59: 1002.381718 | Q59: 1024.068864 | R59: 1047.106182 | S59: 1069.998052 | T59: 1092.904781 | U59: 1116.128547 | V59: 1139.812578 | W59: 1164.008022
B60: Salario Base cotización IESS esquema actual
B61: =B56 -> Intracantonal Rural | C61: USD/conductor | D61: =$E$20 -> 566 | E61: =D61*(E$113/D$113) -> 579.656448 | F61: 599.4853358 | G61: 606.8917133 | H61: 613.3985635 | I61: 622.4484006 | J61: 639.6071493 | K61: 655.9124865 | L61: 670.786699 | M61: 685.2004099 | N61: 699.6977036 | O61: 713.3603228 | P61: 727.9292433 | Q61: 743.6784408 | R61: 760.4081329 | S61: 777.0322013 | T61: 793.667059 | U61: 810.5321502 | V61: 827.7314847 | W61: 845.3022071
B62: Intracantonal Urbano | C62: USD/conductor | D62: =$E$20 -> 566 | E62: =D62*(E$113/D$113) -> 579.656448 | F62: 599.4853358 | G62: 606.8917133 | H62: 613.3985635 | I62: 622.4484006 | J62: 639.6071493 | K62: 655.9124865 | L62: 670.786699 | M62: 685.2004099 | N62: 699.6977036 | O62: 713.3603228 | P62: 727.9292433 | Q62: 743.6784408 | R62: 760.4081329 | S62: 777.0322013 | T62: 793.667059 | U62: 810.5321502 | V62: 827.7314847 | W62: 845.3022071
B63: Intracantonal Combinado | C63: USD/conductor | D63: =$E$20 -> 566 | E63: =D63*(E$113/D$113) -> 579.656448 | F63: 599.4853358 | G63: 606.8917133 | H63: 613.3985635 | I63: 622.4484006 | J63: 639.6071493 | K63: 655.9124865 | L63: 670.786699 | M63: 685.2004099 | N63: 699.6977036 | O63: 713.3603228 | P63: 727.9292433 | Q63: 743.6784408 | R63: 760.4081329 | S63: 777.0322013 | T63: 793.667059 | U63: 810.5321502 | V63: 827.7314847 | W63: 845.3022071
B64: Otro | C64: USD/conductor | D64: =$E$20 -> 566 | E64: =D64*(E$113/D$113) -> 579.656448 | F64: 599.4853358 | G64: 606.8917133 | H64: 613.3985635 | I64: 622.4484006 | J64: 639.6071493 | K64: 655.9124865 | L64: 670.786699 | M64: 685.2004099 | N64: 699.6977036 | O64: 713.3603228 | P64: 727.9292433 | Q64: 743.6784408 | R64: 760.4081329 | S64: 777.0322013 | T64: 793.667059 | U64: 810.5321502 | V64: 827.7314847 | W64: 845.3022071
B65: Salario Base y de cotización IESS propuesto
B66: =B61 -> Intracantonal Rural | C66: USD/conductor | D66: =$H$19 -> 600 | E66: =D66*(E$113/D$113) -> 614.4768 | F66: 635.4968224 | G66: 643.348106 | H66: 650.245827 | I66: 659.8392939 | J66: 678.0287802 | K66: 695.3135899 | L66: 711.0813063 | M66: 726.3608585 | N66: 741.7290144 | O66: 756.2123563 | P66: 771.6564416 | Q66: 788.3517041 | R66: 806.0863599 | S66: 823.7090473 | T66: 841.3431721 | U66: 859.2213606 | V66: 877.4538707 | W66: 896.0800783
B67: Intracantonal Urbano | C67: USD/conductor | D67: =$H$19 -> 600 | E67: =D67*(E$113/D$113) -> 614.4768 | F67: 635.4968224 | G67: 643.348106 | H67: 650.245827 | I67: 659.8392939 | J67: 678.0287802 | K67: 695.3135899 | L67: 711.0813063 | M67: 726.3608585 | N67: 741.7290144 | O67: 756.2123563 | P67: 771.6564416 | Q67: 788.3517041 | R67: 806.0863599 | S67: 823.7090473 | T67: 841.3431721 | U67: 859.2213606 | V67: 877.4538707 | W67: 896.0800783
B68: Intracantonal Combinado | C68: USD/conductor | D68: =$H$19 -> 600 | E68: =D68*(E$113/D$113) -> 614.4768 | F68: 635.4968224 | G68: 643.348106 | H68: 650.245827 | I68: 659.8392939 | J68: 678.0287802 | K68: 695.3135899 | L68: 711.0813063 | M68: 726.3608585 | N68: 741.7290144 | O68: 756.2123563 | P68: 771.6564416 | Q68: 788.3517041 | R68: 806.0863599 | S68: 823.7090473 | T68: 841.3431721 | U68: 859.2213606 | V68: 877.4538707 | W68: 896.0800783
B69: Otro | C69: USD/conductor | D69: =$H$19 -> 600 | E69: =D69*(E$113/D$113) -> 614.4768 | F69: 635.4968224 | G69: 643.348106 | H69: 650.245827 | I69: 659.8392939 | J69: 678.0287802 | K69: 695.3135899 | L69: 711.0813063 | M69: 726.3608585 | N69: 741.7290144 | O69: 756.2123563 | P69: 771.6564416 | Q69: 788.3517041 | R69: 806.0863599 | S69: 823.7090473 | T69: 841.3431721 | U69: 859.2213606 | V69: 877.4538707 | W69: 896.0800783
B70: No. salarios básicos
B71: =B56 -> Intracantonal Rural | C71: X sal. básicos /cond | D71: =+D56/D$113 -> 2.0784 | E71: =+E56/E$113 -> 2.0784 | F71: 2.0784 | G71: 2.0784 | H71: 2.0784 | I71: 2.0784 | J71: 2.0784 | K71: 2.0784 | L71: 2.0784 | M71: 2.0784 | N71: 2.0784 | O71: 2.0784 | P71: 2.0784 | Q71: 2.0784 | R71: 2.0784 | S71: 2.0784 | T71: 2.0784 | U71: 2.0784 | V71: 2.0784 | W71: 2.0784
B72: =B57 -> Intracantonal Urbano | C72: X sal. básicos /cond | D72: =+D57/D$113 -> 2.0784 | E72: 2.0784 | F72: 2.0784 | G72: 2.0784 | H72: 2.0784 | I72: 2.0784 | J72: 2.0784 | K72: 2.0784 | L72: 2.0784 | M72: 2.0784 | N72: 2.0784 | O72: 2.0784 | P72: 2.0784 | Q72: 2.0784 | R72: 2.0784 | S72: 2.0784 | T72: 2.0784 | U72: 2.0784 | V72: 2.0784 | W72: 2.0784
B73: =B58 -> Intracantonal Combinado | C73: X sal. básicos /cond | D73: =+D58/D$113 -> 2.0784 | E73: 2.0784 | F73: 2.0784 | G73: 2.0784 | H73: 2.0784 | I73: 2.0784 | J73: 2.0784 | K73: 2.0784 | L73: 2.0784 | M73: 2.0784 | N73: 2.0784 | O73: 2.0784 | P73: 2.0784 | Q73: 2.0784 | R73: 2.0784 | S73: 2.0784 | T73: 2.0784 | U73: 2.0784 | V73: 2.0784 | W73: 2.0784
B74: =B59 -> Otro | C74: X sal. básicos /cond | D74: =+D59/D$113 -> 2.0784 | E74: 2.0784 | F74: 2.0784 | G74: 2.0784 | H74: 2.0784 | I74: 2.0784 | J74: 2.0784 | K74: 2.0784 | L74: 2.0784 | M74: 2.0784 | N74: 2.0784 | O74: 2.0784 | P74: 2.0784 | Q74: 2.0784 | R74: 2.0784 | S74: 2.0784 | T74: 2.0784 | U74: 2.0784 | V74: 2.0784 | W74: 2.0784
B75: AYUDANTES
B76: No. Ayudantes Actual
B77: =B71 -> Intracantonal Rural | C77: ayudantes/bus | D77: =$F$32 -> 1.142857143 | E77: =D77 -> 1.142857143 | F77: 1.142857143 | G77: 1.142857143 | H77: 1.142857143 | I77: 1.142857143 | J77: 1.142857143 | K77: 1.142857143 | L77: 1.142857143 | M77: 1.142857143 | N77: 1.142857143 | O77: 1.142857143 | P77: 1.142857143 | Q77: 1.142857143 | R77: 1.142857143 | S77: 1.142857143 | T77: 1.142857143 | U77: 1.142857143 | V77: 1.142857143 | W77: 1.142857143
B78: =B72 -> Intracantonal Urbano | C78: ayudantes/bus | D78: =$F$32 -> 1.142857143 | E78: =D78 -> 1.142857143 | F78: 1.142857143 | G78: 1.142857143 | H78: 1.142857143 | I78: 1.142857143 | J78: 1.142857143 | K78: 1.142857143 | L78: 1.142857143 | M78: 1.142857143 | N78: 1.142857143 | O78: 1.142857143 | P78: 1.142857143 | Q78: 1.142857143 | R78: 1.142857143 | S78: 1.142857143 | T78: 1.142857143 | U78: 1.142857143 | V78: 1.142857143 | W78: 1.142857143
B79: =B73 -> Intracantonal Combinado | C79: ayudantes/bus | D79: =$F$32 -> 1.142857143 | E79: =D79 -> 1.142857143 | F79: 1.142857143 | G79: 1.142857143 | H79: 1.142857143 | I79: 1.142857143 | J79: 1.142857143 | K79: 1.142857143 | L79: 1.142857143 | M79: 1.142857143 | N79: 1.142857143 | O79: 1.142857143 | P79: 1.142857143 | Q79: 1.142857143 | R79: 1.142857143 | S79: 1.142857143 | T79: 1.142857143 | U79: 1.142857143 | V79: 1.142857143 | W79: 1.142857143
B80: =B74 -> Otro | C80: ayudantes/bus | D80: =$F$32 -> 1.142857143 | E80: =D80 -> 1.142857143 | F80: 1.142857143 | G80: 1.142857143 | H80: 1.142857143 | I80: 1.142857143 | J80: 1.142857143 | K80: 1.142857143 | L80: 1.142857143 | M80: 1.142857143 | N80: 1.142857143 | O80: 1.142857143 | P80: 1.142857143 | Q80: 1.142857143 | R80: 1.142857143 | S80: 1.142857143 | T80: 1.142857143 | U80: 1.142857143 | V80: 1.142857143 | W80: 1.142857143
B81: No. Ayudantes Propuesta
B82: =B77 -> Intracantonal Rural | C82: ayudantes/bus | D82: =$I$32 -> 2.2 | E82: =D82 -> 2.2 | F82: 2.2 | G82: 2.2 | H82: 2.2 | I82: 2.2 | J82: 2.2 | K82: 2.2 | L82: 2.2 | M82: 2.2 | N82: 2.2 | O82: 2.2 | P82: 2.2 | Q82: 2.2 | R82: 2.2 | S82: 2.2 | T82: 2.2 | U82: 2.2 | V82: 2.2 | W82: 2.2
B83: =B78 -> Intracantonal Urbano | C83: ayudantes/bus | D83: =$I$32 -> 2.2 | E83: =D83 -> 2.2 | F83: 2.2 | G83: 2.2 | H83: 2.2 | I83: 2.2 | J83: 2.2 | K83: 2.2 | L83: 2.2 | M83: 2.2 | N83: 2.2 | O83: 2.2 | P83: 2.2 | Q83: 2.2 | R83: 2.2 | S83: 2.2 | T83: 2.2 | U83: 2.2 | V83: 2.2 | W83: 2.2
B84: =B79 -> Intracantonal Combinado | C84: ayudantes/bus | D84: =$I$32 -> 2.2 | E84: =D84 -> 2.2 | F84: 2.2 | G84: 2.2 | H84: 2.2 | I84: 2.2 | J84: 2.2 | K84: 2.2 | L84: 2.2 | M84: 2.2 | N84: 2.2 | O84: 2.2 | P84: 2.2 | Q84: 2.2 | R84: 2.2 | S84: 2.2 | T84: 2.2 | U84: 2.2 | V84: 2.2 | W84: 2.2
B85: =B80 -> Otro | C85: ayudantes/bus | D85: =$I$32 -> 2.2 | E85: =D85 -> 2.2 | F85: 2.2 | G85: 2.2 | H85: 2.2 | I85: 2.2 | J85: 2.2 | K85: 2.2 | L85: 2.2 | M85: 2.2 | N85: 2.2 | O85: 2.2 | P85: 2.2 | Q85: 2.2 | R85: 2.2 | S85: 2.2 | T85: 2.2 | U85: 2.2 | V85: 2.2 | W85: 2.2
B86: Salario Actual diario
B87: =B77 -> Intracantonal Rural | C87: USD/ayudante | D87: =$F$19 -> 649.5 | E87: =D87*(E$113/D$113) -> 665.171136 | F87: 687.9253102 | G87: 696.4243247 | H87: 703.8911078 | I87: 714.2760356 | J87: 733.9661545 | K87: 752.676961 | L87: 769.7455141 | M87: 786.2856294 | N87: 802.9216581 | O87: 818.5998757 | P87: 835.3180981 | Q87: 853.3907197 | R87: 872.5884846 | S87: 891.6650437 | T87: 910.7539838 | U87: 930.1071229 | V87: 949.843815 | W87: 970.0066847
B88: =B78 -> Intracantonal Urbano | C88: USD/ayudante | D88: =$F$19 -> 649.5 | E88: =D88*(E$113/D$113) -> 665.171136 | F88: 687.9253102 | G88: 696.4243247 | H88: 703.8911078 | I88: 714.2760356 | J88: 733.9661545 | K88: 752.676961 | L88: 769.7455141 | M88: 786.2856294 | N88: 802.9216581 | O88: 818.5998757 | P88: 835.3180981 | Q88: 853.3907197 | R88: 872.5884846 | S88: 891.6650437 | T88: 910.7539838 | U88: 930.1071229 | V88: 949.843815 | W88: 970.0066847
B89: =B79 -> Intracantonal Combinado | C89: USD/ayudante | D89: =$F$19 -> 649.5 | E89: =D89*(E$113/D$113) -> 665.171136 | F89: 687.9253102 | G89: 696.4243247 | H89: 703.8911078 | I89: 714.2760356 | J89: 733.9661545 | K89: 752.676961 | L89: 769.7455141 | M89: 786.2856294 | N89: 802.9216581 | O89: 818.5998757 | P89: 835.3180981 | Q89: 853.3907197 | R89: 872.5884846 | S89: 891.6650437 | T89: 910.7539838 | U89: 930.1071229 | V89: 949.843815 | W89: 970.0066847
B90: =B80 -> Otro | C90: USD/ayudante | D90: =$F$19 -> 649.5 | E90: =D90*(E$113/D$113) -> 665.171136 | F90: 687.9253102 | G90: 696.4243247 | H90: 703.8911078 | I90: 714.2760356 | J90: 733.9661545 | K90: 752.676961 | L90: 769.7455141 | M90: 786.2856294 | N90: 802.9216581 | O90: 818.5998757 | P90: 835.3180981 | Q90: 853.3907197 | R90: 872.5884846 | S90: 891.6650437 | T90: 910.7539838 | U90: 930.1071229 | V90: 949.843815 | W90: 970.0066847
B91: Salario Base cotización IESS esquema actual
B92: =B87 -> Intracantonal Rural | C92: USD/ayudante | D92: =$G$20 -> 375 | E92: =D92*(E$113/D$113) -> 384.048 | F92: 397.185514 | G92: 402.0925662 | H92: 406.4036419 | I92: 412.3995587 | J92: 423.7679876 | K92: 434.5709937 | L92: 444.4258165 | M92: 453.9755366 | N92: 463.580634 | O92: 472.6327227 | P92: 482.285276 | Q92: 492.719815 | R92: 503.803975 | S92: 514.8181546 | T92: 525.8394826 | U92: 537.0133504 | V92: 548.4086692 | W92: 560.0500489
B93: Intracantonal Urbano | C93: USD/ayudante | D93: =$G$20 -> 375 | E93: =D93*(E$113/D$113) -> 384.048 | F93: 397.185514 | G93: 402.0925662 | H93: 406.4036419 | I93: 412.3995587 | J93: 423.7679876 | K93: 434.5709937 | L93: 444.4258165 | M93: 453.9755366 | N93: 463.580634 | O93: 472.6327227 | P93: 482.285276 | Q93: 492.719815 | R93: 503.803975 | S93: 514.8181546 | T93: 525.8394826 | U93: 537.0133504 | V93: 548.4086692 | W93: 560.0500489
B94: Intracantonal Combinado | C94: USD/ayudante | D94: =$G$20 -> 375 | E94: =D94*(E$113/D$113) -> 384.048 | F94: 397.185514 | G94: 402.0925662 | H94: 406.4036419 | I94: 412.3995587 | J94: 423.7679876 | K94: 434.5709937 | L94: 444.4258165 | M94: 453.9755366 | N94: 463.580634 | O94: 472.6327227 | P94: 482.285276 | Q94: 492.719815 | R94: 503.803975 | S94: 514.8181546 | T94: 525.8394826 | U94: 537.0133504 | V94: 548.4086692 | W94: 560.0500489
B95: Otro | C95: USD/ayudante | D95: =$G$20 -> 375 | E95: =D95*(E$113/D$113) -> 384.048 | F95: 397.185514 | G95: 402.0925662 | H95: 406.4036419 | I95: 412.3995587 | J95: 423.7679876 | K95: 434.5709937 | L95: 444.4258165 | M95: 453.9755366 | N95: 463.580634 | O95: 472.6327227 | P95: 482.285276 | Q95: 492.719815 | R95: 503.803975 | S95: 514.8181546 | T95: 525.8394826 | U95: 537.0133504 | V95: 548.4086692 | W95: 560.0500489
B96: Salario Base y de cotización IESS propuesto
B97: =B92 -> Intracantonal Rural | C97: USD/ayudante | D97: =$I$20 -> 375 | E97: =D97*(E$113/D$113) -> 384.048 | F97: =E97*(F$113/E$113) -> 397.185514 | G97: 402.0925662 | H97: 406.4036419 | I97: 412.3995587 | J97: 423.7679876 | K97: 434.5709937 | L97: 444.4258165 | M97: 453.9755366 | N97: 463.580634 | O97: 472.6327227 | P97: 482.285276 | Q97: 492.719815 | R97: 503.803975 | S97: 514.8181546 | T97: 525.8394826 | U97: 537.0133504 | V97: 548.4086692 | W97: 560.0500489
B98: Intracantonal Urbano | C98: USD/ayudante | D98: =$I$20 -> 375 | E98: =D98*(E$113/D$113) -> 384.048 | F98: 397.185514 | G98: 402.0925662 | H98: 406.4036419 | I98: 412.3995587 | J98: 423.7679876 | K98: 434.5709937 | L98: 444.4258165 | M98: 453.9755366 | N98: 463.580634 | O98: 472.6327227 | P98: 482.285276 | Q98: 492.719815 | R98: 503.803975 | S98: 514.8181546 | T98: 525.8394826 | U98: 537.0133504 | V98: 548.4086692 | W98: 560.0500489
B99: Intracantonal Combinado | C99: USD/ayudante | D99: =$I$20 -> 375 | E99: =D99*(E$113/D$113) -> 384.048 | F99: 397.185514 | G99: 402.0925662 | H99: 406.4036419 | I99: 412.3995587 | J99: 423.7679876 | K99: 434.5709937 | L99: 444.4258165 | M99: 453.9755366 | N99: 463.580634 | O99: 472.6327227 | P99: 482.285276 | Q99: 492.719815 | R99: 503.803975 | S99: 514.8181546 | T99: 525.8394826 | U99: 537.0133504 | V99: 548.4086692 | W99: 560.0500489
B100: Otro | C100: USD/ayudante | D100: =$I$20 -> 375 | E100: =D100*(E$113/D$113) -> 384.048 | F100: 397.185514 | G100: 402.0925662 | H100: 406.4036419 | I100: 412.3995587 | J100: 423.7679876 | K100: 434.5709937 | L100: 444.4258165 | M100: 453.9755366 | N100: 463.580634 | O100: 472.6327227 | P100: 482.285276 | Q100: 492.719815 | R100: 503.803975 | S100: 514.8181546 | T100: 525.8394826 | U100: 537.0133504 | V100: 548.4086692 | W100: 560.0500489
B101: No. salarios básicos
B102: =B87 -> Intracantonal Rural | C102: X sal. básicos /cond | D102: =+D87/D$113 -> 1.732 | E102: =+E87/E$113 -> 1.732 | F102: 1.732 | G102: 1.732 | H102: 1.732 | I102: 1.732 | J102: 1.732 | K102: 1.732 | L102: 1.732 | M102: 1.732 | N102: 1.732 | O102: 1.732 | P102: 1.732 | Q102: 1.732 | R102: 1.732 | S102: 1.732 | T102: 1.732 | U102: 1.732 | V102: 1.732 | W102: 1.732
B103: =B88 -> Intracantonal Urbano | C103: X sal. básicos /cond | D103: =+D88/D$113 -> 1.732 | E103: 1.732 | F103: 1.732 | G103: 1.732 | H103: 1.732 | I103: 1.732 | J103: 1.732 | K103: 1.732 | L103: 1.732 | M103: 1.732 | N103: 1.732 | O103: 1.732 | P103: 1.732 | Q103: 1.732 | R103: 1.732 | S103: 1.732 | T103: 1.732 | U103: 1.732 | V103: 1.732 | W103: 1.732
B104: =B89 -> Intracantonal Combinado | C104: X sal. básicos /cond | D104: =+D89/D$113 -> 1.732 | E104: 1.732 | F104: 1.732 | G104: 1.732 | H104: 1.732 | I104: 1.732 | J104: 1.732 | K104: 1.732 | L104: 1.732 | M104: 1.732 | N104: 1.732 | O104: 1.732 | P104: 1.732 | Q104: 1.732 | R104: 1.732 | S104: 1.732 | T104: 1.732 | U104: 1.732 | V104: 1.732 | W104: 1.732
B105: =B90 -> Otro | C105: X sal. básicos /cond | D105: =+D90/D$113 -> 1.732 | E105: 1.732 | F105: 1.732 | G105: 1.732 | H105: 1.732 | I105: 1.732 | J105: 1.732 | K105: 1.732 | L105: 1.732 | M105: 1.732 | N105: 1.732 | O105: 1.732 | P105: 1.732 | Q105: 1.732 | R105: 1.732 | S105: 1.732 | T105: 1.732 | U105: 1.732 | V105: 1.732 | W105: 1.732
B106: CONDUCTORES Y AYUDANTES
B107: Auxilio Alimentación
B108: =B102 -> Intracantonal Rural | C108: USD mes / Persona | D108: =J27 -> 129.9 | E108: =D108*E$113/D$113 -> 133.0342272 | F108: =E108*F$113/E$113 -> 137.585062 | G108: 139.2848649 | H108: 140.7782216 | I108: 142.8552071 | J108: 146.7932309 | K108: 150.5353922 | L108: 153.9491028 | M108: 157.2571259 | N108: 160.5843316 | O108: 163.7199751 | P108: 167.0636196 | Q108: 170.6781439 | R108: 174.5176969 | S108: 178.3330087 | T108: 182.1507968 | U108: 186.0214246 | V108: 189.968763 | W108: 194.0013369
B109: =B103 -> Intracantonal Urbano | C109: USD mes / Persona | D109: =D108 -> 129.9 | E109: =D109*E$113/D$113 -> 133.0342272 | F109: 137.585062 | G109: 139.2848649 | H109: 140.7782216 | I109: 142.8552071 | J109: 146.7932309 | K109: 150.5353922 | L109: 153.9491028 | M109: 157.2571259 | N109: 160.5843316 | O109: 163.7199751 | P109: 167.0636196 | Q109: 170.6781439 | R109: 174.5176969 | S109: 178.3330087 | T109: 182.1507968 | U109: 186.0214246 | V109: 189.968763 | W109: 194.0013369
B110: =B104 -> Intracantonal Combinado | C110: USD mes / Persona | D110: =D109 -> 129.9 | E110: =D110*E$113/D$113 -> 133.0342272 | F110: 137.585062 | G110: 139.2848649 | H110: 140.7782216 | I110: 142.8552071 | J110: 146.7932309 | K110: 150.5353922 | L110: 153.9491028 | M110: 157.2571259 | N110: 160.5843316 | O110: 163.7199751 | P110: 167.0636196 | Q110: 170.6781439 | R110: 174.5176969 | S110: 178.3330087 | T110: 182.1507968 | U110: 186.0214246 | V110: 189.968763 | W110: 194.0013369
B111: =B105 -> Otro | C111: USD mes / Persona | D111: =D110 -> 129.9 | E111: =D111*E$113/D$113 -> 133.0342272 | F111: 137.585062 | G111: 139.2848649 | H111: 140.7782216 | I111: 142.8552071 | J111: 146.7932309 | K111: 150.5353922 | L111: 153.9491028 | M111: 157.2571259 | N111: 160.5843316 | O111: 163.7199751 | P111: 167.0636196 | Q111: 170.6781439 | R111: 174.5176969 | S111: 178.3330087 | T111: 182.1507968 | U111: 186.0214246 | V111: 189.968763 | W111: 194.0013369
B113: Salario Básico | C113: USD mes / Persona | D113: ='Sup Generales'!D13 -> 375 | E113: ='Sup Generales'!E13 -> 384.048 | F113: ='Sup Generales'!F13 -> 397.185514 | G113: ='Sup Generales'!G13 -> 402.0925662 | H113: ='Sup Generales'!H13 -> 406.4036419 | I113: ='Sup Generales'!I13 -> 412.3995587 | J113: ='Sup Generales'!J13 -> 423.7679876 | K113: ='Sup Generales'!K13 -> 434.5709937 | L113: ='Sup Generales'!L13 -> 444.4258165 | M113: ='Sup Generales'!M13 -> 453.9755366 | N113: ='Sup Generales'!N13 -> 463.580634 | O113: ='Sup Generales'!O13 -> 472.6327227 | P113: ='Sup Generales'!P13 -> 482.285276 | Q113: ='Sup Generales'!Q13 -> 492.719815 | R113: ='Sup Generales'!R13 -> 503.803975 | S113: ='Sup Generales'!S13 -> 514.8181546 | T113: ='Sup Generales'!T13 -> 525.8394826 | U113: ='Sup Generales'!U13 -> 537.0133504 | V113: ='Sup Generales'!V13 -> 548.4086692 | W113: ='Sup Generales'!W13 -> 560.0500489

Sheet Sup Personal Indirecto
B2: Estructura de costos Transporte Convencional
B3: SUPUESTOS PERSONAL INDIRECTO
C5: Evolución Planta de personal
C6: Evolución Salarios
C7: Indicadores Base Personal
C8: Factor Prestacional
C9: Año | D9: 1 | E9: =D9+1 -> 2 | F9: =E9+1 -> 3 | G9: 4 | H9: 5 | I9: 6 | J9: 7 | K9: 8 | L9: 9 | M9: 10 | N9: 11 | O9: 12 | P9: 13 | Q9: 14 | R9: 15 | S9: 16 | T9: 17 | U9: 18 | V9: 19 | W9: 20
C11: PLANTA DE PERSONAL
C13: Cantidad de personas operador privado | D13: =SUM(D14:D45) -> 47 | E13: =SUM(E14:E45) -> 47 | F13: 47 | G13: 47 | H13: 47 | I13: 47 | J13: 47 | K13: 47 | L13: 47 | M13: 47 | N13: 47 | O13: 47 | P13: 47 | Q13: 47 | R13: 47 | S13: 47 | T13: 47 | U13: 47 | V13: 47 | W13: 47
B14: a) Personal directivo
C15: Presidente | D15: =D155 -> 1 | E15: =D15 -> 1 | F15: =E15 -> 1 | G15: 1 | H15: 1 | I15: 1 | J15: 1 | K15: 1 | L15: 1 | M15: 1 | N15: 1 | O15: 1 | P15: 1 | Q15: 1 | R15: 1 | S15: 1 | T15: 1 | U15: 1 | V15: 1 | W15: 1
C16: Gerente general | D16: =D156 -> 1 | E16: =D16 -> 1 | F16: 1 | G16: 1 | H16: 1 | I16: 1 | J16: 1 | K16: 1 | L16: 1 | M16: 1 | N16: 1 | O16: 1 | P16: 1 | Q16: 1 | R16: 1 | S16: 1 | T16: 1 | U16: 1 | V16: 1 | W16: 1
B17: b) Personal administrativo
C18: Administrativo & Financiero | D18: 1 | E18: 1 | F18: 1 | G18: 1 | H18: 1 | I18: 1 | J18: 1 | K18: 1 | L18: 1 | M18: 1 | N18: 1 | O18: 1 | P18: 1 | Q18: 1 | R18: 1 | S18: 1 | T18: 1 | U18: 1 | V18: 1 | W18: 1
C19: Contador General | D19: 1 | E19: 1 | F19: 1 | G19: 1 | H19: 1 | I19: 1 | J19: 1 | K19: 1 | L19: 1 | M19: 1 | N19: 1 | O19: 1 | P19: 1 | Q19: 1 | R19: 1 | S19: 1 | T19: 1 | U19: 1 | V19: 1 | W19: 1
C20: Asistente de Contabilidad | D20: 1 | E20: 1 | F20: 1 | G20: 1 | H20: 1 | I20: 1 | J20: 1 | K20: 1 | L20: 1 | M20: 1 | N20: 1 | O20: 1 | P20: 1 | Q20: 1 | R20: 1 | S20: 1 | T20: 1 | U20: 1 | V20: 1 | W20: 1
C21: Responsable de RRHH | D21: 1 | E21: 1 | F21: 1 | G21: 1 | H21: 1 | I21: 1 | J21: 1 | K21: 1 | L21: 1 | M21: 1 | N21: 1 | O21: 1 | P21: 1 | Q21: 1 | R21: 1 | S21: 1 | T21: 1 | U21: 1 | V21: 1 | W21: 1
C22: Secretaria | D22: 1 | E22: 1 | F22: 1 | G22: 1 | H22: 1 | I22: 1 | J22: 1 | K22: 1 | L22: 1 | M22: 1 | N22: 1 | O22: 1 | P22: 1 | Q22: 1 | R22: 1 | S22: 1 | T22: 1 | U22: 1 | V22: 1 | W22: 1
C23: Recaudación General | D23: 3 | E23: 3 | F23: 3 | G23: 3 | H23: 3 | I23: 3 | J23: 3 | K23: 3 | L23: 3 | M23: 3 | N23: 3 | O23: 3 | P23: 3 | Q23: 3 | R23: 3 | S23: 3 | T23: 3 | U23: 3 | V23: 3 | W23: 3
C24: Mensajería | D24: 1 | E24: 1 | F24: 1 | G24: 1 | H24: 1 | I24: 1 | J24: 1 | K24: 1 | L24: 1 | M24: 1 | N24: 1 | O24: 1 | P24: 1 | Q24: 1 | R24: 1 | S24: 1 | T24: 1 | U24: 1 | V24: 1 | W24: 1
B25: c) Personal de operación
C26: Jefe de Operaciones | D26: 1 | E26: 1 | F26: 1 | G26: 1 | H26: 1 | I26: 1 | J26: 1 | K26: 1 | L26: 1 | M26: 1 | N26: 1 | O26: 1 | P26: 1 | Q26: 1 | R26: 1 | S26: 1 | T26: 1 | U26: 1 | V26: 1 | W26: 1
C27: Despachador de Ruta | D27: 8 | E27: 8 | F27: 8 | G27: 8 | H27: 8 | I27: 8 | J27: 8 | K27: 8 | L27: 8 | M27: 8 | N27: 8 | O27: 8 | P27: 8 | Q27: 8 | R27: 8 | S27: 8 | T27: 8 | U27: 8 | V27: 8 | W27: 8
C28: Fiscalizador de Ruta | D28: 5 | E28: 5 | F28: 5 | G28: 5 | H28: 5 | I28: 5 | J28: 5 | K28: 5 | L28: 5 | M28: 5 | N28: 5 | O28: 5 | P28: 5 | Q28: 5 | R28: 5 | S28: 5 | T28: 5 | U28: 5 | V28: 5 | W28: 5
C29: Monitoreo & Control de gestión operativa | D29: 3 | E29: 3 | F29: 3 | G29: 3 | H29: 3 | I29: 3 | J29: 3 | K29: 3 | L29: 3 | M29: 3 | N29: 3 | O29: 3 | P29: 3 | Q29: 3 | R29: 3 | S29: 3 | T29: 3 | U29: 3 | V29: 3 | W29: 3
B30: d) Personal de mantenimiento
C31: Responsable de Flota & Mantenimiento | D31: 1 | E31: 1 | F31: 1 | G31: 1 | H31: 1 | I31: 1 | J31: 1 | K31: 1 | L31: 1 | M31: 1 | N31: 1 | O31: 1 | P31: 1 | Q31: 1 | R31: 1 | S31: 1 | T31: 1 | U31: =T31 -> 1 | V31: 1 | W31: 1
C32: Mecánico | D32: 3 | E32: =D32 -> 3 | F32: 3 | G32: 3 | H32: 3 | I32: 3 | J32: 3 | K32: 3 | L32: 3 | M32: 3 | N32: 3 | O32: 3 | P32: 3 | Q32: 3 | R32: 3 | S32: 3 | T32: 3 | U32: 3 | V32: 3 | W32: 3
C33: Eléctrico | D33: 2 | E33: 2 | F33: 2 | G33: 2 | H33: 2 | I33: 2 | J33: 2 | K33: 2 | L33: 2 | M33: 2 | N33: 2 | O33: 2 | P33: 2 | Q33: 2 | R33: 2 | S33: 2 | T33: 2 | U33: 2 | V33: 2 | W33: 2
C34: Vulcanizador | D34: 1 | E34: 1 | F34: 1 | G34: 1 | H34: 1 | I34: 1 | J34: 1 | K34: 1 | L34: 1 | M34: 1 | N34: 1 | O34: 1 | P34: 1 | Q34: 1 | R34: 1 | S34: 1 | T34: 1 | U34: 1 | V34: 1 | W34: 1
C35: Carrocero | D35: 1 | E35: 1 | F35: 1 | G35: 1 | H35: 1 | I35: 1 | J35: 1 | K35: 1 | L35: 1 | M35: 1 | N35: 1 | O35: 1 | P35: 1 | Q35: 1 | R35: 1 | S35: 1 | T35: 1 | U35: 1 | V35: 1 | W35: 1
C36: Ayudante de Mecánico | D36: 3 | E36: 3 | F36: 3 | G36: 3 | H36: 3 | I36: 3 | J36: 3 | K36: 3 | L36: 3 | M36: 3 | N36: 3 | O36: 3 | P36: 3 | Q36: 3 | R36: 3 | S36: 3 | T36: 3 | U36: 3 | V36: 3 | W36: 3
B37: e) Personal externo
C38: Auditoria externa | D38: 1 | E38: 1 | F38: 1 | G38: 1 | H38: 1 | I38: 1 | J38: 1 | K38: 1 | L38: 1 | M38: 1 | N38: 1 | O38: 1 | P38: 1 | Q38: 1 | R38: 1 | S38: 1 | T38: 1 | U38: 1 | V38: 1 | W38: 1
C39: Capacitación Talento Humano | D39: 1 | E39: 1 | F39: 1 | G39: 1 | H39: 1 | I39: 1 | J39: 1 | K39: 1 | L39: 1 | M39: 1 | N39: 1 | O39: 1 | P39: 1 | Q39: 1 | R39: 1 | S39: 1 | T39: 1 | U39: 1 | V39: 1 | W39: 1
C40: Asesor Legal | D40: 1 | E40: 1 | F40: 1 | G40: 1 | H40: 1 | I40: 1 | J40: 1 | K40: 1 | L40: 1 | M40: 1 | N40: 1 | O40: 1 | P40: 1 | Q40: 1 | R40: 1 | S40: 1 | T40: 1 | U40: 1 | V40: 1 | W40: 1
C41: Servicio de Guardianía | D41: 1 | E41: 1 | F41: 1 | G41: 1 | H41: 1 | I41: 1 | J41: 1 | K41: 1 | L41: 1 | M41: 1 | N41: 1 | O41: 1 | P41: 1 | Q41: 1 | R41: 1 | S41: 1 | T41: 1 | U41: 1 | V41: 1 | W41: 1
C42: Comisario | D42: 1 | E42: 1 | F42: 1 | G42: 1 | H42: 1 | I42: 1 | J42: 1 | K42: 1 | L42: 1 | M42: 1 | N42: 1 | O42: 1 | P42: 1 | Q42: 1 | R42: 1 | S42: 1 | T42: 1 | U42: 1 | V42: 1 | W42: 1
C43: Directorio (Se hace provisión para dietas) | D43: 1 | E43: 1 | F43: 1 | G43: 1 | H43: 1 | I43: 1 | J43: 1 | K43: 1 | L43: 1 | M43: 1 | N43: 1 | O43: 1 | P43: 1 | Q43: 1 | R43: 1 | S43: 1 | T43: 1 | U43: 1 | V43: 1 | W43: 1
C44: Limpieza de flota | D44: 1 | E44: 1 | F44: 1 | G44: 1 | H44: 1 | I44: 1 | J44: 1 | K44: 1 | L44: 1 | M44: 1 | N44: 1 | O44: 1 | P44: 1 | Q44: 1 | R44: 1 | S44: 1 | T44: 1 | U44: 1 | V44: 1 | W44: 1
C45: Sistemas & Soporte | D45: 1 | E45: 1 | F45: 1 | G45: 1 | H45: 1 | I45: 1 | J45: 1 | K45: 1 | L45: 1 | M45: 1 | N45: 1 | O45: 1 | P45: 1 | Q45: 1 | R45: 1 | S45: 1 | T45: 1 | U45: 1 | V45: 1 | W45: 1
C47: Cantidad de personas ente gestor | D47: =SUM(D48:D79) -> 0 | E47: =SUM(E48:E79) -> 0 | F47: 0 | G47: 0 | H47: 0 | I47: 0 | J47: 0 | K47: 0 | L47: 0 | M47: 0 | N47: 0 | O47: 0 | P47: 0 | Q47: 0 | R47: 0 | S47: 0 | T47: 0 | U47: 0 | V47: 0 | W47: 0
B48: =B118 -> a) Área 1
C49: =C119 -> Cargo 1 | D49: =D189 -> 0 | E49: =D49 -> 0 | F49: =E49 -> 0 | G49: =F49 -> 0 | H49: =G49 -> 0 | I49: =H49 -> 0 | J49: =I49 -> 0 | K49: =J49 -> 0 | L49: =K49 -> 0 | M49: =L49 -> 0 | N49: =M49 -> 0 | O49: =N49 -> 0 | P49: =O49 -> 0 | Q49: =P49 -> 0 | R49: =Q49 -> 0 | S49: =R49 -> 0 | T49: =S49 -> 0 | U49: =T49 -> 0 | V49: =U49 -> 0 | W49: =V49 -> 0
C50: Cargo 2 | D50: =D190 -> 0 | E50: =D50 -> 0 | F50: 0 | G50: 0 | H50: 0 | I50: 0 | J50: 0 | K50: 0 | L50: 0 | M50: 0 | N50: 0 | O50: 0 | P50: 0 | Q50: 0 | R50: 0 | S50: 0 | T50: 0 | U50: 0 | V50: 0 | W50: 0
B51: =B121 -> b) Área 2
C52: Cargo 1 | D52: 0 | E52: =D52 -> 0 | F52: =E52 -> 0 | G52: =F52 -> 0 | H52: =G52 -> 0 | I52: =H52 -> 0 | J52: =I52 -> 0 | K52: =J52 -> 0 | L52: =K52 -> 0 | M52: =L52 -> 0 | N52: =M52 -> 0 | O52: =N52 -> 0 | P52: =O52 -> 0 | Q52: =P52 -> 0 | R52: =Q52 -> 0 | S52: =R52 -> 0 | T52: =S52 -> 0 | U52: =T52 -> 0 | V52: =U52 -> 0 | W52: =V52 -> 0
C53: Cargo 2 | D53: 0 | E53: 0 | F53: 0 | G53: 0 | H53: 0 | I53: 0 | J53: 0 | K53: 0 | L53: 0 | M53: 0 | N53: 0 | O53: 0 | P53: 0 | Q53: 0 | R53: 0 | S53: 0 | T53: 0 | U53: 0 | V53: 0 | W53: 0
C54: Cargo 3 | D54: 0 | E54: 0 | F54: 0 | G54: 0 | H54: 0 | I54: 0 | J54: 0 | K54: 0 | L54: 0 | M54: 0 | N54: 0 | O54: 0 | P54: 0 | Q54: 0 | R54: 0 | S54: 0 | T54: 0 | U54: 0 | V54: 0 | W54: 0
C55: Cargo 4 | D55: 0 | E55: 0 | F55: 0 | G55: 0 | H55: 0 | I55: 0 | J55: 0 | K55: 0 | L55: 0 | M55: 0 | N55: 0 | O55: 0 | P55: 0 | Q55: 0 | R55: 0 | S55: 0 | T55: 0 | U55: 0 | V55: 0 | W55: 0
C56: Cargo 5 | D56: 0 | E56: 0 | F56: 0 | G56: 0 | H56: 0 | I56: 0 | J56: 0 | K56: 0 | L56: 0 | M56: 0 | N56: 0 | O56: 0 | P56: 0 | Q56: 0 | R56: 0 | S56: 0 | T56: 0 | U56: 0 | V56: 0 | W56: 0
C57: Cargo 6 | D57: 0 | E57: 0 | F57: 0 | G57: 0 | H57: 0 | I57: 0 | J57: 0 | K57: 0 | L57: 0 | M57: 0 | N57: 0 | O57: 0 | P57: 0 | Q57: 0 | R57: 0 | S57: 0 | T57: 0 | U57: 0 | V57: 0 | W57: 0
C58: Cargo 7 | D58: 0 | E58: 0 | F58: 0 | G58: 0 | H58: 0 | I58: 0 | J58: 0 | K58: 0 | L58: 0 | M58: 0 | N58: 0 | O58: 0 | P58: 0 | Q58: 0 | R58: 0 | S58: 0 | T58: 0 | U58: 0 | V58: 0 | W58: 0
B59: =B129 -> c) Área 3
C60: Cargo 1 | D60: 0 | E60: =D60 -> 0 | F60: =E60 -> 0 | G60: =F60 -> 0 | H60: =G60 -> 0 | I60: =H60 -> 0 | J60: =I60 -> 0 | K60: =J60 -> 0 | L60: =K60 -> 0 | M60: =L60 -> 0 | N60: =M60 -> 0 | O60: =N60 -> 0 | P60: =O60 -> 0 | Q60: =P60 -> 0 | R60: =Q60 -> 0 | S60: =R60 -> 0 | T60: =S60 -> 0 | U60: =T60 -> 0 | V60: =U60 -> 0 | W60: =V60 -> 0
C61: Cargo 2 | D61: 0 | E61: 0 | F61: 0 | G61: 0 | H61: 0 | I61: 0 | J61: 0 | K61: 0 | L61: 0 | M61: 0 | N61: 0 | O61: 0 | P61: 0 | Q61: 0 | R61: 0 | S61: 0 | T61: 0 | U61: 0 | V61: 0 | W61: 0
C62: Cargo 3 | D62: 0 | E62: 0 | F62: 0 | G62: 0 | H62: 0 | I62: 0 | J62: 0 | K62: 0 | L62: 0 | M62: 0 | N62: 0 | O62: 0 | P62: 0 | Q62: 0 | R62: 0 | S62: 0 | T62: 0 | U62: 0 | V62: 0 | W62: 0
C63: Cargo 4 | D63: 0 | E63: 0 | F63: 0 | G63: 0 | H63: 0 | I63: 0 | J63: 0 | K63: 0 | L63: 0 | M63: 0 | N63: 0 | O63: 0 | P63: 0 | Q63: 0 | R63: 0 | S63: 0 | T63: 0 | U63: 0 | V63: 0 | W63: 0
B64: =B134 -> d) Área 4
C65: Cargo 1 | D65: 0 | E65: =D65 -> 0 | F65: =E65 -> 0 | G65: =F65 -> 0 | H65: =G65 -> 0 | I65: =H65 -> 0 | J65: =I65 -> 0 | K65: =J65 -> 0 | L65: =K65 -> 0 | M65: =L65 -> 0 | N65: =M65 -> 0 | O65: =N65 -> 0 | P65: =O65 -> 0 | Q65: =P65 -> 0 | R65: =Q65 -> 0 | S65: =R65 -> 0 | T65: =S65 -> 0 | U65: =T65 -> 0 | V65: =U65 -> 0 | W65: =V65 -> 0
C66: Cargo 2 | D66: 0 | E66: 0 | F66: 0 | G66: 0 | H66: 0 | I66: 0 | J66: 0 | K66: 0 | L66: 0 | M66: 0 | N66: 0 | O66: 0 | P66: 0 | Q66: 0 | R66: 0 | S66: 0 | T66: 0 | U66: 0 | V66: 0 | W66: 0
C67: Cargo 3 | D67: 0 | E67: 0 | F67: 0 | G67: 0 | H67: 0 | I67: 0 | J67: 0 | K67: 0 | L67: 0 | M67: 0 | N67: 0 | O67: 0 | P67: 0 | Q67: 0 | R67: 0 | S67: 0 | T67: 0 | U67: 0 | V67: 0 | W67: 0
C68: Cargo 4 | D68: 0 | E68: 0 | F68: 0 | G68: 0 | H68: 0 | I68: 0 | J68: 0 | K68: 0 | L68: 0 | M68: 0 | N68: 0 | O68: 0 | P68: 0 | Q68: 0 | R68: 0 | S68: 0 | T68: 0 | U68: 0 | V68: 0 | W68: 0
C69: Cargo 5 | D69: 0 | E69: 0 | F69: 0 | G69: 0 | H69: 0 | I69: 0 | J69: 0 | K69: 0 | L69: 0 | M69: 0 | N69: 0 | O69: 0 | P69: 0 | Q69: 0 | R69: 0 | S69: 0 | T69: 0 | U69: 0 | V69: 0 | W69: 0
C70: Cargo 6 | D70: 0 | E70: 0 | F70: 0 | G70: 0 | H70: 0 | I70: 0 | J70: 0 | K70: 0 | L70: 0 | M70: 0 | N70: 0 | O70: 0 | P70: 0 | Q70: 0 | R70: 0 | S70: 0 | T70: 0 | U70: 0 | V70: 0 | W70: 0
B71: =B141 -> e) Área 5
C72: Cargo 1 | D72: 0 | E72: =D72 -> 0 | F72: =E72 -> 0 | G72: =F72 -> 0 | H72: =G72 -> 0 | I72: =H72 -> 0 | J72: =I72 -> 0 | K72: =J72 -> 0 | L72: =K72 -> 0 | M72: =L72 -> 0 | N72: =M72 -> 0 | O72: =N72 -> 0 | P72: =O72 -> 0 | Q72: =P72 -> 0 | R72: =Q72 -> 0 | S72: =R72 -> 0 | T72: =S72 -> 0 | U72: =T72 -> 0 | V72: =U72 -> 0 | W72: =V72 -> 0
C73: Cargo 2 | D73: 0 | E73: 0 | F73: 0 | G73: 0 | H73: 0 | I73: 0 | J73: 0 | K73: 0 | L73: 0 | M73: 0 | N73: 0 | O73: 0 | P73: 0 | Q73: 0 | R73: 0 | S73: 0 | T73: 0 | U73: 0 | V73: 0 | W73: 0
C74: Cargo 3 | D74: 0 | E74: 0 | F74: 0 | G74: 0 | H74: 0 | I74: 0 | J74: 0 | K74: 0 | L74: 0 | M74: 0 | N74: 0 | O74: 0 | P74: 0 | Q74: 0 | R74: 0 | S74: 0 | T74: 0 | U74: 0 | V74: 0 | W74: 0
C75: Cargo 4 | D75: 0 | E75: 0 | F75: 0 | G75: 0 | H75: 0 | I75: 0 | J75: 0 | K75: 0 | L75: 0 | M75: 0 | N75: 0 | O75: 0 | P75: 0 | Q75: 0 | R75: 0 | S75: 0 | T75: 0 | U75: 0 | V75: 0 | W75: 0
C76: Cargo 5 | D76: 0 | E76: 0 | F76: 0 | G76: 0 | H76: 0 | I76: 0 | J76: 0 | K76: 0 | L76: 0 | M76: 0 | N76: 0 | O76: 0 | P76: 0 | Q76: 0 | R76: 0 | S76: 0 | T76: 0 | U76: 0 | V76: 0 | W76: 0
C77: Cargo 6 | D77: 0 | E77: 0 | F77: 0 | G77: 0 | H77: 0 | I77: 0 | J77: 0 | K77: 0 | L77: 0 | M77: 0 | N77: 0 | O77: 0 | P77: 0 | Q77: 0 | R77: 0 | S77: 0 | T77: 0 | U77: 0 | V77: 0 | W77: 0
C78: Cargo 7 | D78: 0 | E78: 0 | F78: 0 | G78: 0 | H78: 0 | I78: 0 | J78: 0 | K78: 0 | L78: 0 | M78: 0 | N78: 0 | O78: 0 | P78: 0 | Q78: 0 | R78: 0 | S78: 0 | T78: 0 | U78: 0 | V78: 0 | W78: 0
C79: Cargo 8 | D79: 0 | E79: 0 | F79: 0 | G79: 0 | H79: 0 | I79: 0 | J79: 0 | K79: 0 | L79: 0 | M79: 0 | N79: 0 | O79: 0 | P79: 0 | Q79: 0 | R79: 0 | S79: 0 | T79: 0 | U79: 0 | V79: 0 | W79: 0
C81: SALARIOS
C83: Salarios unitarios privado
B84: a) Personal directivo
C85: Presidente | D85: =F155 -> 2.732240437 | E85: =D85 -> 2.732240437 | F85: =E85 -> 2.732240437 | G85: 2.732240437 | H85: 2.732240437 | I85: 2.732240437 | J85: 2.732240437 | K85: 2.732240437 | L85: 2.732240437 | M85: 2.732240437 | N85: 2.732240437 | O85: 2.732240437 | P85: 2.732240437 | Q85: 2.732240437 | R85: 2.732240437 | S85: 2.732240437 | T85: 2.732240437 | U85: 2.732240437 | V85: 2.732240437 | W85: 2.732240437
C86: Gerente general | D86: =F156 -> 5.464480874 | E86: =D86 -> 5.464480874 | F86: 5.464480874 | G86: 5.464480874 | H86: 5.464480874 | I86: 5.464480874 | J86: 5.464480874 | K86: 5.464480874 | L86: 5.464480874 | M86: 5.464480874 | N86: 5.464480874 | O86: 5.464480874 | P86: 5.464480874 | Q86: 5.464480874 | R86: 5.464480874 | S86: 5.464480874 | T86: 5.464480874 | U86: 5.464480874 | V86: 5.464480874 | W86: 5.464480874
B87: b) Personal administrativo
C88: Administrativo & Financiero | D88: =F158 -> 4.098360656 | E88: =D88 -> 4.098360656 | F88: 4.098360656 | G88: 4.098360656 | H88: 4.098360656 | I88: 4.098360656 | J88: 4.098360656 | K88: 4.098360656 | L88: 4.098360656 | M88: 4.098360656 | N88: 4.098360656 | O88: 4.098360656 | P88: 4.098360656 | Q88: 4.098360656 | R88: 4.098360656 | S88: 4.098360656 | T88: 4.098360656 | U88: 4.098360656 | V88: 4.098360656 | W88: 4.098360656
C89: Contador General | D89: 2.18579235 | E89: =D89 -> 2.18579235 | F89: 2.18579235 | G89: 2.18579235 | H89: 2.18579235 | I89: 2.18579235 | J89: 2.18579235 | K89: 2.18579235 | L89: 2.18579235 | M89: 2.18579235 | N89: 2.18579235 | O89: 2.18579235 | P89: 2.18579235 | Q89: 2.18579235 | R89: 2.18579235 | S89: 2.18579235 | T89: 2.18579235 | U89: 2.18579235 | V89: 2.18579235 | W89: 2.18579235
C90: Asistente de Contabilidad | D90: 1.024590164 | E90: =D90 -> 1.024590164 | F90: 1.024590164 | G90: 1.024590164 | H90: 1.024590164 | I90: 1.024590164 | J90: 1.024590164 | K90: 1.024590164 | L90: 1.024590164 | M90: 1.024590164 | N90: 1.024590164 | O90: 1.024590164 | P90: 1.024590164 | Q90: 1.024590164 | R90: 1.024590164 | S90: 1.024590164 | T90: 1.024590164 | U90: 1.024590164 | V90: 1.024590164 | W90: 1.024590164
C91: Responsable de RRHH | D91: 2.732240437 | E91: =D91 -> 2.732240437 | F91: 2.732240437 | G91: 2.732240437 | H91: 2.732240437 | I91: 2.732240437 | J91: 2.732240437 | K91: 2.732240437 | L91: 2.732240437 | M91: 2.732240437 | N91: 2.732240437 | O91: 2.732240437 | P91: 2.732240437 | Q91: 2.732240437 | R91: 2.732240437 | S91: 2.732240437 | T91: 2.732240437 | U91: 2.732240437 | V91: 2.732240437 | W91: 2.732240437
C92: Secretaria | D92: 1.092896175 | E92: =D92 -> 1.092896175 | F92: 1.092896175 | G92: 1.092896175 | H92: 1.092896175 | I92: 1.092896175 | J92: 1.092896175 | K92: 1.092896175 | L92: 1.092896175 | M92: 1.092896175 | N92: 1.092896175 | O92: 1.092896175 | P92: 1.092896175 | Q92: 1.092896175 | R92: 1.092896175 | S92: 1.092896175 | T92: 1.092896175 | U92: 1.092896175 | V92: 1.092896175 | W92: 1.092896175
C93: Recaudación General | D93: 1.229508197 | E93: =D93 -> 1.229508197 | F93: 1.229508197 | G93: 1.229508197 | H93: 1.229508197 | I93: 1.229508197 | J93: 1.229508197 | K93: 1.229508197 | L93: 1.229508197 | M93: 1.229508197 | N93: 1.229508197 | O93: 1.229508197 | P93: 1.229508197 | Q93: 1.229508197 | R93: 1.229508197 | S93: 1.229508197 | T93: 1.229508197 | U93: 1.229508197 | V93: 1.229508197 | W93: 1.229508197
C94: Mensajería | D94: 1.024590164 | E94: =D94 -> 1.024590164 | F94: 1.024590164 | G94: 1.024590164 | H94: 1.024590164 | I94: 1.024590164 | J94: 1.024590164 | K94: 1.024590164 | L94: 1.024590164 | M94: 1.024590164 | N94: 1.024590164 | O94: 1.024590164 | P94: 1.024590164 | Q94: 1.024590164 | R94: 1.024590164 | S94: 1.024590164 | T94: 1.024590164 | U94: 1.024590164 | V94: 1.024590164 | W94: 1.024590164
B95: c) Personal de operación
C96: Jefe de Operaciones | D96: =F166 -> 4.098360656 | E96: =D96 -> 4.098360656 | F96: 4.098360656 | G96: 4.098360656 | H96: 4.098360656 | I96: 4.098360656 | J96: 4.098360656 | K96: 4.098360656 | L96: 4.098360656 | M96: 4.098360656 | N96: 4.098360656 | O96: 4.098360656 | P96: 4.098360656 | Q96: 4.098360656 | R96: 4.098360656 | S96: 4.098360656 | T96: 4.098360656 | U96: 4.098360656 | V96: 4.098360656 | W96: 4.098360656
C97: Despachador de Ruta | D97: =F167 -> 1.024590164 | E97: =D97 -> 1.024590164 | F97: 1.024590164 | G97: 1.024590164 | H97: 1.024590164 | I97: 1.024590164 | J97: 1.024590164 | K97: 1.024590164 | L97: 1.024590164 | M97: 1.024590164 | N97: 1.024590164 | O97: 1.024590164 | P97: 1.024590164 | Q97: 1.024590164 | R97: 1.024590164 | S97: 1.024590164 | T97: 1.024590164 | U97: 1.024590164 | V97: 1.024590164 | W97: 1.024590164
C98: Fiscalizador de Ruta | D98: =F168 -> 1.229508197 | E98: =D98 -> 1.229508197 | F98: 1.229508197 | G98: 1.229508197 | H98: 1.229508197 | I98: 1.229508197 | J98: 1.229508197 | K98: 1.229508197 | L98: 1.229508197 | M98: 1.229508197 | N98: 1.229508197 | O98: 1.229508197 | P98: 1.229508197 | Q98: 1.229508197 | R98: 1.229508197 | S98: 1.229508197 | T98: 1.229508197 | U98: 1.229508197 | V98: 1.229508197 | W98: 1.229508197
C99: Monitoreo & Control de gestión operativa | D99: =F169 -> 1.024590164 | E99: =D99 -> 1.024590164 | F99: 1.024590164 | G99: 1.024590164 | H99: 1.024590164 | I99: 1.024590164 | J99: 1.024590164 | K99: 1.024590164 | L99: 1.024590164 | M99: 1.024590164 | N99: 1.024590164 | O99: 1.024590164 | P99: 1.024590164 | Q99: 1.024590164 | R99: 1.024590164 | S99: 1.024590164 | T99: 1.024590164 | U99: 1.024590164 | V99: 1.024590164 | W99: 1.024590164
B100: d) Personal de mantenimiento
C101: Responsable de Flota & Mantenimiento | D101: =F171 -> 2.732240437 | E101: =D101 -> 2.732240437 | F101: 2.732240437 | G101: 2.732240437 | H101: 2.732240437 | I101: 2.732240437 | J101: 2.732240437 | K101: 2.732240437 | L101: 2.732240437 | M101: 2.732240437 | N101: 2.732240437 | O101: 2.732240437 | P101: 2.732240437 | Q101: 2.732240437 | R101: 2.732240437 | S101: 2.732240437 | T101: 2.732240437 | U101: 2.732240437 | V101: 2.732240437 | W101: 2.732240437
C102: Mecánico | D102: 1.366120219 | E102: =D102 -> 1.366120219 | F102: 1.366120219 | G102: 1.366120219 | H102: 1.366120219 | I102: 1.366120219 | J102: 1.366120219 | K102: 1.366120219 | L102: 1.366120219 | M102: 1.366120219 | N102: 1.366120219 | O102: 1.366120219 | P102: 1.366120219 | Q102: 1.366120219 | R102: 1.366120219 | S102: 1.366120219 | T102: 1.366120219 | U102: 1.366120219 | V102: 1.366120219 | W102: 1.366120219
C103: Eléctrico | D103: 1.366120219 | E103: =D103 -> 1.366120219 | F103: 1.366120219 | G103: 1.366120219 | H103: 1.366120219 | I103: 1.366120219 | J103: 1.366120219 | K103: 1.366120219 | L103: 1.366120219 | M103: 1.366120219 | N103: 1.366120219 | O103: 1.366120219 | P103: 1.366120219 | Q103: 1.366120219 | R103: 1.366120219 | S103: 1.366120219 | T103: 1.366120219 | U103: 1.366120219 | V103: 1.366120219 | W103: 1.366120219
C104: Vulcanizador | D104: 1.366120219 | E104: =D104 -> 1.366120219 | F104: 1.366120219 | G104: 1.366120219 | H104: 1.366120219 | I104: 1.366120219 | J104: 1.366120219 | K104: 1.366120219 | L104: 1.366120219 | M104: 1.366120219 | N104: 1.366120219 | O104: 1.366120219 | P104: 1.366120219 | Q104: 1.366120219 | R104: 1.366120219 | S104: 1.366120219 | T104: 1.366120219 | U104: 1.366120219 | V104: 1.366120219 | W104: 1.366120219
C105: Carrocero | D105: 1.366120219 | E105: =D105 -> 1.366120219 | F105: 1.366120219 | G105: 1.366120219 | H105: 1.366120219 | I105: 1.366120219 | J105: 1.366120219 | K105: 1.366120219 | L105: 1.366120219 | M105: 1.366120219 | N105: 1.366120219 | O105: 1.366120219 | P105: 1.366120219 | Q105: 1.366120219 | R105: 1.366120219 | S105: 1.366120219 | T105: 1.366120219 | U105: 1.366120219 | V105: 1.366120219 | W105: 1.366120219
C106: Ayudante de Mecánico | D106: 1.024590164 | E106: =D106 -> 1.024590164 | F106: 1.024590164 | G106: 1.024590164 | H106: 1.024590164 | I106: 1.024590164 | J106: 1.024590164 | K106: 1.024590164 | L106: 1.024590164 | M106: 1.024590164 | N106: 1.024590164 | O106: 1.024590164 | P106: 1.024590164 | Q106: 1.024590164 | R106: 1.024590164 | S106: 1.024590164 | T106: 1.024590164 | U106: 1.024590164 | V106: 1.024590164 | W106: 1.024590164
B107: e) Personal externo
C108: Auditoria externa | D108: =F178 -> 0.7969034608 | E108: =D108 -> 0.7969034608 | F108: 0.7969034608 | G108: 0.7969034608 | H108: 0.7969034608 | I108: 0.7969034608 | J108: 0.7969034608 | K108: 0.7969034608 | L108: 0.7969034608 | M108: 0.7969034608 | N108: 0.7969034608 | O108: 0.7969034608 | P108: 0.7969034608 | Q108: 0.7969034608 | R108: 0.7969034608 | S108: 0.7969034608 | T108: 0.7969034608 | U108: 0.7969034608 | V108: 0.7969034608 | W108: 0.7969034608
C109: Capacitación Talento Humano | D109: 1.366120219 | E109: =D109 -> 1.366120219 | F109: 1.366120219 | G109: 1.366120219 | H109: 1.366120219 | I109: 1.366120219 | J109: 1.366120219 | K109: 1.366120219 | L109: 1.366120219 | M109: 1.366120219 | N109: 1.366120219 | O109: 1.366120219 | P109: 1.366120219 | Q109: 1.366120219 | R109: 1.366120219 | S109: 1.366120219 | T109: 1.366120219 | U109: 1.366120219 | V109: 1.366120219 | W109: 1.366120219
C110: Asesor Legal | D110: 1.366120219 | E110: =D110 -> 1.366120219 | F110: 1.366120219 | G110: 1.366120219 | H110: 1.366120219 | I110: 1.366120219 | J110: 1.366120219 | K110: 1.366120219 | L110: 1.366120219 | M110: 1.366120219 | N110: 1.366120219 | O110: 1.366120219 | P110: 1.366120219 | Q110: 1.366120219 | R110: 1.366120219 | S110: 1.366120219 | T110: 1.366120219 | U110: 1.366120219 | V110: 1.366120219 | W110: 1.366120219
C111: Servicio de Guardianía | D111: 6.830601093 | E111: =D111 -> 6.830601093 | F111: 6.830601093 | G111: 6.830601093 | H111: 6.830601093 | I111: 6.830601093 | J111: 6.830601093 | K111: 6.830601093 | L111: 6.830601093 | M111: 6.830601093 | N111: 6.830601093 | O111: 6.830601093 | P111: 6.830601093 | Q111: 6.830601093 | R111: 6.830601093 | S111: 6.830601093 | T111: 6.830601093 | U111: 6.830601093 | V111: 6.830601093 | W111: 6.830601093
C112: Comisario | D112: 1.024590164 | E112: =D112 -> 1.024590164 | F112: 1.024590164 | G112: 1.024590164 | H112: 1.024590164 | I112: 1.024590164 | J112: 1.024590164 | K112: 1.024590164 | L112: 1.024590164 | M112: 1.024590164 | N112: 1.024590164 | O112: 1.024590164 | P112: 1.024590164 | Q112: 1.024590164 | R112: 1.024590164 | S112: 1.024590164 | T112: 1.024590164 | U112: 1.024590164 | V112: 1.024590164 | W112: 1.024590164
C113: Directorio (Se hace provisión para dietas) | D113: 1.024590164 | E113: =D113 -> 1.024590164 | F113: 1.024590164 | G113: 1.024590164 | H113: 1.024590164 | I113: 1.024590164 | J113: 1.024590164 | K113: 1.024590164 | L113: 1.024590164 | M113: 1.024590164 | N113: 1.024590164 | O113: 1.024590164 | P113: 1.024590164 | Q113: 1.024590164 | R113: 1.024590164 | S113: 1.024590164 | T113: 1.024590164 | U113: 1.024590164 | V113: 1.024590164 | W113: 1.024590164
C114: Limpieza de flota | D114: 1.857923497 | E114: =D114 -> 1.857923497 | F114: 1.857923497 | G114: 1.857923497 | H114: 1.857923497 | I114: 1.857923497 | J114: 1.857923497 | K114: 1.857923497 | L114: 1.857923497 | M114: 1.857923497 | N114: 1.857923497 | O114: 1.857923497 | P114: 1.857923497 | Q114: 1.857923497 | R114: 1.857923497 | S114: 1.857923497 | T114: 1.857923497 | U114: 1.857923497 | V114: 1.857923497 | W114: 1.857923497
C115: Sistemas & Soporte | D115: 0.5464480874 | E115: =D115 -> 0.5464480874 | F115: 0.5464480874 | G115: 0.5464480874 | H115: 0.5464480874 | I115: 0.5464480874 | J115: 0.5464480874 | K115: 0.5464480874 | L115: 0.5464480874 | M115: 0.5464480874 | N115: 0.5464480874 | O115: 0.5464480874 | P115: 0.5464480874 | Q115: 0.5464480874 | R115: 0.5464480874 | S115: 0.5464480874 | T115: 0.5464480874 | U115: 0.5464480874 | V115: 0.5464480874 | W115: 0.5464480874
C117: Salarios unitarios ente gestor
B118: =B188 -> a) Área 1
C119: =C189 -> Cargo 1 | D119: =F189 -> 0 | E119: =D119 -> 0 | F119: =E119 -> 0 | G119: =F119 -> 0 | H119: =G119 -> 0 | I119: =H119 -> 0 | J119: =I119 -> 0 | K119: =J119 -> 0 | L119: =K119 -> 0 | M119: =L119 -> 0 | N119: =M119 -> 0 | O119: =N119 -> 0 | P119: =O119 -> 0 | Q119: =P119 -> 0 | R119: =Q119 -> 0 | S119: =R119 -> 0 | T119: =S119 -> 0 | U119: =T119 -> 0 | V119: =U119 -> 0 | W119: =V119 -> 0
C120: Cargo 2 | D120: =F190 -> 0 | E120: =D120 -> 0 | F120: 0 | G120: 0 | H120: 0 | I120: 0 | J120: 0 | K120: 0 | L120: 0 | M120: 0 | N120: 0 | O120: 0 | P120: 0 | Q120: 0 | R120: 0 | S120: 0 | T120: 0 | U120: 0 | V120: 0 | W120: 0
B121: =B191 -> b) Área 2
C122: Cargo 1 | D122: =F192 -> 0 | E122: =D122 -> 0 | F122: =E122 -> 0 | G122: =F122 -> 0 | H122: =G122 -> 0 | I122: =H122 -> 0 | J122: =I122 -> 0 | K122: =J122 -> 0 | L122: =K122 -> 0 | M122: =L122 -> 0 | N122: =M122 -> 0 | O122: =N122 -> 0 | P122: =O122 -> 0 | Q122: =P122 -> 0 | R122: =Q122 -> 0 | S122: =R122 -> 0 | T122: =S122 -> 0 | U122: =T122 -> 0 | V122: =U122 -> 0 | W122: =V122 -> 0
C123: Cargo 2 | D123: 0 | E123: 0 | F123: 0 | G123: 0 | H123: 0 | I123: 0 | J123: 0 | K123: 0 | L123: 0 | M123: 0 | N123: 0 | O123: 0 | P123: 0 | Q123: 0 | R123: 0 | S123: 0 | T123: 0 | U123: 0 | V123: 0 | W123: 0
C124: Cargo 3 | D124: 0 | E124: 0 | F124: 0 | G124: 0 | H124: 0 | I124: 0 | J124: 0 | K124: 0 | L124: 0 | M124: 0 | N124: 0 | O124: 0 | P124: 0 | Q124: 0 | R124: 0 | S124: 0 | T124: 0 | U124: 0 | V124: 0 | W124: 0
C125: Cargo 4 | D125: 0 | E125: 0 | F125: 0 | G125: 0 | H125: 0 | I125: 0 | J125: 0 | K125: 0 | L125: 0 | M125: 0 | N125: 0 | O125: 0 | P125: 0 | Q125: 0 | R125: 0 | S125: 0 | T125: 0 | U125: 0 | V125: 0 | W125: 0
C126: Cargo 5 | D126: 0 | E126: 0 | F126: 0 | G126: 0 | H126: 0 | I126: 0 | J126: 0 | K126: 0 | L126: 0 | M126: 0 | N126: 0 | O126: 0 | P126: 0 | Q126: 0 | R126: 0 | S126: 0 | T126: 0 | U126: 0 | V126: 0 | W126: 0
C127: Cargo 6 | D127: 0 | E127: 0 | F127: 0 | G127: 0 | H127: 0 | I127: 0 | J127: 0 | K127: 0 | L127: 0 | M127: 0 | N127: 0 | O127: 0 | P127: 0 | Q127: 0 | R127: 0 | S127: 0 | T127: 0 | U127: 0 | V127: 0 | W127: 0
C128: Cargo 7 | D128: 0 | E128: 0 | F128: 0 | G128: 0 | H128: 0 | I128: 0 | J128: 0 | K128: 0 | L128: 0 | M128: 0 | N128: 0 | O128: 0 | P128: 0 | Q128: 0 | R128: 0 | S128: 0 | T128: 0 | U128: 0 | V128: 0 | W128: 0
B129: =B199 -> c) Área 3
C130: Cargo 1 | D130: =F200 -> 0 | E130: =D130 -> 0 | F130: =E130 -> 0 | G130: =F130 -> 0 | H130: =G130 -> 0 | I130: =H130 -> 0 | J130: =I130 -> 0 | K130: =J130 -> 0 | L130: =K130 -> 0 | M130: =L130 -> 0 | N130: =M130 -> 0 | O130: =N130 -> 0 | P130: =O130 -> 0 | Q130: =P130 -> 0 | R130: =Q130 -> 0 | S130: =R130 -> 0 | T130: =S130 -> 0 | U130: =T130 -> 0 | V130: =U130 -> 0 | W130: =V130 -> 0
C131: Cargo 2 | D131: =F201 -> 0 | E131: 0 | F131: 0 | G131: 0 | H131: 0 | I131: 0 | J131: 0 | K131: 0 | L131: 0 | M131: 0 | N131: 0 | O131: 0 | P131: 0 | Q131: 0 | R131: 0 | S131: 0 | T131: 0 | U131: 0 | V131: 0 | W131: 0
C132: Cargo 3 | D132: =F202 -> 0 | E132: 0 | F132: 0 | G132: 0 | H132: 0 | I132: 0 | J132: 0 | K132: 0 | L132: 0 | M132: 0 | N132: 0 | O132: 0 | P132: 0 | Q132: 0 | R132: 0 | S132: 0 | T132: 0 | U132: 0 | V132: 0 | W132: 0
C133: Cargo 4 | D133: =F203 -> 0 | E133: 0 | F133: 0 | G133: 0 | H133: 0 | I133: 0 | J133: 0 | K133: 0 | L133: 0 | M133: 0 | N133: 0 | O133: 0 | P133: 0 | Q133: 0 | R133: 0 | S133: 0 | T133: 0 | U133: 0 | V133: 0 | W133: 0
B134: =B204 -> d) Área 4
C135: Cargo 1 | D135: =F205 -> 0 | E135: =D135 -> 0 | F135: =E135 -> 0 | G135: =F135 -> 0 | H135: =G135 -> 0 | I135: =H135 -> 0 | J135: =I135 -> 0 | K135: =J135 -> 0 | L135: =K135 -> 0 | M135: =L135 -> 0 | N135: =M135 -> 0 | O135: =N135 -> 0 | P135: =O135 -> 0 | Q135: =P135 -> 0 | R135: =Q135 -> 0 | S135: =R135 -> 0 | T135: =S135 -> 0 | U135: =T135 -> 0 | V135: =U135 -> 0 | W135: =V135 -> 0
C136: Cargo 2 | D136: 0 | E136: 0 | F136: 0 | G136: 0 | H136: 0 | I136: 0 | J136: 0 | K136: 0 | L136: 0 | M136: 0 | N136: 0 | O136: 0 | P136: 0 | Q136: 0 | R136: 0 | S136: 0 | T136: 0 | U136: 0 | V136: 0 | W136: 0
C137: Cargo 3 | D137: 0 | E137: 0 | F137: 0 | G137: 0 | H137: 0 | I137: 0 | J137: 0 | K137: 0 | L137: 0 | M137: 0 | N137: 0 | O137: 0 | P137: 0 | Q137: 0 | R137: 0 | S137: 0 | T137: 0 | U137: 0 | V137: 0 | W137: 0
C138: Cargo 4 | D138: 0 | E138: 0 | F138: 0 | G138: 0 | H138: 0 | I138: 0 | J138: 0 | K138: 0 | L138: 0 | M138: 0 | N138: 0 | O138: 0 | P138: 0 | Q138: 0 | R138: 0 | S138: 0 | T138: 0 | U138: 0 | V138: 0 | W138: 0
C139: Cargo 5 | D139: 0 | E139: 0 | F139: 0 | G139: 0 | H139: 0 | I139: 0 | J139: 0 | K139: 0 | L139: 0 | M139: 0 | N139: 0 | O139: 0 | P139: 0 | Q139: 0 | R139: 0 | S139: 0 | T139: 0 | U139: 0 | V139: 0 | W139: 0
C140: Cargo 6 | D140: 0 | E140: 0 | F140: 0 | G140: 0 | H140: 0 | I140: 0 | J140: 0 | K140: 0 | L140: 0 | M140: 0 | N140: 0 | O140: 0 | P140: 0 | Q140: 0 | R140: 0 | S140: 0 | T140: 0 | U140: 0 | V140: 0 | W140: 0
B141: =B211 -> e) Área 5
C142: Cargo 1 | D142: =F212 -> 0 | E142: =D142 -> 0 | F142: =E142 -> 0 | G142: =F142 -> 0 | H142: =G142 -> 0 | I142: =H142 -> 0 | J142: =I142 -> 0 | K142: =J142 -> 0 | L142: =K142 -> 0 | M142: =L142 -> 0 | N142: =M142 -> 0 | O142: =N142 -> 0 | P142: =O142 -> 0 | Q142: =P142 -> 0 | R142: =Q142 -> 0 | S142: =R142 -> 0 | T142: =S142 -> 0 | U142: =T142 -> 0 | V142: =U142 -> 0 | W142: =V142 -> 0
C143: Cargo 2 | D143: 0 | E143: 0 | F143: 0 | G143: 0 | H143: 0 | I143: 0 | J143: 0 | K143: 0 | L143: 0 | M143: 0 | N143: 0 | O143: 0 | P143: 0 | Q143: 0 | R143: 0 | S143: 0 | T143: 0 | U143: 0 | V143: 0 | W143: 0
C144: Cargo 3 | D144: 0 | E144: 0 | F144: 0 | G144: 0 | H144: 0 | I144: 0 | J144: 0 | K144: 0 | L144: 0 | M144: 0 | N144: 0 | O144: 0 | P144: 0 | Q144: 0 | R144: 0 | S144: 0 | T144: 0 | U144: 0 | V144: 0 | W144: 0
C145: Cargo 4 | D145: 0 | E145: 0 | F145: 0 | G145: 0 | H145: 0 | I145: 0 | J145: 0 | K145: 0 | L145: 0 | M145: 0 | N145: 0 | O145: 0 | P145: 0 | Q145: 0 | R145: 0 | S145: 0 | T145: 0 | U145: 0 | V145: 0 | W145: 0
C146: Cargo 5 | D146: 0 | E146: 0 | F146: 0 | G146: 0 | H146: 0 | I146: 0 | J146: 0 | K146: 0 | L146: 0 | M146: 0 | N146: 0 | O146: 0 | P146: 0 | Q146: 0 | R146: 0 | S146: 0 | T146: 0 | U146: 0 | V146: 0 | W146: 0
C147: Cargo 6 | D147: 0 | E147: 0 | F147: 0 | G147: 0 | H147: 0 | I147: 0 | J147: 0 | K147: 0 | L147: 0 | M147: 0 | N147: 0 | O147: 0 | P147: 0 | Q147: 0 | R147: 0 | S147: 0 | T147: 0 | U147: 0 | V147: 0 | W147: 0
C148: Cargo 7 | D148: 0 | E148: 0 | F148: 0 | G148: 0 | H148: 0 | I148: 0 | J148: 0 | K148: 0 | L148: 0 | M148: 0 | N148: 0 | O148: 0 | P148: 0 | Q148: 0 | R148: 0 | S148: 0 | T148: 0 | U148: 0 | V148: 0 | W148: 0
C149: Cargo 8 | D149: 0 | E149: 0 | F149: 0 | G149: 0 | H149: 0 | I149: 0 | J149: 0 | K149: 0 | L149: 0 | M149: 0 | N149: 0 | O149: 0 | P149: 0 | Q149: 0 | R149: 0 | S149: 0 | T149: 0 | U149: 0 | V149: 0 | W149: 0
C151: INDICADORES
C153: Operador Privado | D153: Cantidad personas | E153: promedio (USD/mes) | F153: X Salarios Básicos
B154: a) Personal directivo
C155: Presidente | D155: 1 | E155: 1000 | F155: =E155/'Sup Personal Directo'!$C$38 -> 2.732240437
C156: Gerente general | D156: 1 | E156: 2000 | F156: =E156/'Sup Personal Directo'!$C$38 -> 5.464480874
B157: b) Personal administrativo
C158: Administrativo & Financiero | D158: 1 | E158: 1500 | F158: =E158/'Sup Personal Directo'!$C$38 -> 4.098360656
C159: Contador General | D159: 1 | E159: 800 | F159: =E159/'Sup Personal Directo'!$C$38 -> 2.18579235
C160: Asistente de Contabilidad | D160: 1 | E160: 375 | F160: =E160/'Sup Personal Directo'!$C$38 -> 1.024590164
C161: Responsable de RRHH | D161: 1 | E161: 1000 | F161: =E161/'Sup Personal Directo'!$C$38 -> 2.732240437
C162: Secretaria | D162: 1 | E162: 400 | F162: =E162/'Sup Personal Directo'!$C$38 -> 1.092896175
C163: Recaudación General | D163: 3 | E163: 450 | F163: =E163/'Sup Personal Directo'!$C$38 -> 1.229508197
C164: Mensajería | D164: 1 | E164: 375 | F164: =E164/'Sup Personal Directo'!$C$38 -> 1.024590164
B165: c) Personal de operación
C166: Jefe de Operaciones | D166: 1 | E166: 1500 | F166: =E166/'Sup Personal Directo'!$C$38 -> 4.098360656
C167: Despachador de Ruta | D167: 8 | E167: 375 | F167: =E167/'Sup Personal Directo'!$C$38 -> 1.024590164
C168: Fiscalizador de Ruta | D168: 5 | E168: 450 | F168: =E168/'Sup Personal Directo'!$C$38 -> 1.229508197
C169: Monitoreo & Control de gestión operativa | D169: 3 | E169: 375 | F169: =E169/'Sup Personal Directo'!$C$38 -> 1.024590164
B170: d) Personal de mantenimiento
C171: Responsable de Flota & Mantenimiento | D171: 1 | E171: 1000 | F171: =E171/'Sup Personal Directo'!$C$38 -> 2.732240437
C172: Mecánico | D172: 3 | E172: 500 | F172: =E172/'Sup Personal Directo'!$C$38 -> 1.366120219
C173: Eléctrico | D173: 2 | E173: 500 | F173: =E173/'Sup Personal Directo'!$C$38 -> 1.366120219
C174: Vulcanizador | D174: 1 | E174: 500 | F174: =E174/'Sup Personal Directo'!$C$38 -> 1.366120219
C175: Carrocero | D175: 1 | E175: 500 | F175: =E175/'Sup Personal Directo'!$C$38 -> 1.366120219
C176: Ayudante de Mecánico | D176: 3 | E176: 375 | F176: =E176/'Sup Personal Directo'!$C$38 -> 1.024590164
B177: e) Personal externo
C178: Auditoría externa | D178: 1 | E178: 291.6666667 | F178: =E178/'Sup Personal Directo'!$C$38 -> 0.7969034608
C179: Capacitación Talento Humano | D179: 1 | E179: 500 | F179: =E179/'Sup Personal Directo'!$C$38 -> 1.366120219
C180: Asesor Legal | D180: 1 | E180: 500 | F180: =E180/'Sup Personal Directo'!$C$38 -> 1.366120219
C181: Servicio de Guardianía | D181: 1 | E181: 2500 | F181: =E181/'Sup Personal Directo'!$C$38 -> 6.830601093
C182: Comisario | D182: 1 | E182: 375 | F182: =E182/'Sup Personal Directo'!$C$38 -> 1.024590164
C183: Directorio (Se hace provisión para dietas) | D183: 1 | E183: 375 | F183: =E183/'Sup Personal Directo'!$C$38 -> 1.024590164
C184: Limpieza de flota | D184: 1 | E184: 680 | F184: =E184/'Sup Personal Directo'!$C$38 -> 1.857923497
C185: Sistemas & Soporte | D185: 1 | E185: 200 | F185: =E185/'Sup Personal Directo'!$C$38 -> 0.5464480874
C187: Ente Gestor | D187: Cantidad personas | E187: promedio (USD/mes) | F187: X Salarios Básicos
B188: a) Área 1
C189: Cargo 1 | D189: 0 | E189: 0 | F189: =E189/'Sup Personal Directo'!$C$38 -> 0
C190: Cargo 2 | D190: 0 | E190: 0 | F190: =E190/'Sup Personal Directo'!$C$38 -> 0
B191: b) Área 2
C192: Cargo 1 | D192: 0 | E192: 0 | F192: =E192/'Sup Personal Directo'!$C$38 -> 0
C193: Cargo 2 | D193: 0 | E193: 0 | F193: =E193/'Sup Personal Directo'!$C$38 -> 0
C194: Cargo 3 | D194: 0 | E194: 0 | F194: =E194/'Sup Personal Directo'!$C$38 -> 0
C195: Cargo 4 | D195: 0 | E195: 0 | F195: =E195/'Sup Personal Directo'!$C$38 -> 0
C196: Cargo 5 | D196: 0 | E196: 0 | F196: =E196/'Sup Personal Directo'!$C$38 -> 0
C197: Cargo 6 | D197: 0 | E197: 0 | F197: =E197/'Sup Personal Directo'!$C$38 -> 0
C198: Cargo 7 | D198: 0 | E198: 0 | F198: =E198/'Sup Personal Directo'!$C$38 -> 0
B199: c) Área 3
C200: Cargo 1 | D200: 0 | E200: 0 | F200: =E200/'Sup Personal Directo'!$C$38 -> 0
C201: Cargo 2 | D201: 0 | E201: 0 | F201: =E201/'Sup Personal Directo'!$C$38 -> 0
C202: Cargo 3 | D202: 0 | E202: 0 | F202: =E202/'Sup Personal Directo'!$C$38 -> 0
C203: Cargo 4 | D203: 0 | E203: 0 | F203: =E203/'Sup Personal Directo'!$C$38 -> 0
B204: d) Área 4
C205: Cargo 1 | D205: 0 | E205: 0 | F205: =E205/'Sup Personal Directo'!$C$38 -> 0
C206: Cargo 2 | D206: 0 | E206: 0 | F206: =E206/'Sup Personal Directo'!$C$38 -> 0
C207: Cargo 3 | D207: 0 | E207: 0 | F207: =E207/'Sup Personal Directo'!$C$38 -> 0
C208: Cargo 4 | D208: 0 | E208: 0 | F208: =E208/'Sup Personal Directo'!$C$38 -> 0
C209: Cargo 5 | D209: 0 | E209: 0 | F209: =E209/'Sup Personal Directo'!$C$38 -> 0
C210: Cargo 6 | D210: 0 | E210: 0 | F210: =E210/'Sup Personal Directo'!$C$38 -> 0
B211: e) Área 5
... 37 more rows

Sheet Actividades Mtto
L1: Por Km
B2: Estructura de costos Transporte Convencional | L2: Personal
B3: OPEX OTROS GASTOS | C3: ACTIVIDADES MANTENIMIENTO
C5: Ítem | J5: 1 | K5: =J5+1 -> 2 | L5: 3 | M5: 4 | N5: 5 | O5: 6 | P5: 7 | Q5: 8 | R5: 9 | S5: 10 | T5: 11 | U5: 12 | V5: 13 | W5: 14 | X5: 15 | Y5: 16 | Z5: 17 | AA5: 18 | AB5: 19 | AC5: 20 | AE5: 1 | AF5: =AE5+1 -> 2 | AG5: 3 | AH5: 4 | AI5: 5 | AJ5: 6 | AK5: 7 | AL5: 8 | AM5: 9 | AN5: 10 | AO5: 11 | AP5: 12 | AQ5: 13 | AR5: 14 | AS5: 15 | AT5: 16 | AU5: 17 | AV5: 18 | AW5: 19 | AX5: 20
C6: Mano de Obra Mantenimiento | D6: Personal
C8: ='Sup fijo'!B14 -> Intracantonal Rural | H8: Mes operación | J8: 12 | K8: 12 | L8: 12 | M8: 12 | N8: 12 | O8: 12 | P8: 12 | Q8: 12 | R8: 12 | S8: 12 | T8: 12 | U8: 12 | V8: 12 | W8: 12 | X8: 12 | Y8: 12 | Z8: 12 | AA8: 12 | AB8: 12 | AC8: 12
H9: Operación | J9: ='Sup fijo'!E17 -> 70406 | K9: ='Sup fijo'!F17 -> 70406 | L9: ='Sup fijo'!G17 -> 70406 | M9: ='Sup fijo'!H17 -> 70406 | N9: ='Sup fijo'!I17 -> 70406 | O9: ='Sup fijo'!J17 -> 70406 | P9: ='Sup fijo'!K17 -> 70406 | Q9: ='Sup fijo'!L17 -> 70406 | R9: ='Sup fijo'!M17 -> 70406 | S9: ='Sup fijo'!N17 -> 70406 | T9: ='Sup fijo'!O17 -> 70406 | U9: ='Sup fijo'!P17 -> 70406 | V9: ='Sup fijo'!Q17 -> 70406 | W9: ='Sup fijo'!R17 -> 70406 | X9: ='Sup fijo'!S17 -> 70406 | Y9: ='Sup fijo'!T17 -> 70406 | Z9: ='Sup fijo'!U17 -> 70406 | AA9: ='Sup fijo'!V17 -> 70406 | AB9: ='Sup fijo'!W17 -> 70406 | AC9: ='Sup fijo'!X17 -> 70406
H10: Operación acumulada | J10: =+J9 -> 70406 | K10: =+J10+K9 -> 140812 | L10: =+K10+L9 -> 211218 | M10: 281624 | N10: 352030 | O10: 422436 | P10: 492842 | Q10: 563248 | R10: 633654 | S10: 704060 | T10: 774466 | U10: 844872 | V10: 915278 | W10: 985684 | X10: 1056090 | Y10: 1126496 | Z10: 1196902 | AA10: 1267308 | AB10: 1337714 | AC10: 1408120 | AE10: Frecuencia de ejecución labores de mantenimiento
B12: # | C12: Detalle | D12: Unidades | E12: Cantidad | F12: Intervalo Km | G12: Precio (sin IVA) | H12: Área | J12: 1 | K12: =J12+1 -> 2 | L12: 3 | M12: 4 | N12: 5 | O12: 6 | P12: 7 | Q12: 8 | R12: 9 | S12: 10 | T12: 11 | U12: 12 | V12: 13 | W12: 14 | X12: 15 | Y12: 16 | Z12: 17 | AA12: 18 | AB12: 19 | AC12: 20 | AE12: 1 | AF12: =AE12+1 -> 2 | AG12: 3 | AH12: 4 | AI12: 5 | AJ12: 6 | AK12: 7 | AL12: 8 | AM12: 9 | AN12: 10 | AO12: 11 | AP12: 12 | AQ12: 13 | AR12: 14 | AS12: 15 | AT12: 16 | AU12: 17 | AV12: 18 | AW12: 19 | AX12: 20
B13: 1 | C13: LLANTAS | D13: UD. | E13: 4 | F13: 46170 | G13: 449.8285714 | H13: =+'OPEX Mtto'!B11 -> Neumáticos | J13: =+AE13*$E13*$G13*(1+'Sup Generales'!C$10) -> 1842.497829 | K13: =+AF13*$E13*$G13*(1+'Sup Generales'!D$10) -> 3743.955588 | L13: =+AG13*$E13*$G13*(1+'Sup Generales'!E$10) -> 1920.649216 | M13: =+AH13*$E13*$G13*(1+'Sup Generales'!F$10) -> 3857.892842 | N13: =+AI13*$E13*$G13*(1+'Sup Generales'!G$10) -> 1934.154576 | O13: =+AJ13*$E13*$G13*(1+'Sup Generales'!H$10) -> 3894.226824 | P13: =+AK13*$E13*$G13*(1+'Sup Generales'!I$10) -> 1984.909317 | Q13: =+AL13*$E13*$G13*(1+'Sup Generales'!J$10) -> 4038.710495 | R13: =+AM13*$E13*$G13*(1+'Sup Generales'!K$10) -> 2048.758361 | S13: =+AN13*$E13*$G13*(1+'Sup Generales'!L$10) -> 4152.344468 | T13: =+AO13*$E13*$G13*(1+'Sup Generales'!M$10) -> 2103.273166 | U13: =+AP13*$E13*$G13*(1+'Sup Generales'!N$10) -> 4254.648105 | V13: =+AQ13*$E13*$G13*(1+'Sup Generales'!O$10) -> 2153.541945 | W13: =+AR13*$E13*$G13*(1+'Sup Generales'!P$10) -> 4365.347522 | X13: =+AS13*$E13*$G13*(1+'Sup Generales'!Q$10) -> 2214.062403 | Y13: =+AT13*$E13*$G13*(1+'Sup Generales'!R$10) -> 4489.020457 | Z13: =+AU13*$E13*$G13*(1+'Sup Generales'!S$10) -> 2274.366214 | AA13: =+AV13*$E13*$G13*(1+'Sup Generales'!T$10) -> 4608.522895 | AB13: =+AW13*$E13*$G13*(1+'Sup Generales'!U$10) -> 2334.481574 | AC13: =+AX13*$E13*$G13*(1+'Sup Generales'!V$10) -> 4730.232003 | AD13: =SUM(J13:AC13)/SUM($J$9:$AC$9) -> 0.04470186902 | AE13: =ROUNDDOWN(J$10/$F13,0) -> 1 | AF13: =ROUNDDOWN(K$10/$F13,0)-SUM($AE13:AE13) -> 2 | AG13: =ROUNDDOWN(L$10/$F13,0)-SUM($AE13:AF13) -> 1 | AH13: =ROUNDDOWN(M$10/$F13,0)-SUM($AE13:AG13) -> 2 | AI13: =ROUNDDOWN(N$10/$F13,0)-SUM($AE13:AH13) -> 1 | AJ13: =ROUNDDOWN(O$10/$F13,0)-SUM($AE13:AI13) -> 2 | AK13: =ROUNDDOWN(P$10/$F13,0)-SUM($AE13:AJ13) -> 1 | AL13: =ROUNDDOWN(Q$10/$F13,0)-SUM($AE13:AK13) -> 2 | AM13: =ROUNDDOWN(R$10/$F13,0)-SUM($AE13:AL13) -> 1 | AN13: =ROUNDDOWN(S$10/$F13,0)-SUM($AE13:AM13) -> 2 | AO13: =ROUNDDOWN(T$10/$F13,0)-SUM($AE13:AN13) -> 1 | AP13: =ROUNDDOWN(U$10/$F13,0)-SUM($AE13:AO13) -> 2 | AQ13: =ROUNDDOWN(V$10/$F13,0)-SUM($AE13:AP13) -> 1 | AR13: =ROUNDDOWN(W$10/$F13,0)-SUM($AE13:AQ13) -> 2 | AS13: =ROUNDDOWN(X$10/$F13,0)-SUM($AE13:AR13) -> 1 | AT13: =ROUNDDOWN(Y$10/$F13,0)-SUM($AE13:AS13) -> 2 | AU13: =ROUNDDOWN(Z$10/$F13,0)-SUM($AE13:AT13) -> 1 | AV13: =ROUNDDOWN(AA$10/$F13,0)-SUM($AE13:AU13) -> 2 | AW13: =ROUNDDOWN(AB$10/$F13,0)-SUM($AE13:AV13) -> 1 | AX13: =ROUNDDOWN(AC$10/$F13,0)-SUM($AE13:AW13) -> 2
B14: =+B13+1 -> 2 | C14: REENCAUCHE DE LLANTAS | D14: UD. | E14: 2 | F14: 46170 | G14: 275.248 | H14: =+H13 -> Neumáticos | J14: =+AE14*$E14*$G14*(1+'Sup Generales'!C$10) -> 563.707904 | K14: =+AF14*$E14*$G14*(1+'Sup Generales'!D$10) -> 1145.454461 | L14: =+AG14*$E14*$G14*(1+'Sup Generales'!E$10) -> 587.6181385 | M14: =+AH14*$E14*$G14*(1+'Sup Generales'!F$10) -> 1180.313298 | N14: =+AI14*$E14*$G14*(1+'Sup Generales'!G$10) -> 591.7500718 | O14: =+AJ14*$E14*$G14*(1+'Sup Generales'!H$10) -> 1191.429594 | P14: =+AK14*$E14*$G14*(1+'Sup Generales'!I$10) -> 607.2783661 | Q14: =+AL14*$E14*$G14*(1+'Sup Generales'!J$10) -> 1235.634036 | R14: =+AM14*$E14*$G14*(1+'Sup Generales'!K$10) -> 626.8128319 | S14: =+AN14*$E14*$G14*(1+'Sup Generales'!L$10) -> 1270.400084 | T14: =+AO14*$E14*$G14*(1+'Sup Generales'!M$10) -> 643.4915088 | U14: =+AP14*$E14*$G14*(1+'Sup Generales'!N$10) -> 1301.699643 | V14: =+AQ14*$E14*$G14*(1+'Sup Generales'!O$10) -> 658.8711243 | W14: =+AR14*$E14*$G14*(1+'Sup Generales'!P$10) -> 1335.567871 | X14: =+AS14*$E14*$G14*(1+'Sup Generales'!Q$10) -> 677.3872169 | Y14: =+AT14*$E14*$G14*(1+'Sup Generales'!R$10) -> 1373.405316 | Z14: =+AU14*$E14*$G14*(1+'Sup Generales'!S$10) -> 695.8370269 | AA14: =+AV14*$E14*$G14*(1+'Sup Generales'!T$10) -> 1409.966808 | AB14: =+AW14*$E14*$G14*(1+'Sup Generales'!U$10) -> 714.229181 | AC14: =+AX14*$E14*$G14*(1+'Sup Generales'!V$10) -> 1447.203425 | AD14: =SUM(J14:AC14)/SUM($J$9:$AC$9) -> 0.01367643234 | AE14: =ROUNDDOWN(J$10/$F14,0) -> 1 | AF14: =ROUNDDOWN(K$10/$F14,0)-SUM($AE14:AE14) -> 2 | AG14: =ROUNDDOWN(L$10/$F14,0)-SUM($AE14:AF14) -> 1 | AH14: =ROUNDDOWN(M$10/$F14,0)-SUM($AE14:AG14) -> 2 | AI14: =ROUNDDOWN(N$10/$F14,0)-SUM($AE14:AH14) -> 1 | AJ14: =ROUNDDOWN(O$10/$F14,0)-SUM($AE14:AI14) -> 2 | AK14: =ROUNDDOWN(P$10/$F14,0)-SUM($AE14:AJ14) -> 1 | AL14: =ROUNDDOWN(Q$10/$F14,0)-SUM($AE14:AK14) -> 2 | AM14: =ROUNDDOWN(R$10/$F14,0)-SUM($AE14:AL14) -> 1 | AN14: =ROUNDDOWN(S$10/$F14,0)-SUM($AE14:AM14) -> 2 | AO14: =ROUNDDOWN(T$10/$F14,0)-SUM($AE14:AN14) -> 1 | AP14: =ROUNDDOWN(U$10/$F14,0)-SUM($AE14:AO14) -> 2 | AQ14: =ROUNDDOWN(V$10/$F14,0)-SUM($AE14:AP14) -> 1 | AR14: =ROUNDDOWN(W$10/$F14,0)-SUM($AE14:AQ14) -> 2 | AS14: =ROUNDDOWN(X$10/$F14,0)-SUM($AE14:AR14) -> 1 | AT14: =ROUNDDOWN(Y$10/$F14,0)-SUM($AE14:AS14) -> 2 | AU14: =ROUNDDOWN(Z$10/$F14,0)-SUM($AE14:AT14) -> 1 | AV14: =ROUNDDOWN(AA$10/$F14,0)-SUM($AE14:AU14) -> 2 | AW14: =ROUNDDOWN(AB$10/$F14,0)-SUM($AE14:AV14) -> 1 | AX14: =ROUNDDOWN(AC$10/$F14,0)-SUM($AE14:AW14) -> 2
B15: =+B14+1 -> 3 | C15: ACEITE DE MOTOR | D15: GLNS | E15: 5 | F15: 5000 | G15: 18.08125 | H15: =+'OPEX Mtto'!B13 -> Aceites y filtros | J15: =+AE15*$E15*$G15*(1+'Sup Generales'!C$10) -> 1296.064 | K15: =+AF15*$E15*$G15*(1+'Sup Generales'!D$10) -> 1316.801024 | L15: =+AG15*$E15*$G15*(1+'Sup Generales'!E$10) -> 1351.037851 | M15: =+AH15*$E15*$G15*(1+'Sup Generales'!F$10) -> 1356.874334 | N15: =+AI15*$E15*$G15*(1+'Sup Generales'!G$10) -> 1360.537895 | O15: =+AJ15*$E15*$G15*(1+'Sup Generales'!H$10) -> 1369.653499 | P15: =+AK15*$E15*$G15*(1+'Sup Generales'!I$10) -> 1396.240185 | Q15: =+AL15*$E15*$G15*(1+'Sup Generales'!J$10) -> 1420.470406 | R15: =+AM15*$E15*$G15*(1+'Sup Generales'!K$10) -> 1441.153371 | S15: =+AN15*$E15*$G15*(1+'Sup Generales'!L$10) -> 1460.437048 | T15: =+AO15*$E15*$G15*(1+'Sup Generales'!M$10) -> 1479.500594 | U15: =+AP15*$E15*$G15*(1+'Sup Generales'!N$10) -> 1496.418654 | V15: =+AQ15*$E15*$G15*(1+'Sup Generales'!O$10) -> 1623.065406 | W15: =+AR15*$E15*$G15*(1+'Sup Generales'!P$10) -> 1535.353172 | X15: =+AS15*$E15*$G15*(1+'Sup Generales'!Q$10) -> 1557.432812 | Y15: =+AT15*$E15*$G15*(1+'Sup Generales'!R$10) -> 1578.850656 | Z15: =+AU15*$E15*$G15*(1+'Sup Generales'!S$10) -> 1599.852182 | AA15: =+AV15*$E15*$G15*(1+'Sup Generales'!T$10) -> 1620.881318 | AB15: =+AW15*$E15*$G15*(1+'Sup Generales'!U$10) -> 1642.138992 | AC15: =+AX15*$E15*$G15*(1+'Sup Generales'!V$10) -> 1663.688097 | AD15: 0.02099711068 | AE15: 14 | AF15: =ROUNDDOWN(K$10/$F15,0)-SUM($AE15:AE15) -> 14 | AG15: =ROUNDDOWN(L$10/$F15,0)-SUM($AE15:AF15) -> 14 | AH15: =ROUNDDOWN(M$10/$F15,0)-SUM($AE15:AG15) -> 14 | AI15: =ROUNDDOWN(N$10/$F15,0)-SUM($AE15:AH15) -> 14 | AJ15: =ROUNDDOWN(O$10/$F15,0)-SUM($AE15:AI15) -> 14 | AK15: =ROUNDDOWN(P$10/$F15,0)-SUM($AE15:AJ15) -> 14 | AL15: =ROUNDDOWN(Q$10/$F15,0)-SUM($AE15:AK15) -> 14 | AM15: =ROUNDDOWN(R$10/$F15,0)-SUM($AE15:AL15) -> 14 | AN15: =ROUNDDOWN(S$10/$F15,0)-SUM($AE15:AM15) -> 14 | AO15: =ROUNDDOWN(T$10/$F15,0)-SUM($AE15:AN15) -> 14 | AP15: =ROUNDDOWN(U$10/$F15,0)-SUM($AE15:AO15) -> 14 | AQ15: =ROUNDDOWN(V$10/$F15,0)-SUM($AE15:AP15) -> 15 | AR15: =ROUNDDOWN(W$10/$F15,0)-SUM($AE15:AQ15) -> 14 | AS15: =ROUNDDOWN(X$10/$F15,0)-SUM($AE15:AR15) -> 14 | AT15: =ROUNDDOWN(Y$10/$F15,0)-SUM($AE15:AS15) -> 14 | AU15: =ROUNDDOWN(Z$10/$F15,0)-SUM($AE15:AT15) -> 14 | AV15: =ROUNDDOWN(AA$10/$F15,0)-SUM($AE15:AU15) -> 14 | AW15: =ROUNDDOWN(AB$10/$F15,0)-SUM($AE15:AV15) -> 14 | AX15: =ROUNDDOWN(AC$10/$F15,0)-SUM($AE15:AW15) -> 14
B16: 4 | C16: ACEITE DE CAJA | D16: GLNS | E16: 3 | F16: 30000 | G16: 18.26142857 | H16: =+H15 -> Aceites y filtros | J16: =+AE16*$E16*$G16*(1+'Sup Generales'!C$10) -> 112.1982171 | K16: =+AF16*$E16*$G16*(1+'Sup Generales'!D$10) -> 113.9933886 | L16: =+AG16*$E16*$G16*(1+'Sup Generales'!E$10) -> 175.4358251 | M16: =+AH16*$E16*$G16*(1+'Sup Generales'!F$10) -> 117.4624719 | N16: =+AI16*$E16*$G16*(1+'Sup Generales'!G$10) -> 117.7796206 | O16: =+AJ16*$E16*$G16*(1+'Sup Generales'!H$10) -> 177.853116 | P16: =+AK16*$E16*$G16*(1+'Sup Generales'!I$10) -> 120.8703116 | Q16: =+AL16*$E16*$G16*(1+'Sup Generales'!J$10) -> 122.9678836 | R16: =+AM16*$E16*$G16*(1+'Sup Generales'!K$10) -> 187.1375629 | S16: =+AN16*$E16*$G16*(1+'Sup Generales'!L$10) -> 126.4277328 | T16: =+AO16*$E16*$G16*(1+'Sup Generales'!M$10) -> 128.0780339 | U16: =+AP16*$E16*$G16*(1+'Sup Generales'!N$10) -> 194.3139055 | V16: =+AQ16*$E16*$G16*(1+'Sup Generales'!O$10) -> 131.1391324 | W16: =+AR16*$E16*$G16*(1+'Sup Generales'!P$10) -> 132.9131035 | X16: =+AS16*$E16*$G16*(1+'Sup Generales'!Q$10) -> 202.2367547 | Y16: =+AT16*$E16*$G16*(1+'Sup Generales'!R$10) -> 136.6786121 | Z16: =+AU16*$E16*$G16*(1+'Sup Generales'!S$10) -> 138.4966812 | AA16: =+AV16*$E16*$G16*(1+'Sup Generales'!T$10) -> 210.4757104 | AB16: =+AW16*$E16*$G16*(1+'Sup Generales'!U$10) -> 142.1573836 | AC16: =+AX16*$E16*$G16*(1+'Sup Generales'!V$10) -> 144.0228556 | AD16: 0.002082662204 | AE16: 2 | AF16: =ROUNDDOWN(K$10/$F16,0)-SUM($AE16:AE16) -> 2 | AG16: =ROUNDDOWN(L$10/$F16,0)-SUM($AE16:AF16) -> 3 | AH16: =ROUNDDOWN(M$10/$F16,0)-SUM($AE16:AG16) -> 2 | AI16: =ROUNDDOWN(N$10/$F16,0)-SUM($AE16:AH16) -> 2 | AJ16: =ROUNDDOWN(O$10/$F16,0)-SUM($AE16:AI16) -> 3 | AK16: =ROUNDDOWN(P$10/$F16,0)-SUM($AE16:AJ16) -> 2 | AL16: =ROUNDDOWN(Q$10/$F16,0)-SUM($AE16:AK16) -> 2 | AM16: =ROUNDDOWN(R$10/$F16,0)-SUM($AE16:AL16) -> 3 | AN16: =ROUNDDOWN(S$10/$F16,0)-SUM($AE16:AM16) -> 2 | AO16: =ROUNDDOWN(T$10/$F16,0)-SUM($AE16:AN16) -> 2 | AP16: =ROUNDDOWN(U$10/$F16,0)-SUM($AE16:AO16) -> 3 | AQ16: =ROUNDDOWN(V$10/$F16,0)-SUM($AE16:AP16) -> 2 | AR16: =ROUNDDOWN(W$10/$F16,0)-SUM($AE16:AQ16) -> 2 | AS16: =ROUNDDOWN(X$10/$F16,0)-SUM($AE16:AR16) -> 3 | AT16: =ROUNDDOWN(Y$10/$F16,0)-SUM($AE16:AS16) -> 2 | AU16: =ROUNDDOWN(Z$10/$F16,0)-SUM($AE16:AT16) -> 2 | AV16: =ROUNDDOWN(AA$10/$F16,0)-SUM($AE16:AU16) -> 3 | AW16: =ROUNDDOWN(AB$10/$F16,0)-SUM($AE16:AV16) -> 2 | AX16: =ROUNDDOWN(AC$10/$F16,0)-SUM($AE16:AW16) -> 2
B17: 5 | C17: ACEITE DE DIFERENCIAL | D17: GLNS | E17: 3 | F17: 30000 | G17: 18.59428571 | H17: Aceites y filtros | J17: =+AE17*$E17*$G17*(1+'Sup Generales'!C$10) -> 114.2432914 | K17: =+AF17*$E17*$G17*(1+'Sup Generales'!D$10) -> 116.0711841 | L17: =+AG17*$E17*$G17*(1+'Sup Generales'!E$10) -> 178.6335523 | M17: =+AH17*$E17*$G17*(1+'Sup Generales'!F$10) -> 119.6034995 | N17: =+AI17*$E17*$G17*(1+'Sup Generales'!G$10) -> 119.926429 | O17: =+AJ17*$E17*$G17*(1+'Sup Generales'!H$10) -> 181.094904 | P17: =+AK17*$E17*$G17*(1+'Sup Generales'!I$10) -> 123.073455 | Q17: =+AL17*$E17*$G17*(1+'Sup Generales'!J$10) -> 125.2092602 | R17: =+AM17*$E17*$G17*(1+'Sup Generales'!K$10) -> 190.5485816 | S17: =+AN17*$E17*$G17*(1+'Sup Generales'!L$10) -> 128.7321732 | T17: =+AO17*$E17*$G17*(1+'Sup Generales'!M$10) -> 130.4125549 | U17: =+AP17*$E17*$G17*(1+'Sup Generales'!N$10) -> 197.8557298 | V17: =+AQ17*$E17*$G17*(1+'Sup Generales'!O$10) -> 133.5294491 | W17: =+AR17*$E17*$G17*(1+'Sup Generales'!P$10) -> 135.3357549 | X17: =+AS17*$E17*$G17*(1+'Sup Generales'!Q$10) -> 205.9229914 | Y17: =+AT17*$E17*$G17*(1+'Sup Generales'!R$10) -> 139.1698987 | Z17: =+AU17*$E17*$G17*(1+'Sup Generales'!S$10) -> 141.0211063 | AA17: =+AV17*$E17*$G17*(1+'Sup Generales'!T$10) -> 214.3121213 | AB17: =+AW17*$E17*$G17*(1+'Sup Generales'!U$10) -> 144.7485336 | AC17: =+AX17*$E17*$G17*(1+'Sup Generales'!V$10) -> 146.6480082 | AD17: 0.002120623582 | AE17: 2 | AF17: =ROUNDDOWN(K$10/$F17,0)-SUM($AE17:AE17) -> 2 | AG17: =ROUNDDOWN(L$10/$F17,0)-SUM($AE17:AF17) -> 3 | AH17: =ROUNDDOWN(M$10/$F17,0)-SUM($AE17:AG17) -> 2 | AI17: =ROUNDDOWN(N$10/$F17,0)-SUM($AE17:AH17) -> 2 | AJ17: =ROUNDDOWN(O$10/$F17,0)-SUM($AE17:AI17) -> 3 | AK17: =ROUNDDOWN(P$10/$F17,0)-SUM($AE17:AJ17) -> 2 | AL17: =ROUNDDOWN(Q$10/$F17,0)-SUM($AE17:AK17) -> 2 | AM17: =ROUNDDOWN(R$10/$F17,0)-SUM($AE17:AL17) -> 3 | AN17: =ROUNDDOWN(S$10/$F17,0)-SUM($AE17:AM17) -> 2 | AO17: =ROUNDDOWN(T$10/$F17,0)-SUM($AE17:AN17) -> 2 | AP17: =ROUNDDOWN(U$10/$F17,0)-SUM($AE17:AO17) -> 3 | AQ17: =ROUNDDOWN(V$10/$F17,0)-SUM($AE17:AP17) -> 2 | AR17: =ROUNDDOWN(W$10/$F17,0)-SUM($AE17:AQ17) -> 2 | AS17: =ROUNDDOWN(X$10/$F17,0)-SUM($AE17:AR17) -> 3 | AT17: =ROUNDDOWN(Y$10/$F17,0)-SUM($AE17:AS17) -> 2 | AU17: =ROUNDDOWN(Z$10/$F17,0)-SUM($AE17:AT17) -> 2 | AV17: =ROUNDDOWN(AA$10/$F17,0)-SUM($AE17:AU17) -> 3 | AW17: =ROUNDDOWN(AB$10/$F17,0)-SUM($AE17:AV17) -> 2 | AX17: =ROUNDDOWN(AC$10/$F17,0)-SUM($AE17:AW17) -> 2
B18: 6 | C18: ACEITE HIDRÁULICO | D18: GLN | E18: 1 | F18: 60000 | G18: 16.00833333 | H18: Aceites y filtros | J18: =+AE18*$E18*$G18*(1+'Sup Generales'!C$10) -> 16.39253333 | K18: =+AF18*$E18*$G18*(1+'Sup Generales'!D$10) -> 16.65481387 | L18: =+AG18*$E18*$G18*(1+'Sup Generales'!E$10) -> 17.08783903 | M18: =+AH18*$E18*$G18*(1+'Sup Generales'!F$10) -> 17.16165849 | N18: =+AI18*$E18*$G18*(1+'Sup Generales'!G$10) -> 17.20799497 | O18: =+AJ18*$E18*$G18*(1+'Sup Generales'!H$10) -> 34.64657707 | P18: =+AK18*$E18*$G18*(1+'Sup Generales'!I$10) -> 17.65955522 | Q18: =+AL18*$E18*$G18*(1+'Sup Generales'!J$10) -> 17.96601749 | R18: =+AM18*$E18*$G18*(1+'Sup Generales'!K$10) -> 18.22761428 | S18: =+AN18*$E18*$G18*(1+'Sup Generales'!L$10) -> 18.47151298 | T18: =+AO18*$E18*$G18*(1+'Sup Generales'!M$10) -> 18.71262747 | U18: =+AP18*$E18*$G18*(1+'Sup Generales'!N$10) -> 37.85321198 | V18: =+AQ18*$E18*$G18*(1+'Sup Generales'!O$10) -> 19.15986416 | W18: =+AR18*$E18*$G18*(1+'Sup Generales'!P$10) -> 19.41904725 | X18: =+AS18*$E18*$G18*(1+'Sup Generales'!Q$10) -> 19.6983091 | Y18: =+AT18*$E18*$G18*(1+'Sup Generales'!R$10) -> 19.96920059 | Z18: =+AU18*$E18*$G18*(1+'Sup Generales'!S$10) -> 20.23482654 | AA18: =+AV18*$E18*$G18*(1+'Sup Generales'!T$10) -> 41.00160336 | AB18: =+AW18*$E18*$G18*(1+'Sup Generales'!U$10) -> 20.76966737 | AC18: =+AX18*$E18*$G18*(1+'Sup Generales'!V$10) -> 21.04221904 | AD18: 0.0003049006431 | AE18: 1 | AF18: =ROUNDDOWN(K$10/$F18,0)-SUM($AE18:AE18) -> 1 | AG18: =ROUNDDOWN(L$10/$F18,0)-SUM($AE18:AF18) -> 1 | AH18: =ROUNDDOWN(M$10/$F18,0)-SUM($AE18:AG18) -> 1 | AI18: =ROUNDDOWN(N$10/$F18,0)-SUM($AE18:AH18) -> 1 | AJ18: =ROUNDDOWN(O$10/$F18,0)-SUM($AE18:AI18) -> 2 | AK18: =ROUNDDOWN(P$10/$F18,0)-SUM($AE18:AJ18) -> 1 | AL18: =ROUNDDOWN(Q$10/$F18,0)-SUM($AE18:AK18) -> 1 | AM18: =ROUNDDOWN(R$10/$F18,0)-SUM($AE18:AL18) -> 1 | AN18: =ROUNDDOWN(S$10/$F18,0)-SUM($AE18:AM18) -> 1 | AO18: =ROUNDDOWN(T$10/$F18,0)-SUM($AE18:AN18) -> 1 | AP18: =ROUNDDOWN(U$10/$F18,0)-SUM($AE18:AO18) -> 2 | AQ18: =ROUNDDOWN(V$10/$F18,0)-SUM($AE18:AP18) -> 1 | AR18: =ROUNDDOWN(W$10/$F18,0)-SUM($AE18:AQ18) -> 1 | AS18: =ROUNDDOWN(X$10/$F18,0)-SUM($AE18:AR18) -> 1 | AT18: =ROUNDDOWN(Y$10/$F18,0)-SUM($AE18:AS18) -> 1 | AU18: =ROUNDDOWN(Z$10/$F18,0)-SUM($AE18:AT18) -> 1 | AV18: =ROUNDDOWN(AA$10/$F18,0)-SUM($AE18:AU18) -> 2 | AW18: =ROUNDDOWN(AB$10/$F18,0)-SUM($AE18:AV18) -> 1 | AX18: =ROUNDDOWN(AC$10/$F18,0)-SUM($AE18:AW18) -> 1
B19: 7 | C19: ENGRASE GENERAL | D19: KG. | E19: 1 | F19: 5000 | G19: 6.785714286 | H19: Aceites y filtros | J19: =+AE19*$E19*$G19*(1+'Sup Generales'!C$10) -> 97.28 | K19: =+AF19*$E19*$G19*(1+'Sup Generales'!D$10) -> 98.83648 | L19: =+AG19*$E19*$G19*(1+'Sup Generales'!E$10) -> 101.4062285 | M19: =+AH19*$E19*$G19*(1+'Sup Generales'!F$10) -> 101.8443034 | N19: =+AI19*$E19*$G19*(1+'Sup Generales'!G$10) -> 102.119283 | O19: =+AJ19*$E19*$G19*(1+'Sup Generales'!H$10) -> 102.8034822 | P19: =+AK19*$E19*$G19*(1+'Sup Generales'!I$10) -> 104.7990263 | Q19: =+AL19*$E19*$G19*(1+'Sup Generales'!J$10) -> 106.6176988 | R19: =+AM19*$E19*$G19*(1+'Sup Generales'!K$10) -> 108.1701212 | S19: =+AN19*$E19*$G19*(1+'Sup Generales'!L$10) -> 109.6175158 | T19: =+AO19*$E19*$G19*(1+'Sup Generales'!M$10) -> 111.0483879 | U19: =+AP19*$E19*$G19*(1+'Sup Generales'!N$10) -> 112.318224 | V19: =+AQ19*$E19*$G19*(1+'Sup Generales'!O$10) -> 121.8240787 | W19: =+AR19*$E19*$G19*(1+'Sup Generales'!P$10) -> 115.2405719 | X19: =+AS19*$E19*$G19*(1+'Sup Generales'!Q$10) -> 116.897826 | Y19: =+AT19*$E19*$G19*(1+'Sup Generales'!R$10) -> 118.505407 | Z19: =+AU19*$E19*$G19*(1+'Sup Generales'!S$10) -> 120.08174 | AA19: =+AV19*$E19*$G19*(1+'Sup Generales'!T$10) -> 121.6601453 | AB19: =+AW19*$E19*$G19*(1+'Sup Generales'!U$10) -> 123.2557043 | AC19: =+AX19*$E19*$G19*(1+'Sup Generales'!V$10) -> 124.8731375 | AD19: 0.001576001592 | AE19: 14 | AF19: =ROUNDDOWN(K$10/$F19,0)-SUM($AE19:AE19) -> 14 | AG19: =ROUNDDOWN(L$10/$F19,0)-SUM($AE19:AF19) -> 14 | AH19: =ROUNDDOWN(M$10/$F19,0)-SUM($AE19:AG19) -> 14 | AI19: =ROUNDDOWN(N$10/$F19,0)-SUM($AE19:AH19) -> 14 | AJ19: =ROUNDDOWN(O$10/$F19,0)-SUM($AE19:AI19) -> 14 | AK19: =ROUNDDOWN(P$10/$F19,0)-SUM($AE19:AJ19) -> 14 | AL19: =ROUNDDOWN(Q$10/$F19,0)-SUM($AE19:AK19) -> 14 | AM19: =ROUNDDOWN(R$10/$F19,0)-SUM($AE19:AL19) -> 14 | AN19: =ROUNDDOWN(S$10/$F19,0)-SUM($AE19:AM19) -> 14 | AO19: =ROUNDDOWN(T$10/$F19,0)-SUM($AE19:AN19) -> 14 | AP19: =ROUNDDOWN(U$10/$F19,0)-SUM($AE19:AO19) -> 14 | AQ19: =ROUNDDOWN(V$10/$F19,0)-SUM($AE19:AP19) -> 15 | AR19: =ROUNDDOWN(W$10/$F19,0)-SUM($AE19:AQ19) -> 14 | AS19: =ROUNDDOWN(X$10/$F19,0)-SUM($AE19:AR19) -> 14 | AT19: =ROUNDDOWN(Y$10/$F19,0)-SUM($AE19:AS19) -> 14 | AU19: =ROUNDDOWN(Z$10/$F19,0)-SUM($AE19:AT19) -> 14 | AV19: =ROUNDDOWN(AA$10/$F19,0)-SUM($AE19:AU19) -> 14 | AW19: =ROUNDDOWN(AB$10/$F19,0)-SUM($AE19:AV19) -> 14 | AX19: =ROUNDDOWN(AC$10/$F19,0)-SUM($AE19:AW19) -> 14
B20: 8 | C20: FILTRO DE ACEITE DE MOTOR | D20: UND | E20: 1 | F20: 5000 | G20: 13.37875 | H20: Aceites y filtros | J20: =+AE20*$E20*$G20*(1+'Sup Generales'!C$10) -> 191.79776 | K20: =+AF20*$E20*$G20*(1+'Sup Generales'!D$10) -> 194.8665242 | L20: =+AG20*$E20*$G20*(1+'Sup Generales'!E$10) -> 199.9330538 | M20: =+AH20*$E20*$G20*(1+'Sup Generales'!F$10) -> 200.7967646 | N20: =+AI20*$E20*$G20*(1+'Sup Generales'!G$10) -> 201.3389158 | O20: =+AJ20*$E20*$G20*(1+'Sup Generales'!H$10) -> 202.6878866 | P20: =+AK20*$E20*$G20*(1+'Sup Generales'!I$10) -> 206.6223118 | Q20: =+AL20*$E20*$G20*(1+'Sup Generales'!J$10) -> 210.208016 | R20: =+AM20*$E20*$G20*(1+'Sup Generales'!K$10) -> 213.2687802 | S20: =+AN20*$E20*$G20*(1+'Sup Generales'!L$10) -> 216.1224712 | T20: =+AO20*$E20*$G20*(1+'Sup Generales'!M$10) -> 218.943586 | U20: =+AP20*$E20*$G20*(1+'Sup Generales'!N$10) -> 221.4472016 | V20: =+AQ20*$E20*$G20*(1+'Sup Generales'!O$10) -> 240.1889947 | W20: =+AR20*$E20*$G20*(1+'Sup Generales'!P$10) -> 227.2089181 | X20: =+AS20*$E20*$G20*(1+'Sup Generales'!Q$10) -> 230.4763689 | Y20: =+AT20*$E20*$G20*(1+'Sup Generales'!R$10) -> 233.6458841 | Z20: =+AU20*$E20*$G20*(1+'Sup Generales'!S$10) -> 236.7537907 | AA20: =+AV20*$E20*$G20*(1+'Sup Generales'!T$10) -> 239.8657828 | AB20: =+AW20*$E20*$G20*(1+'Sup Generales'!U$10) -> 243.0115953 | AC20: =+AX20*$E20*$G20*(1+'Sup Generales'!V$10) -> 246.2005351 | AD20: 0.003107253033 | AE20: 14 | AF20: =ROUNDDOWN(K$10/$F20,0)-SUM($AE20:AE20) -> 14 | AG20: =ROUNDDOWN(L$10/$F20,0)-SUM($AE20:AF20) -> 14 | AH20: =ROUNDDOWN(M$10/$F20,0)-SUM($AE20:AG20) -> 14 | AI20: =ROUNDDOWN(N$10/$F20,0)-SUM($AE20:AH20) -> 14 | AJ20: =ROUNDDOWN(O$10/$F20,0)-SUM($AE20:AI20) -> 14 | AK20: =ROUNDDOWN(P$10/$F20,0)-SUM($AE20:AJ20) -> 14 | AL20: =ROUNDDOWN(Q$10/$F20,0)-SUM($AE20:AK20) -> 14 | AM20: =ROUNDDOWN(R$10/$F20,0)-SUM($AE20:AL20) -> 14 | AN20: =ROUNDDOWN(S$10/$F20,0)-SUM($AE20:AM20) -> 14 | AO20: =ROUNDDOWN(T$10/$F20,0)-SUM($AE20:AN20) -> 14 | AP20: =ROUNDDOWN(U$10/$F20,0)-SUM($AE20:AO20) -> 14 | AQ20: =ROUNDDOWN(V$10/$F20,0)-SUM($AE20:AP20) -> 15 | AR20: =ROUNDDOWN(W$10/$F20,0)-SUM($AE20:AQ20) -> 14 | AS20: =ROUNDDOWN(X$10/$F20,0)-SUM($AE20:AR20) -> 14 | AT20: =ROUNDDOWN(Y$10/$F20,0)-SUM($AE20:AS20) -> 14 | AU20: =ROUNDDOWN(Z$10/$F20,0)-SUM($AE20:AT20) -> 14 | AV20: =ROUNDDOWN(AA$10/$F20,0)-SUM($AE20:AU20) -> 14 | AW20: =ROUNDDOWN(AB$10/$F20,0)-SUM($AE20:AV20) -> 14 | AX20: =ROUNDDOWN(AC$10/$F20,0)-SUM($AE20:AW20) -> 14
B21: 9 | C21: FILTRO DE AIRE | D21: UND | E21: 2 | F21: 10000 | G21: 35.44125 | H21: Aceites y filtros | J21: =+AE21*$E21*$G21*(1+'Sup Generales'!C$10) -> 508.08576 | K21: =+AF21*$E21*$G21*(1+'Sup Generales'!D$10) -> 516.2151322 | L21: =+AG21*$E21*$G21*(1+'Sup Generales'!E$10) -> 529.6367256 | M21: =+AH21*$E21*$G21*(1+'Sup Generales'!F$10) -> 531.9247563 | N21: =+AI21*$E21*$G21*(1+'Sup Generales'!G$10) -> 533.3609531 | O21: =+AJ21*$E21*$G21*(1+'Sup Generales'!H$10) -> 536.9344715 | P21: =+AK21*$E21*$G21*(1+'Sup Generales'!I$10) -> 547.3570407 | Q21: =+AL21*$E21*$G21*(1+'Sup Generales'!J$10) -> 556.8558235 | R21: =+AM21*$E21*$G21*(1+'Sup Generales'!K$10) -> 564.9640032 | S21: =+AN21*$E21*$G21*(1+'Sup Generales'!L$10) -> 572.5236312 | T21: =+AO21*$E21*$G21*(1+'Sup Generales'!M$10) -> 579.996963 | U21: =+AP21*$E21*$G21*(1+'Sup Generales'!N$10) -> 586.6292167 | V21: =+AQ21*$E21*$G21*(1+'Sup Generales'!O$10) -> 593.8590421 | W21: =+AR21*$E21*$G21*(1+'Sup Generales'!P$10) -> 601.892409 | X21: =+AS21*$E21*$G21*(1+'Sup Generales'!Q$10) -> 610.5481163 | Y21: =+AT21*$E21*$G21*(1+'Sup Generales'!R$10) -> 618.9443849 | Z21: =+AU21*$E21*$G21*(1+'Sup Generales'!S$10) -> 627.177448 | AA21: =+AV21*$E21*$G21*(1+'Sup Generales'!T$10) -> 635.4213343 | AB21: =+AW21*$E21*$G21*(1+'Sup Generales'!U$10) -> 643.7548129 | AC21: =+AX21*$E21*$G21*(1+'Sup Generales'!V$10) -> 652.2025386 | AD21: 0.008201207683 | AE21: 7 | AF21: =ROUNDDOWN(K$10/$F21,0)-SUM($AE21:AE21) -> 7 | AG21: =ROUNDDOWN(L$10/$F21,0)-SUM($AE21:AF21) -> 7 | AH21: =ROUNDDOWN(M$10/$F21,0)-SUM($AE21:AG21) -> 7 | AI21: =ROUNDDOWN(N$10/$F21,0)-SUM($AE21:AH21) -> 7 | AJ21: =ROUNDDOWN(O$10/$F21,0)-SUM($AE21:AI21) -> 7 | AK21: =ROUNDDOWN(P$10/$F21,0)-SUM($AE21:AJ21) -> 7 | AL21: =ROUNDDOWN(Q$10/$F21,0)-SUM($AE21:AK21) -> 7 | AM21: =ROUNDDOWN(R$10/$F21,0)-SUM($AE21:AL21) -> 7 | AN21: =ROUNDDOWN(S$10/$F21,0)-SUM($AE21:AM21) -> 7 | AO21: =ROUNDDOWN(T$10/$F21,0)-SUM($AE21:AN21) -> 7 | AP21: =ROUNDDOWN(U$10/$F21,0)-SUM($AE21:AO21) -> 7 | AQ21: =ROUNDDOWN(V$10/$F21,0)-SUM($AE21:AP21) -> 7 | AR21: =ROUNDDOWN(W$10/$F21,0)-SUM($AE21:AQ21) -> 7 | AS21: =ROUNDDOWN(X$10/$F21,0)-SUM($AE21:AR21) -> 7 | AT21: =ROUNDDOWN(Y$10/$F21,0)-SUM($AE21:AS21) -> 7 | AU21: =ROUNDDOWN(Z$10/$F21,0)-SUM($AE21:AT21) -> 7 | AV21: =ROUNDDOWN(AA$10/$F21,0)-SUM($AE21:AU21) -> 7 | AW21: =ROUNDDOWN(AB$10/$F21,0)-SUM($AE21:AV21) -> 7 | AX21: =ROUNDDOWN(AC$10/$F21,0)-SUM($AE21:AW21) -> 7
B22: 10 | C22: FILTRO DE COMBUSTIBLE | D22: UD. | E22: 1 | F22: 5000 | G22: 13.485 | H22: Aceites y filtros | J22: =+AE22*$E22*$G22*(1+'Sup Generales'!C$10) -> 193.32096 | K22: =+AF22*$E22*$G22*(1+'Sup Generales'!D$10) -> 196.4140954 | L22: =+AG22*$E22*$G22*(1+'Sup Generales'!E$10) -> 201.5208618 | M22: =+AH22*$E22*$G22*(1+'Sup Generales'!F$10) -> 202.391432 | N22: =+AI22*$E22*$G22*(1+'Sup Generales'!G$10) -> 202.9378888 | O22: =+AJ22*$E22*$G22*(1+'Sup Generales'!H$10) -> 204.2975727 | P22: =+AK22*$E22*$G22*(1+'Sup Generales'!I$10) -> 208.2632439 | Q22: =+AL22*$E22*$G22*(1+'Sup Generales'!J$10) -> 211.8774248 | R22: =+AM22*$E22*$G22*(1+'Sup Generales'!K$10) -> 214.9624966 | S22: =+AN22*$E22*$G22*(1+'Sup Generales'!L$10) -> 217.8388507 | T22: =+AO22*$E22*$G22*(1+'Sup Generales'!M$10) -> 220.68237 | U22: =+AP22*$E22*$G22*(1+'Sup Generales'!N$10) -> 223.2058685 | V22: =+AQ22*$E22*$G22*(1+'Sup Generales'!O$10) -> 242.0965033 | W22: =+AR22*$E22*$G22*(1+'Sup Generales'!P$10) -> 229.0133428 | X22: =+AS22*$E22*$G22*(1+'Sup Generales'!Q$10) -> 232.3067428 | Y22: =+AT22*$E22*$G22*(1+'Sup Generales'!R$10) -> 235.5014293 | Z22: =+AU22*$E22*$G22*(1+'Sup Generales'!S$10) -> 238.6340179 | AA22: =+AV22*$E22*$G22*(1+'Sup Generales'!T$10) -> 241.7707246 | AB22: =+AW22*$E22*$G22*(1+'Sup Generales'!U$10) -> 244.9415202 | AC22: =+AX22*$E22*$G22*(1+'Sup Generales'!V$10) -> 248.1557855 | AD22: 0.0031319299 | AE22: 14 | AF22: =ROUNDDOWN(K$10/$F22,0)-SUM($AE22:AE22) -> 14 | AG22: =ROUNDDOWN(L$10/$F22,0)-SUM($AE22:AF22) -> 14 | AH22: =ROUNDDOWN(M$10/$F22,0)-SUM($AE22:AG22) -> 14 | AI22: =ROUNDDOWN(N$10/$F22,0)-SUM($AE22:AH22) -> 14 | AJ22: =ROUNDDOWN(O$10/$F22,0)-SUM($AE22:AI22) -> 14 | AK22: =ROUNDDOWN(P$10/$F22,0)-SUM($AE22:AJ22) -> 14 | AL22: =ROUNDDOWN(Q$10/$F22,0)-SUM($AE22:AK22) -> 14 | AM22: =ROUNDDOWN(R$10/$F22,0)-SUM($AE22:AL22) -> 14 | AN22: =ROUNDDOWN(S$10/$F22,0)-SUM($AE22:AM22) -> 14 | AO22: =ROUNDDOWN(T$10/$F22,0)-SUM($AE22:AN22) -> 14 | AP22: =ROUNDDOWN(U$10/$F22,0)-SUM($AE22:AO22) -> 14 | AQ22: =ROUNDDOWN(V$10/$F22,0)-SUM($AE22:AP22) -> 15 | AR22: =ROUNDDOWN(W$10/$F22,0)-SUM($AE22:AQ22) -> 14 | AS22: =ROUNDDOWN(X$10/$F22,0)-SUM($AE22:AR22) -> 14 | AT22: =ROUNDDOWN(Y$10/$F22,0)-SUM($AE22:AS22) -> 14 | AU22: =ROUNDDOWN(Z$10/$F22,0)-SUM($AE22:AT22) -> 14 | AV22: =ROUNDDOWN(AA$10/$F22,0)-SUM($AE22:AU22) -> 14 | AW22: =ROUNDDOWN(AB$10/$F22,0)-SUM($AE22:AV22) -> 14 | AX22: =ROUNDDOWN(AC$10/$F22,0)-SUM($AE22:AW22) -> 14
B23: 11 | C23: FILTRO SECADOR DE AIRE | D23: UD. | E23: 1 | F23: 30000 | G23: 35.87428571 | H23: Aceites y filtros | J23: =+AE23*$E23*$G23*(1+'Sup Generales'!C$10) -> 73.47053714 | K23: =+AF23*$E23*$G23*(1+'Sup Generales'!D$10) -> 74.64606574 | L23: =+AG23*$E23*$G23*(1+'Sup Generales'!E$10) -> 114.8802952 | M23: =+AH23*$E23*$G23*(1+'Sup Generales'!F$10) -> 76.9177187 | N23: =+AI23*$E23*$G23*(1+'Sup Generales'!G$10) -> 77.12539654 | O23: =+AJ23*$E23*$G23*(1+'Sup Generales'!H$10) -> 116.463205 | P23: =+AK23*$E23*$G23*(1+'Sup Generales'!I$10) -> 79.14926762 | Q23: =+AL23*$E23*$G23*(1+'Sup Generales'!J$10) -> 80.52281659 | R23: =+AM23*$E23*$G23*(1+'Sup Generales'!K$10) -> 122.542921 | S23: =+AN23*$E23*$G23*(1+'Sup Generales'!L$10) -> 82.78842279 | T23: =+AO23*$E23*$G23*(1+'Sup Generales'!M$10) -> 83.86908621 | U23: =+AP23*$E23*$G23*(1+'Sup Generales'!N$10) -> 127.2421913 | V23: =+AQ23*$E23*$G23*(1+'Sup Generales'!O$10) -> 85.87357932 | W23: =+AR23*$E23*$G23*(1+'Sup Generales'!P$10) -> 87.0352253 | X23: =+AS23*$E23*$G23*(1+'Sup Generales'!Q$10) -> 132.430295 | Y23: =+AT23*$E23*$G23*(1+'Sup Generales'!R$10) -> 89.50098586 | Z23: =+AU23*$E23*$G23*(1+'Sup Generales'!S$10) -> 90.69150844 | AA23: =+AV23*$E23*$G23*(1+'Sup Generales'!T$10) -> 137.8253941 | AB23: =+AW23*$E23*$G23*(1+'Sup Generales'!U$10) -> 93.08863899 | AC23: =+AX23*$E23*$G23*(1+'Sup Generales'!V$10) -> 94.31020235 | AD23: 0.001363785582 | AE23: 2 | AF23: =ROUNDDOWN(K$10/$F23,0)-SUM($AE23:AE23) -> 2 | AG23: =ROUNDDOWN(L$10/$F23,0)-SUM($AE23:AF23) -> 3 | AH23: =ROUNDDOWN(M$10/$F23,0)-SUM($AE23:AG23) -> 2 | AI23: =ROUNDDOWN(N$10/$F23,0)-SUM($AE23:AH23) -> 2 | AJ23: =ROUNDDOWN(O$10/$F23,0)-SUM($AE23:AI23) -> 3 | AK23: =ROUNDDOWN(P$10/$F23,0)-SUM($AE23:AJ23) -> 2 | AL23: =ROUNDDOWN(Q$10/$F23,0)-SUM($AE23:AK23) -> 2 | AM23: =ROUNDDOWN(R$10/$F23,0)-SUM($AE23:AL23) -> 3 | AN23: =ROUNDDOWN(S$10/$F23,0)-SUM($AE23:AM23) -> 2 | AO23: =ROUNDDOWN(T$10/$F23,0)-SUM($AE23:AN23) -> 2 | AP23: =ROUNDDOWN(U$10/$F23,0)-SUM($AE23:AO23) -> 3 | AQ23: =ROUNDDOWN(V$10/$F23,0)-SUM($AE23:AP23) -> 2 | AR23: =ROUNDDOWN(W$10/$F23,0)-SUM($AE23:AQ23) -> 2 | AS23: =ROUNDDOWN(X$10/$F23,0)-SUM($AE23:AR23) -> 3 | AT23: =ROUNDDOWN(Y$10/$F23,0)-SUM($AE23:AS23) -> 2 | AU23: =ROUNDDOWN(Z$10/$F23,0)-SUM($AE23:AT23) -> 2 | AV23: =ROUNDDOWN(AA$10/$F23,0)-SUM($AE23:AU23) -> 3 | AW23: =ROUNDDOWN(AB$10/$F23,0)-SUM($AE23:AV23) -> 2 | AX23: =ROUNDDOWN(AC$10/$F23,0)-SUM($AE23:AW23) -> 2
B24: 12 | C24: REFRIGERANTE DE MOTOR | D24: GLNS. | E24: 4 | F24: 30000 | G24: 3.84 | H24: Aceites y filtros | J24: =+AE24*$E24*$G24*(1+'Sup Generales'!C$10) -> 31.45728 | K24: =+AF24*$E24*$G24*(1+'Sup Generales'!D$10) -> 31.96059648 | L24: =+AG24*$E24*$G24*(1+'Sup Generales'!E$10) -> 49.18735798 | M24: =+AH24*$E24*$G24*(1+'Sup Generales'!F$10) -> 32.93323158 | N24: =+AI24*$E24*$G24*(1+'Sup Generales'!G$10) -> 33.0221513 | O24: =+AJ24*$E24*$G24*(1+'Sup Generales'!H$10) -> 49.86509958 | P24: =+AK24*$E24*$G24*(1+'Sup Generales'!I$10) -> 33.88869566 | Q24: =+AL24*$E24*$G24*(1+'Sup Generales'!J$10) -> 34.47679691 | R24: =+AM24*$E24*$G24*(1+'Sup Generales'!K$10) -> 52.46820194 | S24: =+AN24*$E24*$G24*(1+'Sup Generales'!L$10) -> 35.44684302 | T24: =+AO24*$E24*$G24*(1+'Sup Generales'!M$10) -> 35.90954185 | U24: =+AP24*$E24*$G24*(1+'Sup Generales'!N$10) -> 54.48025013 | V24: =+AQ24*$E24*$G24*(1+'Sup Generales'!O$10) -> 36.7677893 | W24: =+AR24*$E24*$G24*(1+'Sup Generales'!P$10) -> 37.26516177 | X24: =+AS24*$E24*$G24*(1+'Sup Generales'!Q$10) -> 56.70159811 | Y24: =+AT24*$E24*$G24*(1+'Sup Generales'!R$10) -> 38.32090634 | Z24: =+AU24*$E24*$G24*(1+'Sup Generales'!S$10) -> 38.83064267 | AA24: =+AV24*$E24*$G24*(1+'Sup Generales'!T$10) -> 59.01157365 | AB24: =+AW24*$E24*$G24*(1+'Sup Generales'!U$10) -> 39.85700249 | AC24: =+AX24*$E24*$G24*(1+'Sup Generales'!V$10) -> 40.3800293 | AD24: 0.0005839209372 | AE24: 2 | AF24: =ROUNDDOWN(K$10/$F24,0)-SUM($AE24:AE24) -> 2 | AG24: =ROUNDDOWN(L$10/$F24,0)-SUM($AE24:AF24) -> 3 | AH24: =ROUNDDOWN(M$10/$F24,0)-SUM($AE24:AG24) -> 2 | AI24: =ROUNDDOWN(N$10/$F24,0)-SUM($AE24:AH24) -> 2 | AJ24: =ROUNDDOWN(O$10/$F24,0)-SUM($AE24:AI24) -> 3 | AK24: =ROUNDDOWN(P$10/$F24,0)-SUM($AE24:AJ24) -> 2 | AL24: =ROUNDDOWN(Q$10/$F24,0)-SUM($AE24:AK24) -> 2 | AM24: =ROUNDDOWN(R$10/$F24,0)-SUM($AE24:AL24) -> 3 | AN24: =ROUNDDOWN(S$10/$F24,0)-SUM($AE24:AM24) -> 2 | AO24: =ROUNDDOWN(T$10/$F24,0)-SUM($AE24:AN24) -> 2 | AP24: =ROUNDDOWN(U$10/$F24,0)-SUM($AE24:AO24) -> 3 | AQ24: =ROUNDDOWN(V$10/$F24,0)-SUM($AE24:AP24) -> 2 | AR24: =ROUNDDOWN(W$10/$F24,0)-SUM($AE24:AQ24) -> 2 | AS24: =ROUNDDOWN(X$10/$F24,0)-SUM($AE24:AR24) -> 3 | AT24: =ROUNDDOWN(Y$10/$F24,0)-SUM($AE24:AS24) -> 2 | AU24: =ROUNDDOWN(Z$10/$F24,0)-SUM($AE24:AT24) -> 2 | AV24: =ROUNDDOWN(AA$10/$F24,0)-SUM($AE24:AU24) -> 3 | AW24: =ROUNDDOWN(AB$10/$F24,0)-SUM($AE24:AV24) -> 2 | AX24: =ROUNDDOWN(AC$10/$F24,0)-SUM($AE24:AW24) -> 2
B25: 13 | C25: DESCARBONIZACION COMPRESOR AIRE | D25: UD. | E25: 1 | F25: 30000 | G25: 27.5 | H25: Aceites y filtros | J25: =+AE25*$E25*$G25*(1+'Sup Generales'!C$10) -> 56.32 | K25: =+AF25*$E25*$G25*(1+'Sup Generales'!D$10) -> 57.22112 | L25: =+AG25*$E25*$G25*(1+'Sup Generales'!E$10) -> 88.06330368 | M25: =+AH25*$E25*$G25*(1+'Sup Generales'!F$10) -> 58.96249143 | N25: =+AI25*$E25*$G25*(1+'Sup Generales'!G$10) -> 59.12169016 | O25: =+AJ25*$E25*$G25*(1+'Sup Generales'!H$10) -> 89.27670823 | P25: =+AK25*$E25*$G25*(1+'Sup Generales'!I$10) -> 60.67312049 | Q25: =+AL25*$E25*$G25*(1+'Sup Generales'!J$10) -> 61.72603613 | R25: =+AM25*$E25*$G25*(1+'Sup Generales'!K$10) -> 93.9372105 | S25: =+AN25*$E25*$G25*(1+'Sup Generales'!L$10) -> 63.46277233 | T25: =+AO25*$E25*$G25*(1+'Sup Generales'!M$10) -> 64.29117193 | U25: =+AP25*$E25*$G25*(1+'Sup Generales'!N$10) -> 97.53951032 | V25: =+AQ25*$E25*$G25*(1+'Sup Generales'!O$10) -> 65.82774777 | W25: =+AR25*$E25*$G25*(1+'Sup Generales'!P$10) -> 66.71822583 | X25: =+AS25*$E25*$G25*(1+'Sup Generales'!Q$10) -> 101.5165331 | Y25: =+AT25*$E25*$G25*(1+'Sup Generales'!R$10) -> 68.60839351 | Z25: =+AU25*$E25*$G25*(1+'Sup Generales'!S$10) -> 69.52100739 | AA25: =+AV25*$E25*$G25*(1+'Sup Generales'!T$10) -> 105.6522315 | AB25: =+AW25*$E25*$G25*(1+'Sup Generales'!U$10) -> 71.35856565 | AC25: =+AX25*$E25*$G25*(1+'Sup Generales'!V$10) -> 72.29497432 | AD25: 0.001045431365 | AE25: 2 | AF25: =ROUNDDOWN(K$10/$F25,0)-SUM($AE25:AE25) -> 2 | AG25: =ROUNDDOWN(L$10/$F25,0)-SUM($AE25:AF25) -> 3 | AH25: =ROUNDDOWN(M$10/$F25,0)-SUM($AE25:AG25) -> 2 | AI25: =ROUNDDOWN(N$10/$F25,0)-SUM($AE25:AH25) -> 2 | AJ25: =ROUNDDOWN(O$10/$F25,0)-SUM($AE25:AI25) -> 3 | AK25: =ROUNDDOWN(P$10/$F25,0)-SUM($AE25:AJ25) -> 2 | AL25: =ROUNDDOWN(Q$10/$F25,0)-SUM($AE25:AK25) -> 2 | AM25: =ROUNDDOWN(R$10/$F25,0)-SUM($AE25:AL25) -> 3 | AN25: =ROUNDDOWN(S$10/$F25,0)-SUM($AE25:AM25) -> 2 | AO25: =ROUNDDOWN(T$10/$F25,0)-SUM($AE25:AN25) -> 2 | AP25: =ROUNDDOWN(U$10/$F25,0)-SUM($AE25:AO25) -> 3 | AQ25: =ROUNDDOWN(V$10/$F25,0)-SUM($AE25:AP25) -> 2 | AR25: =ROUNDDOWN(W$10/$F25,0)-SUM($AE25:AQ25) -> 2 | AS25: =ROUNDDOWN(X$10/$F25,0)-SUM($AE25:AR25) -> 3 | AT25: =ROUNDDOWN(Y$10/$F25,0)-SUM($AE25:AS25) -> 2 | AU25: =ROUNDDOWN(Z$10/$F25,0)-SUM($AE25:AT25) -> 2 | AV25: =ROUNDDOWN(AA$10/$F25,0)-SUM($AE25:AU25) -> 3 | AW25: =ROUNDDOWN(AB$10/$F25,0)-SUM($AE25:AV25) -> 2 | AX25: =ROUNDDOWN(AC$10/$F25,0)-SUM($AE25:AW25) -> 2
B26: 14 | C26: BANDAS | D26: JGO. | E26: 1 | F26: 30000 | G26: 31.70857143 | H26: =+'OPEX Mtto'!B10 -> Costo de mantenimiento mecánico | J26: =+AE26*$E26*$G26*(1+'Sup Generales'!C$10) -> 64.93915429 | K26: =+AF26*$E26*$G26*(1+'Sup Generales'!D$10) -> 65.97818075 | L26: =+AG26*$E26*$G26*(1+'Sup Generales'!E$10) -> 101.5404202 | M26: =+AH26*$E26*$G26*(1+'Sup Generales'!F$10) -> 67.98604986 | N26: =+AI26*$E26*$G26*(1+'Sup Generales'!G$10) -> 68.1696122 | O26: =+AJ26*$E26*$G26*(1+'Sup Generales'!H$10) -> 102.9395229 | P26: =+AK26*$E26*$G26*(1+'Sup Generales'!I$10) -> 69.95847181 | Q26: =+AL26*$E26*$G26*(1+'Sup Generales'!J$10) -> 71.17252457 | R26: =+AM26*$E26*$G26*(1+'Sup Generales'!K$10) -> 108.3132636 | S26: =+AN26*$E26*$G26*(1+'Sup Generales'!L$10) -> 73.17504907 | T26: =+AO26*$E26*$G26*(1+'Sup Generales'!M$10) -> 74.13022609 | U26: =+AP26*$E26*$G26*(1+'Sup Generales'!N$10) -> 112.4668556 | V26: =+AQ26*$E26*$G26*(1+'Sup Generales'!O$10) -> 75.90195789 | W26: =+AR26*$E26*$G26*(1+'Sup Generales'!P$10) -> 76.92871379 | X26: =+AS26*$E26*$G26*(1+'Sup Generales'!Q$10) -> 117.0525178 | Y26: =+AT26*$E26*$G26*(1+'Sup Generales'!R$10) -> 79.10815077 | Z26: =+AU26*$E26*$G26*(1+'Sup Generales'!S$10) -> 80.16043013 | AA26: =+AV26*$E26*$G26*(1+'Sup Generales'!T$10) -> 121.8211392 | AB26: =+AW26*$E26*$G26*(1+'Sup Generales'!U$10) -> 82.2792064 | AC26: =+AX26*$E26*$G26*(1+'Sup Generales'!V$10) -> 83.35892208 | AD26: 0.001205423095 | AE26: 2 | AF26: =ROUNDDOWN(K$10/$F26,0)-SUM($AE26:AE26) -> 2 | AG26: =ROUNDDOWN(L$10/$F26,0)-SUM($AE26:AF26) -> 3 | AH26: =ROUNDDOWN(M$10/$F26,0)-SUM($AE26:AG26) -> 2 | AI26: =ROUNDDOWN(N$10/$F26,0)-SUM($AE26:AH26) -> 2 | AJ26: =ROUNDDOWN(O$10/$F26,0)-SUM($AE26:AI26) -> 3 | AK26: =ROUNDDOWN(P$10/$F26,0)-SUM($AE26:AJ26) -> 2 | AL26: =ROUNDDOWN(Q$10/$F26,0)-SUM($AE26:AK26) -> 2 | AM26: =ROUNDDOWN(R$10/$F26,0)-SUM($AE26:AL26) -> 3 | AN26: =ROUNDDOWN(S$10/$F26,0)-SUM($AE26:AM26) -> 2 | AO26: =ROUNDDOWN(T$10/$F26,0)-SUM($AE26:AN26) -> 2 | AP26: =ROUNDDOWN(U$10/$F26,0)-SUM($AE26:AO26) -> 3 | AQ26: =ROUNDDOWN(V$10/$F26,0)-SUM($AE26:AP26) -> 2 | AR26: =ROUNDDOWN(W$10/$F26,0)-SUM($AE26:AQ26) -> 2 | AS26: =ROUNDDOWN(X$10/$F26,0)-SUM($AE26:AR26) -> 3 | AT26: =ROUNDDOWN(Y$10/$F26,0)-SUM($AE26:AS26) -> 2 | AU26: =ROUNDDOWN(Z$10/$F26,0)-SUM($AE26:AT26) -> 2 | AV26: =ROUNDDOWN(AA$10/$F26,0)-SUM($AE26:AU26) -> 3 | AW26: =ROUNDDOWN(AB$10/$F26,0)-SUM($AE26:AV26) -> 2 | AX26: =ROUNDDOWN(AC$10/$F26,0)-SUM($AE26:AW26) -> 2
B27: 15 | C27: CAMBIO DE TOBERAS DE INYECTORES | D27: JGO. | E27: 1 | F27: 120000 | G27: 213.8666667 | H27: =+H26 -> Costo de mantenimiento mecánico | J27: =+AE27*$E27*$G27*(1+'Sup Generales'!C$10) -> 0 | K27: =+AF27*$E27*$G27*(1+'Sup Generales'!D$10) -> 222.5034581 | L27: =+AG27*$E27*$G27*(1+'Sup Generales'!E$10) -> 0 | M27: =+AH27*$E27*$G27*(1+'Sup Generales'!F$10) -> 229.2747546 | N27: =+AI27*$E27*$G27*(1+'Sup Generales'!G$10) -> 0 | O27: =+AJ27*$E27*$G27*(1+'Sup Generales'!H$10) -> 231.4340848 | P27: =+AK27*$E27*$G27*(1+'Sup Generales'!I$10) -> 235.9265097 | Q27: =+AL27*$E27*$G27*(1+'Sup Generales'!J$10) -> 0 | R27: =+AM27*$E27*$G27*(1+'Sup Generales'!K$10) -> 243.5156132 | S27: =+AN27*$E27*$G27*(1+'Sup Generales'!L$10) -> 0 | T27: =+AO27*$E27*$G27*(1+'Sup Generales'!M$10) -> 249.995248 | U27: =+AP27*$E27*$G27*(1+'Sup Generales'!N$10) -> 252.8539387 | V27: =+AQ27*$E27*$G27*(1+'Sup Generales'!O$10) -> 0 | W27: =+AR27*$E27*$G27*(1+'Sup Generales'!P$10) -> 259.4328103 | X27: =+AS27*$E27*$G27*(1+'Sup Generales'!Q$10) -> 0 | Y27: =+AT27*$E27*$G27*(1+'Sup Generales'!R$10) -> 266.7826986 | Z27: =+AU27*$E27*$G27*(1+'Sup Generales'!S$10) -> 0 | AA27: =+AV27*$E27*$G27*(1+'Sup Generales'!T$10) -> 273.8847342 | AB27: =+AW27*$E27*$G27*(1+'Sup Generales'!U$10) -> 277.4767013 | AC27: =+AX27*$E27*$G27*(1+'Sup Generales'!V$10) -> 0 | AD27: 0.001948044592 | AE27: 0 | AF27: =ROUNDDOWN(K$10/$F27,0)-SUM($AE27:AE27) -> 1 | AG27: =ROUNDDOWN(L$10/$F27,0)-SUM($AE27:AF27) -> 0 | AH27: =ROUNDDOWN(M$10/$F27,0)-SUM($AE27:AG27) -> 1 | AI27: =ROUNDDOWN(N$10/$F27,0)-SUM($AE27:AH27) -> 0 | AJ27: =ROUNDDOWN(O$10/$F27,0)-SUM($AE27:AI27) -> 1 | AK27: =ROUNDDOWN(P$10/$F27,0)-SUM($AE27:AJ27) -> 1 | AL27: =ROUNDDOWN(Q$10/$F27,0)-SUM($AE27:AK27) -> 0 | AM27: =ROUNDDOWN(R$10/$F27,0)-SUM($AE27:AL27) -> 1 | AN27: =ROUNDDOWN(S$10/$F27,0)-SUM($AE27:AM27) -> 0 | AO27: =ROUNDDOWN(T$10/$F27,0)-SUM($AE27:AN27) -> 1 | AP27: =ROUNDDOWN(U$10/$F27,0)-SUM($AE27:AO27) -> 1 | AQ27: =ROUNDDOWN(V$10/$F27,0)-SUM($AE27:AP27) -> 0 | AR27: =ROUNDDOWN(W$10/$F27,0)-SUM($AE27:AQ27) -> 1 | AS27: =ROUNDDOWN(X$10/$F27,0)-SUM($AE27:AR27) -> 0 | AT27: =ROUNDDOWN(Y$10/$F27,0)-SUM($AE27:AS27) -> 1 | AU27: =ROUNDDOWN(Z$10/$F27,0)-SUM($AE27:AT27) -> 0 | AV27: =ROUNDDOWN(AA$10/$F27,0)-SUM($AE27:AU27) -> 1 | AW27: =ROUNDDOWN(AB$10/$F27,0)-SUM($AE27:AV27) -> 1 | AX27: =ROUNDDOWN(AC$10/$F27,0)-SUM($AE27:AW27) -> 0
B28: 16 | C28: CALIBRACIÓN DE LA BOMBA DE INYECCIÓN | D28: UND | E28: 1 | F28: 150000 | G28: 296.2 | H28: =+H27 -> Costo de mantenimiento mecánico | J28: =+AE28*$E28*$G28*(1+'Sup Generales'!C$10) -> 0 | K28: =+AF28*$E28*$G28*(1+'Sup Generales'!D$10) -> 0 | L28: =+AG28*$E28*$G28*(1+'Sup Generales'!E$10) -> 316.1739461 | M28: =+AH28*$E28*$G28*(1+'Sup Generales'!F$10) -> 0 | N28: =+AI28*$E28*$G28*(1+'Sup Generales'!G$10) -> 318.397175 | O28: =+AJ28*$E28*$G28*(1+'Sup Generales'!H$10) -> 0 | P28: =+AK28*$E28*$G28*(1+'Sup Generales'!I$10) -> 326.7523325 | Q28: =+AL28*$E28*$G28*(1+'Sup Generales'!J$10) -> 0 | R28: =+AM28*$E28*$G28*(1+'Sup Generales'!K$10) -> 337.2630515 | S28: =+AN28*$E28*$G28*(1+'Sup Generales'!L$10) -> 0 | T28: =+AO28*$E28*$G28*(1+'Sup Generales'!M$10) -> 346.2371841 | U28: =+AP28*$E28*$G28*(1+'Sup Generales'!N$10) -> 0 | V28: =+AQ28*$E28*$G28*(1+'Sup Generales'!O$10) -> 354.5123434 | W28: =+AR28*$E28*$G28*(1+'Sup Generales'!P$10) -> 0 | X28: =+AS28*$E28*$G28*(1+'Sup Generales'!Q$10) -> 364.4751164 | Y28: =+AT28*$E28*$G28*(1+'Sup Generales'!R$10) -> 0 | Z28: =+AU28*$E28*$G28*(1+'Sup Generales'!S$10) -> 0 | AA28: =+AV28*$E28*$G28*(1+'Sup Generales'!T$10) -> 379.3235268 | AB28: =+AW28*$E28*$G28*(1+'Sup Generales'!U$10) -> 0 | AC28: =+AX28*$E28*$G28*(1+'Sup Generales'!V$10) -> 389.3412981 | AD28: 0.002224580273 | AE28: 0 | AF28: =ROUNDDOWN(K$10/$F28,0)-SUM($AE28:AE28) -> 0 | AG28: =ROUNDDOWN(L$10/$F28,0)-SUM($AE28:AF28) -> 1 | AH28: =ROUNDDOWN(M$10/$F28,0)-SUM($AE28:AG28) -> 0 | AI28: =ROUNDDOWN(N$10/$F28,0)-SUM($AE28:AH28) -> 1 | AJ28: =ROUNDDOWN(O$10/$F28,0)-SUM($AE28:AI28) -> 0 | AK28: =ROUNDDOWN(P$10/$F28,0)-SUM($AE28:AJ28) -> 1 | AL28: =ROUNDDOWN(Q$10/$F28,0)-SUM($AE28:AK28) -> 0 | AM28: =ROUNDDOWN(R$10/$F28,0)-SUM($AE28:AL28) -> 1 | AN28: =ROUNDDOWN(S$10/$F28,0)-SUM($AE28:AM28) -> 0 | AO28: =ROUNDDOWN(T$10/$F28,0)-SUM($AE28:AN28) -> 1 | AP28: =ROUNDDOWN(U$10/$F28,0)-SUM($AE28:AO28) -> 0 | AQ28: =ROUNDDOWN(V$10/$F28,0)-SUM($AE28:AP28) -> 1 | AR28: =ROUNDDOWN(W$10/$F28,0)-SUM($AE28:AQ28) -> 0 | AS28: =ROUNDDOWN(X$10/$F28,0)-SUM($AE28:AR28) -> 1 | AT28: =ROUNDDOWN(Y$10/$F28,0)-SUM($AE28:AS28) -> 0 | AU28: =ROUNDDOWN(Z$10/$F28,0)-SUM($AE28:AT28) -> 0 | AV28: =ROUNDDOWN(AA$10/$F28,0)-SUM($AE28:AU28) -> 1 | AW28: =ROUNDDOWN(AB$10/$F28,0)-SUM($AE28:AV28) -> 0 | AX28: =ROUNDDOWN(AC$10/$F28,0)-SUM($AE28:AW28) -> 1
B29: 17 | C29: EMBRAGUE | D29: JGO. | E29: 1 | F29: 60000 | G29: 728.3333333 | H29: =+H28 -> Costo de mantenimiento mecánico | J29: =+AE29*$E29*$G29*(1+'Sup Generales'!C$10) -> 745.8133333 | K29: =+AF29*$E29*$G29*(1+'Sup Generales'!D$10) -> 757.7463467 | L29: =+AG29*$E29*$G29*(1+'Sup Generales'!E$10) -> 777.4477517 | M29: =+AH29*$E29*$G29*(1+'Sup Generales'!F$10) -> 780.806326 | N29: =+AI29*$E29*$G29*(1+'Sup Generales'!G$10) -> 782.914503 | O29: =+AJ29*$E29*$G29*(1+'Sup Generales'!H$10) -> 1576.32006 | P29: =+AK29*$E29*$G29*(1+'Sup Generales'!I$10) -> 803.4592016 | Q29: =+AL29*$E29*$G29*(1+'Sup Generales'!J$10) -> 817.4023573 | R29: =+AM29*$E29*$G29*(1+'Sup Generales'!K$10) -> 829.3042624 | S29: =+AN29*$E29*$G29*(1+'Sup Generales'!L$10) -> 840.4009548 | T29: =+AO29*$E29*$G29*(1+'Sup Generales'!M$10) -> 851.3709738 | U29: =+AP29*$E29*$G29*(1+'Sup Generales'!N$10) -> 1722.212768 | V29: =+AQ29*$E29*$G29*(1+'Sup Generales'!O$10) -> 871.7189628 | W29: =+AR29*$E29*$G29*(1+'Sup Generales'!P$10) -> 883.5110512 | X29: =+AS29*$E29*$G29*(1+'Sup Generales'!Q$10) -> 896.2166658 | Y29: =+AT29*$E29*$G29*(1+'Sup Generales'!R$10) -> 908.5414534 | Z29: =+AU29*$E29*$G29*(1+'Sup Generales'!S$10) -> 920.6266736 | AA29: =+AV29*$E29*$G29*(1+'Sup Generales'!T$10) -> 1865.455562 | AB29: =+AW29*$E29*$G29*(1+'Sup Generales'!U$10) -> 944.9603997 | AC29: =+AX29*$E29*$G29*(1+'Sup Generales'!V$10) -> 957.3607206 | AD29: 0.0138721063 | AE29: 1 | AF29: =ROUNDDOWN(K$10/$F29,0)-SUM($AE29:AE29) -> 1 | AG29: =ROUNDDOWN(L$10/$F29,0)-SUM($AE29:AF29) -> 1 | AH29: =ROUNDDOWN(M$10/$F29,0)-SUM($AE29:AG29) -> 1 | AI29: =ROUNDDOWN(N$10/$F29,0)-SUM($AE29:AH29) -> 1 | AJ29: =ROUNDDOWN(O$10/$F29,0)-SUM($AE29:AI29) -> 2 | AK29: =ROUNDDOWN(P$10/$F29,0)-SUM($AE29:AJ29) -> 1 | AL29: =ROUNDDOWN(Q$10/$F29,0)-SUM($AE29:AK29) -> 1 | AM29: =ROUNDDOWN(R$10/$F29,0)-SUM($AE29:AL29) -> 1 | AN29: =ROUNDDOWN(S$10/$F29,0)-SUM($AE29:AM29) -> 1 | AO29: =ROUNDDOWN(T$10/$F29,0)-SUM($AE29:AN29) -> 1 | AP29: =ROUNDDOWN(U$10/$F29,0)-SUM($AE29:AO29) -> 2 | AQ29: =ROUNDDOWN(V$10/$F29,0)-SUM($AE29:AP29) -> 1 | AR29: =ROUNDDOWN(W$10/$F29,0)-SUM($AE29:AQ29) -> 1 | AS29: =ROUNDDOWN(X$10/$F29,0)-SUM($AE29:AR29) -> 1 | AT29: =ROUNDDOWN(Y$10/$F29,0)-SUM($AE29:AS29) -> 1 | AU29: =ROUNDDOWN(Z$10/$F29,0)-SUM($AE29:AT29) -> 1 | AV29: =ROUNDDOWN(AA$10/$F29,0)-SUM($AE29:AU29) -> 2 | AW29: =ROUNDDOWN(AB$10/$F29,0)-SUM($AE29:AV29) -> 1 | AX29: =ROUNDDOWN(AC$10/$F29,0)-SUM($AE29:AW29) -> 1
B30: 18 | C30: BUSTER EMBRAGUE | D30: JGO. | E30: 1 | F30: 30000 | G30: 175 | H30: Costo de mantenimiento mecánico | J30: =+AE30*$E30*$G30*(1+'Sup Generales'!C$10) -> 358.4 | K30: =+AF30*$E30*$G30*(1+'Sup Generales'!D$10) -> 364.1344 | L30: =+AG30*$E30*$G30*(1+'Sup Generales'!E$10) -> 560.4028416 | M30: =+AH30*$E30*$G30*(1+'Sup Generales'!F$10) -> 375.2158546 | N30: =+AI30*$E30*$G30*(1+'Sup Generales'!G$10) -> 376.2289374 | O30: =+AJ30*$E30*$G30*(1+'Sup Generales'!H$10) -> 568.1245069 | P30: =+AK30*$E30*$G30*(1+'Sup Generales'!I$10) -> 386.1016758 | Q30: =+AL30*$E30*$G30*(1+'Sup Generales'!J$10) -> 392.8020481 | R30: =+AM30*$E30*$G30*(1+'Sup Generales'!K$10) -> 597.7822487 | S30: =+AN30*$E30*$G30*(1+'Sup Generales'!L$10) -> 403.8540057 | T30: =+AO30*$E30*$G30*(1+'Sup Generales'!M$10) -> 409.1256396 | U30: =+AP30*$E30*$G30*(1+'Sup Generales'!N$10) -> 620.7059748 | V30: =+AQ30*$E30*$G30*(1+'Sup Generales'!O$10) -> 418.9038494 | W30: =+AR30*$E30*$G30*(1+'Sup Generales'!P$10) -> 424.570528 | X30: =+AS30*$E30*$G30*(1+'Sup Generales'!Q$10) -> 646.0143014 | Y30: =+AT30*$E30*$G30*(1+'Sup Generales'!R$10) -> 436.5988678 | Z30: =+AU30*$E30*$G30*(1+'Sup Generales'!S$10) -> 442.4064106 | AA30: =+AV30*$E30*$G30*(1+'Sup Generales'!T$10) -> 672.3323821 | AB30: =+AW30*$E30*$G30*(1+'Sup Generales'!U$10) -> 454.0999632 | AC30: =+AX30*$E30*$G30*(1+'Sup Generales'!V$10) -> 460.0589275 | AD30: 0.006652745052 | AE30: 2 | AF30: =ROUNDDOWN(K$10/$F30,0)-SUM($AE30:AE30) -> 2 | AG30: =ROUNDDOWN(L$10/$F30,0)-SUM($AE30:AF30) -> 3 | AH30: =ROUNDDOWN(M$10/$F30,0)-SUM($AE30:AG30) -> 2 | AI30: =ROUNDDOWN(N$10/$F30,0)-SUM($AE30:AH30) -> 2 | AJ30: =ROUNDDOWN(O$10/$F30,0)-SUM($AE30:AI30) -> 3 | AK30: =ROUNDDOWN(P$10/$F30,0)-SUM($AE30:AJ30) -> 2 | AL30: =ROUNDDOWN(Q$10/$F30,0)-SUM($AE30:AK30) -> 2 | AM30: =ROUNDDOWN(R$10/$F30,0)-SUM($AE30:AL30) -> 3 | AN30: =ROUNDDOWN(S$10/$F30,0)-SUM($AE30:AM30) -> 2 | AO30: =ROUNDDOWN(T$10/$F30,0)-SUM($AE30:AN30) -> 2 | AP30: =ROUNDDOWN(U$10/$F30,0)-SUM($AE30:AO30) -> 3 | AQ30: =ROUNDDOWN(V$10/$F30,0)-SUM($AE30:AP30) -> 2 | AR30: =ROUNDDOWN(W$10/$F30,0)-SUM($AE30:AQ30) -> 2 | AS30: =ROUNDDOWN(X$10/$F30,0)-SUM($AE30:AR30) -> 3 | AT30: =ROUNDDOWN(Y$10/$F30,0)-SUM($AE30:AS30) -> 2 | AU30: =ROUNDDOWN(Z$10/$F30,0)-SUM($AE30:AT30) -> 2 | AV30: =ROUNDDOWN(AA$10/$F30,0)-SUM($AE30:AU30) -> 3 | AW30: =ROUNDDOWN(AB$10/$F30,0)-SUM($AE30:AV30) -> 2 | AX30: =ROUNDDOWN(AC$10/$F30,0)-SUM($AE30:AW30) -> 2
B31: 19 | C31: SOPORTE DE CARDAN Y CRUCETAS | D31: JGO. | E31: 1 | F31: 30000 | G31: 176.506 | H31: Costo de mantenimiento mecánico | J31: =+AE31*$E31*$G31*(1+'Sup Generales'!C$10) -> 361.484288 | K31: =+AF31*$E31*$G31*(1+'Sup Generales'!D$10) -> 367.2680366 | L31: =+AG31*$E31*$G31*(1+'Sup Generales'!E$10) -> 565.2255083 | M31: =+AH31*$E31*$G31*(1+'Sup Generales'!F$10) -> 378.444855 | N31: =+AI31*$E31*$G31*(1+'Sup Generales'!G$10) -> 379.4666561 | O31: =+AJ31*$E31*$G31*(1+'Sup Generales'!H$10) -> 573.0136241 | P31: =+AK31*$E31*$G31*(1+'Sup Generales'!I$10) -> 389.4243565 | Q31: =+AL31*$E31*$G31*(1+'Sup Generales'!J$10) -> 396.1823903 | R31: =+AM31*$E31*$G31*(1+'Sup Generales'!K$10) -> 602.9265919 | S31: =+AN31*$E31*$G31*(1+'Sup Generales'!L$10) -> 407.3294579 | T31: =+AO31*$E31*$G31*(1+'Sup Generales'!M$10) -> 412.6464579 | U31: =+AP31*$E31*$G31*(1+'Sup Generales'!N$10) -> 626.047593 | V31: =+AQ31*$E31*$G31*(1+'Sup Generales'!O$10) -> 422.5088163 | W31: =+AR31*$E31*$G31*(1+'Sup Generales'!P$10) -> 428.2242607 | X31: =+AS31*$E31*$G31*(1+'Sup Generales'!Q$10) -> 651.5737159 | Y31: =+AT31*$E31*$G31*(1+'Sup Generales'!R$10) -> 440.3561129 | Z31: =+AU31*$E31*$G31*(1+'Sup Generales'!S$10) -> 446.2136338 | AA31: =+AV31*$E31*$G31*(1+'Sup Generales'!T$10) -> 678.1182825 | AB31: =+AW31*$E31*$G31*(1+'Sup Generales'!U$10) -> 458.0078178 | AC31: =+AX31*$E31*$G31*(1+'Sup Generales'!V$10) -> 464.0180632 | AD31: 0.006709996676 | AE31: 2 | AF31: =ROUNDDOWN(K$10/$F31,0)-SUM($AE31:AE31) -> 2 | AG31: =ROUNDDOWN(L$10/$F31,0)-SUM($AE31:AF31) -> 3 | AH31: =ROUNDDOWN(M$10/$F31,0)-SUM($AE31:AG31) -> 2 | AI31: =ROUNDDOWN(N$10/$F31,0)-SUM($AE31:AH31) -> 2 | AJ31: =ROUNDDOWN(O$10/$F31,0)-SUM($AE31:AI31) -> 3 | AK31: =ROUNDDOWN(P$10/$F31,0)-SUM($AE31:AJ31) -> 2 | AL31: =ROUNDDOWN(Q$10/$F31,0)-SUM($AE31:AK31) -> 2 | AM31: =ROUNDDOWN(R$10/$F31,0)-SUM($AE31:AL31) -> 3 | AN31: =ROUNDDOWN(S$10/$F31,0)-SUM($AE31:AM31) -> 2 | AO31: =ROUNDDOWN(T$10/$F31,0)-SUM($AE31:AN31) -> 2 | AP31: =ROUNDDOWN(U$10/$F31,0)-SUM($AE31:AO31) -> 3 | AQ31: =ROUNDDOWN(V$10/$F31,0)-SUM($AE31:AP31) -> 2 | AR31: =ROUNDDOWN(W$10/$F31,0)-SUM($AE31:AQ31) -> 2 | AS31: =ROUNDDOWN(X$10/$F31,0)-SUM($AE31:AR31) -> 3 | AT31: =ROUNDDOWN(Y$10/$F31,0)-SUM($AE31:AS31) -> 2 | AU31: =ROUNDDOWN(Z$10/$F31,0)-SUM($AE31:AT31) -> 2 | AV31: =ROUNDDOWN(AA$10/$F31,0)-SUM($AE31:AU31) -> 3 | AW31: =ROUNDDOWN(AB$10/$F31,0)-SUM($AE31:AV31) -> 2 | AX31: =ROUNDDOWN(AC$10/$F31,0)-SUM($AE31:AW31) -> 2
B32: 20 | C32: MANTENIMIENTO SISTEMA NEUMÁTICO | D32: UND | E32: 1 | F32: 30000 | G32: 137.75 | H32: Costo de mantenimiento mecánico | J32: =+AE32*$E32*$G32*(1+'Sup Generales'!C$10) -> 282.112 | K32: =+AF32*$E32*$G32*(1+'Sup Generales'!D$10) -> 286.625792 | L32: =+AG32*$E32*$G32*(1+'Sup Generales'!E$10) -> 441.1170939 | M32: =+AH32*$E32*$G32*(1+'Sup Generales'!F$10) -> 295.3484798 | N32: =+AI32*$E32*$G32*(1+'Sup Generales'!G$10) -> 296.1459207 | O32: =+AJ32*$E32*$G32*(1+'Sup Generales'!H$10) -> 447.1951476 | P32: =+AK32*$E32*$G32*(1+'Sup Generales'!I$10) -> 303.9171763 | Q32: =+AL32*$E32*$G32*(1+'Sup Generales'!J$10) -> 309.1913264 | R32: =+AM32*$E32*$G32*(1+'Sup Generales'!K$10) -> 470.5400272 | S32: =+AN32*$E32*$G32*(1+'Sup Generales'!L$10) -> 317.8907959 | T32: =+AO32*$E32*$G32*(1+'Sup Generales'!M$10) -> 322.0403249 | U32: =+AP32*$E32*$G32*(1+'Sup Generales'!N$10) -> 488.5842744 | V32: =+AQ32*$E32*$G32*(1+'Sup Generales'!O$10) -> 329.7371729 | W32: =+AR32*$E32*$G32*(1+'Sup Generales'!P$10) -> 334.1976585 | X32: =+AS32*$E32*$G32*(1+'Sup Generales'!Q$10) -> 508.505543 | Y32: =+AT32*$E32*$G32*(1+'Sup Generales'!R$10) -> 343.6656802 | Z32: =+AU32*$E32*$G32*(1+'Sup Generales'!S$10) -> 348.2370461 | AA32: =+AV32*$E32*$G32*(1+'Sup Generales'!T$10) -> 529.2216322 | AB32: =+AW32*$E32*$G32*(1+'Sup Generales'!U$10) -> 357.4415425 | AC32: =+AX32*$E32*$G32*(1+'Sup Generales'!V$10) -> 362.1320987 | AD32: 0.005236660748 | AE32: 2 | AF32: =ROUNDDOWN(K$10/$F32,0)-SUM($AE32:AE32) -> 2 | AG32: =ROUNDDOWN(L$10/$F32,0)-SUM($AE32:AF32) -> 3 | AH32: =ROUNDDOWN(M$10/$F32,0)-SUM($AE32:AG32) -> 2 | AI32: =ROUNDDOWN(N$10/$F32,0)-SUM($AE32:AH32) -> 2 | AJ32: =ROUNDDOWN(O$10/$F32,0)-SUM($AE32:AI32) -> 3 | AK32: =ROUNDDOWN(P$10/$F32,0)-SUM($AE32:AJ32) -> 2 | AL32: =ROUNDDOWN(Q$10/$F32,0)-SUM($AE32:AK32) -> 2 | AM32: =ROUNDDOWN(R$10/$F32,0)-SUM($AE32:AL32) -> 3 | AN32: =ROUNDDOWN(S$10/$F32,0)-SUM($AE32:AM32) -> 2 | AO32: =ROUNDDOWN(T$10/$F32,0)-SUM($AE32:AN32) -> 2 | AP32: =ROUNDDOWN(U$10/$F32,0)-SUM($AE32:AO32) -> 3 | AQ32: =ROUNDDOWN(V$10/$F32,0)-SUM($AE32:AP32) -> 2 | AR32: =ROUNDDOWN(W$10/$F32,0)-SUM($AE32:AQ32) -> 2 | AS32: =ROUNDDOWN(X$10/$F32,0)-SUM($AE32:AR32) -> 3 | AT32: =ROUNDDOWN(Y$10/$F32,0)-SUM($AE32:AS32) -> 2 | AU32: =ROUNDDOWN(Z$10/$F32,0)-SUM($AE32:AT32) -> 2 | AV32: =ROUNDDOWN(AA$10/$F32,0)-SUM($AE32:AU32) -> 3 | AW32: =ROUNDDOWN(AB$10/$F32,0)-SUM($AE32:AV32) -> 2 | AX32: =ROUNDDOWN(AC$10/$F32,0)-SUM($AE32:AW32) -> 2
B33: 21 | C33: ZAPATAS (JUEGO FORROS 2) X 4 | D33: JGO. | E33: 2 | F33: 20000 | G33: 74.13166667 | H33: Costo de mantenimiento mecánico | J33: =+AE33*$E33*$G33*(1+'Sup Generales'!C$10) -> 455.46496 | K33: =+AF33*$E33*$G33*(1+'Sup Generales'!D$10) -> 617.0031991 | L33: =+AG33*$E33*$G33*(1+'Sup Generales'!E$10) -> 474.7839617 | M33: =+AH33*$E33*$G33*(1+'Sup Generales'!F$10) -> 635.7800379 | N33: =+AI33*$E33*$G33*(1+'Sup Generales'!G$10) -> 478.122483 | O33: =+AJ33*$E33*$G33*(1+'Sup Generales'!H$10) -> 641.7678716 | P33: =+AK33*$E33*$G33*(1+'Sup Generales'!I$10) -> 490.6690411 | Q33: =+AL33*$E33*$G33*(1+'Sup Generales'!J$10) -> 665.5787542 | R33: =+AM33*$E33*$G33*(1+'Sup Generales'!K$10) -> 506.4525074 | S33: =+AN33*$E33*$G33*(1+'Sup Generales'!L$10) -> 684.3056122 | T33: =+AO33*$E33*$G33*(1+'Sup Generales'!M$10) -> 519.9285521 | U33: =+AP33*$E33*$G33*(1+'Sup Generales'!N$10) -> 701.165233 | V33: =+AQ33*$E33*$G33*(1+'Sup Generales'!O$10) -> 532.3549805 | W33: =+AR33*$E33*$G33*(1+'Sup Generales'!P$10) -> 719.4084768 | X33: =+AS33*$E33*$G33*(1+'Sup Generales'!Q$10) -> 547.3156212 | Y33: =+AT33*$E33*$G33*(1+'Sup Generales'!R$10) -> 739.7897539 | Z33: =+AU33*$E33*$G33*(1+'Sup Generales'!S$10) -> 562.2227068 | AA33: =+AV33*$E33*$G33*(1+'Sup Generales'!T$10) -> 759.4837339 | AB33: =+AW33*$E33*$G33*(1+'Sup Generales'!U$10) -> 577.0832076 | AC33: =+AX33*$E33*$G33*(1+'Sup Generales'!V$10) -> 779.5413728 | AD33: 0.008584653344 | AE33: 3 | AF33: =ROUNDDOWN(K$10/$F33,0)-SUM($AE33:AE33) -> 4 | AG33: =ROUNDDOWN(L$10/$F33,0)-SUM($AE33:AF33) -> 3 | AH33: =ROUNDDOWN(M$10/$F33,0)-SUM($AE33:AG33) -> 4 | AI33: =ROUNDDOWN(N$10/$F33,0)-SUM($AE33:AH33) -> 3 | AJ33: =ROUNDDOWN(O$10/$F33,0)-SUM($AE33:AI33) -> 4 | AK33: =ROUNDDOWN(P$10/$F33,0)-SUM($AE33:AJ33) -> 3 | AL33: =ROUNDDOWN(Q$10/$F33,0)-SUM($AE33:AK33) -> 4 | AM33: =ROUNDDOWN(R$10/$F33,0)-SUM($AE33:AL33) -> 3 | AN33: =ROUNDDOWN(S$10/$F33,0)-SUM($AE33:AM33) -> 4 | AO33: =ROUNDDOWN(T$10/$F33,0)-SUM($AE33:AN33) -> 3 | AP33: =ROUNDDOWN(U$10/$F33,0)-SUM($AE33:AO33) -> 4 | AQ33: =ROUNDDOWN(V$10/$F33,0)-SUM($AE33:AP33) -> 3 | AR33: =ROUNDDOWN(W$10/$F33,0)-SUM($AE33:AQ33) -> 4 | AS33: =ROUNDDOWN(X$10/$F33,0)-SUM($AE33:AR33) -> 3 | AT33: =ROUNDDOWN(Y$10/$F33,0)-SUM($AE33:AS33) -> 4 | AU33: =ROUNDDOWN(Z$10/$F33,0)-SUM($AE33:AT33) -> 3 | AV33: =ROUNDDOWN(AA$10/$F33,0)-SUM($AE33:AU33) -> 4 | AW33: =ROUNDDOWN(AB$10/$F33,0)-SUM($AE33:AV33) -> 3 | AX33: =ROUNDDOWN(AC$10/$F33,0)-SUM($AE33:AW33) -> 4
B34: 22 | C34: CAMBIO TAMBORES (JUEGO) | D34: UND | E34: 4 | F34: 180000 | G34: 151.96125 | H34: Costo de mantenimiento mecánico | J34: =+AE34*$E34*$G34*(1+'Sup Generales'!C$10) -> 0 | K34: =+AF34*$E34*$G34*(1+'Sup Generales'!D$10) -> 0 | L34: =+AG34*$E34*$G34*(1+'Sup Generales'!E$10) -> 648.83441 | M34: =+AH34*$E34*$G34*(1+'Sup Generales'!F$10) -> 0 | N34: =+AI34*$E34*$G34*(1+'Sup Generales'!G$10) -> 0 | O34: =+AJ34*$E34*$G34*(1+'Sup Generales'!H$10) -> 657.7745541 | P34: =+AK34*$E34*$G34*(1+'Sup Generales'!I$10) -> 0 | Q34: =+AL34*$E34*$G34*(1+'Sup Generales'!J$10) -> 682.179317 | R34: =+AM34*$E34*$G34*(1+'Sup Generales'!K$10) -> 0 | S34: =+AN34*$E34*$G34*(1+'Sup Generales'!L$10) -> 0 | T34: =+AO34*$E34*$G34*(1+'Sup Generales'!M$10) -> 710.5284983 | U34: =+AP34*$E34*$G34*(1+'Sup Generales'!N$10) -> 0 | V34: =+AQ34*$E34*$G34*(1+'Sup Generales'!O$10) -> 727.5103153 | W34: =+AR34*$E34*$G34*(1+'Sup Generales'!P$10) -> 0 | X34: =+AS34*$E34*$G34*(1+'Sup Generales'!Q$10) -> 0 | Y34: =+AT34*$E34*$G34*(1+'Sup Generales'!R$10) -> 758.2412536 | Z34: =+AU34*$E34*$G34*(1+'Sup Generales'!S$10) -> 0 | AA34: =+AV34*$E34*$G34*(1+'Sup Generales'!T$10) -> 778.426432 | AB34: =+AW34*$E34*$G34*(1+'Sup Generales'!U$10) -> 0 | AC34: =+AX34*$E34*$G34*(1+'Sup Generales'!V$10) -> 0 | AD34: 0.003524908943 | AE34: 0 | AF34: =ROUNDDOWN(K$10/$F34,0)-SUM($AE34:AE34) -> 0 | AG34: =ROUNDDOWN(L$10/$F34,0)-SUM($AE34:AF34) -> 1 | AH34: =ROUNDDOWN(M$10/$F34,0)-SUM($AE34:AG34) -> 0 | AI34: =ROUNDDOWN(N$10/$F34,0)-SUM($AE34:AH34) -> 0 | AJ34: =ROUNDDOWN(O$10/$F34,0)-SUM($AE34:AI34) -> 1 | AK34: =ROUNDDOWN(P$10/$F34,0)-SUM($AE34:AJ34) -> 0 | AL34: =ROUNDDOWN(Q$10/$F34,0)-SUM($AE34:AK34) -> 1 | AM34: =ROUNDDOWN(R$10/$F34,0)-SUM($AE34:AL34) -> 0 | AN34: =ROUNDDOWN(S$10/$F34,0)-SUM($AE34:AM34) -> 0 | AO34: =ROUNDDOWN(T$10/$F34,0)-SUM($AE34:AN34) -> 1 | AP34: =ROUNDDOWN(U$10/$F34,0)-SUM($AE34:AO34) -> 0 | AQ34: =ROUNDDOWN(V$10/$F34,0)-SUM($AE34:AP34) -> 1 | AR34: =ROUNDDOWN(W$10/$F34,0)-SUM($AE34:AQ34) -> 0 | AS34: =ROUNDDOWN(X$10/$F34,0)-SUM($AE34:AR34) -> 0 | AT34: =ROUNDDOWN(Y$10/$F34,0)-SUM($AE34:AS34) -> 1 | AU34: =ROUNDDOWN(Z$10/$F34,0)-SUM($AE34:AT34) -> 0 | AV34: =ROUNDDOWN(AA$10/$F34,0)-SUM($AE34:AU34) -> 1 | AW34: =ROUNDDOWN(AB$10/$F34,0)-SUM($AE34:AV34) -> 0 | AX34: =ROUNDDOWN(AC$10/$F34,0)-SUM($AE34:AW34) -> 0
B35: 23 | C35: RACHES DE FRENO | D35: JGO. | E35: 4 | F35: 180000 | G35: 90.822 | H35: Costo de mantenimiento mecánico | J35: =+AE35*$E35*$G35*(1+'Sup Generales'!C$10) -> 0 | K35: =+AF35*$E35*$G35*(1+'Sup Generales'!D$10) -> 0 | L35: =+AG35*$E35*$G35*(1+'Sup Generales'!E$10) -> 387.7859572 | M35: =+AH35*$E35*$G35*(1+'Sup Generales'!F$10) -> 0 | N35: =+AI35*$E35*$G35*(1+'Sup Generales'!G$10) -> 0 | O35: =+AJ35*$E35*$G35*(1+'Sup Generales'!H$10) -> 393.1291731 | P35: =+AK35*$E35*$G35*(1+'Sup Generales'!I$10) -> 0 | Q35: =+AL35*$E35*$G35*(1+'Sup Generales'!J$10) -> 407.7150584 | R35: =+AM35*$E35*$G35*(1+'Sup Generales'!K$10) -> 0 | S35: =+AN35*$E35*$G35*(1+'Sup Generales'!L$10) -> 0 | T35: =+AO35*$E35*$G35*(1+'Sup Generales'!M$10) -> 424.6583867 | U35: =+AP35*$E35*$G35*(1+'Sup Generales'!N$10) -> 0 | V35: =+AQ35*$E35*$G35*(1+'Sup Generales'!O$10) -> 434.8078333 | W35: =+AR35*$E35*$G35*(1+'Sup Generales'!P$10) -> 0 | X35: =+AS35*$E35*$G35*(1+'Sup Generales'!Q$10) -> 0 | Y35: =+AT35*$E35*$G35*(1+'Sup Generales'!R$10) -> 453.1746556 | Z35: =+AU35*$E35*$G35*(1+'Sup Generales'!S$10) -> 0 | AA35: =+AV35*$E35*$G35*(1+'Sup Generales'!T$10) -> 465.2386408 | AB35: =+AW35*$E35*$G35*(1+'Sup Generales'!U$10) -> 0 | AC35: =+AX35*$E35*$G35*(1+'Sup Generales'!V$10) -> 0 | AD35: 0.002106716548 | AE35: 0 | AF35: =ROUNDDOWN(K$10/$F35,0)-SUM($AE35:AE35) -> 0 | AG35: =ROUNDDOWN(L$10/$F35,0)-SUM($AE35:AF35) -> 1 | AH35: =ROUNDDOWN(M$10/$F35,0)-SUM($AE35:AG35) -> 0 | AI35: =ROUNDDOWN(N$10/$F35,0)-SUM($AE35:AH35) -> 0 | AJ35: =ROUNDDOWN(O$10/$F35,0)-SUM($AE35:AI35) -> 1 | AK35: =ROUNDDOWN(P$10/$F35,0)-SUM($AE35:AJ35) -> 0 | AL35: =ROUNDDOWN(Q$10/$F35,0)-SUM($AE35:AK35) -> 1 | AM35: =ROUNDDOWN(R$10/$F35,0)-SUM($AE35:AL35) -> 0 | AN35: =ROUNDDOWN(S$10/$F35,0)-SUM($AE35:AM35) -> 0 | AO35: =ROUNDDOWN(T$10/$F35,0)-SUM($AE35:AN35) -> 1 | AP35: =ROUNDDOWN(U$10/$F35,0)-SUM($AE35:AO35) -> 0 | AQ35: =ROUNDDOWN(V$10/$F35,0)-SUM($AE35:AP35) -> 1 | AR35: =ROUNDDOWN(W$10/$F35,0)-SUM($AE35:AQ35) -> 0 | AS35: =ROUNDDOWN(X$10/$F35,0)-SUM($AE35:AR35) -> 0 | AT35: =ROUNDDOWN(Y$10/$F35,0)-SUM($AE35:AS35) -> 1 | AU35: =ROUNDDOWN(Z$10/$F35,0)-SUM($AE35:AT35) -> 0 | AV35: =ROUNDDOWN(AA$10/$F35,0)-SUM($AE35:AU35) -> 1 | AW35: =ROUNDDOWN(AB$10/$F35,0)-SUM($AE35:AV35) -> 0 | AX35: =ROUNDDOWN(AC$10/$F35,0)-SUM($AE35:AW35) -> 0
B36: 24 | C36: BATERÍAS | D36: UND | E36: 2 | F36: 60000 | G36: 195.0585714 | H36: =+H37 -> Costo de mantenimiento eléctrico | J36: =+AE36*$E36*$G36*(1+'Sup Generales'!C$10) -> 399.4799543 | K36: =+AF36*$E36*$G36*(1+'Sup Generales'!D$10) -> 405.8716336 | L36: =+AG36*$E36*$G36*(1+'Sup Generales'!E$10) -> 416.424296 | M36: =+AH36*$E36*$G36*(1+'Sup Generales'!F$10) -> 418.223249 | N36: =+AI36*$E36*$G36*(1+'Sup Generales'!G$10) -> 419.3524518 | O36: =+AJ36*$E36*$G36*(1+'Sup Generales'!H$10) -> 844.3242264 | P36: =+AK36*$E36*$G36*(1+'Sup Generales'!I$10) -> 430.3568075 | Q36: =+AL36*$E36*$G36*(1+'Sup Generales'!J$10) -> 437.8251792 | R36: =+AM36*$E36*$G36*(1+'Sup Generales'!K$10) -> 444.200196 | S36: =+AN36*$E36*$G36*(1+'Sup Generales'!L$10) -> 450.1439167 | T36: =+AO36*$E36*$G36*(1+'Sup Generales'!M$10) -> 456.0197874 | U36: =+AP36*$E36*$G36*(1+'Sup Generales'!N$10) -> 922.4687292 | V36: =+AQ36*$E36*$G36*(1+'Sup Generales'!O$10) -> 466.9187796 | W36: =+AR36*$E36*$G36*(1+'Sup Generales'!P$10) -> 473.2349752 | X36: =+AS36*$E36*$G36*(1+'Sup Generales'!Q$10) -> 480.0404829 | Y36: =+AT36*$E36*$G36*(1+'Sup Generales'!R$10) -> 486.6420082 | Z36: =+AU36*$E36*$G36*(1+'Sup Generales'!S$10) -> 493.115214 | AA36: =+AV36*$E36*$G36*(1+'Sup Generales'!T$10) -> 999.1938589 | AB36: =+AW36*$E36*$G36*(1+'Sup Generales'!U$10) -> 506.1490864 | AC36: =+AX36*$E36*$G36*(1+'Sup Generales'!V$10) -> 512.7910696 | AD36: 0.007430315528 | AE36: 1 | AF36: =ROUNDDOWN(K$10/$F36,0)-SUM($AE36:AE36) -> 1 | AG36: =ROUNDDOWN(L$10/$F36,0)-SUM($AE36:AF36) -> 1 | AH36: =ROUNDDOWN(M$10/$F36,0)-SUM($AE36:AG36) -> 1 | AI36: =ROUNDDOWN(N$10/$F36,0)-SUM($AE36:AH36) -> 1 | AJ36: =ROUNDDOWN(O$10/$F36,0)-SUM($AE36:AI36) -> 2 | AK36: =ROUNDDOWN(P$10/$F36,0)-SUM($AE36:AJ36) -> 1 | AL36: =ROUNDDOWN(Q$10/$F36,0)-SUM($AE36:AK36) -> 1 | AM36: =ROUNDDOWN(R$10/$F36,0)-SUM($AE36:AL36) -> 1 | AN36: =ROUNDDOWN(S$10/$F36,0)-SUM($AE36:AM36) -> 1 | AO36: =ROUNDDOWN(T$10/$F36,0)-SUM($AE36:AN36) -> 1 | AP36: =ROUNDDOWN(U$10/$F36,0)-SUM($AE36:AO36) -> 2 | AQ36: =ROUNDDOWN(V$10/$F36,0)-SUM($AE36:AP36) -> 1 | AR36: =ROUNDDOWN(W$10/$F36,0)-SUM($AE36:AQ36) -> 1 | AS36: =ROUNDDOWN(X$10/$F36,0)-SUM($AE36:AR36) -> 1 | AT36: =ROUNDDOWN(Y$10/$F36,0)-SUM($AE36:AS36) -> 1 | AU36: =ROUNDDOWN(Z$10/$F36,0)-SUM($AE36:AT36) -> 1 | AV36: =ROUNDDOWN(AA$10/$F36,0)-SUM($AE36:AU36) -> 2 | AW36: =ROUNDDOWN(AB$10/$F36,0)-SUM($AE36:AV36) -> 1 | AX36: =ROUNDDOWN(AC$10/$F36,0)-SUM($AE36:AW36) -> 1
B37: 25 | C37: SISTEMA ELÉCTRICO | D37: UND | E37: 1 | F37: 5000 | G37: 153.125 | H37: =+'OPEX Mtto'!B9 -> Costo de mantenimiento eléctrico | J37: =+AE37*$E37*$G37*(1+'Sup Generales'!C$10) -> 2195.2 | K37: =+AF37*$E37*$G37*(1+'Sup Generales'!D$10) -> 2230.3232 | L37: =+AG37*$E37*$G37*(1+'Sup Generales'!E$10) -> 2288.311603 | M37: =+AH37*$E37*$G37*(1+'Sup Generales'!F$10) -> 2298.197109 | N37: =+AI37*$E37*$G37*(1+'Sup Generales'!G$10) -> 2304.402242 | O37: =+AJ37*$E37*$G37*(1+'Sup Generales'!H$10) -> 2319.841737 | P37: =+AK37*$E37*$G37*(1+'Sup Generales'!I$10) -> 2364.872764 | Q37: =+AL37*$E37*$G37*(1+'Sup Generales'!J$10) -> 2405.912545 | R37: =+AM37*$E37*$G37*(1+'Sup Generales'!K$10) -> 2440.944182 | S37: =+AN37*$E37*$G37*(1+'Sup Generales'!L$10) -> 2473.605785 | T37: =+AO37*$E37*$G37*(1+'Sup Generales'!M$10) -> 2505.894542 | U37: =+AP37*$E37*$G37*(1+'Sup Generales'!N$10) -> 2534.549397 | V37: =+AQ37*$E37*$G37*(1+'Sup Generales'!O$10) -> 2749.056512 | W37: =+AR37*$E37*$G37*(1+'Sup Generales'!P$10) -> 2600.494484 | X37: =+AS37*$E37*$G37*(1+'Sup Generales'!Q$10) -> 2637.891731 | Y37: =+AT37*$E37*$G37*(1+'Sup Generales'!R$10) -> 2674.168065 | Z37: =+AU37*$E37*$G37*(1+'Sup Generales'!S$10) -> 2709.739265 | AA37: =+AV37*$E37*$G37*(1+'Sup Generales'!T$10) -> 2745.357227 | AB37: =+AW37*$E37*$G37*(1+'Sup Generales'!U$10) -> 2781.362275 | AC37: =+AX37*$E37*$G37*(1+'Sup Generales'!V$10) -> 2817.860931 | AD37: 0.03556372013 | AE37: 14 | AF37: =ROUNDDOWN(K$10/$F37,0)-SUM($AE37:AE37) -> 14 | AG37: =ROUNDDOWN(L$10/$F37,0)-SUM($AE37:AF37) -> 14 | AH37: =ROUNDDOWN(M$10/$F37,0)-SUM($AE37:AG37) -> 14 | AI37: =ROUNDDOWN(N$10/$F37,0)-SUM($AE37:AH37) -> 14 | AJ37: =ROUNDDOWN(O$10/$F37,0)-SUM($AE37:AI37) -> 14 | AK37: =ROUNDDOWN(P$10/$F37,0)-SUM($AE37:AJ37) -> 14 | AL37: =ROUNDDOWN(Q$10/$F37,0)-SUM($AE37:AK37) -> 14 | AM37: =ROUNDDOWN(R$10/$F37,0)-SUM($AE37:AL37) -> 14 | AN37: =ROUNDDOWN(S$10/$F37,0)-SUM($AE37:AM37) -> 14 | AO37: =ROUNDDOWN(T$10/$F37,0)-SUM($AE37:AN37) -> 14 | AP37: =ROUNDDOWN(U$10/$F37,0)-SUM($AE37:AO37) -> 14 | AQ37: =ROUNDDOWN(V$10/$F37,0)-SUM($AE37:AP37) -> 15 | AR37: =ROUNDDOWN(W$10/$F37,0)-SUM($AE37:AQ37) -> 14 | AS37: =ROUNDDOWN(X$10/$F37,0)-SUM($AE37:AR37) -> 14 | AT37: =ROUNDDOWN(Y$10/$F37,0)-SUM($AE37:AS37) -> 14 | AU37: =ROUNDDOWN(Z$10/$F37,0)-SUM($AE37:AT37) -> 14 | AV37: =ROUNDDOWN(AA$10/$F37,0)-SUM($AE37:AU37) -> 14 | AW37: =ROUNDDOWN(AB$10/$F37,0)-SUM($AE37:AV37) -> 14 | AX37: =ROUNDDOWN(AC$10/$F37,0)-SUM($AE37:AW37) -> 14
B38: 26 | C38: AMORTIGUADORES | D38: UND | E38: 4 | F38: 60000 | G38: 96.795 | H38: =+H34 -> Costo de mantenimiento mecánico | J38: =+AE38*$E38*$G38*(1+'Sup Generales'!C$10) -> 396.47232 | K38: =+AF38*$E38*$G38*(1+'Sup Generales'!D$10) -> 402.8158771 | L38: =+AG38*$E38*$G38*(1+'Sup Generales'!E$10) -> 413.2890899 | M38: =+AH38*$E38*$G38*(1+'Sup Generales'!F$10) -> 415.0744988 | N38: =+AI38*$E38*$G38*(1+'Sup Generales'!G$10) -> 416.1951999 | O38: =+AJ38*$E38*$G38*(1+'Sup Generales'!H$10) -> 837.9674156 | P38: =+AK38*$E38*$G38*(1+'Sup Generales'!I$10) -> 427.1167053 | Q38: =+AL38*$E38*$G38*(1+'Sup Generales'!J$10) -> 434.5288485 | R38: =+AM38*$E38*$G38*(1+'Sup Generales'!K$10) -> 440.8558686 | S38: =+AN38*$E38*$G38*(1+'Sup Generales'!L$10) -> 446.7548398 | T38: =+AO38*$E38*$G38*(1+'Sup Generales'!M$10) -> 452.5864718 | U38: =+AP38*$E38*$G38*(1+'Sup Generales'!N$10) -> 915.5235783 | V38: =+AQ38*$E38*$G38*(1+'Sup Generales'!O$10) -> 463.4034069 | W38: =+AR38*$E38*$G38*(1+'Sup Generales'!P$10) -> 469.6720487 | X38: =+AS38*$E38*$G38*(1+'Sup Generales'!Q$10) -> 476.4263185 | Y38: =+AT38*$E38*$G38*(1+'Sup Generales'!R$10) -> 482.9781418 | Z38: =+AU38*$E38*$G38*(1+'Sup Generales'!S$10) -> 489.4026116 | AA38: =+AV38*$E38*$G38*(1+'Sup Generales'!T$10) -> 991.6710541 | AB38: =+AW38*$E38*$G38*(1+'Sup Generales'!U$10) -> 502.3383536 | AC38: =+AX38*$E38*$G38*(1+'Sup Generales'!V$10) -> 508.9303302 | AD38: 0.007374373618 | AE38: 1 | AF38: =ROUNDDOWN(K$10/$F38,0)-SUM($AE38:AE38) -> 1 | AG38: =ROUNDDOWN(L$10/$F38,0)-SUM($AE38:AF38) -> 1 | AH38: =ROUNDDOWN(M$10/$F38,0)-SUM($AE38:AG38) -> 1 | AI38: =ROUNDDOWN(N$10/$F38,0)-SUM($AE38:AH38) -> 1 | AJ38: =ROUNDDOWN(O$10/$F38,0)-SUM($AE38:AI38) -> 2 | AK38: =ROUNDDOWN(P$10/$F38,0)-SUM($AE38:AJ38) -> 1 | AL38: =ROUNDDOWN(Q$10/$F38,0)-SUM($AE38:AK38) -> 1 | AM38: =ROUNDDOWN(R$10/$F38,0)-SUM($AE38:AL38) -> 1 | AN38: =ROUNDDOWN(S$10/$F38,0)-SUM($AE38:AM38) -> 1 | AO38: =ROUNDDOWN(T$10/$F38,0)-SUM($AE38:AN38) -> 1 | AP38: =ROUNDDOWN(U$10/$F38,0)-SUM($AE38:AO38) -> 2 | AQ38: =ROUNDDOWN(V$10/$F38,0)-SUM($AE38:AP38) -> 1 | AR38: =ROUNDDOWN(W$10/$F38,0)-SUM($AE38:AQ38) -> 1 | AS38: =ROUNDDOWN(X$10/$F38,0)-SUM($AE38:AR38) -> 1 | AT38: =ROUNDDOWN(Y$10/$F38,0)-SUM($AE38:AS38) -> 1 | AU38: =ROUNDDOWN(Z$10/$F38,0)-SUM($AE38:AT38) -> 1 | AV38: =ROUNDDOWN(AA$10/$F38,0)-SUM($AE38:AU38) -> 2 | AW38: =ROUNDDOWN(AB$10/$F38,0)-SUM($AE38:AV38) -> 1 | AX38: =ROUNDDOWN(AC$10/$F38,0)-SUM($AE38:AW38) -> 1
B39: 27 | C39: ROTULAS DE DIRECCIÓN | D39: JGO. | E39: 4 | F39: 60000 | G39: 49.8475 | H39: =+H38 -> Costo de mantenimiento mecánico | J39: =+AE39*$E39*$G39*(1+'Sup Generales'!C$10) -> 204.17536 | K39: =+AF39*$E39*$G39*(1+'Sup Generales'!D$10) -> 207.4421658 | L39: =+AG39*$E39*$G39*(1+'Sup Generales'!E$10) -> 212.8356621 | M39: =+AH39*$E39*$G39*(1+'Sup Generales'!F$10) -> 213.7551121 | N39: =+AI39*$E39*$G39*(1+'Sup Generales'!G$10) -> 214.3322509 | O39: =+AJ39*$E39*$G39*(1+'Sup Generales'!H$10) -> 431.536554 | P39: =+AK39*$E39*$G39*(1+'Sup Generales'!I$10) -> 219.956609 | Q39: =+AL39*$E39*$G39*(1+'Sup Generales'!J$10) -> 223.7737154 | R39: =+AM39*$E39*$G39*(1+'Sup Generales'!K$10) -> 227.0320049 | S39: =+AN39*$E39*$G39*(1+'Sup Generales'!L$10) -> 230.0698577 | T39: =+AO39*$E39*$G39*(1+'Sup Generales'!M$10) -> 233.0730322 | U39: =+AP39*$E39*$G39*(1+'Sup Generales'!N$10) -> 471.4764355 | V39: =+AQ39*$E39*$G39*(1+'Sup Generales'!O$10) -> 238.6435387 | W39: =+AR39*$E39*$G39*(1+'Sup Generales'!P$10) -> 241.8717645 | X39: =+AS39*$E39*$G39*(1+'Sup Generales'!Q$10) -> 245.3500792 | Y39: =+AT39*$E39*$G39*(1+'Sup Generales'!R$10) -> 248.7241378 | Z39: =+AU39*$E39*$G39*(1+'Sup Generales'!S$10) -> 252.032612 | AA39: =+AV39*$E39*$G39*(1+'Sup Generales'!T$10) -> 510.6908711 | AB39: =+AW39*$E39*$G39*(1+'Sup Generales'!U$10) -> 258.6942619 | AC39: =+AX39*$E39*$G39*(1+'Sup Generales'!V$10) -> 262.0889987 | AD39: 0.003797655756 | AE39: 1 | AF39: =ROUNDDOWN(K$10/$F39,0)-SUM($AE39:AE39) -> 1 | AG39: =ROUNDDOWN(L$10/$F39,0)-SUM($AE39:AF39) -> 1 | AH39: =ROUNDDOWN(M$10/$F39,0)-SUM($AE39:AG39) -> 1 | AI39: =ROUNDDOWN(N$10/$F39,0)-SUM($AE39:AH39) -> 1 | AJ39: =ROUNDDOWN(O$10/$F39,0)-SUM($AE39:AI39) -> 2 | AK39: =ROUNDDOWN(P$10/$F39,0)-SUM($AE39:AJ39) -> 1 | AL39: =ROUNDDOWN(Q$10/$F39,0)-SUM($AE39:AK39) -> 1 | AM39: =ROUNDDOWN(R$10/$F39,0)-SUM($AE39:AL39) -> 1 | AN39: =ROUNDDOWN(S$10/$F39,0)-SUM($AE39:AM39) -> 1 | AO39: =ROUNDDOWN(T$10/$F39,0)-SUM($AE39:AN39) -> 1 | AP39: =ROUNDDOWN(U$10/$F39,0)-SUM($AE39:AO39) -> 2 | AQ39: =ROUNDDOWN(V$10/$F39,0)-SUM($AE39:AP39) -> 1 | AR39: =ROUNDDOWN(W$10/$F39,0)-SUM($AE39:AQ39) -> 1 | AS39: =ROUNDDOWN(X$10/$F39,0)-SUM($AE39:AR39) -> 1 | AT39: =ROUNDDOWN(Y$10/$F39,0)-SUM($AE39:AS39) -> 1 | AU39: =ROUNDDOWN(Z$10/$F39,0)-SUM($AE39:AT39) -> 1 | AV39: =ROUNDDOWN(AA$10/$F39,0)-SUM($AE39:AU39) -> 2 | AW39: =ROUNDDOWN(AB$10/$F39,0)-SUM($AE39:AV39) -> 1 | AX39: =ROUNDDOWN(AC$10/$F39,0)-SUM($AE39:AW39) -> 1
B40: 28 | C40: PINES Y BOCINES DE DIRECCIÓN | D40: JGO. | E40: 1 | F40: 90000 | G40: 127.78 | H40: =+H39 -> Costo de mantenimiento mecánico | J40: =+AE40*$E40*$G40*(1+'Sup Generales'!C$10) -> 0 | K40: =+AF40*$E40*$G40*(1+'Sup Generales'!D$10) -> 132.9402675 | L40: =+AG40*$E40*$G40*(1+'Sup Generales'!E$10) -> 136.3967145 | M40: =+AH40*$E40*$G40*(1+'Sup Generales'!F$10) -> 136.9859483 | N40: =+AI40*$E40*$G40*(1+'Sup Generales'!G$10) -> 0 | O40: =+AJ40*$E40*$G40*(1+'Sup Generales'!H$10) -> 138.2760943 | P40: =+AK40*$E40*$G40*(1+'Sup Generales'!I$10) -> 140.9602061 | Q40: =+AL40*$E40*$G40*(1+'Sup Generales'!J$10) -> 143.4064163 | R40: =+AM40*$E40*$G40*(1+'Sup Generales'!K$10) -> 145.4945062 | S40: =+AN40*$E40*$G40*(1+'Sup Generales'!L$10) -> 0 | T40: =+AO40*$E40*$G40*(1+'Sup Generales'!M$10) -> 149.3659264 | U40: =+AP40*$E40*$G40*(1+'Sup Generales'!N$10) -> 151.0739228 | V40: =+AQ40*$E40*$G40*(1+'Sup Generales'!O$10) -> 152.9358111 | W40: =+AR40*$E40*$G40*(1+'Sup Generales'!P$10) -> 0 | X40: =+AS40*$E40*$G40*(1+'Sup Generales'!Q$10) -> 157.2337285 | Y40: =+AT40*$E40*$G40*(1+'Sup Generales'!R$10) -> 159.3960095 | Z40: =+AU40*$E40*$G40*(1+'Sup Generales'!S$10) -> 161.5162604 | AA40: =+AV40*$E40*$G40*(1+'Sup Generales'!T$10) -> 163.6392986 | AB40: =+AW40*$E40*$G40*(1+'Sup Generales'!U$10) -> 0 | AC40: =+AX40*$E40*$G40*(1+'Sup Generales'!V$10) -> 167.9609422 | AD40: 0.001589056368 | AE40: 0 | AF40: =ROUNDDOWN(K$10/$F40,0)-SUM($AE40:AE40) -> 1 | AG40: =ROUNDDOWN(L$10/$F40,0)-SUM($AE40:AF40) -> 1 | AH40: =ROUNDDOWN(M$10/$F40,0)-SUM($AE40:AG40) -> 1 | AI40: =ROUNDDOWN(N$10/$F40,0)-SUM($AE40:AH40) -> 0 | AJ40: =ROUNDDOWN(O$10/$F40,0)-SUM($AE40:AI40) -> 1 | AK40: =ROUNDDOWN(P$10/$F40,0)-SUM($AE40:AJ40) -> 1 | AL40: =ROUNDDOWN(Q$10/$F40,0)-SUM($AE40:AK40) -> 1 | AM40: =ROUNDDOWN(R$10/$F40,0)-SUM($AE40:AL40) -> 1 | AN40: =ROUNDDOWN(S$10/$F40,0)-SUM($AE40:AM40) -> 0 | AO40: =ROUNDDOWN(T$10/$F40,0)-SUM($AE40:AN40) -> 1 | AP40: =ROUNDDOWN(U$10/$F40,0)-SUM($AE40:AO40) -> 1 | AQ40: =ROUNDDOWN(V$10/$F40,0)-SUM($AE40:AP40) -> 1 | AR40: =ROUNDDOWN(W$10/$F40,0)-SUM($AE40:AQ40) -> 0 | AS40: =ROUNDDOWN(X$10/$F40,0)-SUM($AE40:AR40) -> 1 | AT40: =ROUNDDOWN(Y$10/$F40,0)-SUM($AE40:AS40) -> 1 | AU40: =ROUNDDOWN(Z$10/$F40,0)-SUM($AE40:AT40) -> 1 | AV40: =ROUNDDOWN(AA$10/$F40,0)-SUM($AE40:AU40) -> 1 | AW40: =ROUNDDOWN(AB$10/$F40,0)-SUM($AE40:AV40) -> 0 | AX40: =ROUNDDOWN(AC$10/$F40,0)-SUM($AE40:AW40) -> 1
B41: 29 | C41: MANTENIMIENTO DE BALLESTAS | D41: UND | E41: 1 | F41: 30000 | G41: 67 | H41: =+H40 -> Costo de mantenimiento mecánico | J41: =+AE41*$E41*$G41*(1+'Sup Generales'!C$10) -> 137.216 | K41: =+AF41*$E41*$G41*(1+'Sup Generales'!D$10) -> 139.411456 | L41: =+AG41*$E41*$G41*(1+'Sup Generales'!E$10) -> 214.5542308 | M41: =+AH41*$E41*$G41*(1+'Sup Generales'!F$10) -> 143.65407 | N41: =+AI41*$E41*$G41*(1+'Sup Generales'!G$10) -> 144.041936 | O41: =+AJ41*$E41*$G41*(1+'Sup Generales'!H$10) -> 217.5105255 | P41: =+AK41*$E41*$G41*(1+'Sup Generales'!I$10) -> 147.8217845 | Q41: =+AL41*$E41*$G41*(1+'Sup Generales'!J$10) -> 150.3870698 | R41: =+AM41*$E41*$G41*(1+'Sup Generales'!K$10) -> 228.8652038 | S41: =+AN41*$E41*$G41*(1+'Sup Generales'!L$10) -> 154.6183908 | T41: =+AO41*$E41*$G41*(1+'Sup Generales'!M$10) -> 156.6366734 | U41: =+AP41*$E41*$G41*(1+'Sup Generales'!N$10) -> 237.641716 | V41: =+AQ41*$E41*$G41*(1+'Sup Generales'!O$10) -> 160.3803309 | W41: =+AR41*$E41*$G41*(1+'Sup Generales'!P$10) -> 162.5498593 | X41: =+AS41*$E41*$G41*(1+'Sup Generales'!Q$10) -> 247.3311897 | Y41: =+AT41*$E41*$G41*(1+'Sup Generales'!R$10) -> 167.1549951 | Z41: =+AU41*$E41*$G41*(1+'Sup Generales'!S$10) -> 169.3784544 | AA41: =+AV41*$E41*$G41*(1+'Sup Generales'!T$10) -> 257.4072549 | AB41: =+AW41*$E41*$G41*(1+'Sup Generales'!U$10) -> 173.8554145 | AC41: =+AX41*$E41*$G41*(1+'Sup Generales'!V$10) -> 176.1368465 | AD41: 0.002547050963 | AE41: 2 | AF41: =ROUNDDOWN(K$10/$F41,0)-SUM($AE41:AE41) -> 2 | AG41: =ROUNDDOWN(L$10/$F41,0)-SUM($AE41:AF41) -> 3 | AH41: =ROUNDDOWN(M$10/$F41,0)-SUM($AE41:AG41) -> 2 | AI41: =ROUNDDOWN(N$10/$F41,0)-SUM($AE41:AH41) -> 2 | AJ41: =ROUNDDOWN(O$10/$F41,0)-SUM($AE41:AI41) -> 3 | AK41: =ROUNDDOWN(P$10/$F41,0)-SUM($AE41:AJ41) -> 2 | AL41: =ROUNDDOWN(Q$10/$F41,0)-SUM($AE41:AK41) -> 2 | AM41: =ROUNDDOWN(R$10/$F41,0)-SUM($AE41:AL41) -> 3 | AN41: =ROUNDDOWN(S$10/$F41,0)-SUM($AE41:AM41) -> 2 | AO41: =ROUNDDOWN(T$10/$F41,0)-SUM($AE41:AN41) -> 2 | AP41: =ROUNDDOWN(U$10/$F41,0)-SUM($AE41:AO41) -> 3 | AQ41: =ROUNDDOWN(V$10/$F41,0)-SUM($AE41:AP41) -> 2 | AR41: =ROUNDDOWN(W$10/$F41,0)-SUM($AE41:AQ41) -> 2 | AS41: =ROUNDDOWN(X$10/$F41,0)-SUM($AE41:AR41) -> 3 | AT41: =ROUNDDOWN(Y$10/$F41,0)-SUM($AE41:AS41) -> 2 | AU41: =ROUNDDOWN(Z$10/$F41,0)-SUM($AE41:AT41) -> 2 | AV41: =ROUNDDOWN(AA$10/$F41,0)-SUM($AE41:AU41) -> 3 | AW41: =ROUNDDOWN(AB$10/$F41,0)-SUM($AE41:AV41) -> 2 | AX41: =ROUNDDOWN(AC$10/$F41,0)-SUM($AE41:AW41) -> 2
B42: 30 | C42: LAVADO MOTOR/ CHASIS | D42: UND | E42: 1 | F42: 15000 | G42: 25 | H42: =+H41 -> Costo de mantenimiento mecánico | J42: =+AE42*$E42*$G42*(1+'Sup Generales'!C$10) -> 102.4 | K42: =+AF42*$E42*$G42*(1+'Sup Generales'!D$10) -> 130.048 | L42: =+AG42*$E42*$G42*(1+'Sup Generales'!E$10) -> 133.429248 | M42: =+AH42*$E42*$G42*(1+'Sup Generales'!F$10) -> 107.2045299 | N42: =+AI42*$E42*$G42*(1+'Sup Generales'!G$10) -> 134.3674776 | O42: =+AJ42*$E42*$G42*(1+'Sup Generales'!H$10) -> 135.2677397 | P42: =+AK42*$E42*$G42*(1+'Sup Generales'!I$10) -> 110.3147645 | Q42: =+AL42*$E42*$G42*(1+'Sup Generales'!J$10) -> 140.2864458 | R42: =+AM42*$E42*$G42*(1+'Sup Generales'!K$10) -> 142.3291068 | S42: =+AN42*$E42*$G42*(1+'Sup Generales'!L$10) -> 115.3868588 | T42: =+AO42*$E42*$G42*(1+'Sup Generales'!M$10) -> 146.1162998 | U42: =+AP42*$E42*$G42*(1+'Sup Generales'!N$10) -> 147.7871368 | V42: =+AQ42*$E42*$G42*(1+'Sup Generales'!O$10) -> 149.6085176 | W42: =+AR42*$E42*$G42*(1+'Sup Generales'!P$10) -> 121.3058651 | X42: =+AS42*$E42*$G42*(1+'Sup Generales'!Q$10) -> 153.8129289 | Y42: =+AT42*$E42*$G42*(1+'Sup Generales'!R$10) -> 155.9281671 | Z42: =+AU42*$E42*$G42*(1+'Sup Generales'!S$10) -> 126.4018316 | AA42: =+AV42*$E42*$G42*(1+'Sup Generales'!T$10) -> 160.0791386 | AB42: =+AW42*$E42*$G42*(1+'Sup Generales'!U$10) -> 162.1785583 | AC42: =+AX42*$E42*$G42*(1+'Sup Generales'!V$10) -> 131.4454079 | AD42: 0.001921496764 | AE42: 4 | AF42: =ROUNDDOWN(K$10/$F42,0)-SUM($AE42:AE42) -> 5 | AG42: =ROUNDDOWN(L$10/$F42,0)-SUM($AE42:AF42) -> 5 | AH42: =ROUNDDOWN(M$10/$F42,0)-SUM($AE42:AG42) -> 4 | AI42: =ROUNDDOWN(N$10/$F42,0)-SUM($AE42:AH42) -> 5 | AJ42: =ROUNDDOWN(O$10/$F42,0)-SUM($AE42:AI42) -> 5 | AK42: =ROUNDDOWN(P$10/$F42,0)-SUM($AE42:AJ42) -> 4 | AL42: =ROUNDDOWN(Q$10/$F42,0)-SUM($AE42:AK42) -> 5 | AM42: =ROUNDDOWN(R$10/$F42,0)-SUM($AE42:AL42) -> 5 | AN42: =ROUNDDOWN(S$10/$F42,0)-SUM($AE42:AM42) -> 4 | AO42: =ROUNDDOWN(T$10/$F42,0)-SUM($AE42:AN42) -> 5 | AP42: =ROUNDDOWN(U$10/$F42,0)-SUM($AE42:AO42) -> 5 | AQ42: =ROUNDDOWN(V$10/$F42,0)-SUM($AE42:AP42) -> 5 | AR42: =ROUNDDOWN(W$10/$F42,0)-SUM($AE42:AQ42) -> 4 | AS42: =ROUNDDOWN(X$10/$F42,0)-SUM($AE42:AR42) -> 5 | AT42: =ROUNDDOWN(Y$10/$F42,0)-SUM($AE42:AS42) -> 5 | AU42: =ROUNDDOWN(Z$10/$F42,0)-SUM($AE42:AT42) -> 4 | AV42: =ROUNDDOWN(AA$10/$F42,0)-SUM($AE42:AU42) -> 5 | AW42: =ROUNDDOWN(AB$10/$F42,0)-SUM($AE42:AV42) -> 5 | AX42: =ROUNDDOWN(AC$10/$F42,0)-SUM($AE42:AW42) -> 4
B43: 31 | C43: ENGRASADO PUNTAS EJES | D43: UND | E43: 4 | F43: 30000 | G43: 13.33333333 | H43: =+H42 -> Costo de mantenimiento mecánico | J43: =+AE43*$E43*$G43*(1+'Sup Generales'!C$10) -> 109.2266667 | K43: =+AF43*$E43*$G43*(1+'Sup Generales'!D$10) -> 110.9742933 | L43: =+AG43*$E43*$G43*(1+'Sup Generales'!E$10) -> 170.7894374 | M43: =+AH43*$E43*$G43*(1+'Sup Generales'!F$10) -> 114.3514985 | N43: =+AI43*$E43*$G43*(1+'Sup Generales'!G$10) -> 114.6602476 | O43: =+AJ43*$E43*$G43*(1+'Sup Generales'!H$10) -> 173.1427069 | P43: =+AK43*$E43*$G43*(1+'Sup Generales'!I$10) -> 117.6690822 | Q43: =+AL43*$E43*$G43*(1+'Sup Generales'!J$10) -> 119.7111004 | R43: =+AM43*$E43*$G43*(1+'Sup Generales'!K$10) -> 182.1812567 | S43: =+AN43*$E43*$G43*(1+'Sup Generales'!L$10) -> 123.079316 | T43: =+AO43*$E43*$G43*(1+'Sup Generales'!M$10) -> 124.6859092 | U43: =+AP43*$E43*$G43*(1+'Sup Generales'!N$10) -> 189.1675352 | V43: =+AQ43*$E43*$G43*(1+'Sup Generales'!O$10) -> 127.6659351 | W43: =+AR43*$E43*$G43*(1+'Sup Generales'!P$10) -> 129.3929228 | X43: =+AS43*$E43*$G43*(1+'Sup Generales'!Q$10) -> 196.880549 | Y43: =+AT43*$E43*$G43*(1+'Sup Generales'!R$10) -> 133.0587026 | Z43: =+AU43*$E43*$G43*(1+'Sup Generales'!S$10) -> 134.8286204 | AA43: =+AV43*$E43*$G43*(1+'Sup Generales'!T$10) -> 204.9012974 | AB43: =+AW43*$E43*$G43*(1+'Sup Generales'!U$10) -> 138.3923697 | AC43: =+AX43*$E43*$G43*(1+'Sup Generales'!V$10) -> 140.2084351 | AD43: 0.002027503254 | AE43: 2 | AF43: =ROUNDDOWN(K$10/$F43,0)-SUM($AE43:AE43) -> 2 | AG43: =ROUNDDOWN(L$10/$F43,0)-SUM($AE43:AF43) -> 3 | AH43: =ROUNDDOWN(M$10/$F43,0)-SUM($AE43:AG43) -> 2 | AI43: =ROUNDDOWN(N$10/$F43,0)-SUM($AE43:AH43) -> 2 | AJ43: =ROUNDDOWN(O$10/$F43,0)-SUM($AE43:AI43) -> 3 | AK43: =ROUNDDOWN(P$10/$F43,0)-SUM($AE43:AJ43) -> 2 | AL43: =ROUNDDOWN(Q$10/$F43,0)-SUM($AE43:AK43) -> 2 | AM43: =ROUNDDOWN(R$10/$F43,0)-SUM($AE43:AL43) -> 3 | AN43: =ROUNDDOWN(S$10/$F43,0)-SUM($AE43:AM43) -> 2 | AO43: =ROUNDDOWN(T$10/$F43,0)-SUM($AE43:AN43) -> 2 | AP43: =ROUNDDOWN(U$10/$F43,0)-SUM($AE43:AO43) -> 3 | AQ43: =ROUNDDOWN(V$10/$F43,0)-SUM($AE43:AP43) -> 2 | AR43: =ROUNDDOWN(W$10/$F43,0)-SUM($AE43:AQ43) -> 2 | AS43: =ROUNDDOWN(X$10/$F43,0)-SUM($AE43:AR43) -> 3 | AT43: =ROUNDDOWN(Y$10/$F43,0)-SUM($AE43:AS43) -> 2 | AU43: =ROUNDDOWN(Z$10/$F43,0)-SUM($AE43:AT43) -> 2 | AV43: =ROUNDDOWN(AA$10/$F43,0)-SUM($AE43:AU43) -> 3 | AW43: =ROUNDDOWN(AB$10/$F43,0)-SUM($AE43:AV43) -> 2 | AX43: =ROUNDDOWN(AC$10/$F43,0)-SUM($AE43:AW43) -> 2
B44: 32 | C44: CAMBIO DE RULIMANES PUNTA DE EJE | D44: UND | E44: 8 | F44: 180000 | G44: 42.664 | H44: =+H41 -> Costo de mantenimiento mecánico | J44: =+AE44*$E44*$G44*(1+'Sup Generales'!C$10) -> 0 | K44: =+AF44*$E44*$G44*(1+'Sup Generales'!D$10) -> 0 | L44: =+AG44*$E44*$G44*(1+'Sup Generales'!E$10) -> 364.3280279 | M44: =+AH44*$E44*$G44*(1+'Sup Generales'!F$10) -> 0 | N44: =+AI44*$E44*$G44*(1+'Sup Generales'!G$10) -> 0 | O44: =+AJ44*$E44*$G44*(1+'Sup Generales'!H$10) -> 369.3480223 | P44: =+AK44*$E44*$G44*(1+'Sup Generales'!I$10) -> 0 | Q44: =+AL44*$E44*$G44*(1+'Sup Generales'!J$10) -> 383.051579 | R44: =+AM44*$E44*$G44*(1+'Sup Generales'!K$10) -> 0 | S44: =+AN44*$E44*$G44*(1+'Sup Generales'!L$10) -> 0 | T44: =+AO44*$E44*$G44*(1+'Sup Generales'!M$10) -> 398.9699723 | U44: =+AP44*$E44*$G44*(1+'Sup Generales'!N$10) -> 0 | V44: =+AQ44*$E44*$G44*(1+'Sup Generales'!O$10) -> 408.505459 | W44: =+AR44*$E44*$G44*(1+'Sup Generales'!P$10) -> 0 | X44: =+AS44*$E44*$G44*(1+'Sup Generales'!Q$10) -> 0 | Y44: =+AT44*$E44*$G44*(1+'Sup Generales'!R$10) -> 425.7612364 | Z44: =+AU44*$E44*$G44*(1+'Sup Generales'!S$10) -> 0 | AA44: =+AV44*$E44*$G44*(1+'Sup Generales'!T$10) -> 437.0954476 | AB44: =+AW44*$E44*$G44*(1+'Sup Generales'!U$10) -> 0 | AC44: =+AX44*$E44*$G44*(1+'Sup Generales'!V$10) -> 0 | AD44: 0.001979277153 | AE44: 0 | AF44: =ROUNDDOWN(K$10/$F44,0)-SUM($AE44:AE44) -> 0 | AG44: =ROUNDDOWN(L$10/$F44,0)-SUM($AE44:AF44) -> 1 | AH44: =ROUNDDOWN(M$10/$F44,0)-SUM($AE44:AG44) -> 0 | AI44: =ROUNDDOWN(N$10/$F44,0)-SUM($AE44:AH44) -> 0 | AJ44: =ROUNDDOWN(O$10/$F44,0)-SUM($AE44:AI44) -> 1 | AK44: =ROUNDDOWN(P$10/$F44,0)-SUM($AE44:AJ44) -> 0 | AL44: =ROUNDDOWN(Q$10/$F44,0)-SUM($AE44:AK44) -> 1 | AM44: =ROUNDDOWN(R$10/$F44,0)-SUM($AE44:AL44) -> 0 | AN44: =ROUNDDOWN(S$10/$F44,0)-SUM($AE44:AM44) -> 0 | AO44: =ROUNDDOWN(T$10/$F44,0)-SUM($AE44:AN44) -> 1 | AP44: =ROUNDDOWN(U$10/$F44,0)-SUM($AE44:AO44) -> 0 | AQ44: =ROUNDDOWN(V$10/$F44,0)-SUM($AE44:AP44) -> 1 | AR44: =ROUNDDOWN(W$10/$F44,0)-SUM($AE44:AQ44) -> 0 | AS44: =ROUNDDOWN(X$10/$F44,0)-SUM($AE44:AR44) -> 0 | AT44: =ROUNDDOWN(Y$10/$F44,0)-SUM($AE44:AS44) -> 1 | AU44: =ROUNDDOWN(Z$10/$F44,0)-SUM($AE44:AT44) -> 0 | AV44: =ROUNDDOWN(AA$10/$F44,0)-SUM($AE44:AU44) -> 1 | AW44: =ROUNDDOWN(AB$10/$F44,0)-SUM($AE44:AV44) -> 0 | AX44: =ROUNDDOWN(AC$10/$F44,0)-SUM($AE44:AW44) -> 0
B45: 33 | C45: MANTENIMINETO DE CARROCERÍA | D45: UND | E45: 1 | F45: 30000 | G45: 325.7142857 | H45: =+'OPEX Mtto'!B8 -> Carrocería | J45: =+AE45*$E45*$G45*(1+'Sup Generales'!C$10) -> 667.0628571 | K45: =+AF45*$E45*$G45*(1+'Sup Generales'!D$10) -> 677.7358629 | L45: =+AG45*$E45*$G45*(1+'Sup Generales'!E$10) -> 1043.035493 | M45: =+AH45*$E45*$G45*(1+'Sup Generales'!F$10) -> 698.3609375 | N45: =+AI45*$E45*$G45*(1+'Sup Generales'!G$10) -> 700.246512 | O45: =+AJ45*$E45*$G45*(1+'Sup Generales'!H$10) -> 1057.407246 | P45: =+AK45*$E45*$G45*(1+'Sup Generales'!I$10) -> 718.6218946 | Q45: =+AL45*$E45*$G45*(1+'Sup Generales'!J$10) -> 731.0927916 | R45: =+AM45*$E45*$G45*(1+'Sup Generales'!K$10) -> 1112.606961 | S45: =+AN45*$E45*$G45*(1+'Sup Generales'!L$10) -> 751.6629658 | T45: =+AO45*$E45*$G45*(1+'Sup Generales'!M$10) -> 761.4746598 | U45: =+AP45*$E45*$G45*(1+'Sup Generales'!N$10) -> 1155.273161 | V45: =+AQ45*$E45*$G45*(1+'Sup Generales'!O$10) -> 779.6741034 | W45: =+AR45*$E45*$G45*(1+'Sup Generales'!P$10) -> 790.2210644 | X45: =+AS45*$E45*$G45*(1+'Sup Generales'!Q$10) -> 1202.377639 | Y45: =+AT45*$E45*$G45*(1+'Sup Generales'!R$10) -> 812.6085049 | Z45: =+AU45*$E45*$G45*(1+'Sup Generales'!S$10) -> 823.4176459 | AA45: =+AV45*$E45*$G45*(1+'Sup Generales'!T$10) -> 1251.361495 | AB45: =+AW45*$E45*$G45*(1+'Sup Generales'!U$10) -> 845.1819724 | AC45: =+AX45*$E45*$G45*(1+'Sup Generales'!V$10) -> 856.2729426 | AD45: 0.01238225202 | AE45: 2 | AF45: =ROUNDDOWN(K$10/$F45,0)-SUM($AE45:AE45) -> 2 | AG45: =ROUNDDOWN(L$10/$F45,0)-SUM($AE45:AF45) -> 3 | AH45: =ROUNDDOWN(M$10/$F45,0)-SUM($AE45:AG45) -> 2 | AI45: =ROUNDDOWN(N$10/$F45,0)-SUM($AE45:AH45) -> 2 | AJ45: =ROUNDDOWN(O$10/$F45,0)-SUM($AE45:AI45) -> 3 | AK45: =ROUNDDOWN(P$10/$F45,0)-SUM($AE45:AJ45) -> 2 | AL45: =ROUNDDOWN(Q$10/$F45,0)-SUM($AE45:AK45) -> 2 | AM45: =ROUNDDOWN(R$10/$F45,0)-SUM($AE45:AL45) -> 3 | AN45: =ROUNDDOWN(S$10/$F45,0)-SUM($AE45:AM45) -> 2 | AO45: =ROUNDDOWN(T$10/$F45,0)-SUM($AE45:AN45) -> 2 | AP45: =ROUNDDOWN(U$10/$F45,0)-SUM($AE45:AO45) -> 3 | AQ45: =ROUNDDOWN(V$10/$F45,0)-SUM($AE45:AP45) -> 2 | AR45: =ROUNDDOWN(W$10/$F45,0)-SUM($AE45:AQ45) -> 2 | AS45: =ROUNDDOWN(X$10/$F45,0)-SUM($AE45:AR45) -> 3 | AT45: =ROUNDDOWN(Y$10/$F45,0)-SUM($AE45:AS45) -> 2 | AU45: =ROUNDDOWN(Z$10/$F45,0)-SUM($AE45:AT45) -> 2 | AV45: =ROUNDDOWN(AA$10/$F45,0)-SUM($AE45:AU45) -> 3 | AW45: =ROUNDDOWN(AB$10/$F45,0)-SUM($AE45:AV45) -> 2 | AX45: =ROUNDDOWN(AC$10/$F45,0)-SUM($AE45:AW45) -> 2
B46: 34 | C46: REPARACIÓN DE LA BOMBA DE INYECCIÓN | D46: UND | E46: 1 | F46: 240000 | G46: 1850 | H46: =+H44 -> Costo de mantenimiento mecánico | J46: =+AE46*$E46*$G46*(1+'Sup Generales'!C$10) -> 0 | K46: =+AF46*$E46*$G46*(1+'Sup Generales'!D$10) -> 0 | L46: =+AG46*$E46*$G46*(1+'Sup Generales'!E$10) -> 0 | M46: =+AH46*$E46*$G46*(1+'Sup Generales'!F$10) -> 1983.283803 | N46: =+AI46*$E46*$G46*(1+'Sup Generales'!G$10) -> 0 | O46: =+AJ46*$E46*$G46*(1+'Sup Generales'!H$10) -> 0 | P46: =+AK46*$E46*$G46*(1+'Sup Generales'!I$10) -> 2040.823144 | Q46: =+AL46*$E46*$G46*(1+'Sup Generales'!J$10) -> 0 | R46: =+AM46*$E46*$G46*(1+'Sup Generales'!K$10) -> 0 | S46: =+AN46*$E46*$G46*(1+'Sup Generales'!L$10) -> 0 | T46: =+AO46*$E46*$G46*(1+'Sup Generales'!M$10) -> 2162.521238 | U46: =+AP46*$E46*$G46*(1+'Sup Generales'!N$10) -> 0 | V46: =+AQ46*$E46*$G46*(1+'Sup Generales'!O$10) -> 0 | W46: =+AR46*$E46*$G46*(1+'Sup Generales'!P$10) -> 2244.158505 | X46: =+AS46*$E46*$G46*(1+'Sup Generales'!Q$10) -> 0 | Y46: =+AT46*$E46*$G46*(1+'Sup Generales'!R$10) -> 0 | Z46: =+AU46*$E46*$G46*(1+'Sup Generales'!S$10) -> 0 | AA46: =+AV46*$E46*$G46*(1+'Sup Generales'!T$10) -> 2369.171251 | AB46: =+AW46*$E46*$G46*(1+'Sup Generales'!U$10) -> 0 | AC46: =+AX46*$E46*$G46*(1+'Sup Generales'!V$10) -> 0 | AD46: 0.007669771 | AE46: 0 | AF46: =ROUNDDOWN(K$10/$F46,0)-SUM($AE46:AE46) -> 0 | AG46: =ROUNDDOWN(L$10/$F46,0)-SUM($AE46:AF46) -> 0 | AH46: =ROUNDDOWN(M$10/$F46,0)-SUM($AE46:AG46) -> 1 | AI46: =ROUNDDOWN(N$10/$F46,0)-SUM($AE46:AH46) -> 0 | AJ46: =ROUNDDOWN(O$10/$F46,0)-SUM($AE46:AI46) -> 0 | AK46: =ROUNDDOWN(P$10/$F46,0)-SUM($AE46:AJ46) -> 1 | AL46: =ROUNDDOWN(Q$10/$F46,0)-SUM($AE46:AK46) -> 0 | AM46: =ROUNDDOWN(R$10/$F46,0)-SUM($AE46:AL46) -> 0 | AN46: =ROUNDDOWN(S$10/$F46,0)-SUM($AE46:AM46) -> 0 | AO46: =ROUNDDOWN(T$10/$F46,0)-SUM($AE46:AN46) -> 1 | AP46: =ROUNDDOWN(U$10/$F46,0)-SUM($AE46:AO46) -> 0 | AQ46: =ROUNDDOWN(V$10/$F46,0)-SUM($AE46:AP46) -> 0 | AR46: =ROUNDDOWN(W$10/$F46,0)-SUM($AE46:AQ46) -> 1 | AS46: =ROUNDDOWN(X$10/$F46,0)-SUM($AE46:AR46) -> 0 | AT46: =ROUNDDOWN(Y$10/$F46,0)-SUM($AE46:AS46) -> 0 | AU46: =ROUNDDOWN(Z$10/$F46,0)-SUM($AE46:AT46) -> 0 | AV46: =ROUNDDOWN(AA$10/$F46,0)-SUM($AE46:AU46) -> 1 | AW46: =ROUNDDOWN(AB$10/$F46,0)-SUM($AE46:AV46) -> 0 | AX46: =ROUNDDOWN(AC$10/$F46,0)-SUM($AE46:AW46) -> 0
B47: 35 | C47: REPARACION COMPRESOR | D47: UND | E47: 1 | F47: 60000 | G47: 200.11 | H47: =+H46 -> Costo de mantenimiento mecánico | J47: =+AE47*$E47*$G47*(1+'Sup Generales'!C$10) -> 204.91264 | K47: =+AF47*$E47*$G47*(1+'Sup Generales'!D$10) -> 208.1912422 | L47: =+AG47*$E47*$G47*(1+'Sup Generales'!E$10) -> 213.6042145 | M47: =+AH47*$E47*$G47*(1+'Sup Generales'!F$10) -> 214.5269847 | N47: =+AI47*$E47*$G47*(1+'Sup Generales'!G$10) -> 215.1062076 | O47: =+AJ47*$E47*$G47*(1+'Sup Generales'!H$10) -> 433.0948384 | P47: =+AK47*$E47*$G47*(1+'Sup Generales'!I$10) -> 220.7508753 | Q47: =+AL47*$E47*$G47*(1+'Sup Generales'!J$10) -> 224.5817653 | R47: =+AM47*$E47*$G47*(1+'Sup Generales'!K$10) -> 227.8518205 | S47: =+AN47*$E47*$G47*(1+'Sup Generales'!L$10) -> 230.9006431 | T47: =+AO47*$E47*$G47*(1+'Sup Generales'!M$10) -> 233.9146621 | U47: =+AP47*$E47*$G47*(1+'Sup Generales'!N$10) -> 473.1789433 | V47: =+AQ47*$E47*$G47*(1+'Sup Generales'!O$10) -> 239.5052837 | W47: =+AR47*$E47*$G47*(1+'Sup Generales'!P$10) -> 242.7451667 | X47: =+AS47*$E47*$G47*(1+'Sup Generales'!Q$10) -> 246.2360416 | Y47: =+AT47*$E47*$G47*(1+'Sup Generales'!R$10) -> 249.6222841 | Z47: =+AU47*$E47*$G47*(1+'Sup Generales'!S$10) -> 252.9427052 | AA47: =+AV47*$E47*$G47*(1+'Sup Generales'!T$10) -> 512.5349828 | AB47: =+AW47*$E47*$G47*(1+'Sup Generales'!U$10) -> 259.6284104 | AC47: =+AX47*$E47*$G47*(1+'Sup Generales'!V$10) -> 263.0354057 | AD47: 0.003811369143 | AE47: 1 | AF47: =ROUNDDOWN(K$10/$F47,0)-SUM($AE47:AE47) -> 1 | AG47: =ROUNDDOWN(L$10/$F47,0)-SUM($AE47:AF47) -> 1 | AH47: =ROUNDDOWN(M$10/$F47,0)-SUM($AE47:AG47) -> 1 | AI47: =ROUNDDOWN(N$10/$F47,0)-SUM($AE47:AH47) -> 1 | AJ47: =ROUNDDOWN(O$10/$F47,0)-SUM($AE47:AI47) -> 2 | AK47: =ROUNDDOWN(P$10/$F47,0)-SUM($AE47:AJ47) -> 1 | AL47: =ROUNDDOWN(Q$10/$F47,0)-SUM($AE47:AK47) -> 1 | AM47: =ROUNDDOWN(R$10/$F47,0)-SUM($AE47:AL47) -> 1 | AN47: =ROUNDDOWN(S$10/$F47,0)-SUM($AE47:AM47) -> 1 | AO47: =ROUNDDOWN(T$10/$F47,0)-SUM($AE47:AN47) -> 1 | AP47: =ROUNDDOWN(U$10/$F47,0)-SUM($AE47:AO47) -> 2 | AQ47: =ROUNDDOWN(V$10/$F47,0)-SUM($AE47:AP47) -> 1 | AR47: =ROUNDDOWN(W$10/$F47,0)-SUM($AE47:AQ47) -> 1 | AS47: =ROUNDDOWN(X$10/$F47,0)-SUM($AE47:AR47) -> 1 | AT47: =ROUNDDOWN(Y$10/$F47,0)-SUM($AE47:AS47) -> 1 | AU47: =ROUNDDOWN(Z$10/$F47,0)-SUM($AE47:AT47) -> 1 | AV47: =ROUNDDOWN(AA$10/$F47,0)-SUM($AE47:AU47) -> 2 | AW47: =ROUNDDOWN(AB$10/$F47,0)-SUM($AE47:AV47) -> 1 | AX47: =ROUNDDOWN(AC$10/$F47,0)-SUM($AE47:AW47) -> 1
B48: 36 | C48: CAMBIO DE TURBO | D48: UND | E48: 1 | F48: 60000 | G48: 542.095 | H48: =+H47 -> Costo de mantenimiento mecánico | J48: =+AE48*$E48*$G48*(1+'Sup Generales'!C$10) -> 555.10528 | K48: =+AF48*$E48*$G48*(1+'Sup Generales'!D$10) -> 563.9869645 | L48: =+AG48*$E48*$G48*(1+'Sup Generales'!E$10) -> 578.6506256 | M48: =+AH48*$E48*$G48*(1+'Sup Generales'!F$10) -> 581.1503963 | N48: =+AI48*$E48*$G48*(1+'Sup Generales'!G$10) -> 582.7195023 | O48: =+AJ48*$E48*$G48*(1+'Sup Generales'!H$10) -> 1173.247446 | P48: =+AK48*$E48*$G48*(1+'Sup Generales'!I$10) -> 598.0108227 | Q48: =+AL48*$E48*$G48*(1+'Sup Generales'!J$10) -> 608.3886465 | R48: =+AM48*$E48*$G48*(1+'Sup Generales'!K$10) -> 617.2471773 | S48: =+AN48*$E48*$G48*(1+'Sup Generales'!L$10) -> 625.5063921 | T48: =+AO48*$E48*$G48*(1+'Sup Generales'!M$10) -> 633.6713245 | U48: =+AP48*$E48*$G48*(1+'Sup Generales'!N$10) -> 1281.834687 | V48: =+AQ48*$E48*$G48*(1+'Sup Generales'!O$10) -> 648.816235 | W48: =+AR48*$E48*$G48*(1+'Sup Generales'!P$10) -> 657.5930297 | X48: =+AS48*$E48*$G48*(1+'Sup Generales'!Q$10) -> 667.0497576 | Y48: =+AT48*$E48*$G48*(1+'Sup Generales'!R$10) -> 676.2230378 | Z48: =+AU48*$E48*$G48*(1+'Sup Generales'!S$10) -> 685.2180091 | AA48: =+AV48*$E48*$G48*(1+'Sup Generales'!T$10) -> 1388.44961 | AB48: =+AW48*$E48*$G48*(1+'Sup Generales'!U$10) -> 703.3294845 | AC48: =+AX48*$E48*$G48*(1+'Sup Generales'!V$10) -> 712.5589838 | AD48: 0.01032494206 | AE48: 1 | AF48: =ROUNDDOWN(K$10/$F48,0)-SUM($AE48:AE48) -> 1 | AG48: =ROUNDDOWN(L$10/$F48,0)-SUM($AE48:AF48) -> 1 | AH48: =ROUNDDOWN(M$10/$F48,0)-SUM($AE48:AG48) -> 1 | AI48: =ROUNDDOWN(N$10/$F48,0)-SUM($AE48:AH48) -> 1 | AJ48: =ROUNDDOWN(O$10/$F48,0)-SUM($AE48:AI48) -> 2 | AK48: =ROUNDDOWN(P$10/$F48,0)-SUM($AE48:AJ48) -> 1 | AL48: =ROUNDDOWN(Q$10/$F48,0)-SUM($AE48:AK48) -> 1 | AM48: =ROUNDDOWN(R$10/$F48,0)-SUM($AE48:AL48) -> 1 | AN48: =ROUNDDOWN(S$10/$F48,0)-SUM($AE48:AM48) -> 1 | AO48: =ROUNDDOWN(T$10/$F48,0)-SUM($AE48:AN48) -> 1 | AP48: =ROUNDDOWN(U$10/$F48,0)-SUM($AE48:AO48) -> 2 | AQ48: =ROUNDDOWN(V$10/$F48,0)-SUM($AE48:AP48) -> 1 | AR48: =ROUNDDOWN(W$10/$F48,0)-SUM($AE48:AQ48) -> 1 | AS48: =ROUNDDOWN(X$10/$F48,0)-SUM($AE48:AR48) -> 1 | AT48: =ROUNDDOWN(Y$10/$F48,0)-SUM($AE48:AS48) -> 1 | AU48: =ROUNDDOWN(Z$10/$F48,0)-SUM($AE48:AT48) -> 1 | AV48: =ROUNDDOWN(AA$10/$F48,0)-SUM($AE48:AU48) -> 2 | AW48: =ROUNDDOWN(AB$10/$F48,0)-SUM($AE48:AV48) -> 1 | AX48: =ROUNDDOWN(AC$10/$F48,0)-SUM($AE48:AW48) -> 1
B49: 37 | C49: REPARACIÓN DEL MOTOR | D49: UND | E49: 1 | F49: 240000 | G49: 3903.672 | H49: =+H48 -> Costo de mantenimiento mecánico | J49: =+AE49*$E49*$G49*(1+'Sup Generales'!C$10) -> 0 | K49: =+AF49*$E49*$G49*(1+'Sup Generales'!D$10) -> 0 | L49: =+AG49*$E49*$G49*(1+'Sup Generales'!E$10) -> 0 | M49: =+AH49*$E49*$G49*(1+'Sup Generales'!F$10) -> 4184.913216 | N49: =+AI49*$E49*$G49*(1+'Sup Generales'!G$10) -> 0 | O49: =+AJ49*$E49*$G49*(1+'Sup Generales'!H$10) -> 0 | P49: =+AK49*$E49*$G49*(1+'Sup Generales'!I$10) -> 4306.326575 | Q49: =+AL49*$E49*$G49*(1+'Sup Generales'!J$10) -> 0 | R49: =+AM49*$E49*$G49*(1+'Sup Generales'!K$10) -> 0 | S49: =+AN49*$E49*$G49*(1+'Sup Generales'!L$10) -> 0 | T49: =+AO49*$E49*$G49*(1+'Sup Generales'!M$10) -> 4563.120868 | U49: =+AP49*$E49*$G49*(1+'Sup Generales'!N$10) -> 0 | V49: =+AQ49*$E49*$G49*(1+'Sup Generales'!O$10) -> 0 | W49: =+AR49*$E49*$G49*(1+'Sup Generales'!P$10) -> 4735.383092 | X49: =+AS49*$E49*$G49*(1+'Sup Generales'!Q$10) -> 0 | Y49: =+AT49*$E49*$G49*(1+'Sup Generales'!R$10) -> 0 | Z49: =+AU49*$E49*$G49*(1+'Sup Generales'!S$10) -> 0 | AA49: =+AV49*$E49*$G49*(1+'Sup Generales'!T$10) -> 4999.171609 | AB49: =+AW49*$E49*$G49*(1+'Sup Generales'!U$10) -> 0 | AC49: =+AX49*$E49*$G49*(1+'Sup Generales'!V$10) -> 0 | AD49: 0.01618392989 | AE49: 0 | AF49: =ROUNDDOWN(K$10/$F49,0)-SUM($AE49:AE49) -> 0 | AG49: =ROUNDDOWN(L$10/$F49,0)-SUM($AE49:AF49) -> 0 | AH49: =ROUNDDOWN(M$10/$F49,0)-SUM($AE49:AG49) -> 1 | AI49: =ROUNDDOWN(N$10/$F49,0)-SUM($AE49:AH49) -> 0 | AJ49: =ROUNDDOWN(O$10/$F49,0)-SUM($AE49:AI49) -> 0 | AK49: =ROUNDDOWN(P$10/$F49,0)-SUM($AE49:AJ49) -> 1 | AL49: =ROUNDDOWN(Q$10/$F49,0)-SUM($AE49:AK49) -> 0 | AM49: =ROUNDDOWN(R$10/$F49,0)-SUM($AE49:AL49) -> 0 | AN49: =ROUNDDOWN(S$10/$F49,0)-SUM($AE49:AM49) -> 0 | AO49: =ROUNDDOWN(T$10/$F49,0)-SUM($AE49:AN49) -> 1 | AP49: =ROUNDDOWN(U$10/$F49,0)-SUM($AE49:AO49) -> 0 | AQ49: =ROUNDDOWN(V$10/$F49,0)-SUM($AE49:AP49) -> 0 | AR49: =ROUNDDOWN(W$10/$F49,0)-SUM($AE49:AQ49) -> 1 | AS49: =ROUNDDOWN(X$10/$F49,0)-SUM($AE49:AR49) -> 0 | AT49: =ROUNDDOWN(Y$10/$F49,0)-SUM($AE49:AS49) -> 0 | AU49: =ROUNDDOWN(Z$10/$F49,0)-SUM($AE49:AT49) -> 0 | AV49: =ROUNDDOWN(AA$10/$F49,0)-SUM($AE49:AU49) -> 1 | AW49: =ROUNDDOWN(AB$10/$F49,0)-SUM($AE49:AV49) -> 0 | AX49: =ROUNDDOWN(AC$10/$F49,0)-SUM($AE49:AW49) -> 0
B50: 38 | C50: REPARACIÓN DE CAJA | D50: UND | E50: 1 | F50: 120000 | G50: 2209.796 | H50: =+H49 -> Costo de mantenimiento mecánico | J50: =+AE50*$E50*$G50*(1+'Sup Generales'!C$10) -> 0 | K50: =+AF50*$E50*$G50*(1+'Sup Generales'!D$10) -> 2299.036402 | L50: =+AG50*$E50*$G50*(1+'Sup Generales'!E$10) -> 0 | M50: =+AH50*$E50*$G50*(1+'Sup Generales'!F$10) -> 2369.001413 | N50: =+AI50*$E50*$G50*(1+'Sup Generales'!G$10) -> 0 | O50: =+AJ50*$E50*$G50*(1+'Sup Generales'!H$10) -> 2391.312882 | P50: =+AK50*$E50*$G50*(1+'Sup Generales'!I$10) -> 2437.731254 | Q50: =+AL50*$E50*$G50*(1+'Sup Generales'!J$10) -> 0 | R50: =+AM50*$E50*$G50*(1+'Sup Generales'!K$10) -> 2516.146328 | S50: =+AN50*$E50*$G50*(1+'Sup Generales'!L$10) -> 0 | T50: =+AO50*$E50*$G50*(1+'Sup Generales'!M$10) -> 2583.09772 | U50: =+AP50*$E50*$G50*(1+'Sup Generales'!N$10) -> 2612.635391 | V50: =+AQ50*$E50*$G50*(1+'Sup Generales'!O$10) -> 0 | W50: =+AR50*$E50*$G50*(1+'Sup Generales'!P$10) -> 2680.612156 | X50: =+AS50*$E50*$G50*(1+'Sup Generales'!Q$10) -> 0 | Y50: =+AT50*$E50*$G50*(1+'Sup Generales'!R$10) -> 2756.555519 | Z50: =+AU50*$E50*$G50*(1+'Sup Generales'!S$10) -> 0 | AA50: =+AV50*$E50*$G50*(1+'Sup Generales'!T$10) -> 2829.937921 | AB50: =+AW50*$E50*$G50*(1+'Sup Generales'!U$10) -> 2867.052235 | AC50: =+AX50*$E50*$G50*(1+'Sup Generales'!V$10) -> 0 | AD50: 0.02012834078 | AE50: 0 | AF50: =ROUNDDOWN(K$10/$F50,0)-SUM($AE50:AE50) -> 1 | AG50: =ROUNDDOWN(L$10/$F50,0)-SUM($AE50:AF50) -> 0 | AH50: =ROUNDDOWN(M$10/$F50,0)-SUM($AE50:AG50) -> 1 | AI50: =ROUNDDOWN(N$10/$F50,0)-SUM($AE50:AH50) -> 0 | AJ50: =ROUNDDOWN(O$10/$F50,0)-SUM($AE50:AI50) -> 1 | AK50: =ROUNDDOWN(P$10/$F50,0)-SUM($AE50:AJ50) -> 1 | AL50: =ROUNDDOWN(Q$10/$F50,0)-SUM($AE50:AK50) -> 0 | AM50: =ROUNDDOWN(R$10/$F50,0)-SUM($AE50:AL50) -> 1 | AN50: =ROUNDDOWN(S$10/$F50,0)-SUM($AE50:AM50) -> 0 | AO50: =ROUNDDOWN(T$10/$F50,0)-SUM($AE50:AN50) -> 1 | AP50: =ROUNDDOWN(U$10/$F50,0)-SUM($AE50:AO50) -> 1 | AQ50: =ROUNDDOWN(V$10/$F50,0)-SUM($AE50:AP50) -> 0 | AR50: =ROUNDDOWN(W$10/$F50,0)-SUM($AE50:AQ50) -> 1 | AS50: =ROUNDDOWN(X$10/$F50,0)-SUM($AE50:AR50) -> 0 | AT50: =ROUNDDOWN(Y$10/$F50,0)-SUM($AE50:AS50) -> 1 | AU50: =ROUNDDOWN(Z$10/$F50,0)-SUM($AE50:AT50) -> 0 | AV50: =ROUNDDOWN(AA$10/$F50,0)-SUM($AE50:AU50) -> 1 | AW50: =ROUNDDOWN(AB$10/$F50,0)-SUM($AE50:AV50) -> 1 | AX50: =ROUNDDOWN(AC$10/$F50,0)-SUM($AE50:AW50) -> 0
B51: 39 | C51: REPARACIÓN DEL DIFERENCIAL | D51: UND | E51: 1 | F51: 120000 | G51: 1675.362 | H51: =+H50 -> Costo de mantenimiento mecánico | J51: =+AE51*$E51*$G51*(1+'Sup Generales'!C$10) -> 0 | K51: =+AF51*$E51*$G51*(1+'Sup Generales'!D$10) -> 1743.019819 | L51: =+AG51*$E51*$G51*(1+'Sup Generales'!E$10) -> 0 | M51: =+AH51*$E51*$G51*(1+'Sup Generales'!F$10) -> 1796.063956 | N51: =+AI51*$E51*$G51*(1+'Sup Generales'!G$10) -> 0 | O51: =+AJ51*$E51*$G51*(1+'Sup Generales'!H$10) -> 1812.979448 | P51: =+AK51*$E51*$G51*(1+'Sup Generales'!I$10) -> 1848.171645 | Q51: =+AL51*$E51*$G51*(1+'Sup Generales'!J$10) -> 0 | R51: =+AM51*$E51*$G51*(1+'Sup Generales'!K$10) -> 1907.622217 | S51: =+AN51*$E51*$G51*(1+'Sup Generales'!L$10) -> 0 | T51: =+AO51*$E51*$G51*(1+'Sup Generales'!M$10) -> 1958.381571 | U51: =+AP51*$E51*$G51*(1+'Sup Generales'!N$10) -> 1980.775625 | V51: =+AQ51*$E51*$G51*(1+'Sup Generales'!O$10) -> 0 | W51: =+AR51*$E51*$G51*(1+'Sup Generales'!P$10) -> 2032.312368 | X51: =+AS51*$E51*$G51*(1+'Sup Generales'!Q$10) -> 0 | Y51: =+AT51*$E51*$G51*(1+'Sup Generales'!R$10) -> 2089.889007 | Z51: =+AU51*$E51*$G51*(1+'Sup Generales'!S$10) -> 0 | AA51: =+AV51*$E51*$G51*(1+'Sup Generales'!T$10) -> 2145.524046 | AB51: =+AW51*$E51*$G51*(1+'Sup Generales'!U$10) -> 2173.66235 | AC51: =+AX51*$E51*$G51*(1+'Sup Generales'!V$10) -> 0 | AD51: 0.01526034859 | AE51: 0 | AF51: =ROUNDDOWN(K$10/$F51,0)-SUM($AE51:AE51) -> 1 | AG51: =ROUNDDOWN(L$10/$F51,0)-SUM($AE51:AF51) -> 0 | AH51: =ROUNDDOWN(M$10/$F51,0)-SUM($AE51:AG51) -> 1 | AI51: =ROUNDDOWN(N$10/$F51,0)-SUM($AE51:AH51) -> 0 | AJ51: =ROUNDDOWN(O$10/$F51,0)-SUM($AE51:AI51) -> 1 | AK51: =ROUNDDOWN(P$10/$F51,0)-SUM($AE51:AJ51) -> 1 | AL51: =ROUNDDOWN(Q$10/$F51,0)-SUM($AE51:AK51) -> 0 | AM51: =ROUNDDOWN(R$10/$F51,0)-SUM($AE51:AL51) -> 1 | AN51: =ROUNDDOWN(S$10/$F51,0)-SUM($AE51:AM51) -> 0 | AO51: =ROUNDDOWN(T$10/$F51,0)-SUM($AE51:AN51) -> 1 | AP51: =ROUNDDOWN(U$10/$F51,0)-SUM($AE51:AO51) -> 1 | AQ51: =ROUNDDOWN(V$10/$F51,0)-SUM($AE51:AP51) -> 0 | AR51: =ROUNDDOWN(W$10/$F51,0)-SUM($AE51:AQ51) -> 1 | AS51: =ROUNDDOWN(X$10/$F51,0)-SUM($AE51:AR51) -> 0 | AT51: =ROUNDDOWN(Y$10/$F51,0)-SUM($AE51:AS51) -> 1 | AU51: =ROUNDDOWN(Z$10/$F51,0)-SUM($AE51:AT51) -> 0 | AV51: =ROUNDDOWN(AA$10/$F51,0)-SUM($AE51:AU51) -> 1 | AW51: =ROUNDDOWN(AB$10/$F51,0)-SUM($AE51:AV51) -> 1 | AX51: =ROUNDDOWN(AC$10/$F51,0)-SUM($AE51:AW51) -> 0
B52: 40 | C52: REPARACIÓN DE CARROCERIA | D52: UND | E52: 1 | F52: 600000 | G52: 4125 | H52: =+H45 -> Carrocería | J52: =+AE52*$E52*$G52*(1+'Sup Generales'!C$10) -> 0 | K52: =+AF52*$E52*$G52*(1+'Sup Generales'!D$10) -> 0 | L52: =+AG52*$E52*$G52*(1+'Sup Generales'!E$10) -> 0 | M52: =+AH52*$E52*$G52*(1+'Sup Generales'!F$10) -> 0 | N52: =+AI52*$E52*$G52*(1+'Sup Generales'!G$10) -> 0 | O52: =+AJ52*$E52*$G52*(1+'Sup Generales'!H$10) -> 0 | P52: =+AK52*$E52*$G52*(1+'Sup Generales'!I$10) -> 0 | Q52: =+AL52*$E52*$G52*(1+'Sup Generales'!J$10) -> 0 | R52: =+AM52*$E52*$G52*(1+'Sup Generales'!K$10) -> 4696.860525 | S52: =+AN52*$E52*$G52*(1+'Sup Generales'!L$10) -> 0 | T52: =+AO52*$E52*$G52*(1+'Sup Generales'!M$10) -> 0 | U52: =+AP52*$E52*$G52*(1+'Sup Generales'!N$10) -> 0 | V52: =+AQ52*$E52*$G52*(1+'Sup Generales'!O$10) -> 0 | W52: =+AR52*$E52*$G52*(1+'Sup Generales'!P$10) -> 0 | X52: =+AS52*$E52*$G52*(1+'Sup Generales'!Q$10) -> 0 | Y52: =+AT52*$E52*$G52*(1+'Sup Generales'!R$10) -> 0 | Z52: =+AU52*$E52*$G52*(1+'Sup Generales'!S$10) -> 0 | AA52: =+AV52*$E52*$G52*(1+'Sup Generales'!T$10) -> 5282.611574 | AB52: =+AW52*$E52*$G52*(1+'Sup Generales'!U$10) -> 0 | AC52: =+AX52*$E52*$G52*(1+'Sup Generales'!V$10) -> 0 | AD52: 0.007087089239 | AE52: 0 | AF52: =ROUNDDOWN(K$10/$F52,0)-SUM($AE52:AE52) -> 0 | AG52: =ROUNDDOWN(L$10/$F52,0)-SUM($AE52:AF52) -> 0 | AH52: =ROUNDDOWN(M$10/$F52,0)-SUM($AE52:AG52) -> 0 | AI52: =ROUNDDOWN(N$10/$F52,0)-SUM($AE52:AH52) -> 0 | AJ52: =ROUNDDOWN(O$10/$F52,0)-SUM($AE52:AI52) -> 0 | AK52: =ROUNDDOWN(P$10/$F52,0)-SUM($AE52:AJ52) -> 0 | AL52: =ROUNDDOWN(Q$10/$F52,0)-SUM($AE52:AK52) -> 0 | AM52: =ROUNDDOWN(R$10/$F52,0)-SUM($AE52:AL52) -> 1 | AN52: =ROUNDDOWN(S$10/$F52,0)-SUM($AE52:AM52) -> 0 | AO52: =ROUNDDOWN(T$10/$F52,0)-SUM($AE52:AN52) -> 0 | AP52: =ROUNDDOWN(U$10/$F52,0)-SUM($AE52:AO52) -> 0 | AQ52: =ROUNDDOWN(V$10/$F52,0)-SUM($AE52:AP52) -> 0 | AR52: =ROUNDDOWN(W$10/$F52,0)-SUM($AE52:AQ52) -> 0 | AS52: =ROUNDDOWN(X$10/$F52,0)-SUM($AE52:AR52) -> 0 | AT52: =ROUNDDOWN(Y$10/$F52,0)-SUM($AE52:AS52) -> 0 | AU52: =ROUNDDOWN(Z$10/$F52,0)-SUM($AE52:AT52) -> 0 | AV52: =ROUNDDOWN(AA$10/$F52,0)-SUM($AE52:AU52) -> 1 | AW52: =ROUNDDOWN(AB$10/$F52,0)-SUM($AE52:AV52) -> 0 | AX52: =ROUNDDOWN(AC$10/$F52,0)-SUM($AE52:AW52) -> 0
B53: 41 | C53: MANO DE OBRA MANTENIMIENTO | D53: UND | E53: 1 | F53: 1 | G53: 0.03 | H53: Mano de Obra | J53: =+AE53*$E53*$G53*(1+'Sup Generales'!C$10) -> 2162.87232 | K53: =+AF53*$E53*$G53*(1+'Sup Generales'!D$10) -> 2197.478277 | L53: =+AG53*$E53*$G53*(1+'Sup Generales'!E$10) -> 2254.612712 | M53: =+AH53*$E53*$G53*(1+'Sup Generales'!F$10) -> 2264.352639 | N53: =+AI53*$E53*$G53*(1+'Sup Generales'!G$10) -> 2270.466391 | O53: =+AJ53*$E53*$G53*(1+'Sup Generales'!H$10) -> 2285.678516 | P53: =+AK53*$E53*$G53*(1+'Sup Generales'!I$10) -> 2330.046393 | Q53: =+AL53*$E53*$G53*(1+'Sup Generales'!J$10) -> 2370.4818 | R53: =+AM53*$E53*$G53*(1+'Sup Generales'!K$10) -> 2404.997543 | S53: =+AN53*$E53*$G53*(1+'Sup Generales'!L$10) -> 2437.178154 | T53: =+AO53*$E53*$G53*(1+'Sup Generales'!M$10) -> 2468.99141 | U53: =+AP53*$E53*$G53*(1+'Sup Generales'!N$10) -> 2497.224278 | V53: =+AQ53*$E53*$G53*(1+'Sup Generales'!O$10) -> 2528.00095 | W53: =+AR53*$E53*$G53*(1+'Sup Generales'!P$10) -> 2562.198222 | X53: =+AS53*$E53*$G53*(1+'Sup Generales'!Q$10) -> 2599.044738 | Y53: =+AT53*$E53*$G53*(1+'Sup Generales'!R$10) -> 2634.786847 | Z53: =+AU53*$E53*$G53*(1+'Sup Generales'!S$10) -> 2669.834207 | AA53: =+AV53*$E53*$G53*(1+'Sup Generales'!T$10) -> 2704.92764 | AB53: =+AW53*$E53*$G53*(1+'Sup Generales'!U$10) -> 2740.402458 | AC53: =+AX53*$E53*$G53*(1+'Sup Generales'!V$10) -> 2776.363616 | AD53: =SUM(J53:AC53)/SUM($J$9:$AC$9) -> 0.03491175405 | AE53: 70406 | AF53: =ROUNDDOWN(K$10/$F53,0)-SUM($AE53:AE53) -> 70406 | AG53: =ROUNDDOWN(L$10/$F53,0)-SUM($AE53:AF53) -> 70406 | AH53: =ROUNDDOWN(M$10/$F53,0)-SUM($AE53:AG53) -> 70406 | AI53: =ROUNDDOWN(N$10/$F53,0)-SUM($AE53:AH53) -> 70406 | AJ53: =ROUNDDOWN(O$10/$F53,0)-SUM($AE53:AI53) -> 70406 | AK53: =ROUNDDOWN(P$10/$F53,0)-SUM($AE53:AJ53) -> 70406 | AL53: =ROUNDDOWN(Q$10/$F53,0)-SUM($AE53:AK53) -> 70406 | AM53: =ROUNDDOWN(R$10/$F53,0)-SUM($AE53:AL53) -> 70406 | AN53: =ROUNDDOWN(S$10/$F53,0)-SUM($AE53:AM53) -> 70406 | AO53: =ROUNDDOWN(T$10/$F53,0)-SUM($AE53:AN53) -> 70406 | AP53: =ROUNDDOWN(U$10/$F53,0)-SUM($AE53:AO53) -> 70406 | AQ53: =ROUNDDOWN(V$10/$F53,0)-SUM($AE53:AP53) -> 70406 | AR53: =ROUNDDOWN(W$10/$F53,0)-SUM($AE53:AQ53) -> 70406 | AS53: =ROUNDDOWN(X$10/$F53,0)-SUM($AE53:AR53) -> 70406 | AT53: =ROUNDDOWN(Y$10/$F53,0)-SUM($AE53:AS53) -> 70406 | AU53: =ROUNDDOWN(Z$10/$F53,0)-SUM($AE53:AT53) -> 70406 | AV53: =ROUNDDOWN(AA$10/$F53,0)-SUM($AE53:AU53) -> 70406 | AW53: =ROUNDDOWN(AB$10/$F53,0)-SUM($AE53:AV53) -> 70406 | AX53: =ROUNDDOWN(AC$10/$F53,0)-SUM($AE53:AW53) -> 70406
B54: A1 | C54: Filtros y Lubricantes (Híbrido) | D54: UND | E54: 1 | F54: 1 | G54: 0.158 | H54: Aceites y filtros | J54: =+AE54*$E54*$G54*(1+'Sup Generales'!C$10) -> 11391.12755 | K54: =+AF54*$E54*$G54*(1+'Sup Generales'!D$10) -> 11573.38559 | L54: =+AG54*$E54*$G54*(1+'Sup Generales'!E$10) -> 11874.29362 | M54: =+AH54*$E54*$G54*(1+'Sup Generales'!F$10) -> 11925.59057 | N54: =+AI54*$E54*$G54*(1+'Sup Generales'!G$10) -> 11957.78966 | O54: =+AJ54*$E54*$G54*(1+'Sup Generales'!H$10) -> 12037.90685 | P54: =+AK54*$E54*$G54*(1+'Sup Generales'!I$10) -> 12271.57767 | Q54: =+AL54*$E54*$G54*(1+'Sup Generales'!J$10) -> 12484.53748 | R54: =+AM54*$E54*$G54*(1+'Sup Generales'!K$10) -> 12666.32039 | S54: =+AN54*$E54*$G54*(1+'Sup Generales'!L$10) -> 12835.80494 | T54: =+AO54*$E54*$G54*(1+'Sup Generales'!M$10) -> 13003.35476 | U54: =+AP54*$E54*$G54*(1+'Sup Generales'!N$10) -> 13152.04786 | V54: =+AQ54*$E54*$G54*(1+'Sup Generales'!O$10) -> 13314.13834 | W54: =+AR54*$E54*$G54*(1+'Sup Generales'!P$10) -> 13494.24397 | X54: =+AS54*$E54*$G54*(1+'Sup Generales'!Q$10) -> 13688.30228 | Y54: =+AT54*$E54*$G54*(1+'Sup Generales'!R$10) -> 13876.54406 | Z54: =+AU54*$E54*$G54*(1+'Sup Generales'!S$10) -> 14061.12682 | AA54: =+AV54*$E54*$G54*(1+'Sup Generales'!T$10) -> 14245.95224 | AB54: =+AW54*$E54*$G54*(1+'Sup Generales'!U$10) -> 14432.78628 | AC54: =+AX54*$E54*$G54*(1+'Sup Generales'!V$10) -> 14622.18171 | AD54: =SUM(J54:AC54)/SUM($J$9:$AC$9) -> 0.1838685713 | AE54: =ROUNDDOWN(J$10/$F54,0) -> 70406 | AF54: =ROUNDDOWN(K$10/$F54,0)-SUM($AE54:AE54) -> 70406 | AG54: =ROUNDDOWN(L$10/$F54,0)-SUM($AE54:AF54) -> 70406 | AH54: =ROUNDDOWN(M$10/$F54,0)-SUM($AE54:AG54) -> 70406 | AI54: =ROUNDDOWN(N$10/$F54,0)-SUM($AE54:AH54) -> 70406 | AJ54: =ROUNDDOWN(O$10/$F54,0)-SUM($AE54:AI54) -> 70406 | AK54: =ROUNDDOWN(P$10/$F54,0)-SUM($AE54:AJ54) -> 70406 | AL54: =ROUNDDOWN(Q$10/$F54,0)-SUM($AE54:AK54) -> 70406 | AM54: =ROUNDDOWN(R$10/$F54,0)-SUM($AE54:AL54) -> 70406 | AN54: =ROUNDDOWN(S$10/$F54,0)-SUM($AE54:AM54) -> 70406 | AO54: =ROUNDDOWN(T$10/$F54,0)-SUM($AE54:AN54) -> 70406 | AP54: =ROUNDDOWN(U$10/$F54,0)-SUM($AE54:AO54) -> 70406 | AQ54: =ROUNDDOWN(V$10/$F54,0)-SUM($AE54:AP54) -> 70406 | AR54: =ROUNDDOWN(W$10/$F54,0)-SUM($AE54:AQ54) -> 70406 | AS54: =ROUNDDOWN(X$10/$F54,0)-SUM($AE54:AR54) -> 70406 | AT54: =ROUNDDOWN(Y$10/$F54,0)-SUM($AE54:AS54) -> 70406 | AU54: =ROUNDDOWN(Z$10/$F54,0)-SUM($AE54:AT54) -> 70406 | AV54: =ROUNDDOWN(AA$10/$F54,0)-SUM($AE54:AU54) -> 70406 | AW54: =ROUNDDOWN(AB$10/$F54,0)-SUM($AE54:AV54) -> 70406 | AX54: =ROUNDDOWN(AC$10/$F54,0)-SUM($AE54:AW54) -> 70406
B55: A2 | C55: Mantenimiento Electrico (Híbrido) | D55: UND | E55: 1 | F55: 1 | G55: 0.049 | H55: Costo de mantenimiento eléctrico | J55: =+AE55*$E55*$G55*(1+'Sup Generales'!C$10) -> 3532.691456 | K55: =+AF55*$E55*$G55*(1+'Sup Generales'!D$10) -> 3589.214519 | L55: =+AG55*$E55*$G55*(1+'Sup Generales'!E$10) -> 3682.534097 | M55: =+AH55*$E55*$G55*(1+'Sup Generales'!F$10) -> 3698.442644 | N55: =+AI55*$E55*$G55*(1+'Sup Generales'!G$10) -> 3708.428439 | O55: =+AJ55*$E55*$G55*(1+'Sup Generales'!H$10) -> 3733.27491 | P55: =+AK55*$E55*$G55*(1+'Sup Generales'!I$10) -> 3805.742442 | Q55: =+AL55*$E55*$G55*(1+'Sup Generales'!J$10) -> 3871.78694 | R55: =+AM55*$E55*$G55*(1+'Sup Generales'!K$10) -> 3928.162653 | S55: =+AN55*$E55*$G55*(1+'Sup Generales'!L$10) -> 3980.724318 | T55: =+AO55*$E55*$G55*(1+'Sup Generales'!M$10) -> 4032.685969 | U55: =+AP55*$E55*$G55*(1+'Sup Generales'!N$10) -> 4078.799653 | V55: =+AQ55*$E55*$G55*(1+'Sup Generales'!O$10) -> 4129.068219 | W55: =+AR55*$E55*$G55*(1+'Sup Generales'!P$10) -> 4184.923763 | X55: =+AS55*$E55*$G55*(1+'Sup Generales'!Q$10) -> 4245.106405 | Y55: =+AT55*$E55*$G55*(1+'Sup Generales'!R$10) -> 4303.485184 | Z55: =+AU55*$E55*$G55*(1+'Sup Generales'!S$10) -> 4360.729205 | AA55: =+AV55*$E55*$G55*(1+'Sup Generales'!T$10) -> 4418.048478 | AB55: =+AW55*$E55*$G55*(1+'Sup Generales'!U$10) -> 4475.990682 | AC55: =+AX55*$E55*$G55*(1+'Sup Generales'!V$10) -> 4534.727239 | AD55: 0.05702253161 | AE55: 70406 | AF55: =ROUNDDOWN(K$10/$F55,0)-SUM($AE55:AE55) -> 70406 | AG55: =ROUNDDOWN(L$10/$F55,0)-SUM($AE55:AF55) -> 70406 | AH55: =ROUNDDOWN(M$10/$F55,0)-SUM($AE55:AG55) -> 70406 | AI55: =ROUNDDOWN(N$10/$F55,0)-SUM($AE55:AH55) -> 70406 | AJ55: =ROUNDDOWN(O$10/$F55,0)-SUM($AE55:AI55) -> 70406 | AK55: =ROUNDDOWN(P$10/$F55,0)-SUM($AE55:AJ55) -> 70406 | AL55: =ROUNDDOWN(Q$10/$F55,0)-SUM($AE55:AK55) -> 70406 | AM55: =ROUNDDOWN(R$10/$F55,0)-SUM($AE55:AL55) -> 70406 | AN55: =ROUNDDOWN(S$10/$F55,0)-SUM($AE55:AM55) -> 70406 | AO55: =ROUNDDOWN(T$10/$F55,0)-SUM($AE55:AN55) -> 70406 | AP55: =ROUNDDOWN(U$10/$F55,0)-SUM($AE55:AO55) -> 70406 | AQ55: =ROUNDDOWN(V$10/$F55,0)-SUM($AE55:AP55) -> 70406 | AR55: =ROUNDDOWN(W$10/$F55,0)-SUM($AE55:AQ55) -> 70406 | AS55: =ROUNDDOWN(X$10/$F55,0)-SUM($AE55:AR55) -> 70406 | AT55: =ROUNDDOWN(Y$10/$F55,0)-SUM($AE55:AS55) -> 70406 | AU55: =ROUNDDOWN(Z$10/$F55,0)-SUM($AE55:AT55) -> 70406 | AV55: =ROUNDDOWN(AA$10/$F55,0)-SUM($AE55:AU55) -> 70406 | AW55: =ROUNDDOWN(AB$10/$F55,0)-SUM($AE55:AV55) -> 70406 | AX55: =ROUNDDOWN(AC$10/$F55,0)-SUM($AE55:AW55) -> 70406
B56: A3 | C56: Manto. Chasis y Motor (Híbrido) | D56: UND | E56: 1 | F56: 1 | G56: 0.0972 | H56: Costo de mantenimiento mecánico | J56: =+AE56*$E56*$G56*(1+'Sup Generales'!C$10) -> 7007.706317 | K56: =+AF56*$E56*$G56*(1+'Sup Generales'!D$10) -> 7119.829618 | L56: =+AG56*$E56*$G56*(1+'Sup Generales'!E$10) -> 7304.945188 | M56: =+AH56*$E56*$G56*(1+'Sup Generales'!F$10) -> 7336.502551 | N56: =+AI56*$E56*$G56*(1+'Sup Generales'!G$10) -> 7356.311108 | O56: =+AJ56*$E56*$G56*(1+'Sup Generales'!H$10) -> 7405.598392 | P56: =+AK56*$E56*$G56*(1+'Sup Generales'!I$10) -> 7549.350314 | Q56: =+AL56*$E56*$G56*(1+'Sup Generales'!J$10) -> 7680.361032 | R56: =+AM56*$E56*$G56*(1+'Sup Generales'!K$10) -> 7792.192039 | S56: =+AN56*$E56*$G56*(1+'Sup Generales'!L$10) -> 7896.457218 | T56: =+AO56*$E56*$G56*(1+'Sup Generales'!M$10) -> 7999.532168 | U56: =+AP56*$E56*$G56*(1+'Sup Generales'!N$10) -> 8091.00666 | V56: =+AQ56*$E56*$G56*(1+'Sup Generales'!O$10) -> 8190.723079 | W56: =+AR56*$E56*$G56*(1+'Sup Generales'!P$10) -> 8301.522241 | X56: =+AS56*$E56*$G56*(1+'Sup Generales'!Q$10) -> 8420.90495 | Y56: =+AT56*$E56*$G56*(1+'Sup Generales'!R$10) -> 8536.709385 | Z56: =+AU56*$E56*$G56*(1+'Sup Generales'!S$10) -> 8650.26283 | AA56: =+AV56*$E56*$G56*(1+'Sup Generales'!T$10) -> 8763.965552 | AB56: =+AW56*$E56*$G56*(1+'Sup Generales'!U$10) -> 8878.903964 | AC56: =+AX56*$E56*$G56*(1+'Sup Generales'!V$10) -> 8995.418115 | AD56: 0.1131140831 | AE56: 70406 | AF56: =ROUNDDOWN(K$10/$F56,0)-SUM($AE56:AE56) -> 70406 | AG56: =ROUNDDOWN(L$10/$F56,0)-SUM($AE56:AF56) -> 70406 | AH56: =ROUNDDOWN(M$10/$F56,0)-SUM($AE56:AG56) -> 70406 | AI56: =ROUNDDOWN(N$10/$F56,0)-SUM($AE56:AH56) -> 70406 | AJ56: =ROUNDDOWN(O$10/$F56,0)-SUM($AE56:AI56) -> 70406 | AK56: =ROUNDDOWN(P$10/$F56,0)-SUM($AE56:AJ56) -> 70406 | AL56: =ROUNDDOWN(Q$10/$F56,0)-SUM($AE56:AK56) -> 70406 | AM56: =ROUNDDOWN(R$10/$F56,0)-SUM($AE56:AL56) -> 70406 | AN56: =ROUNDDOWN(S$10/$F56,0)-SUM($AE56:AM56) -> 70406 | AO56: =ROUNDDOWN(T$10/$F56,0)-SUM($AE56:AN56) -> 70406 | AP56: =ROUNDDOWN(U$10/$F56,0)-SUM($AE56:AO56) -> 70406 | AQ56: =ROUNDDOWN(V$10/$F56,0)-SUM($AE56:AP56) -> 70406 | AR56: =ROUNDDOWN(W$10/$F56,0)-SUM($AE56:AQ56) -> 70406 | AS56: =ROUNDDOWN(X$10/$F56,0)-SUM($AE56:AR56) -> 70406 | AT56: =ROUNDDOWN(Y$10/$F56,0)-SUM($AE56:AS56) -> 70406 | AU56: =ROUNDDOWN(Z$10/$F56,0)-SUM($AE56:AT56) -> 70406 | AV56: =ROUNDDOWN(AA$10/$F56,0)-SUM($AE56:AU56) -> 70406 | AW56: =ROUNDDOWN(AB$10/$F56,0)-SUM($AE56:AV56) -> 70406 | AX56: =ROUNDDOWN(AC$10/$F56,0)-SUM($AE56:AW56) -> 70406
B57: A4 | C57: Manto. Carroceria (Híbrido) | D57: UND | E57: 1 | F57: 1 | G57: 0.0108 | H57: Carrocería | J57: =+AE57*$E57*$G57*(1+'Sup Generales'!C$10) -> 778.6340352 | K57: =+AF57*$E57*$G57*(1+'Sup Generales'!D$10) -> 791.0921798 | L57: =+AG57*$E57*$G57*(1+'Sup Generales'!E$10) -> 811.6605764 | M57: =+AH57*$E57*$G57*(1+'Sup Generales'!F$10) -> 815.1669501 | N57: =+AI57*$E57*$G57*(1+'Sup Generales'!G$10) -> 817.3679009 | O57: =+AJ57*$E57*$G57*(1+'Sup Generales'!H$10) -> 822.8442658 | P57: =+AK57*$E57*$G57*(1+'Sup Generales'!I$10) -> 838.8167016 | Q57: =+AL57*$E57*$G57*(1+'Sup Generales'!J$10) -> 853.373448 | R57: =+AM57*$E57*$G57*(1+'Sup Generales'!K$10) -> 865.7991154 | S57: =+AN57*$E57*$G57*(1+'Sup Generales'!L$10) -> 877.3841354 | T57: =+AO57*$E57*$G57*(1+'Sup Generales'!M$10) -> 888.8369075 | U57: =+AP57*$E57*$G57*(1+'Sup Generales'!N$10) -> 899.0007399 | V57: =+AQ57*$E57*$G57*(1+'Sup Generales'!O$10) -> 910.0803422 | W57: =+AR57*$E57*$G57*(1+'Sup Generales'!P$10) -> 922.3913601 | X57: =+AS57*$E57*$G57*(1+'Sup Generales'!Q$10) -> 935.6561055 | Y57: =+AT57*$E57*$G57*(1+'Sup Generales'!R$10) -> 948.523265 | Z57: =+AU57*$E57*$G57*(1+'Sup Generales'!S$10) -> 961.1403145 | AA57: =+AV57*$E57*$G57*(1+'Sup Generales'!T$10) -> 973.7739503 | AB57: =+AW57*$E57*$G57*(1+'Sup Generales'!U$10) -> 986.5448849 | AC57: =+AX57*$E57*$G57*(1+'Sup Generales'!V$10) -> 999.4909017 | AD57: 0.01256823146 | AE57: 70406 | AF57: =ROUNDDOWN(K$10/$F57,0)-SUM($AE57:AE57) -> 70406 | AG57: =ROUNDDOWN(L$10/$F57,0)-SUM($AE57:AF57) -> 70406 | AH57: =ROUNDDOWN(M$10/$F57,0)-SUM($AE57:AG57) -> 70406 | AI57: =ROUNDDOWN(N$10/$F57,0)-SUM($AE57:AH57) -> 70406 | AJ57: =ROUNDDOWN(O$10/$F57,0)-SUM($AE57:AI57) -> 70406 | AK57: =ROUNDDOWN(P$10/$F57,0)-SUM($AE57:AJ57) -> 70406 | AL57: =ROUNDDOWN(Q$10/$F57,0)-SUM($AE57:AK57) -> 70406 | AM57: =ROUNDDOWN(R$10/$F57,0)-SUM($AE57:AL57) -> 70406 | AN57: =ROUNDDOWN(S$10/$F57,0)-SUM($AE57:AM57) -> 70406 | AO57: =ROUNDDOWN(T$10/$F57,0)-SUM($AE57:AN57) -> 70406 | AP57: =ROUNDDOWN(U$10/$F57,0)-SUM($AE57:AO57) -> 70406 | AQ57: =ROUNDDOWN(V$10/$F57,0)-SUM($AE57:AP57) -> 70406 | AR57: =ROUNDDOWN(W$10/$F57,0)-SUM($AE57:AQ57) -> 70406 | AS57: =ROUNDDOWN(X$10/$F57,0)-SUM($AE57:AR57) -> 70406 | AT57: =ROUNDDOWN(Y$10/$F57,0)-SUM($AE57:AS57) -> 70406 | AU57: =ROUNDDOWN(Z$10/$F57,0)-SUM($AE57:AT57) -> 70406 | AV57: =ROUNDDOWN(AA$10/$F57,0)-SUM($AE57:AU57) -> 70406 | AW57: =ROUNDDOWN(AB$10/$F57,0)-SUM($AE57:AV57) -> 70406 | AX57: =ROUNDDOWN(AC$10/$F57,0)-SUM($AE57:AW57) -> 70406
B58: B1 | C58: Filtros y Lubricantes (Eléctrico) | D58: UND | E58: 1 | F58: 1 | G58: =G54*1.2 -> 0.1896 | H58: Aceites y filtros | J58: =+AE58*$E58*$G58*(1+'Sup Generales'!C$10) -> 13669.35306 | K58: =+AF58*$E58*$G58*(1+'Sup Generales'!D$10) -> 13888.06271 | L58: =+AG58*$E58*$G58*(1+'Sup Generales'!E$10) -> 14249.15234 | M58: =+AH58*$E58*$G58*(1+'Sup Generales'!F$10) -> 14310.70868 | N58: =+AI58*$E58*$G58*(1+'Sup Generales'!G$10) -> 14349.34759 | O58: =+AJ58*$E58*$G58*(1+'Sup Generales'!H$10) -> 14445.48822 | P58: =+AK58*$E58*$G58*(1+'Sup Generales'!I$10) -> 14725.89321 | Q58: =+AL58*$E58*$G58*(1+'Sup Generales'!J$10) -> 14981.44498 | R58: =+AM58*$E58*$G58*(1+'Sup Generales'!K$10) -> 15199.58447 | S58: =+AN58*$E58*$G58*(1+'Sup Generales'!L$10) -> 15402.96593 | T58: =+AO58*$E58*$G58*(1+'Sup Generales'!M$10) -> 15604.02571 | U58: =+AP58*$E58*$G58*(1+'Sup Generales'!N$10) -> 15782.45743 | V58: =+AQ58*$E58*$G58*(1+'Sup Generales'!O$10) -> 15976.96601 | W58: =+AR58*$E58*$G58*(1+'Sup Generales'!P$10) -> 16193.09277 | X58: =+AS58*$E58*$G58*(1+'Sup Generales'!Q$10) -> 16425.96274 | Y58: =+AT58*$E58*$G58*(1+'Sup Generales'!R$10) -> 16651.85287 | Z58: =+AU58*$E58*$G58*(1+'Sup Generales'!S$10) -> 16873.35219 | AA58: =+AV58*$E58*$G58*(1+'Sup Generales'!T$10) -> 17095.14268 | AB58: =+AW58*$E58*$G58*(1+'Sup Generales'!U$10) -> 17319.34354 | AC58: =+AX58*$E58*$G58*(1+'Sup Generales'!V$10) -> 17546.61805 | AD58: 0.2206422856 | AE58: 70406 | AF58: =ROUNDDOWN(K$10/$F58,0)-SUM($AE58:AE58) -> 70406 | AG58: =ROUNDDOWN(L$10/$F58,0)-SUM($AE58:AF58) -> 70406 | AH58: =ROUNDDOWN(M$10/$F58,0)-SUM($AE58:AG58) -> 70406 | AI58: =ROUNDDOWN(N$10/$F58,0)-SUM($AE58:AH58) -> 70406 | AJ58: =ROUNDDOWN(O$10/$F58,0)-SUM($AE58:AI58) -> 70406 | AK58: =ROUNDDOWN(P$10/$F58,0)-SUM($AE58:AJ58) -> 70406 | AL58: =ROUNDDOWN(Q$10/$F58,0)-SUM($AE58:AK58) -> 70406 | AM58: =ROUNDDOWN(R$10/$F58,0)-SUM($AE58:AL58) -> 70406 | AN58: =ROUNDDOWN(S$10/$F58,0)-SUM($AE58:AM58) -> 70406 | AO58: =ROUNDDOWN(T$10/$F58,0)-SUM($AE58:AN58) -> 70406 | AP58: =ROUNDDOWN(U$10/$F58,0)-SUM($AE58:AO58) -> 70406 | AQ58: =ROUNDDOWN(V$10/$F58,0)-SUM($AE58:AP58) -> 70406 | AR58: =ROUNDDOWN(W$10/$F58,0)-SUM($AE58:AQ58) -> 70406 | AS58: =ROUNDDOWN(X$10/$F58,0)-SUM($AE58:AR58) -> 70406 | AT58: =ROUNDDOWN(Y$10/$F58,0)-SUM($AE58:AS58) -> 70406 | AU58: =ROUNDDOWN(Z$10/$F58,0)-SUM($AE58:AT58) -> 70406 | AV58: =ROUNDDOWN(AA$10/$F58,0)-SUM($AE58:AU58) -> 70406 | AW58: =ROUNDDOWN(AB$10/$F58,0)-SUM($AE58:AV58) -> 70406 | AX58: =ROUNDDOWN(AC$10/$F58,0)-SUM($AE58:AW58) -> 70406
B59: B2 | C59: Mantenimiento Electrico (Eléctrico) | D59: UND | E59: 1 | F59: 1 | G59: =G55*1.2 -> 0.0588 | H59: Costo de mantenimiento eléctrico | J59: =+AE59*$E59*$G59*(1+'Sup Generales'!C$10) -> 4239.229747 | K59: =+AF59*$E59*$G59*(1+'Sup Generales'!D$10) -> 4307.057423 | L59: =+AG59*$E59*$G59*(1+'Sup Generales'!E$10) -> 4419.040916 | M59: =+AH59*$E59*$G59*(1+'Sup Generales'!F$10) -> 4438.131173 | N59: =+AI59*$E59*$G59*(1+'Sup Generales'!G$10) -> 4450.114127 | O59: =+AJ59*$E59*$G59*(1+'Sup Generales'!H$10) -> 4479.929892 | P59: =+AK59*$E59*$G59*(1+'Sup Generales'!I$10) -> 4566.890931 | Q59: =+AL59*$E59*$G59*(1+'Sup Generales'!J$10) -> 4646.144328 | R59: =+AM59*$E59*$G59*(1+'Sup Generales'!K$10) -> 4713.795184 | S59: =+AN59*$E59*$G59*(1+'Sup Generales'!L$10) -> 4776.869181 | T59: =+AO59*$E59*$G59*(1+'Sup Generales'!M$10) -> 4839.223163 | U59: =+AP59*$E59*$G59*(1+'Sup Generales'!N$10) -> 4894.559584 | V59: =+AQ59*$E59*$G59*(1+'Sup Generales'!O$10) -> 4954.881863 | W59: =+AR59*$E59*$G59*(1+'Sup Generales'!P$10) -> 5021.908516 | X59: =+AS59*$E59*$G59*(1+'Sup Generales'!Q$10) -> 5094.127686 | Y59: =+AT59*$E59*$G59*(1+'Sup Generales'!R$10) -> 5164.18222 | Z59: =+AU59*$E59*$G59*(1+'Sup Generales'!S$10) -> 5232.875046 | AA59: =+AV59*$E59*$G59*(1+'Sup Generales'!T$10) -> 5301.658174 | AB59: =+AW59*$E59*$G59*(1+'Sup Generales'!U$10) -> 5371.188818 | AC59: =+AX59*$E59*$G59*(1+'Sup Generales'!V$10) -> 5441.672687 | AD59: 0.06842703794 | AE59: 70406 | AF59: =ROUNDDOWN(K$10/$F59,0)-SUM($AE59:AE59) -> 70406 | AG59: =ROUNDDOWN(L$10/$F59,0)-SUM($AE59:AF59) -> 70406 | AH59: =ROUNDDOWN(M$10/$F59,0)-SUM($AE59:AG59) -> 70406 | AI59: =ROUNDDOWN(N$10/$F59,0)-SUM($AE59:AH59) -> 70406 | AJ59: =ROUNDDOWN(O$10/$F59,0)-SUM($AE59:AI59) -> 70406 | AK59: =ROUNDDOWN(P$10/$F59,0)-SUM($AE59:AJ59) -> 70406 | AL59: =ROUNDDOWN(Q$10/$F59,0)-SUM($AE59:AK59) -> 70406 | AM59: =ROUNDDOWN(R$10/$F59,0)-SUM($AE59:AL59) -> 70406 | AN59: =ROUNDDOWN(S$10/$F59,0)-SUM($AE59:AM59) -> 70406 | AO59: =ROUNDDOWN(T$10/$F59,0)-SUM($AE59:AN59) -> 70406 | AP59: =ROUNDDOWN(U$10/$F59,0)-SUM($AE59:AO59) -> 70406 | AQ59: =ROUNDDOWN(V$10/$F59,0)-SUM($AE59:AP59) -> 70406 | AR59: =ROUNDDOWN(W$10/$F59,0)-SUM($AE59:AQ59) -> 70406 | AS59: =ROUNDDOWN(X$10/$F59,0)-SUM($AE59:AR59) -> 70406 | AT59: =ROUNDDOWN(Y$10/$F59,0)-SUM($AE59:AS59) -> 70406 | AU59: =ROUNDDOWN(Z$10/$F59,0)-SUM($AE59:AT59) -> 70406 | AV59: =ROUNDDOWN(AA$10/$F59,0)-SUM($AE59:AU59) -> 70406 | AW59: =ROUNDDOWN(AB$10/$F59,0)-SUM($AE59:AV59) -> 70406 | AX59: =ROUNDDOWN(AC$10/$F59,0)-SUM($AE59:AW59) -> 70406
B60: B3 | C60: Manto. Chasis y Motor (Eléctrico) | D60: UND | E60: 1 | F60: 1 | G60: =G56*1.2 -> 0.11664 | H60: Costo de mantenimiento mecánico | J60: =+AE60*$E60*$G60*(1+'Sup Generales'!C$10) -> 8409.24758 | K60: =+AF60*$E60*$G60*(1+'Sup Generales'!D$10) -> 8543.795541 | L60: =+AG60*$E60*$G60*(1+'Sup Generales'!E$10) -> 8765.934226 | M60: =+AH60*$E60*$G60*(1+'Sup Generales'!F$10) -> 8803.803061 | N60: =+AI60*$E60*$G60*(1+'Sup Generales'!G$10) -> 8827.57333 | O60: =+AJ60*$E60*$G60*(1+'Sup Generales'!H$10) -> 8886.718071 | P60: =+AK60*$E60*$G60*(1+'Sup Generales'!I$10) -> 9059.220377 | Q60: =+AL60*$E60*$G60*(1+'Sup Generales'!J$10) -> 9216.433238 | R60: =+AM60*$E60*$G60*(1+'Sup Generales'!K$10) -> 9350.630446 | S60: =+AN60*$E60*$G60*(1+'Sup Generales'!L$10) -> 9475.748662 | T60: =+AO60*$E60*$G60*(1+'Sup Generales'!M$10) -> 9599.438601 | U60: =+AP60*$E60*$G60*(1+'Sup Generales'!N$10) -> 9709.207991 | V60: =+AQ60*$E60*$G60*(1+'Sup Generales'!O$10) -> 9828.867695 | W60: =+AR60*$E60*$G60*(1+'Sup Generales'!P$10) -> 9961.826689 | X60: =+AS60*$E60*$G60*(1+'Sup Generales'!Q$10) -> 10105.08594 | Y60: =+AT60*$E60*$G60*(1+'Sup Generales'!R$10) -> 10244.05126 | Z60: =+AU60*$E60*$G60*(1+'Sup Generales'!S$10) -> 10380.3154 | AA60: =+AV60*$E60*$G60*(1+'Sup Generales'!T$10) -> 10516.75866 | AB60: =+AW60*$E60*$G60*(1+'Sup Generales'!U$10) -> 10654.68476 | AC60: =+AX60*$E60*$G60*(1+'Sup Generales'!V$10) -> 10794.50174 | AD60: 0.1357368997 | AE60: 70406 | AF60: =ROUNDDOWN(K$10/$F60,0)-SUM($AE60:AE60) -> 70406 | AG60: =ROUNDDOWN(L$10/$F60,0)-SUM($AE60:AF60) -> 70406 | AH60: =ROUNDDOWN(M$10/$F60,0)-SUM($AE60:AG60) -> 70406 | AI60: =ROUNDDOWN(N$10/$F60,0)-SUM($AE60:AH60) -> 70406 | AJ60: =ROUNDDOWN(O$10/$F60,0)-SUM($AE60:AI60) -> 70406 | AK60: =ROUNDDOWN(P$10/$F60,0)-SUM($AE60:AJ60) -> 70406 | AL60: =ROUNDDOWN(Q$10/$F60,0)-SUM($AE60:AK60) -> 70406 | AM60: =ROUNDDOWN(R$10/$F60,0)-SUM($AE60:AL60) -> 70406 | AN60: =ROUNDDOWN(S$10/$F60,0)-SUM($AE60:AM60) -> 70406 | AO60: =ROUNDDOWN(T$10/$F60,0)-SUM($AE60:AN60) -> 70406 | AP60: =ROUNDDOWN(U$10/$F60,0)-SUM($AE60:AO60) -> 70406 | AQ60: =ROUNDDOWN(V$10/$F60,0)-SUM($AE60:AP60) -> 70406 | AR60: =ROUNDDOWN(W$10/$F60,0)-SUM($AE60:AQ60) -> 70406 | AS60: =ROUNDDOWN(X$10/$F60,0)-SUM($AE60:AR60) -> 70406 | AT60: =ROUNDDOWN(Y$10/$F60,0)-SUM($AE60:AS60) -> 70406 | AU60: =ROUNDDOWN(Z$10/$F60,0)-SUM($AE60:AT60) -> 70406 | AV60: =ROUNDDOWN(AA$10/$F60,0)-SUM($AE60:AU60) -> 70406 | AW60: =ROUNDDOWN(AB$10/$F60,0)-SUM($AE60:AV60) -> 70406 | AX60: =ROUNDDOWN(AC$10/$F60,0)-SUM($AE60:AW60) -> 70406
B61: B4 | C61: Manto. Carroceria (Eléctrico) | D61: UND | E61: 1 | F61: 1 | G61: 0.01296 | H61: Carrocería | J61: =+AE61*$E61*$G61*(1+'Sup Generales'!C$10) -> 934.3608422 | K61: =+AF61*$E61*$G61*(1+'Sup Generales'!D$10) -> 949.3106157 | L61: =+AG61*$E61*$G61*(1+'Sup Generales'!E$10) -> 973.9926917 | M61: =+AH61*$E61*$G61*(1+'Sup Generales'!F$10) -> 978.2003402 | N61: =+AI61*$E61*$G61*(1+'Sup Generales'!G$10) -> 980.8414811 | O61: =+AJ61*$E61*$G61*(1+'Sup Generales'!H$10) -> 987.413119 | P61: =+AK61*$E61*$G61*(1+'Sup Generales'!I$10) -> 1006.580042 | Q61: =+AL61*$E61*$G61*(1+'Sup Generales'!J$10) -> 1024.048138 | R61: =+AM61*$E61*$G61*(1+'Sup Generales'!K$10) -> 1038.958938 | S61: =+AN61*$E61*$G61*(1+'Sup Generales'!L$10) -> 1052.860962 | T61: =+AO61*$E61*$G61*(1+'Sup Generales'!M$10) -> 1066.604289 | U61: =+AP61*$E61*$G61*(1+'Sup Generales'!N$10) -> 1078.800888 | V61: =+AQ61*$E61*$G61*(1+'Sup Generales'!O$10) -> 1092.096411 | W61: =+AR61*$E61*$G61*(1+'Sup Generales'!P$10) -> 1106.869632 | X61: =+AS61*$E61*$G61*(1+'Sup Generales'!Q$10) -> 1122.787327 | Y61: =+AT61*$E61*$G61*(1+'Sup Generales'!R$10) -> 1138.227918 | Z61: =+AU61*$E61*$G61*(1+'Sup Generales'!S$10) -> 1153.368377 | AA61: =+AV61*$E61*$G61*(1+'Sup Generales'!T$10) -> 1168.52874 | AB61: =+AW61*$E61*$G61*(1+'Sup Generales'!U$10) -> 1183.853862 | AC61: =+AX61*$E61*$G61*(1+'Sup Generales'!V$10) -> 1199.389082 | AD61: 0.01508187775 | AE61: 70406 | AF61: =ROUNDDOWN(K$10/$F61,0)-SUM($AE61:AE61) -> 70406 | AG61: =ROUNDDOWN(L$10/$F61,0)-SUM($AE61:AF61) -> 70406 | AH61: =ROUNDDOWN(M$10/$F61,0)-SUM($AE61:AG61) -> 70406 | AI61: =ROUNDDOWN(N$10/$F61,0)-SUM($AE61:AH61) -> 70406 | AJ61: =ROUNDDOWN(O$10/$F61,0)-SUM($AE61:AI61) -> 70406 | AK61: =ROUNDDOWN(P$10/$F61,0)-SUM($AE61:AJ61) -> 70406 | AL61: =ROUNDDOWN(Q$10/$F61,0)-SUM($AE61:AK61) -> 70406 | AM61: =ROUNDDOWN(R$10/$F61,0)-SUM($AE61:AL61) -> 70406 | AN61: =ROUNDDOWN(S$10/$F61,0)-SUM($AE61:AM61) -> 70406 | AO61: =ROUNDDOWN(T$10/$F61,0)-SUM($AE61:AN61) -> 70406 | AP61: =ROUNDDOWN(U$10/$F61,0)-SUM($AE61:AO61) -> 70406 | AQ61: =ROUNDDOWN(V$10/$F61,0)-SUM($AE61:AP61) -> 70406 | AR61: =ROUNDDOWN(W$10/$F61,0)-SUM($AE61:AQ61) -> 70406 | AS61: =ROUNDDOWN(X$10/$F61,0)-SUM($AE61:AR61) -> 70406 | AT61: =ROUNDDOWN(Y$10/$F61,0)-SUM($AE61:AS61) -> 70406 | AU61: =ROUNDDOWN(Z$10/$F61,0)-SUM($AE61:AT61) -> 70406 | AV61: =ROUNDDOWN(AA$10/$F61,0)-SUM($AE61:AU61) -> 70406 | AW61: =ROUNDDOWN(AB$10/$F61,0)-SUM($AE61:AV61) -> 70406 | AX61: =ROUNDDOWN(AC$10/$F61,0)-SUM($AE61:AW61) -> 70406
B62: C1 | C62: Filtros y Lubricantes (Gas) | D62: UND | E62: 1 | F62: 1 | G62: 0.158 | H62: Aceites y filtros | J62: =+AE62*$E62*$G62*(1+'Sup Generales'!C$10) -> 11391.12755 | K62: =+AF62*$E62*$G62*(1+'Sup Generales'!D$10) -> 11573.38559 | L62: =+AG62*$E62*$G62*(1+'Sup Generales'!E$10) -> 11874.29362 | M62: =+AH62*$E62*$G62*(1+'Sup Generales'!F$10) -> 11925.59057 | N62: =+AI62*$E62*$G62*(1+'Sup Generales'!G$10) -> 11957.78966 | O62: =+AJ62*$E62*$G62*(1+'Sup Generales'!H$10) -> 12037.90685 | P62: =+AK62*$E62*$G62*(1+'Sup Generales'!I$10) -> 12271.57767 | Q62: =+AL62*$E62*$G62*(1+'Sup Generales'!J$10) -> 12484.53748 | R62: =+AM62*$E62*$G62*(1+'Sup Generales'!K$10) -> 12666.32039 | S62: =+AN62*$E62*$G62*(1+'Sup Generales'!L$10) -> 12835.80494 | T62: =+AO62*$E62*$G62*(1+'Sup Generales'!M$10) -> 13003.35476 | U62: =+AP62*$E62*$G62*(1+'Sup Generales'!N$10) -> 13152.04786 | V62: =+AQ62*$E62*$G62*(1+'Sup Generales'!O$10) -> 13314.13834 | W62: =+AR62*$E62*$G62*(1+'Sup Generales'!P$10) -> 13494.24397 | X62: =+AS62*$E62*$G62*(1+'Sup Generales'!Q$10) -> 13688.30228 | Y62: =+AT62*$E62*$G62*(1+'Sup Generales'!R$10) -> 13876.54406 | Z62: =+AU62*$E62*$G62*(1+'Sup Generales'!S$10) -> 14061.12682 | AA62: =+AV62*$E62*$G62*(1+'Sup Generales'!T$10) -> 14245.95224 | AB62: =+AW62*$E62*$G62*(1+'Sup Generales'!U$10) -> 14432.78628 | AC62: =+AX62*$E62*$G62*(1+'Sup Generales'!V$10) -> 14622.18171 | AD62: 0.1838685713 | AE62: 70406 | AF62: =ROUNDDOWN(K$10/$F62,0)-SUM($AE62:AE62) -> 70406 | AG62: =ROUNDDOWN(L$10/$F62,0)-SUM($AE62:AF62) -> 70406 | AH62: =ROUNDDOWN(M$10/$F62,0)-SUM($AE62:AG62) -> 70406 | AI62: =ROUNDDOWN(N$10/$F62,0)-SUM($AE62:AH62) -> 70406 | AJ62: =ROUNDDOWN(O$10/$F62,0)-SUM($AE62:AI62) -> 70406 | AK62: =ROUNDDOWN(P$10/$F62,0)-SUM($AE62:AJ62) -> 70406 | AL62: =ROUNDDOWN(Q$10/$F62,0)-SUM($AE62:AK62) -> 70406 | AM62: =ROUNDDOWN(R$10/$F62,0)-SUM($AE62:AL62) -> 70406 | AN62: =ROUNDDOWN(S$10/$F62,0)-SUM($AE62:AM62) -> 70406 | AO62: =ROUNDDOWN(T$10/$F62,0)-SUM($AE62:AN62) -> 70406 | AP62: =ROUNDDOWN(U$10/$F62,0)-SUM($AE62:AO62) -> 70406 | AQ62: =ROUNDDOWN(V$10/$F62,0)-SUM($AE62:AP62) -> 70406 | AR62: =ROUNDDOWN(W$10/$F62,0)-SUM($AE62:AQ62) -> 70406 | AS62: =ROUNDDOWN(X$10/$F62,0)-SUM($AE62:AR62) -> 70406 | AT62: =ROUNDDOWN(Y$10/$F62,0)-SUM($AE62:AS62) -> 70406 | AU62: =ROUNDDOWN(Z$10/$F62,0)-SUM($AE62:AT62) -> 70406 | AV62: =ROUNDDOWN(AA$10/$F62,0)-SUM($AE62:AU62) -> 70406 | AW62: =ROUNDDOWN(AB$10/$F62,0)-SUM($AE62:AV62) -> 70406 | AX62: =ROUNDDOWN(AC$10/$F62,0)-SUM($AE62:AW62) -> 70406
B63: C2 | C63: Mantenimiento Electrico (Gas) | D63: UND | E63: 1 | F63: 1 | G63: 0.049 | H63: Costo de mantenimiento eléctrico | J63: =+AE63*$E63*$G63*(1+'Sup Generales'!C$10) -> 3532.691456 | K63: =+AF63*$E63*$G63*(1+'Sup Generales'!D$10) -> 3589.214519 | L63: =+AG63*$E63*$G63*(1+'Sup Generales'!E$10) -> 3682.534097 | M63: =+AH63*$E63*$G63*(1+'Sup Generales'!F$10) -> 3698.442644 | N63: =+AI63*$E63*$G63*(1+'Sup Generales'!G$10) -> 3708.428439 | O63: =+AJ63*$E63*$G63*(1+'Sup Generales'!H$10) -> 3733.27491 | P63: =+AK63*$E63*$G63*(1+'Sup Generales'!I$10) -> 3805.742442 | Q63: =+AL63*$E63*$G63*(1+'Sup Generales'!J$10) -> 3871.78694 | R63: =+AM63*$E63*$G63*(1+'Sup Generales'!K$10) -> 3928.162653 | S63: =+AN63*$E63*$G63*(1+'Sup Generales'!L$10) -> 3980.724318 | T63: =+AO63*$E63*$G63*(1+'Sup Generales'!M$10) -> 4032.685969 | U63: =+AP63*$E63*$G63*(1+'Sup Generales'!N$10) -> 4078.799653 | V63: =+AQ63*$E63*$G63*(1+'Sup Generales'!O$10) -> 4129.068219 | W63: =+AR63*$E63*$G63*(1+'Sup Generales'!P$10) -> 4184.923763 | X63: =+AS63*$E63*$G63*(1+'Sup Generales'!Q$10) -> 4245.106405 | Y63: =+AT63*$E63*$G63*(1+'Sup Generales'!R$10) -> 4303.485184 | Z63: =+AU63*$E63*$G63*(1+'Sup Generales'!S$10) -> 4360.729205 | AA63: =+AV63*$E63*$G63*(1+'Sup Generales'!T$10) -> 4418.048478 | AB63: =+AW63*$E63*$G63*(1+'Sup Generales'!U$10) -> 4475.990682 | AC63: =+AX63*$E63*$G63*(1+'Sup Generales'!V$10) -> 4534.727239 | AD63: 0.05702253161 | AE63: 70406 | AF63: =ROUNDDOWN(K$10/$F63,0)-SUM($AE63:AE63) -> 70406 | AG63: =ROUNDDOWN(L$10/$F63,0)-SUM($AE63:AF63) -> 70406 | AH63: =ROUNDDOWN(M$10/$F63,0)-SUM($AE63:AG63) -> 70406 | AI63: =ROUNDDOWN(N$10/$F63,0)-SUM($AE63:AH63) -> 70406 | AJ63: =ROUNDDOWN(O$10/$F63,0)-SUM($AE63:AI63) -> 70406 | AK63: =ROUNDDOWN(P$10/$F63,0)-SUM($AE63:AJ63) -> 70406 | AL63: =ROUNDDOWN(Q$10/$F63,0)-SUM($AE63:AK63) -> 70406 | AM63: =ROUNDDOWN(R$10/$F63,0)-SUM($AE63:AL63) -> 70406 | AN63: =ROUNDDOWN(S$10/$F63,0)-SUM($AE63:AM63) -> 70406 | AO63: =ROUNDDOWN(T$10/$F63,0)-SUM($AE63:AN63) -> 70406 | AP63: =ROUNDDOWN(U$10/$F63,0)-SUM($AE63:AO63) -> 70406 | AQ63: =ROUNDDOWN(V$10/$F63,0)-SUM($AE63:AP63) -> 70406 | AR63: =ROUNDDOWN(W$10/$F63,0)-SUM($AE63:AQ63) -> 70406 | AS63: =ROUNDDOWN(X$10/$F63,0)-SUM($AE63:AR63) -> 70406 | AT63: =ROUNDDOWN(Y$10/$F63,0)-SUM($AE63:AS63) -> 70406 | AU63: =ROUNDDOWN(Z$10/$F63,0)-SUM($AE63:AT63) -> 70406 | AV63: =ROUNDDOWN(AA$10/$F63,0)-SUM($AE63:AU63) -> 70406 | AW63: =ROUNDDOWN(AB$10/$F63,0)-SUM($AE63:AV63) -> 70406 | AX63: =ROUNDDOWN(AC$10/$F63,0)-SUM($AE63:AW63) -> 70406
B64: C3 | C64: Manto. Chasis y Motor (Gas) | D64: UND | E64: 1 | F64: 1 | G64: 0.0972 | H64: Costo de mantenimiento mecánico | J64: =+AE64*$E64*$G64*(1+'Sup Generales'!C$10) -> 7007.706317 | K64: =+AF64*$E64*$G64*(1+'Sup Generales'!D$10) -> 7119.829618 | L64: =+AG64*$E64*$G64*(1+'Sup Generales'!E$10) -> 7304.945188 | M64: =+AH64*$E64*$G64*(1+'Sup Generales'!F$10) -> 7336.502551 | N64: =+AI64*$E64*$G64*(1+'Sup Generales'!G$10) -> 7356.311108 | O64: =+AJ64*$E64*$G64*(1+'Sup Generales'!H$10) -> 7405.598392 | P64: =+AK64*$E64*$G64*(1+'Sup Generales'!I$10) -> 7549.350314 | Q64: =+AL64*$E64*$G64*(1+'Sup Generales'!J$10) -> 7680.361032 | R64: =+AM64*$E64*$G64*(1+'Sup Generales'!K$10) -> 7792.192039 | S64: =+AN64*$E64*$G64*(1+'Sup Generales'!L$10) -> 7896.457218 | T64: =+AO64*$E64*$G64*(1+'Sup Generales'!M$10) -> 7999.532168 | U64: =+AP64*$E64*$G64*(1+'Sup Generales'!N$10) -> 8091.00666 | V64: =+AQ64*$E64*$G64*(1+'Sup Generales'!O$10) -> 8190.723079 | W64: =+AR64*$E64*$G64*(1+'Sup Generales'!P$10) -> 8301.522241 | X64: =+AS64*$E64*$G64*(1+'Sup Generales'!Q$10) -> 8420.90495 | Y64: =+AT64*$E64*$G64*(1+'Sup Generales'!R$10) -> 8536.709385 | Z64: =+AU64*$E64*$G64*(1+'Sup Generales'!S$10) -> 8650.26283 | AA64: =+AV64*$E64*$G64*(1+'Sup Generales'!T$10) -> 8763.965552 | AB64: =+AW64*$E64*$G64*(1+'Sup Generales'!U$10) -> 8878.903964 | AC64: =+AX64*$E64*$G64*(1+'Sup Generales'!V$10) -> 8995.418115 | AD64: 0.1131140831 | AE64: 70406 | AF64: =ROUNDDOWN(K$10/$F64,0)-SUM($AE64:AE64) -> 70406 | AG64: =ROUNDDOWN(L$10/$F64,0)-SUM($AE64:AF64) -> 70406 | AH64: =ROUNDDOWN(M$10/$F64,0)-SUM($AE64:AG64) -> 70406 | AI64: =ROUNDDOWN(N$10/$F64,0)-SUM($AE64:AH64) -> 70406 | AJ64: =ROUNDDOWN(O$10/$F64,0)-SUM($AE64:AI64) -> 70406 | AK64: =ROUNDDOWN(P$10/$F64,0)-SUM($AE64:AJ64) -> 70406 | AL64: =ROUNDDOWN(Q$10/$F64,0)-SUM($AE64:AK64) -> 70406 | AM64: =ROUNDDOWN(R$10/$F64,0)-SUM($AE64:AL64) -> 70406 | AN64: =ROUNDDOWN(S$10/$F64,0)-SUM($AE64:AM64) -> 70406 | AO64: =ROUNDDOWN(T$10/$F64,0)-SUM($AE64:AN64) -> 70406 | AP64: =ROUNDDOWN(U$10/$F64,0)-SUM($AE64:AO64) -> 70406 | AQ64: =ROUNDDOWN(V$10/$F64,0)-SUM($AE64:AP64) -> 70406 | AR64: =ROUNDDOWN(W$10/$F64,0)-SUM($AE64:AQ64) -> 70406 | AS64: =ROUNDDOWN(X$10/$F64,0)-SUM($AE64:AR64) -> 70406 | AT64: =ROUNDDOWN(Y$10/$F64,0)-SUM($AE64:AS64) -> 70406 | AU64: =ROUNDDOWN(Z$10/$F64,0)-SUM($AE64:AT64) -> 70406 | AV64: =ROUNDDOWN(AA$10/$F64,0)-SUM($AE64:AU64) -> 70406 | AW64: =ROUNDDOWN(AB$10/$F64,0)-SUM($AE64:AV64) -> 70406 | AX64: =ROUNDDOWN(AC$10/$F64,0)-SUM($AE64:AW64) -> 70406
B65: C4 | C65: Manto. Carroceria (Gas) | D65: UND | E65: 1 | F65: 1 | G65: 0.0108 | H65: Carrocería | J65: =+AE65*$E65*$G65*(1+'Sup Generales'!C$10) -> 778.6340352 | K65: =+AF65*$E65*$G65*(1+'Sup Generales'!D$10) -> 791.0921798 | L65: =+AG65*$E65*$G65*(1+'Sup Generales'!E$10) -> 811.6605764 | M65: =+AH65*$E65*$G65*(1+'Sup Generales'!F$10) -> 815.1669501 | N65: =+AI65*$E65*$G65*(1+'Sup Generales'!G$10) -> 817.3679009 | O65: =+AJ65*$E65*$G65*(1+'Sup Generales'!H$10) -> 822.8442658 | P65: =+AK65*$E65*$G65*(1+'Sup Generales'!I$10) -> 838.8167016 | Q65: =+AL65*$E65*$G65*(1+'Sup Generales'!J$10) -> 853.373448 | R65: =+AM65*$E65*$G65*(1+'Sup Generales'!K$10) -> 865.7991154 | S65: =+AN65*$E65*$G65*(1+'Sup Generales'!L$10) -> 877.3841354 | T65: =+AO65*$E65*$G65*(1+'Sup Generales'!M$10) -> 888.8369075 | U65: =+AP65*$E65*$G65*(1+'Sup Generales'!N$10) -> 899.0007399 | V65: =+AQ65*$E65*$G65*(1+'Sup Generales'!O$10) -> 910.0803422 | W65: =+AR65*$E65*$G65*(1+'Sup Generales'!P$10) -> 922.3913601 | X65: =+AS65*$E65*$G65*(1+'Sup Generales'!Q$10) -> 935.6561055 | Y65: =+AT65*$E65*$G65*(1+'Sup Generales'!R$10) -> 948.523265 | Z65: =+AU65*$E65*$G65*(1+'Sup Generales'!S$10) -> 961.1403145 | AA65: =+AV65*$E65*$G65*(1+'Sup Generales'!T$10) -> 973.7739503 | AB65: =+AW65*$E65*$G65*(1+'Sup Generales'!U$10) -> 986.5448849 | AC65: =+AX65*$E65*$G65*(1+'Sup Generales'!V$10) -> 999.4909017 | AD65: 0.01256823146 | AE65: 70406 | AF65: =ROUNDDOWN(K$10/$F65,0)-SUM($AE65:AE65) -> 70406 | AG65: =ROUNDDOWN(L$10/$F65,0)-SUM($AE65:AF65) -> 70406 | AH65: =ROUNDDOWN(M$10/$F65,0)-SUM($AE65:AG65) -> 70406 | AI65: =ROUNDDOWN(N$10/$F65,0)-SUM($AE65:AH65) -> 70406 | AJ65: =ROUNDDOWN(O$10/$F65,0)-SUM($AE65:AI65) -> 70406 | AK65: =ROUNDDOWN(P$10/$F65,0)-SUM($AE65:AJ65) -> 70406 | AL65: =ROUNDDOWN(Q$10/$F65,0)-SUM($AE65:AK65) -> 70406 | AM65: =ROUNDDOWN(R$10/$F65,0)-SUM($AE65:AL65) -> 70406 | AN65: =ROUNDDOWN(S$10/$F65,0)-SUM($AE65:AM65) -> 70406 | AO65: =ROUNDDOWN(T$10/$F65,0)-SUM($AE65:AN65) -> 70406 | AP65: =ROUNDDOWN(U$10/$F65,0)-SUM($AE65:AO65) -> 70406 | AQ65: =ROUNDDOWN(V$10/$F65,0)-SUM($AE65:AP65) -> 70406 | AR65: =ROUNDDOWN(W$10/$F65,0)-SUM($AE65:AQ65) -> 70406 | AS65: =ROUNDDOWN(X$10/$F65,0)-SUM($AE65:AR65) -> 70406 | AT65: =ROUNDDOWN(Y$10/$F65,0)-SUM($AE65:AS65) -> 70406 | AU65: =ROUNDDOWN(Z$10/$F65,0)-SUM($AE65:AT65) -> 70406 | AV65: =ROUNDDOWN(AA$10/$F65,0)-SUM($AE65:AU65) -> 70406 | AW65: =ROUNDDOWN(AB$10/$F65,0)-SUM($AE65:AV65) -> 70406 | AX65: =ROUNDDOWN(AC$10/$F65,0)-SUM($AE65:AW65) -> 70406
H68: Total | J68: =IF('Sup fijo'!$C$90='Sup fijo'!$AR$2,SUM(J13:J52),0)+IF('Sup fijo'!$C$90='Sup fijo'!$AS$2,SUM(J54:J57),0)+IF('Sup fijo'!$C$90='Sup fijo'!$AT$2,SUM(J58:J61),0)+IF('Sup fijo'!$C$90='Sup fijo'!$AU$2,SUM(J62:J65),0)+IF($L$1=$D$6,J53,0) -> 12336.30089 | K68: =IF('Sup fijo'!$C$90='Sup fijo'!$AR$2,SUM(K13:K52),0)+IF('Sup fijo'!$C$90='Sup fijo'!$AS$2,SUM(K54:K57),0)+IF('Sup fijo'!$C$90='Sup fijo'!$AT$2,SUM(K58:K61),0)+IF('Sup fijo'!$C$90='Sup fijo'!$AU$2,SUM(K62:K65),0)+IF($L$1=$D$6,K53,0) -> 19556.14707 | L68: =IF('Sup fijo'!$C$90='Sup fijo'!$AR$2,SUM(L13:L52),0)+IF('Sup fijo'!$C$90='Sup fijo'!$AS$2,SUM(L54:L57),0)+IF('Sup fijo'!$C$90='Sup fijo'!$AT$2,SUM(L58:L61),0)+IF('Sup fijo'!$C$90='Sup fijo'!$AU$2,SUM(L62:L65),0)+IF($L$1=$D$6,L53,0) -> 15974.05078 | M68: =IF('Sup fijo'!$C$90='Sup fijo'!$AR$2,SUM(M13:M52),0)+IF('Sup fijo'!$C$90='Sup fijo'!$AS$2,SUM(M54:M57),0)+IF('Sup fijo'!$C$90='Sup fijo'!$AT$2,SUM(M58:M61),0)+IF('Sup fijo'!$C$90='Sup fijo'!$AU$2,SUM(M62:M65),0)+IF($L$1=$D$6,M53,0) -> 26292.68188 | N68: =IF('Sup fijo'!$C$90='Sup fijo'!$AR$2,SUM(N13:N52),0)+IF('Sup fijo'!$C$90='Sup fijo'!$AS$2,SUM(N54:N57),0)+IF('Sup fijo'!$C$90='Sup fijo'!$AT$2,SUM(N58:N61),0)+IF('Sup fijo'!$C$90='Sup fijo'!$AU$2,SUM(N62:N65),0)+IF($L$1=$D$6,N53,0) -> 13295.25218 | O68: =IF('Sup fijo'!$C$90='Sup fijo'!$AR$2,SUM(O13:O52),0)+IF('Sup fijo'!$C$90='Sup fijo'!$AS$2,SUM(O54:O57),0)+IF('Sup fijo'!$C$90='Sup fijo'!$AT$2,SUM(O58:O61),0)+IF('Sup fijo'!$C$90='Sup fijo'!$AU$2,SUM(O62:O65),0)+IF($L$1=$D$6,O53,0) -> 25678.18837 | P68: =IF('Sup fijo'!$C$90='Sup fijo'!$AR$2,SUM(P13:P52),0)+IF('Sup fijo'!$C$90='Sup fijo'!$AS$2,SUM(P54:P57),0)+IF('Sup fijo'!$C$90='Sup fijo'!$AT$2,SUM(P58:P61),0)+IF('Sup fijo'!$C$90='Sup fijo'!$AU$2,SUM(P62:P65),0)+IF($L$1=$D$6,P53,0) -> 24626.4976 | Q68: =IF('Sup fijo'!$C$90='Sup fijo'!$AR$2,SUM(Q13:Q52),0)+IF('Sup fijo'!$C$90='Sup fijo'!$AS$2,SUM(Q54:Q57),0)+IF('Sup fijo'!$C$90='Sup fijo'!$AT$2,SUM(Q58:Q61),0)+IF('Sup fijo'!$C$90='Sup fijo'!$AU$2,SUM(Q62:Q65),0)+IF($L$1=$D$6,Q53,0) -> 17968.41259 | R68: =IF('Sup fijo'!$C$90='Sup fijo'!$AR$2,SUM(R13:R52),0)+IF('Sup fijo'!$C$90='Sup fijo'!$AS$2,SUM(R54:R57),0)+IF('Sup fijo'!$C$90='Sup fijo'!$AT$2,SUM(R58:R61),0)+IF('Sup fijo'!$C$90='Sup fijo'!$AU$2,SUM(R62:R65),0)+IF($L$1=$D$6,R53,0) -> 24909.28698 | S68: =IF('Sup fijo'!$C$90='Sup fijo'!$AR$2,SUM(S13:S52),0)+IF('Sup fijo'!$C$90='Sup fijo'!$AS$2,SUM(S54:S57),0)+IF('Sup fijo'!$C$90='Sup fijo'!$AT$2,SUM(S58:S61),0)+IF('Sup fijo'!$C$90='Sup fijo'!$AU$2,SUM(S62:S65),0)+IF($L$1=$D$6,S53,0) -> 16783.29837 | T68: =IF('Sup fijo'!$C$90='Sup fijo'!$AR$2,SUM(T13:T52),0)+IF('Sup fijo'!$C$90='Sup fijo'!$AS$2,SUM(T54:T57),0)+IF('Sup fijo'!$C$90='Sup fijo'!$AT$2,SUM(T58:T61),0)+IF('Sup fijo'!$C$90='Sup fijo'!$AU$2,SUM(T62:T65),0)+IF($L$1=$D$6,T53,0) -> 27658.40174 | U68: =IF('Sup fijo'!$C$90='Sup fijo'!$AR$2,SUM(U13:U52),0)+IF('Sup fijo'!$C$90='Sup fijo'!$AS$2,SUM(U54:U57),0)+IF('Sup fijo'!$C$90='Sup fijo'!$AT$2,SUM(U58:U61),0)+IF('Sup fijo'!$C$90='Sup fijo'!$AU$2,SUM(U62:U65),0)+IF($L$1=$D$6,U53,0) -> 26503.07461 | V68: =IF('Sup fijo'!$C$90='Sup fijo'!$AR$2,SUM(V13:V52),0)+IF('Sup fijo'!$C$90='Sup fijo'!$AS$2,SUM(V54:V57),0)+IF('Sup fijo'!$C$90='Sup fijo'!$AT$2,SUM(V58:V61),0)+IF('Sup fijo'!$C$90='Sup fijo'!$AU$2,SUM(V62:V65),0)+IF($L$1=$D$6,V53,0) -> 16858.8148 | W68: =IF('Sup fijo'!$C$90='Sup fijo'!$AR$2,SUM(W13:W52),0)+IF('Sup fijo'!$C$90='Sup fijo'!$AS$2,SUM(W54:W57),0)+IF('Sup fijo'!$C$90='Sup fijo'!$AT$2,SUM(W58:W61),0)+IF('Sup fijo'!$C$90='Sup fijo'!$AU$2,SUM(W62:W65),0)+IF($L$1=$D$6,W53,0) -> 29596.13113 | X68: =IF('Sup fijo'!$C$90='Sup fijo'!$AR$2,SUM(X13:X52),0)+IF('Sup fijo'!$C$90='Sup fijo'!$AS$2,SUM(X54:X57),0)+IF('Sup fijo'!$C$90='Sup fijo'!$AT$2,SUM(X58:X61),0)+IF('Sup fijo'!$C$90='Sup fijo'!$AU$2,SUM(X62:X65),0)+IF($L$1=$D$6,X53,0) -> 16799.40189 | Y68: =IF('Sup fijo'!$C$90='Sup fijo'!$AR$2,SUM(Y13:Y52),0)+IF('Sup fijo'!$C$90='Sup fijo'!$AS$2,SUM(Y54:Y57),0)+IF('Sup fijo'!$C$90='Sup fijo'!$AT$2,SUM(Y58:Y61),0)+IF('Sup fijo'!$C$90='Sup fijo'!$AU$2,SUM(Y62:Y65),0)+IF($L$1=$D$6,Y53,0) -> 25085.08997 | Z68: =IF('Sup fijo'!$C$90='Sup fijo'!$AR$2,SUM(Z13:Z52),0)+IF('Sup fijo'!$C$90='Sup fijo'!$AS$2,SUM(Z54:Z57),0)+IF('Sup fijo'!$C$90='Sup fijo'!$AT$2,SUM(Z58:Z61),0)+IF('Sup fijo'!$C$90='Sup fijo'!$AU$2,SUM(Z62:Z65),0)+IF($L$1=$D$6,Z53,0) -> 15389.35832 | AA68: =IF('Sup fijo'!$C$90='Sup fijo'!$AR$2,SUM(AA13:AA52),0)+IF('Sup fijo'!$C$90='Sup fijo'!$AS$2,SUM(AA54:AA57),0)+IF('Sup fijo'!$C$90='Sup fijo'!$AT$2,SUM(AA58:AA61),0)+IF('Sup fijo'!$C$90='Sup fijo'!$AU$2,SUM(AA62:AA65),0)+IF($L$1=$D$6,AA53,0) -> 43418.47164 | AB68: =IF('Sup fijo'!$C$90='Sup fijo'!$AR$2,SUM(AB13:AB52),0)+IF('Sup fijo'!$C$90='Sup fijo'!$AS$2,SUM(AB54:AB57),0)+IF('Sup fijo'!$C$90='Sup fijo'!$AT$2,SUM(AB58:AB61),0)+IF('Sup fijo'!$C$90='Sup fijo'!$AU$2,SUM(AB62:AB65),0)+IF($L$1=$D$6,AB53,0) -> 20980.96678 | AC68: =IF('Sup fijo'!$C$90='Sup fijo'!$AR$2,SUM(AC13:AC52),0)+IF('Sup fijo'!$C$90='Sup fijo'!$AS$2,SUM(AC54:AC57),0)+IF('Sup fijo'!$C$90='Sup fijo'!$AT$2,SUM(AC58:AC61),0)+IF('Sup fijo'!$C$90='Sup fijo'!$AU$2,SUM(AC62:AC65),0)+IF($L$1=$D$6,AC53,0) -> 19676.35551
H69: Costo por km | J69: =+J68/J9 -> 0.1752166134 | K69: 0.277762507 | L69: 0.2268847937 | M69: 0.3734437673 | N69: 0.1888369199 | O69: 0.3647159101 | P69: 0.3497783938 | Q69: 0.2552113824 | R69: 0.3537949461 | S69: 0.2383788082 | T69: 0.3928415439 | U69: 0.3764320457 | V69: 0.2394513933 | W69: 0.4203637634 | X69: 0.2386075319 | Y69: 0.356291935 | Z69: 0.2185802108 | AA69: 0.6166870955 | AB69: 0.2979996986 | AC69: 0.2794698677
C73: ='Sup fijo'!B18 -> Intracantonal Urbano | H73: Mes operación | J73: 12 | K73: 12 | L73: 12 | M73: 12 | N73: 12 | O73: 12 | P73: 12 | Q73: 12 | R73: 12 | S73: 12 | T73: 12 | U73: 12 | V73: 12 | W73: 12 | X73: 12 | Y73: 12 | Z73: 12 | AA73: 12 | AB73: 12 | AC73: 12
H74: Operación | J74: ='Sup fijo'!E21 -> 63826 | K74: ='Sup fijo'!F21 -> 63826 | L74: ='Sup fijo'!G21 -> 63826 | M74: ='Sup fijo'!H21 -> 63826 | N74: ='Sup fijo'!I21 -> 63826 | O74: ='Sup fijo'!J21 -> 63826 | P74: ='Sup fijo'!K21 -> 63826 | Q74: ='Sup fijo'!L21 -> 63826 | R74: ='Sup fijo'!M21 -> 63826 | S74: ='Sup fijo'!N21 -> 63826 | T74: ='Sup fijo'!O21 -> 63826 | U74: ='Sup fijo'!P21 -> 63826 | V74: ='Sup fijo'!Q21 -> 63826 | W74: ='Sup fijo'!R21 -> 63826 | X74: ='Sup fijo'!S21 -> 63826 | Y74: ='Sup fijo'!T21 -> 63826 | Z74: ='Sup fijo'!U21 -> 63826 | AA74: ='Sup fijo'!V21 -> 63826 | AB74: ='Sup fijo'!W21 -> 63826 | AC74: ='Sup fijo'!X21 -> 63826
H75: Operación acumulada | J75: =+J74 -> 63826 | K75: =+J75+K74 -> 127652 | L75: 191478 | M75: 255304 | N75: 319130 | O75: 382956 | P75: 446782 | Q75: 510608 | R75: 574434 | S75: 638260 | T75: 702086 | U75: 765912 | V75: 829738 | W75: 893564 | X75: 957390 | Y75: 1021216 | Z75: 1085042 | AA75: 1148868 | AB75: 1212694 | AC75: 1276520 | AE75: Frecuencia de ejecución labores de mantenimiento
B77: # | C77: Detalle | D77: Unidades | E77: Cantidad | F77: Intervalo Km | G77: Precio (sin IVA) | H77: Area | J77: 1 | K77: =J77+1 -> 2 | L77: 3 | M77: 4 | N77: 5 | O77: 6 | P77: 7 | Q77: 8 | R77: 9 | S77: 10 | T77: 11 | U77: 12 | V77: 13 | W77: 14 | X77: 15 | Y77: 16 | Z77: 17 | AA77: 18 | AB77: 19 | AC77: 20 | AE77: =+AE12 -> 1 | AF77: 2 | AG77: 3 | AH77: 4 | AI77: 5 | AJ77: 6 | AK77: 7 | AL77: 8 | AM77: 9 | AN77: 10 | AO77: 11 | AP77: 12 | AQ77: 13 | AR77: 14 | AS77: 15 | AT77: 16 | AU77: 17 | AV77: 18 | AW77: 19 | AX77: 20
B78: 1 | C78: LLANTAS | D78: UD. | E78: 6 | F78: 46170 | G78: 449.8285714 | H78: =+H13 -> Neumáticos | J78: =+AE78*$E78*$G78*(1+'Sup Generales'!C$10) -> 2763.746743 | K78: =+AF78*$E78*$G78*(1+'Sup Generales'!D$10) -> 2807.966691 | L78: =+AG78*$E78*$G78*(1+'Sup Generales'!E$10) -> 5761.947649 | M78: =+AH78*$E78*$G78*(1+'Sup Generales'!F$10) -> 2893.419632 | N78: =+AI78*$E78*$G78*(1+'Sup Generales'!G$10) -> 2901.231865 | O78: =+AJ78*$E78*$G78*(1+'Sup Generales'!H$10) -> 5841.340236 | P78: =+AK78*$E78*$G78*(1+'Sup Generales'!I$10) -> 2977.363976 | Q78: =+AL78*$E78*$G78*(1+'Sup Generales'!J$10) -> 6058.065743 | R78: =+AM78*$E78*$G78*(1+'Sup Generales'!K$10) -> 3073.137542 | S78: =+AN78*$E78*$G78*(1+'Sup Generales'!L$10) -> 3114.258351 | T78: =+AO78*$E78*$G78*(1+'Sup Generales'!M$10) -> 6309.819497 | U78: =+AP78*$E78*$G78*(1+'Sup Generales'!N$10) -> 3190.986079 | V78: =+AQ78*$E78*$G78*(1+'Sup Generales'!O$10) -> 3230.312917 | W78: =+AR78*$E78*$G78*(1+'Sup Generales'!P$10) -> 6548.021283 | X78: =+AS78*$E78*$G78*(1+'Sup Generales'!Q$10) -> 3321.093604 | Y78: =+AT78*$E78*$G78*(1+'Sup Generales'!R$10) -> 6733.530685 | Z78: =+AU78*$E78*$G78*(1+'Sup Generales'!S$10) -> 3411.54932 | AA78: =+AV78*$E78*$G78*(1+'Sup Generales'!T$10) -> 3456.392171 | AB78: =+AW78*$E78*$G78*(1+'Sup Generales'!U$10) -> 7003.444723 | AC78: =+AX78*$E78*$G78*(1+'Sup Generales'!V$10) -> 3547.674002 | AE78: =ROUNDDOWN(J$75/$F78,0) -> 1 | AF78: =ROUNDDOWN(K$75/$F78,0)-SUM($AE78:AE78) -> 1 | AG78: =ROUNDDOWN(L$75/$F78,0)-SUM($AE78:AF78) -> 2 | AH78: =ROUNDDOWN(M$75/$F78,0)-SUM($AE78:AG78) -> 1 | AI78: =ROUNDDOWN(N$75/$F78,0)-SUM($AE78:AH78) -> 1 | AJ78: =ROUNDDOWN(O$75/$F78,0)-SUM($AE78:AI78) -> 2 | AK78: =ROUNDDOWN(P$75/$F78,0)-SUM($AE78:AJ78) -> 1 | AL78: =ROUNDDOWN(Q$75/$F78,0)-SUM($AE78:AK78) -> 2 | AM78: =ROUNDDOWN(R$75/$F78,0)-SUM($AE78:AL78) -> 1 | AN78: =ROUNDDOWN(S$75/$F78,0)-SUM($AE78:AM78) -> 1 | AO78: =ROUNDDOWN(T$75/$F78,0)-SUM($AE78:AN78) -> 2 | AP78: =ROUNDDOWN(U$75/$F78,0)-SUM($AE78:AO78) -> 1 | AQ78: =ROUNDDOWN(V$75/$F78,0)-SUM($AE78:AP78) -> 1 | AR78: =ROUNDDOWN(W$75/$F78,0)-SUM($AE78:AQ78) -> 2 | AS78: =ROUNDDOWN(X$75/$F78,0)-SUM($AE78:AR78) -> 1 | AT78: =ROUNDDOWN(Y$75/$F78,0)-SUM($AE78:AS78) -> 2 | AU78: =ROUNDDOWN(Z$75/$F78,0)-SUM($AE78:AT78) -> 1 | AV78: =ROUNDDOWN(AA$75/$F78,0)-SUM($AE78:AU78) -> 1 | AW78: =ROUNDDOWN(AB$75/$F78,0)-SUM($AE78:AV78) -> 2 | AX78: =ROUNDDOWN(AC$75/$F78,0)-SUM($AE78:AW78) -> 1
B79: =+B78+1 -> 2 | C79: REENCAUCHE DE LLANTAS | D79: UD. | E79: 4 | F79: 46170 | G79: 275.248 | H79: Neumáticos | J79: =+AE79*$E79*$G79*(1+'Sup Generales'!C$10) -> 1127.415808 | K79: =+AF79*$E79*$G79*(1+'Sup Generales'!D$10) -> 1145.454461 | L79: =+AG79*$E79*$G79*(1+'Sup Generales'!E$10) -> 2350.472554 | M79: =+AH79*$E79*$G79*(1+'Sup Generales'!F$10) -> 1180.313298 | N79: =+AI79*$E79*$G79*(1+'Sup Generales'!G$10) -> 1183.500144 | O79: =+AJ79*$E79*$G79*(1+'Sup Generales'!H$10) -> 2382.859189 | P79: =+AK79*$E79*$G79*(1+'Sup Generales'!I$10) -> 1214.556732 | Q79: =+AL79*$E79*$G79*(1+'Sup Generales'!J$10) -> 2471.268072 | R79: =+AM79*$E79*$G79*(1+'Sup Generales'!K$10) -> 1253.625664 | S79: =+AN79*$E79*$G79*(1+'Sup Generales'!L$10) -> 1270.400084 | T79: =+AO79*$E79*$G79*(1+'Sup Generales'!M$10) -> 2573.966035 | U79: =+AP79*$E79*$G79*(1+'Sup Generales'!N$10) -> 1301.699643 | V79: =+AQ79*$E79*$G79*(1+'Sup Generales'!O$10) -> 1317.742249 | W79: =+AR79*$E79*$G79*(1+'Sup Generales'!P$10) -> 2671.135742 | X79: =+AS79*$E79*$G79*(1+'Sup Generales'!Q$10) -> 1354.774434 | Y79: =+AT79*$E79*$G79*(1+'Sup Generales'!R$10) -> 2746.810632 | Z79: =+AU79*$E79*$G79*(1+'Sup Generales'!S$10) -> 1391.674054 | AA79: =+AV79*$E79*$G79*(1+'Sup Generales'!T$10) -> 1409.966808 | AB79: =+AW79*$E79*$G79*(1+'Sup Generales'!U$10) -> 2856.916724 | AC79: =+AX79*$E79*$G79*(1+'Sup Generales'!V$10) -> 1447.203425 | AE79: 1 | AF79: =ROUNDDOWN(K$75/$F79,0)-SUM($AE79:AE79) -> 1 | AG79: =ROUNDDOWN(L$75/$F79,0)-SUM($AE79:AF79) -> 2 | AH79: =ROUNDDOWN(M$75/$F79,0)-SUM($AE79:AG79) -> 1 | AI79: =ROUNDDOWN(N$75/$F79,0)-SUM($AE79:AH79) -> 1 | AJ79: =ROUNDDOWN(O$75/$F79,0)-SUM($AE79:AI79) -> 2 | AK79: =ROUNDDOWN(P$75/$F79,0)-SUM($AE79:AJ79) -> 1 | AL79: =ROUNDDOWN(Q$75/$F79,0)-SUM($AE79:AK79) -> 2 | AM79: =ROUNDDOWN(R$75/$F79,0)-SUM($AE79:AL79) -> 1 | AN79: =ROUNDDOWN(S$75/$F79,0)-SUM($AE79:AM79) -> 1 | AO79: =ROUNDDOWN(T$75/$F79,0)-SUM($AE79:AN79) -> 2 | AP79: =ROUNDDOWN(U$75/$F79,0)-SUM($AE79:AO79) -> 1 | AQ79: =ROUNDDOWN(V$75/$F79,0)-SUM($AE79:AP79) -> 1 | AR79: =ROUNDDOWN(W$75/$F79,0)-SUM($AE79:AQ79) -> 2 | AS79: =ROUNDDOWN(X$75/$F79,0)-SUM($AE79:AR79) -> 1 | AT79: =ROUNDDOWN(Y$75/$F79,0)-SUM($AE79:AS79) -> 2 | AU79: =ROUNDDOWN(Z$75/$F79,0)-SUM($AE79:AT79) -> 1 | AV79: =ROUNDDOWN(AA$75/$F79,0)-SUM($AE79:AU79) -> 1 | AW79: =ROUNDDOWN(AB$75/$F79,0)-SUM($AE79:AV79) -> 2 | AX79: =ROUNDDOWN(AC$75/$F79,0)-SUM($AE79:AW79) -> 1
B80: =+B79+1 -> 3 | C80: ACEITE DE MOTOR | D80: GLNS | E80: 7 | F80: 5000 | G80: 18.08125 | H80: Aceites y filtros | J80: =+AE80*$E80*$G80*(1+'Sup Generales'!C$10) -> 1555.2768 | K80: =+AF80*$E80*$G80*(1+'Sup Generales'!D$10) -> 1711.841331 | L80: =+AG80*$E80*$G80*(1+'Sup Generales'!E$10) -> 1756.349206 | M80: =+AH80*$E80*$G80*(1+'Sup Generales'!F$10) -> 1763.936634 | N80: =+AI80*$E80*$G80*(1+'Sup Generales'!G$10) -> 1632.645474 | O80: =+AJ80*$E80*$G80*(1+'Sup Generales'!H$10) -> 1780.549548 | P80: =+AK80*$E80*$G80*(1+'Sup Generales'!I$10) -> 1815.112241 | Q80: =+AL80*$E80*$G80*(1+'Sup Generales'!J$10) -> 1846.611528 | R80: =+AM80*$E80*$G80*(1+'Sup Generales'!K$10) -> 1729.384045 | S80: =+AN80*$E80*$G80*(1+'Sup Generales'!L$10) -> 1898.568163 | T80: =+AO80*$E80*$G80*(1+'Sup Generales'!M$10) -> 1923.350772 | U80: =+AP80*$E80*$G80*(1+'Sup Generales'!N$10) -> 1945.34425 | V80: =+AQ80*$E80*$G80*(1+'Sup Generales'!O$10) -> 1817.833255 | W80: =+AR80*$E80*$G80*(1+'Sup Generales'!P$10) -> 1995.959124 | X80: =+AS80*$E80*$G80*(1+'Sup Generales'!Q$10) -> 2024.662655 | Y80: =+AT80*$E80*$G80*(1+'Sup Generales'!R$10) -> 2052.505852 | Z80: =+AU80*$E80*$G80*(1+'Sup Generales'!S$10) -> 2079.807837 | AA80: =+AV80*$E80*$G80*(1+'Sup Generales'!T$10) -> 1945.057581 | AB80: =+AW80*$E80*$G80*(1+'Sup Generales'!U$10) -> 2134.78069 | AC80: =+AX80*$E80*$G80*(1+'Sup Generales'!V$10) -> 2162.794526 | AE80: 12 | AF80: =ROUNDDOWN(K$75/$F80,0)-SUM($AE80:AE80) -> 13 | AG80: =ROUNDDOWN(L$75/$F80,0)-SUM($AE80:AF80) -> 13 | AH80: =ROUNDDOWN(M$75/$F80,0)-SUM($AE80:AG80) -> 13 | AI80: =ROUNDDOWN(N$75/$F80,0)-SUM($AE80:AH80) -> 12 | AJ80: =ROUNDDOWN(O$75/$F80,0)-SUM($AE80:AI80) -> 13 | AK80: =ROUNDDOWN(P$75/$F80,0)-SUM($AE80:AJ80) -> 13 | AL80: =ROUNDDOWN(Q$75/$F80,0)-SUM($AE80:AK80) -> 13 | AM80: =ROUNDDOWN(R$75/$F80,0)-SUM($AE80:AL80) -> 12 | AN80: =ROUNDDOWN(S$75/$F80,0)-SUM($AE80:AM80) -> 13 | AO80: =ROUNDDOWN(T$75/$F80,0)-SUM($AE80:AN80) -> 13 | AP80: =ROUNDDOWN(U$75/$F80,0)-SUM($AE80:AO80) -> 13 | AQ80: =ROUNDDOWN(V$75/$F80,0)-SUM($AE80:AP80) -> 12 | AR80: =ROUNDDOWN(W$75/$F80,0)-SUM($AE80:AQ80) -> 13 | AS80: =ROUNDDOWN(X$75/$F80,0)-SUM($AE80:AR80) -> 13 | AT80: =ROUNDDOWN(Y$75/$F80,0)-SUM($AE80:AS80) -> 13 | AU80: =ROUNDDOWN(Z$75/$F80,0)-SUM($AE80:AT80) -> 13 | AV80: =ROUNDDOWN(AA$75/$F80,0)-SUM($AE80:AU80) -> 12 | AW80: =ROUNDDOWN(AB$75/$F80,0)-SUM($AE80:AV80) -> 13 | AX80: =ROUNDDOWN(AC$75/$F80,0)-SUM($AE80:AW80) -> 13
B81: 4 | C81: ACEITE DE CAJA | D81: GLNS | E81: 5 | F81: 30000 | G81: 18.26142857 | H81: Aceites y filtros | J81: =+AE81*$E81*$G81*(1+'Sup Generales'!C$10) -> 186.9970286 | K81: =+AF81*$E81*$G81*(1+'Sup Generales'!D$10) -> 189.988981 | L81: =+AG81*$E81*$G81*(1+'Sup Generales'!E$10) -> 194.9286945 | M81: =+AH81*$E81*$G81*(1+'Sup Generales'!F$10) -> 195.7707865 | N81: =+AI81*$E81*$G81*(1+'Sup Generales'!G$10) -> 196.2993676 | O81: =+AJ81*$E81*$G81*(1+'Sup Generales'!H$10) -> 197.6145734 | P81: =+AK81*$E81*$G81*(1+'Sup Generales'!I$10) -> 201.4505193 | Q81: =+AL81*$E81*$G81*(1+'Sup Generales'!J$10) -> 307.419709 | R81: =+AM81*$E81*$G81*(1+'Sup Generales'!K$10) -> 207.9306254 | S81: =+AN81*$E81*$G81*(1+'Sup Generales'!L$10) -> 210.712888 | T81: =+AO81*$E81*$G81*(1+'Sup Generales'!M$10) -> 213.4633898 | U81: =+AP81*$E81*$G81*(1+'Sup Generales'!N$10) -> 215.9043395 | V81: =+AQ81*$E81*$G81*(1+'Sup Generales'!O$10) -> 218.5652207 | W81: =+AR81*$E81*$G81*(1+'Sup Generales'!P$10) -> 221.5218392 | X81: =+AS81*$E81*$G81*(1+'Sup Generales'!Q$10) -> 224.7075052 | Y81: =+AT81*$E81*$G81*(1+'Sup Generales'!R$10) -> 341.6965302 | Z81: =+AU81*$E81*$G81*(1+'Sup Generales'!S$10) -> 230.8278019 | AA81: =+AV81*$E81*$G81*(1+'Sup Generales'!T$10) -> 233.8619004 | AB81: =+AW81*$E81*$G81*(1+'Sup Generales'!U$10) -> 236.9289726 | AC81: =+AX81*$E81*$G81*(1+'Sup Generales'!V$10) -> 240.0380927 | AE81: 2 | AF81: =ROUNDDOWN(K$75/$F81,0)-SUM($AE81:AE81) -> 2 | AG81: =ROUNDDOWN(L$75/$F81,0)-SUM($AE81:AF81) -> 2 | AH81: =ROUNDDOWN(M$75/$F81,0)-SUM($AE81:AG81) -> 2 | AI81: =ROUNDDOWN(N$75/$F81,0)-SUM($AE81:AH81) -> 2 | AJ81: =ROUNDDOWN(O$75/$F81,0)-SUM($AE81:AI81) -> 2 | AK81: =ROUNDDOWN(P$75/$F81,0)-SUM($AE81:AJ81) -> 2 | AL81: =ROUNDDOWN(Q$75/$F81,0)-SUM($AE81:AK81) -> 3 | AM81: =ROUNDDOWN(R$75/$F81,0)-SUM($AE81:AL81) -> 2 | AN81: =ROUNDDOWN(S$75/$F81,0)-SUM($AE81:AM81) -> 2 | AO81: =ROUNDDOWN(T$75/$F81,0)-SUM($AE81:AN81) -> 2 | AP81: =ROUNDDOWN(U$75/$F81,0)-SUM($AE81:AO81) -> 2 | AQ81: =ROUNDDOWN(V$75/$F81,0)-SUM($AE81:AP81) -> 2 | AR81: =ROUNDDOWN(W$75/$F81,0)-SUM($AE81:AQ81) -> 2 | AS81: =ROUNDDOWN(X$75/$F81,0)-SUM($AE81:AR81) -> 2 | AT81: =ROUNDDOWN(Y$75/$F81,0)-SUM($AE81:AS81) -> 3 | AU81: =ROUNDDOWN(Z$75/$F81,0)-SUM($AE81:AT81) -> 2 | AV81: =ROUNDDOWN(AA$75/$F81,0)-SUM($AE81:AU81) -> 2 | AW81: =ROUNDDOWN(AB$75/$F81,0)-SUM($AE81:AV81) -> 2 | AX81: =ROUNDDOWN(AC$75/$F81,0)-SUM($AE81:AW81) -> 2
B82: 5 | C82: ACEITE DE DIFERENCIAL | D82: GLNS | E82: 6 | F82: 30000 | G82: 18.59428571 | H82: Aceites y filtros | J82: =+AE82*$E82*$G82*(1+'Sup Generales'!C$10) -> 228.4865829 | K82: =+AF82*$E82*$G82*(1+'Sup Generales'!D$10) -> 232.1423682 | L82: =+AG82*$E82*$G82*(1+'Sup Generales'!E$10) -> 238.1780698 | M82: =+AH82*$E82*$G82*(1+'Sup Generales'!F$10) -> 239.206999 | N82: =+AI82*$E82*$G82*(1+'Sup Generales'!G$10) -> 239.8528579 | O82: =+AJ82*$E82*$G82*(1+'Sup Generales'!H$10) -> 241.4598721 | P82: =+AK82*$E82*$G82*(1+'Sup Generales'!I$10) -> 246.14691 | Q82: =+AL82*$E82*$G82*(1+'Sup Generales'!J$10) -> 375.6277806 | R82: =+AM82*$E82*$G82*(1+'Sup Generales'!K$10) -> 254.0647755 | S82: =+AN82*$E82*$G82*(1+'Sup Generales'!L$10) -> 257.4643464 | T82: =+AO82*$E82*$G82*(1+'Sup Generales'!M$10) -> 260.8251098 | U82: =+AP82*$E82*$G82*(1+'Sup Generales'!N$10) -> 263.8076398 | V82: =+AQ82*$E82*$G82*(1+'Sup Generales'!O$10) -> 267.0588982 | W82: =+AR82*$E82*$G82*(1+'Sup Generales'!P$10) -> 270.6715098 | X82: =+AS82*$E82*$G82*(1+'Sup Generales'!Q$10) -> 274.5639885 | Y82: =+AT82*$E82*$G82*(1+'Sup Generales'!R$10) -> 417.509696 | Z82: =+AU82*$E82*$G82*(1+'Sup Generales'!S$10) -> 282.0422126 | AA82: =+AV82*$E82*$G82*(1+'Sup Generales'!T$10) -> 285.749495 | AB82: =+AW82*$E82*$G82*(1+'Sup Generales'!U$10) -> 289.4970672 | AC82: =+AX82*$E82*$G82*(1+'Sup Generales'!V$10) -> 293.2960164 | AE82: 2 | AF82: =ROUNDDOWN(K$75/$F82,0)-SUM($AE82:AE82) -> 2 | AG82: =ROUNDDOWN(L$75/$F82,0)-SUM($AE82:AF82) -> 2 | AH82: =ROUNDDOWN(M$75/$F82,0)-SUM($AE82:AG82) -> 2 | AI82: =ROUNDDOWN(N$75/$F82,0)-SUM($AE82:AH82) -> 2 | AJ82: =ROUNDDOWN(O$75/$F82,0)-SUM($AE82:AI82) -> 2 | AK82: =ROUNDDOWN(P$75/$F82,0)-SUM($AE82:AJ82) -> 2 | AL82: =ROUNDDOWN(Q$75/$F82,0)-SUM($AE82:AK82) -> 3 | AM82: =ROUNDDOWN(R$75/$F82,0)-SUM($AE82:AL82) -> 2 | AN82: =ROUNDDOWN(S$75/$F82,0)-SUM($AE82:AM82) -> 2 | AO82: =ROUNDDOWN(T$75/$F82,0)-SUM($AE82:AN82) -> 2 | AP82: =ROUNDDOWN(U$75/$F82,0)-SUM($AE82:AO82) -> 2 | AQ82: =ROUNDDOWN(V$75/$F82,0)-SUM($AE82:AP82) -> 2 | AR82: =ROUNDDOWN(W$75/$F82,0)-SUM($AE82:AQ82) -> 2 | AS82: =ROUNDDOWN(X$75/$F82,0)-SUM($AE82:AR82) -> 2 | AT82: =ROUNDDOWN(Y$75/$F82,0)-SUM($AE82:AS82) -> 3 | AU82: =ROUNDDOWN(Z$75/$F82,0)-SUM($AE82:AT82) -> 2 | AV82: =ROUNDDOWN(AA$75/$F82,0)-SUM($AE82:AU82) -> 2 | AW82: =ROUNDDOWN(AB$75/$F82,0)-SUM($AE82:AV82) -> 2 | AX82: =ROUNDDOWN(AC$75/$F82,0)-SUM($AE82:AW82) -> 2
B83: 6 | C83: ACEITE HIDRÁULICO | D83: GLN | E83: 2 | F83: 60000 | G83: 16.00833333 | H83: Aceites y filtros | J83: =+AE83*$E83*$G83*(1+'Sup Generales'!C$10) -> 32.78506667 | K83: =+AF83*$E83*$G83*(1+'Sup Generales'!D$10) -> 33.30962773 | L83: =+AG83*$E83*$G83*(1+'Sup Generales'!E$10) -> 34.17567805 | M83: =+AH83*$E83*$G83*(1+'Sup Generales'!F$10) -> 34.32331698 | N83: =+AI83*$E83*$G83*(1+'Sup Generales'!G$10) -> 34.41598994 | O83: =+AJ83*$E83*$G83*(1+'Sup Generales'!H$10) -> 34.64657707 | P83: =+AK83*$E83*$G83*(1+'Sup Generales'!I$10) -> 35.31911044 | Q83: =+AL83*$E83*$G83*(1+'Sup Generales'!J$10) -> 35.93203497 | R83: =+AM83*$E83*$G83*(1+'Sup Generales'!K$10) -> 36.45522856 | S83: =+AN83*$E83*$G83*(1+'Sup Generales'!L$10) -> 36.94302595 | T83: =+AO83*$E83*$G83*(1+'Sup Generales'!M$10) -> 37.42525493 | U83: =+AP83*$E83*$G83*(1+'Sup Generales'!N$10) -> 37.85321198 | V83: =+AQ83*$E83*$G83*(1+'Sup Generales'!O$10) -> 38.31972832 | W83: =+AR83*$E83*$G83*(1+'Sup Generales'!P$10) -> 38.83809449 | X83: =+AS83*$E83*$G83*(1+'Sup Generales'!Q$10) -> 39.39661819 | Y83: =+AT83*$E83*$G83*(1+'Sup Generales'!R$10) -> 79.87680238 | Z83: =+AU83*$E83*$G83*(1+'Sup Generales'!S$10) -> 40.46965309 | AA83: =+AV83*$E83*$G83*(1+'Sup Generales'!T$10) -> 41.00160336 | AB83: =+AW83*$E83*$G83*(1+'Sup Generales'!U$10) -> 41.53933473 | AC83: =+AX83*$E83*$G83*(1+'Sup Generales'!V$10) -> 42.08443808 | AE83: 1 | AF83: =ROUNDDOWN(K$75/$F83,0)-SUM($AE83:AE83) -> 1 | AG83: =ROUNDDOWN(L$75/$F83,0)-SUM($AE83:AF83) -> 1 | AH83: =ROUNDDOWN(M$75/$F83,0)-SUM($AE83:AG83) -> 1 | AI83: =ROUNDDOWN(N$75/$F83,0)-SUM($AE83:AH83) -> 1 | AJ83: =ROUNDDOWN(O$75/$F83,0)-SUM($AE83:AI83) -> 1 | AK83: =ROUNDDOWN(P$75/$F83,0)-SUM($AE83:AJ83) -> 1 | AL83: =ROUNDDOWN(Q$75/$F83,0)-SUM($AE83:AK83) -> 1 | AM83: =ROUNDDOWN(R$75/$F83,0)-SUM($AE83:AL83) -> 1 | AN83: =ROUNDDOWN(S$75/$F83,0)-SUM($AE83:AM83) -> 1 | AO83: =ROUNDDOWN(T$75/$F83,0)-SUM($AE83:AN83) -> 1 | AP83: =ROUNDDOWN(U$75/$F83,0)-SUM($AE83:AO83) -> 1 | AQ83: =ROUNDDOWN(V$75/$F83,0)-SUM($AE83:AP83) -> 1 | AR83: =ROUNDDOWN(W$75/$F83,0)-SUM($AE83:AQ83) -> 1 | AS83: =ROUNDDOWN(X$75/$F83,0)-SUM($AE83:AR83) -> 1 | AT83: =ROUNDDOWN(Y$75/$F83,0)-SUM($AE83:AS83) -> 2 | AU83: =ROUNDDOWN(Z$75/$F83,0)-SUM($AE83:AT83) -> 1 | AV83: =ROUNDDOWN(AA$75/$F83,0)-SUM($AE83:AU83) -> 1 | AW83: =ROUNDDOWN(AB$75/$F83,0)-SUM($AE83:AV83) -> 1 | AX83: =ROUNDDOWN(AC$75/$F83,0)-SUM($AE83:AW83) -> 1
B84: 7 | C84: ENGRASE GENERAL | D84: KG. | E84: 1 | F84: 5000 | G84: 6.785714286 | H84: Aceites y filtros | J84: =+AE84*$E84*$G84*(1+'Sup Generales'!C$10) -> 83.38285714 | K84: =+AF84*$E84*$G84*(1+'Sup Generales'!D$10) -> 91.77673143 | L84: =+AG84*$E84*$G84*(1+'Sup Generales'!E$10) -> 94.16292645 | M84: =+AH84*$E84*$G84*(1+'Sup Generales'!F$10) -> 94.56971029 | N84: =+AI84*$E84*$G84*(1+'Sup Generales'!G$10) -> 87.53081401 | O84: =+AJ84*$E84*$G84*(1+'Sup Generales'!H$10) -> 95.46037633 | P84: =+AK84*$E84*$G84*(1+'Sup Generales'!I$10) -> 97.31338156 | Q84: =+AL84*$E84*$G84*(1+'Sup Generales'!J$10) -> 99.00214886 | R84: =+AM84*$E84*$G84*(1+'Sup Generales'!K$10) -> 92.71724673 | S84: =+AN84*$E84*$G84*(1+'Sup Generales'!L$10) -> 101.7876933 | T84: =+AO84*$E84*$G84*(1+'Sup Generales'!M$10) -> 103.1163602 | U84: =+AP84*$E84*$G84*(1+'Sup Generales'!N$10) -> 104.2954937 | V84: =+AQ84*$E84*$G84*(1+'Sup Generales'!O$10) -> 97.45926293 | W84: =+AR84*$E84*$G84*(1+'Sup Generales'!P$10) -> 107.0091025 | X84: =+AS84*$E84*$G84*(1+'Sup Generales'!Q$10) -> 108.5479813 | Y84: =+AT84*$E84*$G84*(1+'Sup Generales'!R$10) -> 110.040735 | Z84: =+AU84*$E84*$G84*(1+'Sup Generales'!S$10) -> 111.5044729 | AA84: =+AV84*$E84*$G84*(1+'Sup Generales'!T$10) -> 104.2801246 | AB84: =+AW84*$E84*$G84*(1+'Sup Generales'!U$10) -> 114.4517254 | AC84: =+AX84*$E84*$G84*(1+'Sup Generales'!V$10) -> 115.9536277 | AE84: 12 | AF84: =ROUNDDOWN(K$75/$F84,0)-SUM($AE84:AE84) -> 13 | AG84: =ROUNDDOWN(L$75/$F84,0)-SUM($AE84:AF84) -> 13 | AH84: =ROUNDDOWN(M$75/$F84,0)-SUM($AE84:AG84) -> 13 | AI84: =ROUNDDOWN(N$75/$F84,0)-SUM($AE84:AH84) -> 12 | AJ84: =ROUNDDOWN(O$75/$F84,0)-SUM($AE84:AI84) -> 13 | AK84: =ROUNDDOWN(P$75/$F84,0)-SUM($AE84:AJ84) -> 13 | AL84: =ROUNDDOWN(Q$75/$F84,0)-SUM($AE84:AK84) -> 13 | AM84: =ROUNDDOWN(R$75/$F84,0)-SUM($AE84:AL84) -> 12 | AN84: =ROUNDDOWN(S$75/$F84,0)-SUM($AE84:AM84) -> 13 | AO84: =ROUNDDOWN(T$75/$F84,0)-SUM($AE84:AN84) -> 13 | AP84: =ROUNDDOWN(U$75/$F84,0)-SUM($AE84:AO84) -> 13 | AQ84: =ROUNDDOWN(V$75/$F84,0)-SUM($AE84:AP84) -> 12 | AR84: =ROUNDDOWN(W$75/$F84,0)-SUM($AE84:AQ84) -> 13 | AS84: =ROUNDDOWN(X$75/$F84,0)-SUM($AE84:AR84) -> 13 | AT84: =ROUNDDOWN(Y$75/$F84,0)-SUM($AE84:AS84) -> 13 | AU84: =ROUNDDOWN(Z$75/$F84,0)-SUM($AE84:AT84) -> 13 | AV84: =ROUNDDOWN(AA$75/$F84,0)-SUM($AE84:AU84) -> 12 | AW84: =ROUNDDOWN(AB$75/$F84,0)-SUM($AE84:AV84) -> 13 | AX84: =ROUNDDOWN(AC$75/$F84,0)-SUM($AE84:AW84) -> 13
B85: 8 | C85: FILTRO DE ACEITE DE MOTOR | D85: UND | E85: 1 | F85: 5000 | G85: 13.37875 | H85: Aceites y filtros | J85: =+AE85*$E85*$G85*(1+'Sup Generales'!C$10) -> 164.39808 | K85: =+AF85*$E85*$G85*(1+'Sup Generales'!D$10) -> 180.9474867 | L85: =+AG85*$E85*$G85*(1+'Sup Generales'!E$10) -> 185.6521214 | M85: =+AH85*$E85*$G85*(1+'Sup Generales'!F$10) -> 186.4541385 | N85: =+AI85*$E85*$G85*(1+'Sup Generales'!G$10) -> 172.5762136 | O85: =+AJ85*$E85*$G85*(1+'Sup Generales'!H$10) -> 188.2101804 | P85: =+AK85*$E85*$G85*(1+'Sup Generales'!I$10) -> 191.8635753 | Q85: =+AL85*$E85*$G85*(1+'Sup Generales'!J$10) -> 195.1931578 | R85: =+AM85*$E85*$G85*(1+'Sup Generales'!K$10) -> 182.8018116 | S85: =+AN85*$E85*$G85*(1+'Sup Generales'!L$10) -> 200.6851518 | T85: =+AO85*$E85*$G85*(1+'Sup Generales'!M$10) -> 203.3047584 | U85: =+AP85*$E85*$G85*(1+'Sup Generales'!N$10) -> 205.6295443 | V85: =+AQ85*$E85*$G85*(1+'Sup Generales'!O$10) -> 192.1511957 | W85: =+AR85*$E85*$G85*(1+'Sup Generales'!P$10) -> 210.9797096 | X85: =+AS85*$E85*$G85*(1+'Sup Generales'!Q$10) -> 214.0137712 | Y85: =+AT85*$E85*$G85*(1+'Sup Generales'!R$10) -> 216.9568924 | Z85: =+AU85*$E85*$G85*(1+'Sup Generales'!S$10) -> 219.8428056 | AA85: =+AV85*$E85*$G85*(1+'Sup Generales'!T$10) -> 205.5992424 | AB85: =+AW85*$E85*$G85*(1+'Sup Generales'!U$10) -> 225.6536242 | AC85: =+AX85*$E85*$G85*(1+'Sup Generales'!V$10) -> 228.6147826 | AE85: 12 | AF85: =ROUNDDOWN(K$75/$F85,0)-SUM($AE85:AE85) -> 13 | AG85: =ROUNDDOWN(L$75/$F85,0)-SUM($AE85:AF85) -> 13 | AH85: =ROUNDDOWN(M$75/$F85,0)-SUM($AE85:AG85) -> 13 | AI85: =ROUNDDOWN(N$75/$F85,0)-SUM($AE85:AH85) -> 12 | AJ85: =ROUNDDOWN(O$75/$F85,0)-SUM($AE85:AI85) -> 13 | AK85: =ROUNDDOWN(P$75/$F85,0)-SUM($AE85:AJ85) -> 13 | AL85: =ROUNDDOWN(Q$75/$F85,0)-SUM($AE85:AK85) -> 13 | AM85: =ROUNDDOWN(R$75/$F85,0)-SUM($AE85:AL85) -> 12 | AN85: =ROUNDDOWN(S$75/$F85,0)-SUM($AE85:AM85) -> 13 | AO85: =ROUNDDOWN(T$75/$F85,0)-SUM($AE85:AN85) -> 13 | AP85: =ROUNDDOWN(U$75/$F85,0)-SUM($AE85:AO85) -> 13 | AQ85: =ROUNDDOWN(V$75/$F85,0)-SUM($AE85:AP85) -> 12 | AR85: =ROUNDDOWN(W$75/$F85,0)-SUM($AE85:AQ85) -> 13 | AS85: =ROUNDDOWN(X$75/$F85,0)-SUM($AE85:AR85) -> 13 | AT85: =ROUNDDOWN(Y$75/$F85,0)-SUM($AE85:AS85) -> 13 | AU85: =ROUNDDOWN(Z$75/$F85,0)-SUM($AE85:AT85) -> 13 | AV85: =ROUNDDOWN(AA$75/$F85,0)-SUM($AE85:AU85) -> 12 | AW85: =ROUNDDOWN(AB$75/$F85,0)-SUM($AE85:AV85) -> 13 | AX85: =ROUNDDOWN(AC$75/$F85,0)-SUM($AE85:AW85) -> 13
B86: 9 | C86: FILTRO DE AIRE | D86: UND | E86: 2 | F86: 10000 | G86: 35.44125 | H86: Aceites y filtros | J86: =+AE86*$E86*$G86*(1+'Sup Generales'!C$10) -> 435.50208 | K86: =+AF86*$E86*$G86*(1+'Sup Generales'!D$10) -> 442.4701133 | L86: =+AG86*$E86*$G86*(1+'Sup Generales'!E$10) -> 529.6367256 | M86: =+AH86*$E86*$G86*(1+'Sup Generales'!F$10) -> 455.9355054 | N86: =+AI86*$E86*$G86*(1+'Sup Generales'!G$10) -> 457.1665312 | O86: =+AJ86*$E86*$G86*(1+'Sup Generales'!H$10) -> 536.9344715 | P86: =+AK86*$E86*$G86*(1+'Sup Generales'!I$10) -> 469.1631778 | Q86: =+AL86*$E86*$G86*(1+'Sup Generales'!J$10) -> 556.8558235 | R86: =+AM86*$E86*$G86*(1+'Sup Generales'!K$10) -> 484.2548599 | S86: =+AN86*$E86*$G86*(1+'Sup Generales'!L$10) -> 490.7345411 | T86: =+AO86*$E86*$G86*(1+'Sup Generales'!M$10) -> 579.996963 | U86: =+AP86*$E86*$G86*(1+'Sup Generales'!N$10) -> 502.8250429 | V86: =+AQ86*$E86*$G86*(1+'Sup Generales'!O$10) -> 509.0220361 | W86: =+AR86*$E86*$G86*(1+'Sup Generales'!P$10) -> 601.892409 | X86: =+AS86*$E86*$G86*(1+'Sup Generales'!Q$10) -> 523.3269568 | Y86: =+AT86*$E86*$G86*(1+'Sup Generales'!R$10) -> 618.9443849 | Z86: =+AU86*$E86*$G86*(1+'Sup Generales'!S$10) -> 537.5806697 | AA86: =+AV86*$E86*$G86*(1+'Sup Generales'!T$10) -> 544.646858 | AB86: =+AW86*$E86*$G86*(1+'Sup Generales'!U$10) -> 643.7548129 | AC86: =+AX86*$E86*$G86*(1+'Sup Generales'!V$10) -> 559.0307474 | AE86: 6 | AF86: =ROUNDDOWN(K$75/$F86,0)-SUM($AE86:AE86) -> 6 | AG86: =ROUNDDOWN(L$75/$F86,0)-SUM($AE86:AF86) -> 7 | AH86: =ROUNDDOWN(M$75/$F86,0)-SUM($AE86:AG86) -> 6 | AI86: =ROUNDDOWN(N$75/$F86,0)-SUM($AE86:AH86) -> 6 | AJ86: =ROUNDDOWN(O$75/$F86,0)-SUM($AE86:AI86) -> 7 | AK86: =ROUNDDOWN(P$75/$F86,0)-SUM($AE86:AJ86) -> 6 | AL86: =ROUNDDOWN(Q$75/$F86,0)-SUM($AE86:AK86) -> 7 | AM86: =ROUNDDOWN(R$75/$F86,0)-SUM($AE86:AL86) -> 6 | AN86: =ROUNDDOWN(S$75/$F86,0)-SUM($AE86:AM86) -> 6 | AO86: =ROUNDDOWN(T$75/$F86,0)-SUM($AE86:AN86) -> 7 | AP86: =ROUNDDOWN(U$75/$F86,0)-SUM($AE86:AO86) -> 6 | AQ86: =ROUNDDOWN(V$75/$F86,0)-SUM($AE86:AP86) -> 6 | AR86: =ROUNDDOWN(W$75/$F86,0)-SUM($AE86:AQ86) -> 7 | AS86: =ROUNDDOWN(X$75/$F86,0)-SUM($AE86:AR86) -> 6 | AT86: =ROUNDDOWN(Y$75/$F86,0)-SUM($AE86:AS86) -> 7 | AU86: =ROUNDDOWN(Z$75/$F86,0)-SUM($AE86:AT86) -> 6 | AV86: =ROUNDDOWN(AA$75/$F86,0)-SUM($AE86:AU86) -> 6 | AW86: =ROUNDDOWN(AB$75/$F86,0)-SUM($AE86:AV86) -> 7 | AX86: =ROUNDDOWN(AC$75/$F86,0)-SUM($AE86:AW86) -> 6
B87: 10 | C87: FILTRO DE COMBUSTIBLE | D87: UD. | E87: 1 | F87: 5000 | G87: 13.485 | H87: Aceites y filtros | J87: =+AE87*$E87*$G87*(1+'Sup Generales'!C$10) -> 165.70368 | K87: =+AF87*$E87*$G87*(1+'Sup Generales'!D$10) -> 182.3845171 | L87: =+AG87*$E87*$G87*(1+'Sup Generales'!E$10) -> 187.1265146 | M87: =+AH87*$E87*$G87*(1+'Sup Generales'!F$10) -> 187.9349011 | N87: =+AI87*$E87*$G87*(1+'Sup Generales'!G$10) -> 173.9467619 | O87: =+AJ87*$E87*$G87*(1+'Sup Generales'!H$10) -> 189.7048889 | P87: =+AK87*$E87*$G87*(1+'Sup Generales'!I$10) -> 193.3872979 | Q87: =+AL87*$E87*$G87*(1+'Sup Generales'!J$10) -> 196.743323 | R87: =+AM87*$E87*$G87*(1+'Sup Generales'!K$10) -> 184.2535685 | S87: =+AN87*$E87*$G87*(1+'Sup Generales'!L$10) -> 202.2789328 | T87: =+AO87*$E87*$G87*(1+'Sup Generales'!M$10) -> 204.9193436 | U87: =+AP87*$E87*$G87*(1+'Sup Generales'!N$10) -> 207.2625922 | V87: =+AQ87*$E87*$G87*(1+'Sup Generales'!O$10) -> 193.6772026 | W87: =+AR87*$E87*$G87*(1+'Sup Generales'!P$10) -> 212.6552469 | X87: =+AS87*$E87*$G87*(1+'Sup Generales'!Q$10) -> 215.713404 | Y87: =+AT87*$E87*$G87*(1+'Sup Generales'!R$10) -> 218.6798986 | Z87: =+AU87*$E87*$G87*(1+'Sup Generales'!S$10) -> 221.5887309 | AA87: =+AV87*$E87*$G87*(1+'Sup Generales'!T$10) -> 207.2320497 | AB87: =+AW87*$E87*$G87*(1+'Sup Generales'!U$10) -> 227.4456973 | AC87: =+AX87*$E87*$G87*(1+'Sup Generales'!V$10) -> 230.4303723 | AE87: 12 | AF87: =ROUNDDOWN(K$75/$F87,0)-SUM($AE87:AE87) -> 13 | AG87: =ROUNDDOWN(L$75/$F87,0)-SUM($AE87:AF87) -> 13 | AH87: =ROUNDDOWN(M$75/$F87,0)-SUM($AE87:AG87) -> 13 | AI87: =ROUNDDOWN(N$75/$F87,0)-SUM($AE87:AH87) -> 12 | AJ87: =ROUNDDOWN(O$75/$F87,0)-SUM($AE87:AI87) -> 13 | AK87: =ROUNDDOWN(P$75/$F87,0)-SUM($AE87:AJ87) -> 13 | AL87: =ROUNDDOWN(Q$75/$F87,0)-SUM($AE87:AK87) -> 13 | AM87: =ROUNDDOWN(R$75/$F87,0)-SUM($AE87:AL87) -> 12 | AN87: =ROUNDDOWN(S$75/$F87,0)-SUM($AE87:AM87) -> 13 | AO87: =ROUNDDOWN(T$75/$F87,0)-SUM($AE87:AN87) -> 13 | AP87: =ROUNDDOWN(U$75/$F87,0)-SUM($AE87:AO87) -> 13 | AQ87: =ROUNDDOWN(V$75/$F87,0)-SUM($AE87:AP87) -> 12 | AR87: =ROUNDDOWN(W$75/$F87,0)-SUM($AE87:AQ87) -> 13 | AS87: =ROUNDDOWN(X$75/$F87,0)-SUM($AE87:AR87) -> 13 | AT87: =ROUNDDOWN(Y$75/$F87,0)-SUM($AE87:AS87) -> 13 | AU87: =ROUNDDOWN(Z$75/$F87,0)-SUM($AE87:AT87) -> 13 | AV87: =ROUNDDOWN(AA$75/$F87,0)-SUM($AE87:AU87) -> 12 | AW87: =ROUNDDOWN(AB$75/$F87,0)-SUM($AE87:AV87) -> 13 | AX87: =ROUNDDOWN(AC$75/$F87,0)-SUM($AE87:AW87) -> 13
B88: 11 | C88: FILTRO SECADOR DE AIRE | D88: UD. | E88: 1 | F88: 30000 | G88: 35.87428571 | H88: Aceites y filtros | J88: =+AE88*$E88*$G88*(1+'Sup Generales'!C$10) -> 73.47053714 | K88: =+AF88*$E88*$G88*(1+'Sup Generales'!D$10) -> 74.64606574 | L88: =+AG88*$E88*$G88*(1+'Sup Generales'!E$10) -> 76.58686345 | M88: =+AH88*$E88*$G88*(1+'Sup Generales'!F$10) -> 76.9177187 | N88: =+AI88*$E88*$G88*(1+'Sup Generales'!G$10) -> 77.12539654 | O88: =+AJ88*$E88*$G88*(1+'Sup Generales'!H$10) -> 77.64213669 | P88: =+AK88*$E88*$G88*(1+'Sup Generales'!I$10) -> 79.14926762 | Q88: =+AL88*$E88*$G88*(1+'Sup Generales'!J$10) -> 120.7842249 | R88: =+AM88*$E88*$G88*(1+'Sup Generales'!K$10) -> 81.6952807 | S88: =+AN88*$E88*$G88*(1+'Sup Generales'!L$10) -> 82.78842279 | T88: =+AO88*$E88*$G88*(1+'Sup Generales'!M$10) -> 83.86908621 | U88: =+AP88*$E88*$G88*(1+'Sup Generales'!N$10) -> 84.82812755 | V88: =+AQ88*$E88*$G88*(1+'Sup Generales'!O$10) -> 85.87357932 | W88: =+AR88*$E88*$G88*(1+'Sup Generales'!P$10) -> 87.0352253 | X88: =+AS88*$E88*$G88*(1+'Sup Generales'!Q$10) -> 88.28686333 | Y88: =+AT88*$E88*$G88*(1+'Sup Generales'!R$10) -> 134.2514788 | Z88: =+AU88*$E88*$G88*(1+'Sup Generales'!S$10) -> 90.69150844 | AA88: =+AV88*$E88*$G88*(1+'Sup Generales'!T$10) -> 91.88359608 | AB88: =+AW88*$E88*$G88*(1+'Sup Generales'!U$10) -> 93.08863899 | AC88: =+AX88*$E88*$G88*(1+'Sup Generales'!V$10) -> 94.31020235 | AE88: 2 | AF88: =ROUNDDOWN(K$75/$F88,0)-SUM($AE88:AE88) -> 2 | AG88: =ROUNDDOWN(L$75/$F88,0)-SUM($AE88:AF88) -> 2 | AH88: =ROUNDDOWN(M$75/$F88,0)-SUM($AE88:AG88) -> 2 | AI88: =ROUNDDOWN(N$75/$F88,0)-SUM($AE88:AH88) -> 2 | AJ88: =ROUNDDOWN(O$75/$F88,0)-SUM($AE88:AI88) -> 2 | AK88: =ROUNDDOWN(P$75/$F88,0)-SUM($AE88:AJ88) -> 2 | AL88: =ROUNDDOWN(Q$75/$F88,0)-SUM($AE88:AK88) -> 3 | AM88: =ROUNDDOWN(R$75/$F88,0)-SUM($AE88:AL88) -> 2 | AN88: =ROUNDDOWN(S$75/$F88,0)-SUM($AE88:AM88) -> 2 | AO88: =ROUNDDOWN(T$75/$F88,0)-SUM($AE88:AN88) -> 2 | AP88: =ROUNDDOWN(U$75/$F88,0)-SUM($AE88:AO88) -> 2 | AQ88: =ROUNDDOWN(V$75/$F88,0)-SUM($AE88:AP88) -> 2 | AR88: =ROUNDDOWN(W$75/$F88,0)-SUM($AE88:AQ88) -> 2 | AS88: =ROUNDDOWN(X$75/$F88,0)-SUM($AE88:AR88) -> 2 | AT88: =ROUNDDOWN(Y$75/$F88,0)-SUM($AE88:AS88) -> 3 | AU88: =ROUNDDOWN(Z$75/$F88,0)-SUM($AE88:AT88) -> 2 | AV88: =ROUNDDOWN(AA$75/$F88,0)-SUM($AE88:AU88) -> 2 | AW88: =ROUNDDOWN(AB$75/$F88,0)-SUM($AE88:AV88) -> 2 | AX88: =ROUNDDOWN(AC$75/$F88,0)-SUM($AE88:AW88) -> 2
B89: 12 | C89: REFRIGERANTE DE MOTOR | D89: GLNS. | E89: 4 | F89: 30000 | G89: 3.84 | H89: Aceites y filtros | J89: =+AE89*$E89*$G89*(1+'Sup Generales'!C$10) -> 31.45728 | K89: =+AF89*$E89*$G89*(1+'Sup Generales'!D$10) -> 31.96059648 | L89: =+AG89*$E89*$G89*(1+'Sup Generales'!E$10) -> 32.79157199 | M89: =+AH89*$E89*$G89*(1+'Sup Generales'!F$10) -> 32.93323158 | N89: =+AI89*$E89*$G89*(1+'Sup Generales'!G$10) -> 33.0221513 | O89: =+AJ89*$E89*$G89*(1+'Sup Generales'!H$10) -> 33.24339972 | P89: =+AK89*$E89*$G89*(1+'Sup Generales'!I$10) -> 33.88869566 | Q89: =+AL89*$E89*$G89*(1+'Sup Generales'!J$10) -> 51.71519536 | R89: =+AM89*$E89*$G89*(1+'Sup Generales'!K$10) -> 34.97880129 | S89: =+AN89*$E89*$G89*(1+'Sup Generales'!L$10) -> 35.44684302 | T89: =+AO89*$E89*$G89*(1+'Sup Generales'!M$10) -> 35.90954185 | U89: =+AP89*$E89*$G89*(1+'Sup Generales'!N$10) -> 36.32016675 | V89: =+AQ89*$E89*$G89*(1+'Sup Generales'!O$10) -> 36.7677893 | W89: =+AR89*$E89*$G89*(1+'Sup Generales'!P$10) -> 37.26516177 | X89: =+AS89*$E89*$G89*(1+'Sup Generales'!Q$10) -> 37.80106541 | Y89: =+AT89*$E89*$G89*(1+'Sup Generales'!R$10) -> 57.4813595 | Z89: =+AU89*$E89*$G89*(1+'Sup Generales'!S$10) -> 38.83064267 | AA89: =+AV89*$E89*$G89*(1+'Sup Generales'!T$10) -> 39.3410491 | AB89: =+AW89*$E89*$G89*(1+'Sup Generales'!U$10) -> 39.85700249 | AC89: =+AX89*$E89*$G89*(1+'Sup Generales'!V$10) -> 40.3800293 | AE89: 2 | AF89: =ROUNDDOWN(K$75/$F89,0)-SUM($AE89:AE89) -> 2 | AG89: =ROUNDDOWN(L$75/$F89,0)-SUM($AE89:AF89) -> 2 | AH89: =ROUNDDOWN(M$75/$F89,0)-SUM($AE89:AG89) -> 2 | AI89: =ROUNDDOWN(N$75/$F89,0)-SUM($AE89:AH89) -> 2 | AJ89: =ROUNDDOWN(O$75/$F89,0)-SUM($AE89:AI89) -> 2 | AK89: =ROUNDDOWN(P$75/$F89,0)-SUM($AE89:AJ89) -> 2 | AL89: =ROUNDDOWN(Q$75/$F89,0)-SUM($AE89:AK89) -> 3 | AM89: =ROUNDDOWN(R$75/$F89,0)-SUM($AE89:AL89) -> 2 | AN89: =ROUNDDOWN(S$75/$F89,0)-SUM($AE89:AM89) -> 2 | AO89: =ROUNDDOWN(T$75/$F89,0)-SUM($AE89:AN89) -> 2 | AP89: =ROUNDDOWN(U$75/$F89,0)-SUM($AE89:AO89) -> 2 | AQ89: =ROUNDDOWN(V$75/$F89,0)-SUM($AE89:AP89) -> 2 | AR89: =ROUNDDOWN(W$75/$F89,0)-SUM($AE89:AQ89) -> 2 | AS89: =ROUNDDOWN(X$75/$F89,0)-SUM($AE89:AR89) -> 2 | AT89: =ROUNDDOWN(Y$75/$F89,0)-SUM($AE89:AS89) -> 3 | AU89: =ROUNDDOWN(Z$75/$F89,0)-SUM($AE89:AT89) -> 2 | AV89: =ROUNDDOWN(AA$75/$F89,0)-SUM($AE89:AU89) -> 2 | AW89: =ROUNDDOWN(AB$75/$F89,0)-SUM($AE89:AV89) -> 2 | AX89: =ROUNDDOWN(AC$75/$F89,0)-SUM($AE89:AW89) -> 2
B90: 13 | C90: DESCARBONIZACION COMPRESOR AIRE | D90: UD. | E90: 1 | F90: 30000 | G90: 27.5 | H90: Aceites y filtros | J90: =+AE90*$E90*$G90*(1+'Sup Generales'!C$10) -> 56.32 | K90: =+AF90*$E90*$G90*(1+'Sup Generales'!D$10) -> 57.22112 | L90: =+AG90*$E90*$G90*(1+'Sup Generales'!E$10) -> 58.70886912 | M90: =+AH90*$E90*$G90*(1+'Sup Generales'!F$10) -> 58.96249143 | N90: =+AI90*$E90*$G90*(1+'Sup Generales'!G$10) -> 59.12169016 | O90: =+AJ90*$E90*$G90*(1+'Sup Generales'!H$10) -> 59.51780549 | P90: =+AK90*$E90*$G90*(1+'Sup Generales'!I$10) -> 60.67312049 | Q90: =+AL90*$E90*$G90*(1+'Sup Generales'!J$10) -> 92.5890542 | R90: =+AM90*$E90*$G90*(1+'Sup Generales'!K$10) -> 62.624807 | S90: =+AN90*$E90*$G90*(1+'Sup Generales'!L$10) -> 63.46277233 | T90: =+AO90*$E90*$G90*(1+'Sup Generales'!M$10) -> 64.29117193 | U90: =+AP90*$E90*$G90*(1+'Sup Generales'!N$10) -> 65.02634021 | V90: =+AQ90*$E90*$G90*(1+'Sup Generales'!O$10) -> 65.82774777 | W90: =+AR90*$E90*$G90*(1+'Sup Generales'!P$10) -> 66.71822583 | X90: =+AS90*$E90*$G90*(1+'Sup Generales'!Q$10) -> 67.67768872 | Y90: =+AT90*$E90*$G90*(1+'Sup Generales'!R$10) -> 102.9125903 | Z90: =+AU90*$E90*$G90*(1+'Sup Generales'!S$10) -> 69.52100739 | AA90: =+AV90*$E90*$G90*(1+'Sup Generales'!T$10) -> 70.43482098 | AB90: =+AW90*$E90*$G90*(1+'Sup Generales'!U$10) -> 71.35856565 | AC90: =+AX90*$E90*$G90*(1+'Sup Generales'!V$10) -> 72.29497432 | AE90: 2 | AF90: =ROUNDDOWN(K$75/$F90,0)-SUM($AE90:AE90) -> 2 | AG90: =ROUNDDOWN(L$75/$F90,0)-SUM($AE90:AF90) -> 2 | AH90: =ROUNDDOWN(M$75/$F90,0)-SUM($AE90:AG90) -> 2 | AI90: =ROUNDDOWN(N$75/$F90,0)-SUM($AE90:AH90) -> 2 | AJ90: =ROUNDDOWN(O$75/$F90,0)-SUM($AE90:AI90) -> 2 | AK90: =ROUNDDOWN(P$75/$F90,0)-SUM($AE90:AJ90) -> 2 | AL90: =ROUNDDOWN(Q$75/$F90,0)-SUM($AE90:AK90) -> 3 | AM90: =ROUNDDOWN(R$75/$F90,0)-SUM($AE90:AL90) -> 2 | AN90: =ROUNDDOWN(S$75/$F90,0)-SUM($AE90:AM90) -> 2 | AO90: =ROUNDDOWN(T$75/$F90,0)-SUM($AE90:AN90) -> 2 | AP90: =ROUNDDOWN(U$75/$F90,0)-SUM($AE90:AO90) -> 2 | AQ90: =ROUNDDOWN(V$75/$F90,0)-SUM($AE90:AP90) -> 2 | AR90: =ROUNDDOWN(W$75/$F90,0)-SUM($AE90:AQ90) -> 2 | AS90: =ROUNDDOWN(X$75/$F90,0)-SUM($AE90:AR90) -> 2 | AT90: =ROUNDDOWN(Y$75/$F90,0)-SUM($AE90:AS90) -> 3 | AU90: =ROUNDDOWN(Z$75/$F90,0)-SUM($AE90:AT90) -> 2 | AV90: =ROUNDDOWN(AA$75/$F90,0)-SUM($AE90:AU90) -> 2 | AW90: =ROUNDDOWN(AB$75/$F90,0)-SUM($AE90:AV90) -> 2 | AX90: =ROUNDDOWN(AC$75/$F90,0)-SUM($AE90:AW90) -> 2
B91: 14 | C91: BANDAS | D91: JGO. | E91: 1 | F91: 30000 | G91: 31.70857143 | H91: Costo de mantenimiento mecánico | J91: =+AE91*$E91*$G91*(1+'Sup Generales'!C$10) -> 64.93915429 | K91: =+AF91*$E91*$G91*(1+'Sup Generales'!D$10) -> 65.97818075 | L91: =+AG91*$E91*$G91*(1+'Sup Generales'!E$10) -> 67.69361345 | M91: =+AH91*$E91*$G91*(1+'Sup Generales'!F$10) -> 67.98604986 | N91: =+AI91*$E91*$G91*(1+'Sup Generales'!G$10) -> 68.1696122 | O91: =+AJ91*$E91*$G91*(1+'Sup Generales'!H$10) -> 68.6263486 | P91: =+AK91*$E91*$G91*(1+'Sup Generales'!I$10) -> 69.95847181 | Q91: =+AL91*$E91*$G91*(1+'Sup Generales'!J$10) -> 106.7587869 | R91: =+AM91*$E91*$G91*(1+'Sup Generales'!K$10) -> 72.2088424 | S91: =+AN91*$E91*$G91*(1+'Sup Generales'!L$10) -> 73.17504907 | T91: =+AO91*$E91*$G91*(1+'Sup Generales'!M$10) -> 74.13022609 | U91: =+AP91*$E91*$G91*(1+'Sup Generales'!N$10) -> 74.97790376 | V91: =+AQ91*$E91*$G91*(1+'Sup Generales'!O$10) -> 75.90195789 | W91: =+AR91*$E91*$G91*(1+'Sup Generales'!P$10) -> 76.92871379 | X91: =+AS91*$E91*$G91*(1+'Sup Generales'!Q$10) -> 78.03501189 | Y91: =+AT91*$E91*$G91*(1+'Sup Generales'!R$10) -> 118.6622261 | Z91: =+AU91*$E91*$G91*(1+'Sup Generales'!S$10) -> 80.16043013 | AA91: =+AV91*$E91*$G91*(1+'Sup Generales'!T$10) -> 81.2140928 | AB91: =+AW91*$E91*$G91*(1+'Sup Generales'!U$10) -> 82.2792064 | AC91: =+AX91*$E91*$G91*(1+'Sup Generales'!V$10) -> 83.35892208 | AE91: 2 | AF91: =ROUNDDOWN(K$75/$F91,0)-SUM($AE91:AE91) -> 2 | AG91: =ROUNDDOWN(L$75/$F91,0)-SUM($AE91:AF91) -> 2 | AH91: =ROUNDDOWN(M$75/$F91,0)-SUM($AE91:AG91) -> 2 | AI91: =ROUNDDOWN(N$75/$F91,0)-SUM($AE91:AH91) -> 2 | AJ91: =ROUNDDOWN(O$75/$F91,0)-SUM($AE91:AI91) -> 2 | AK91: =ROUNDDOWN(P$75/$F91,0)-SUM($AE91:AJ91) -> 2 | AL91: =ROUNDDOWN(Q$75/$F91,0)-SUM($AE91:AK91) -> 3 | AM91: =ROUNDDOWN(R$75/$F91,0)-SUM($AE91:AL91) -> 2 | AN91: =ROUNDDOWN(S$75/$F91,0)-SUM($AE91:AM91) -> 2 | AO91: =ROUNDDOWN(T$75/$F91,0)-SUM($AE91:AN91) -> 2 | AP91: =ROUNDDOWN(U$75/$F91,0)-SUM($AE91:AO91) -> 2 | AQ91: =ROUNDDOWN(V$75/$F91,0)-SUM($AE91:AP91) -> 2 | AR91: =ROUNDDOWN(W$75/$F91,0)-SUM($AE91:AQ91) -> 2 | AS91: =ROUNDDOWN(X$75/$F91,0)-SUM($AE91:AR91) -> 2 | AT91: =ROUNDDOWN(Y$75/$F91,0)-SUM($AE91:AS91) -> 3 | AU91: =ROUNDDOWN(Z$75/$F91,0)-SUM($AE91:AT91) -> 2 | AV91: =ROUNDDOWN(AA$75/$F91,0)-SUM($AE91:AU91) -> 2 | AW91: =ROUNDDOWN(AB$75/$F91,0)-SUM($AE91:AV91) -> 2 | AX91: =ROUNDDOWN(AC$75/$F91,0)-SUM($AE91:AW91) -> 2
B92: 15 | C92: CAMBIO DE TOBERAS DE INYECTORES | D92: JGO. | E92: 1 | F92: 120000 | G92: 213.8666667 | H92: Costo de mantenimiento mecánico | J92: =+AE92*$E92*$G92*(1+'Sup Generales'!C$10) -> 0 | K92: =+AF92*$E92*$G92*(1+'Sup Generales'!D$10) -> 222.5034581 | L92: =+AG92*$E92*$G92*(1+'Sup Generales'!E$10) -> 0 | M92: =+AH92*$E92*$G92*(1+'Sup Generales'!F$10) -> 229.2747546 | N92: =+AI92*$E92*$G92*(1+'Sup Generales'!G$10) -> 0 | O92: =+AJ92*$E92*$G92*(1+'Sup Generales'!H$10) -> 231.4340848 | P92: =+AK92*$E92*$G92*(1+'Sup Generales'!I$10) -> 0 | Q92: =+AL92*$E92*$G92*(1+'Sup Generales'!J$10) -> 240.0207563 | R92: =+AM92*$E92*$G92*(1+'Sup Generales'!K$10) -> 0 | S92: =+AN92*$E92*$G92*(1+'Sup Generales'!L$10) -> 246.7740286 | T92: =+AO92*$E92*$G92*(1+'Sup Generales'!M$10) -> 0 | U92: =+AP92*$E92*$G92*(1+'Sup Generales'!N$10) -> 252.8539387 | V92: =+AQ92*$E92*$G92*(1+'Sup Generales'!O$10) -> 0 | W92: =+AR92*$E92*$G92*(1+'Sup Generales'!P$10) -> 259.4328103 | X92: =+AS92*$E92*$G92*(1+'Sup Generales'!Q$10) -> 0 | Y92: =+AT92*$E92*$G92*(1+'Sup Generales'!R$10) -> 266.7826986 | Z92: =+AU92*$E92*$G92*(1+'Sup Generales'!S$10) -> 270.3313839 | AA92: =+AV92*$E92*$G92*(1+'Sup Generales'!T$10) -> 0 | AB92: =+AW92*$E92*$G92*(1+'Sup Generales'!U$10) -> 277.4767013 | AC92: =+AX92*$E92*$G92*(1+'Sup Generales'!V$10) -> 0 | AE92: 0 | AF92: =ROUNDDOWN(K$75/$F92,0)-SUM($AE92:AE92) -> 1 | AG92: =ROUNDDOWN(L$75/$F92,0)-SUM($AE92:AF92) -> 0 | AH92: =ROUNDDOWN(M$75/$F92,0)-SUM($AE92:AG92) -> 1 | AI92: =ROUNDDOWN(N$75/$F92,0)-SUM($AE92:AH92) -> 0 | AJ92: =ROUNDDOWN(O$75/$F92,0)-SUM($AE92:AI92) -> 1 | AK92: =ROUNDDOWN(P$75/$F92,0)-SUM($AE92:AJ92) -> 0 | AL92: =ROUNDDOWN(Q$75/$F92,0)-SUM($AE92:AK92) -> 1 | AM92: =ROUNDDOWN(R$75/$F92,0)-SUM($AE92:AL92) -> 0 | AN92: =ROUNDDOWN(S$75/$F92,0)-SUM($AE92:AM92) -> 1 | AO92: =ROUNDDOWN(T$75/$F92,0)-SUM($AE92:AN92) -> 0 | AP92: =ROUNDDOWN(U$75/$F92,0)-SUM($AE92:AO92) -> 1 | AQ92: =ROUNDDOWN(V$75/$F92,0)-SUM($AE92:AP92) -> 0 | AR92: =ROUNDDOWN(W$75/$F92,0)-SUM($AE92:AQ92) -> 1 | AS92: =ROUNDDOWN(X$75/$F92,0)-SUM($AE92:AR92) -> 0 | AT92: =ROUNDDOWN(Y$75/$F92,0)-SUM($AE92:AS92) -> 1 | AU92: =ROUNDDOWN(Z$75/$F92,0)-SUM($AE92:AT92) -> 1 | AV92: =ROUNDDOWN(AA$75/$F92,0)-SUM($AE92:AU92) -> 0 | AW92: =ROUNDDOWN(AB$75/$F92,0)-SUM($AE92:AV92) -> 1 | AX92: =ROUNDDOWN(AC$75/$F92,0)-SUM($AE92:AW92) -> 0
B93: 16 | C93: CALIBRACIÓN DE LA BOMBA DE INYECCIÓN | D93: UND | E93: 1 | F93: 150000 | G93: 296.2 | H93: Costo de mantenimiento mecánico | J93: =+AE93*$E93*$G93*(1+'Sup Generales'!C$10) -> 0 | K93: =+AF93*$E93*$G93*(1+'Sup Generales'!D$10) -> 0 | L93: =+AG93*$E93*$G93*(1+'Sup Generales'!E$10) -> 316.1739461 | M93: =+AH93*$E93*$G93*(1+'Sup Generales'!F$10) -> 0 | N93: =+AI93*$E93*$G93*(1+'Sup Generales'!G$10) -> 318.397175 | O93: =+AJ93*$E93*$G93*(1+'Sup Generales'!H$10) -> 0 | P93: =+AK93*$E93*$G93*(1+'Sup Generales'!I$10) -> 0 | Q93: =+AL93*$E93*$G93*(1+'Sup Generales'!J$10) -> 332.4227619 | R93: =+AM93*$E93*$G93*(1+'Sup Generales'!K$10) -> 0 | S93: =+AN93*$E93*$G93*(1+'Sup Generales'!L$10) -> 341.7758757 | T93: =+AO93*$E93*$G93*(1+'Sup Generales'!M$10) -> 0 | U93: =+AP93*$E93*$G93*(1+'Sup Generales'!N$10) -> 350.1963995 | V93: =+AQ93*$E93*$G93*(1+'Sup Generales'!O$10) -> 0 | W93: =+AR93*$E93*$G93*(1+'Sup Generales'!P$10) -> 0 | X93: =+AS93*$E93*$G93*(1+'Sup Generales'!Q$10) -> 364.4751164 | Y93: =+AT93*$E93*$G93*(1+'Sup Generales'!R$10) -> 0 | Z93: =+AU93*$E93*$G93*(1+'Sup Generales'!S$10) -> 374.4022252 | AA93: =+AV93*$E93*$G93*(1+'Sup Generales'!T$10) -> 0 | AB93: =+AW93*$E93*$G93*(1+'Sup Generales'!U$10) -> 384.2983117 | AC93: =+AX93*$E93*$G93*(1+'Sup Generales'!V$10) -> 0 | AE93: 0 | AF93: =ROUNDDOWN(K$75/$F93,0)-SUM($AE93:AE93) -> 0 | AG93: =ROUNDDOWN(L$75/$F93,0)-SUM($AE93:AF93) -> 1 | AH93: =ROUNDDOWN(M$75/$F93,0)-SUM($AE93:AG93) -> 0 | AI93: =ROUNDDOWN(N$75/$F93,0)-SUM($AE93:AH93) -> 1 | AJ93: =ROUNDDOWN(O$75/$F93,0)-SUM($AE93:AI93) -> 0 | AK93: =ROUNDDOWN(P$75/$F93,0)-SUM($AE93:AJ93) -> 0 | AL93: =ROUNDDOWN(Q$75/$F93,0)-SUM($AE93:AK93) -> 1 | AM93: =ROUNDDOWN(R$75/$F93,0)-SUM($AE93:AL93) -> 0 | AN93: =ROUNDDOWN(S$75/$F93,0)-SUM($AE93:AM93) -> 1 | AO93: =ROUNDDOWN(T$75/$F93,0)-SUM($AE93:AN93) -> 0 | AP93: =ROUNDDOWN(U$75/$F93,0)-SUM($AE93:AO93) -> 1 | AQ93: =ROUNDDOWN(V$75/$F93,0)-SUM($AE93:AP93) -> 0 | AR93: =ROUNDDOWN(W$75/$F93,0)-SUM($AE93:AQ93) -> 0 | AS93: =ROUNDDOWN(X$75/$F93,0)-SUM($AE93:AR93) -> 1 | AT93: =ROUNDDOWN(Y$75/$F93,0)-SUM($AE93:AS93) -> 0 | AU93: =ROUNDDOWN(Z$75/$F93,0)-SUM($AE93:AT93) -> 1 | AV93: =ROUNDDOWN(AA$75/$F93,0)-SUM($AE93:AU93) -> 0 | AW93: =ROUNDDOWN(AB$75/$F93,0)-SUM($AE93:AV93) -> 1 | AX93: =ROUNDDOWN(AC$75/$F93,0)-SUM($AE93:AW93) -> 0
B94: 17 | C94: EMBRAGUE | D94: JGO. | E94: 1 | F94: 60000 | G94: 728.3333333 | H94: Costo de mantenimiento mecánico | J94: =+AE94*$E94*$G94*(1+'Sup Generales'!C$10) -> 745.8133333 | K94: =+AF94*$E94*$G94*(1+'Sup Generales'!D$10) -> 757.7463467 | L94: =+AG94*$E94*$G94*(1+'Sup Generales'!E$10) -> 777.4477517 | M94: =+AH94*$E94*$G94*(1+'Sup Generales'!F$10) -> 780.806326 | N94: =+AI94*$E94*$G94*(1+'Sup Generales'!G$10) -> 782.914503 | O94: =+AJ94*$E94*$G94*(1+'Sup Generales'!H$10) -> 788.1600302 | P94: =+AK94*$E94*$G94*(1+'Sup Generales'!I$10) -> 803.4592016 | Q94: =+AL94*$E94*$G94*(1+'Sup Generales'!J$10) -> 817.4023573 | R94: =+AM94*$E94*$G94*(1+'Sup Generales'!K$10) -> 829.3042624 | S94: =+AN94*$E94*$G94*(1+'Sup Generales'!L$10) -> 840.4009548 | T94: =+AO94*$E94*$G94*(1+'Sup Generales'!M$10) -> 851.3709738 | U94: =+AP94*$E94*$G94*(1+'Sup Generales'!N$10) -> 861.106384 | V94: =+AQ94*$E94*$G94*(1+'Sup Generales'!O$10) -> 871.7189628 | W94: =+AR94*$E94*$G94*(1+'Sup Generales'!P$10) -> 883.5110512 | X94: =+AS94*$E94*$G94*(1+'Sup Generales'!Q$10) -> 896.2166658 | Y94: =+AT94*$E94*$G94*(1+'Sup Generales'!R$10) -> 1817.082907 | Z94: =+AU94*$E94*$G94*(1+'Sup Generales'!S$10) -> 920.6266736 | AA94: =+AV94*$E94*$G94*(1+'Sup Generales'!T$10) -> 932.7277809 | AB94: =+AW94*$E94*$G94*(1+'Sup Generales'!U$10) -> 944.9603997 | AC94: =+AX94*$E94*$G94*(1+'Sup Generales'!V$10) -> 957.3607206 | AE94: 1 | AF94: =ROUNDDOWN(K$75/$F94,0)-SUM($AE94:AE94) -> 1 | AG94: =ROUNDDOWN(L$75/$F94,0)-SUM($AE94:AF94) -> 1 | AH94: =ROUNDDOWN(M$75/$F94,0)-SUM($AE94:AG94) -> 1 | AI94: =ROUNDDOWN(N$75/$F94,0)-SUM($AE94:AH94) -> 1 | AJ94: =ROUNDDOWN(O$75/$F94,0)-SUM($AE94:AI94) -> 1 | AK94: =ROUNDDOWN(P$75/$F94,0)-SUM($AE94:AJ94) -> 1 | AL94: =ROUNDDOWN(Q$75/$F94,0)-SUM($AE94:AK94) -> 1 | AM94: =ROUNDDOWN(R$75/$F94,0)-SUM($AE94:AL94) -> 1 | AN94: =ROUNDDOWN(S$75/$F94,0)-SUM($AE94:AM94) -> 1 | AO94: =ROUNDDOWN(T$75/$F94,0)-SUM($AE94:AN94) -> 1 | AP94: =ROUNDDOWN(U$75/$F94,0)-SUM($AE94:AO94) -> 1 | AQ94: =ROUNDDOWN(V$75/$F94,0)-SUM($AE94:AP94) -> 1 | AR94: =ROUNDDOWN(W$75/$F94,0)-SUM($AE94:AQ94) -> 1 | AS94: =ROUNDDOWN(X$75/$F94,0)-SUM($AE94:AR94) -> 1 | AT94: =ROUNDDOWN(Y$75/$F94,0)-SUM($AE94:AS94) -> 2 | AU94: =ROUNDDOWN(Z$75/$F94,0)-SUM($AE94:AT94) -> 1 | AV94: =ROUNDDOWN(AA$75/$F94,0)-SUM($AE94:AU94) -> 1 | AW94: =ROUNDDOWN(AB$75/$F94,0)-SUM($AE94:AV94) -> 1 | AX94: =ROUNDDOWN(AC$75/$F94,0)-SUM($AE94:AW94) -> 1
B95: 18 | C95: BUSTER EMBRAGUE | D95: JGO. | E95: 1 | F95: 30000 | G95: 175 | H95: Costo de mantenimiento mecánico | J95: =+AE95*$E95*$G95*(1+'Sup Generales'!C$10) -> 358.4 | K95: =+AF95*$E95*$G95*(1+'Sup Generales'!D$10) -> 364.1344 | L95: =+AG95*$E95*$G95*(1+'Sup Generales'!E$10) -> 373.6018944 | M95: =+AH95*$E95*$G95*(1+'Sup Generales'!F$10) -> 375.2158546 | N95: =+AI95*$E95*$G95*(1+'Sup Generales'!G$10) -> 376.2289374 | O95: =+AJ95*$E95*$G95*(1+'Sup Generales'!H$10) -> 378.7496713 | P95: =+AK95*$E95*$G95*(1+'Sup Generales'!I$10) -> 386.1016758 | Q95: =+AL95*$E95*$G95*(1+'Sup Generales'!J$10) -> 589.2030722 | R95: =+AM95*$E95*$G95*(1+'Sup Generales'!K$10) -> 398.5214991 | S95: =+AN95*$E95*$G95*(1+'Sup Generales'!L$10) -> 403.8540057 | T95: =+AO95*$E95*$G95*(1+'Sup Generales'!M$10) -> 409.1256396 | U95: =+AP95*$E95*$G95*(1+'Sup Generales'!N$10) -> 413.8039832 | V95: =+AQ95*$E95*$G95*(1+'Sup Generales'!O$10) -> 418.9038494 | W95: =+AR95*$E95*$G95*(1+'Sup Generales'!P$10) -> 424.570528 | X95: =+AS95*$E95*$G95*(1+'Sup Generales'!Q$10) -> 430.676201 | Y95: =+AT95*$E95*$G95*(1+'Sup Generales'!R$10) -> 654.8983016 | Z95: =+AU95*$E95*$G95*(1+'Sup Generales'!S$10) -> 442.4064106 | AA95: =+AV95*$E95*$G95*(1+'Sup Generales'!T$10) -> 448.2215881 | AB95: =+AW95*$E95*$G95*(1+'Sup Generales'!U$10) -> 454.0999632 | AC95: =+AX95*$E95*$G95*(1+'Sup Generales'!V$10) -> 460.0589275 | AE95: 2 | AF95: =ROUNDDOWN(K$75/$F95,0)-SUM($AE95:AE95) -> 2 | AG95: =ROUNDDOWN(L$75/$F95,0)-SUM($AE95:AF95) -> 2 | AH95: =ROUNDDOWN(M$75/$F95,0)-SUM($AE95:AG95) -> 2 | AI95: =ROUNDDOWN(N$75/$F95,0)-SUM($AE95:AH95) -> 2 | AJ95: =ROUNDDOWN(O$75/$F95,0)-SUM($AE95:AI95) -> 2 | AK95: =ROUNDDOWN(P$75/$F95,0)-SUM($AE95:AJ95) -> 2 | AL95: =ROUNDDOWN(Q$75/$F95,0)-SUM($AE95:AK95) -> 3 | AM95: =ROUNDDOWN(R$75/$F95,0)-SUM($AE95:AL95) -> 2 | AN95: =ROUNDDOWN(S$75/$F95,0)-SUM($AE95:AM95) -> 2 | AO95: =ROUNDDOWN(T$75/$F95,0)-SUM($AE95:AN95) -> 2 | AP95: =ROUNDDOWN(U$75/$F95,0)-SUM($AE95:AO95) -> 2 | AQ95: =ROUNDDOWN(V$75/$F95,0)-SUM($AE95:AP95) -> 2 | AR95: =ROUNDDOWN(W$75/$F95,0)-SUM($AE95:AQ95) -> 2 | AS95: =ROUNDDOWN(X$75/$F95,0)-SUM($AE95:AR95) -> 2 | AT95: =ROUNDDOWN(Y$75/$F95,0)-SUM($AE95:AS95) -> 3 | AU95: =ROUNDDOWN(Z$75/$F95,0)-SUM($AE95:AT95) -> 2 | AV95: =ROUNDDOWN(AA$75/$F95,0)-SUM($AE95:AU95) -> 2 | AW95: =ROUNDDOWN(AB$75/$F95,0)-SUM($AE95:AV95) -> 2 | AX95: =ROUNDDOWN(AC$75/$F95,0)-SUM($AE95:AW95) -> 2
B96: 19 | C96: SOPORTE DE CARDAN Y CRUCETAS | D96: JGO. | E96: 1 | F96: 30000 | G96: 176.506 | H96: Costo de mantenimiento mecánico | J96: =+AE96*$E96*$G96*(1+'Sup Generales'!C$10) -> 361.484288 | K96: =+AF96*$E96*$G96*(1+'Sup Generales'!D$10) -> 367.2680366 | L96: =+AG96*$E96*$G96*(1+'Sup Generales'!E$10) -> 376.8170056 | M96: =+AH96*$E96*$G96*(1+'Sup Generales'!F$10) -> 378.444855 | N96: =+AI96*$E96*$G96*(1+'Sup Generales'!G$10) -> 379.4666561 | O96: =+AJ96*$E96*$G96*(1+'Sup Generales'!H$10) -> 382.0090827 | P96: =+AK96*$E96*$G96*(1+'Sup Generales'!I$10) -> 389.4243565 | Q96: =+AL96*$E96*$G96*(1+'Sup Generales'!J$10) -> 594.2735855 | R96: =+AM96*$E96*$G96*(1+'Sup Generales'!K$10) -> 401.9510613 | S96: =+AN96*$E96*$G96*(1+'Sup Generales'!L$10) -> 407.3294579 | T96: =+AO96*$E96*$G96*(1+'Sup Generales'!M$10) -> 412.6464579 | U96: =+AP96*$E96*$G96*(1+'Sup Generales'!N$10) -> 417.365062 | V96: =+AQ96*$E96*$G96*(1+'Sup Generales'!O$10) -> 422.5088163 | W96: =+AR96*$E96*$G96*(1+'Sup Generales'!P$10) -> 428.2242607 | X96: =+AS96*$E96*$G96*(1+'Sup Generales'!Q$10) -> 434.3824773 | Y96: =+AT96*$E96*$G96*(1+'Sup Generales'!R$10) -> 660.5341693 | Z96: =+AU96*$E96*$G96*(1+'Sup Generales'!S$10) -> 446.2136338 | AA96: =+AV96*$E96*$G96*(1+'Sup Generales'!T$10) -> 452.078855 | AB96: =+AW96*$E96*$G96*(1+'Sup Generales'!U$10) -> 458.0078178 | AC96: =+AX96*$E96*$G96*(1+'Sup Generales'!V$10) -> 464.0180632 | AE96: 2 | AF96: =ROUNDDOWN(K$75/$F96,0)-SUM($AE96:AE96) -> 2 | AG96: =ROUNDDOWN(L$75/$F96,0)-SUM($AE96:AF96) -> 2 | AH96: =ROUNDDOWN(M$75/$F96,0)-SUM($AE96:AG96) -> 2 | AI96: =ROUNDDOWN(N$75/$F96,0)-SUM($AE96:AH96) -> 2 | AJ96: =ROUNDDOWN(O$75/$F96,0)-SUM($AE96:AI96) -> 2 | AK96: =ROUNDDOWN(P$75/$F96,0)-SUM($AE96:AJ96) -> 2 | AL96: =ROUNDDOWN(Q$75/$F96,0)-SUM($AE96:AK96) -> 3 | AM96: =ROUNDDOWN(R$75/$F96,0)-SUM($AE96:AL96) -> 2 | AN96: =ROUNDDOWN(S$75/$F96,0)-SUM($AE96:AM96) -> 2 | AO96: =ROUNDDOWN(T$75/$F96,0)-SUM($AE96:AN96) -> 2 | AP96: =ROUNDDOWN(U$75/$F96,0)-SUM($AE96:AO96) -> 2 | AQ96: =ROUNDDOWN(V$75/$F96,0)-SUM($AE96:AP96) -> 2 | AR96: =ROUNDDOWN(W$75/$F96,0)-SUM($AE96:AQ96) -> 2 | AS96: =ROUNDDOWN(X$75/$F96,0)-SUM($AE96:AR96) -> 2 | AT96: =ROUNDDOWN(Y$75/$F96,0)-SUM($AE96:AS96) -> 3 | AU96: =ROUNDDOWN(Z$75/$F96,0)-SUM($AE96:AT96) -> 2 | AV96: =ROUNDDOWN(AA$75/$F96,0)-SUM($AE96:AU96) -> 2 | AW96: =ROUNDDOWN(AB$75/$F96,0)-SUM($AE96:AV96) -> 2 | AX96: =ROUNDDOWN(AC$75/$F96,0)-SUM($AE96:AW96) -> 2
B97: 20 | C97: MANTENIMIENTO SISTEMA NEUMÁTICO | D97: UND | E97: 1 | F97: 30000 | G97: 137.75 | H97: Costo de mantenimiento mecánico | J97: =+AE97*$E97*$G97*(1+'Sup Generales'!C$10) -> 282.112 | K97: =+AF97*$E97*$G97*(1+'Sup Generales'!D$10) -> 286.625792 | L97: =+AG97*$E97*$G97*(1+'Sup Generales'!E$10) -> 294.0780626 | M97: =+AH97*$E97*$G97*(1+'Sup Generales'!F$10) -> 295.3484798 | N97: =+AI97*$E97*$G97*(1+'Sup Generales'!G$10) -> 296.1459207 | O97: =+AJ97*$E97*$G97*(1+'Sup Generales'!H$10) -> 298.1300984 | P97: =+AK97*$E97*$G97*(1+'Sup Generales'!I$10) -> 303.9171763 | Q97: =+AL97*$E97*$G97*(1+'Sup Generales'!J$10) -> 463.7869897 | R97: =+AM97*$E97*$G97*(1+'Sup Generales'!K$10) -> 313.6933514 | S97: =+AN97*$E97*$G97*(1+'Sup Generales'!L$10) -> 317.8907959 | T97: =+AO97*$E97*$G97*(1+'Sup Generales'!M$10) -> 322.0403249 | U97: =+AP97*$E97*$G97*(1+'Sup Generales'!N$10) -> 325.7228496 | V97: =+AQ97*$E97*$G97*(1+'Sup Generales'!O$10) -> 329.7371729 | W97: =+AR97*$E97*$G97*(1+'Sup Generales'!P$10) -> 334.1976585 | X97: =+AS97*$E97*$G97*(1+'Sup Generales'!Q$10) -> 339.0036953 | Y97: =+AT97*$E97*$G97*(1+'Sup Generales'!R$10) -> 515.4985203 | Z97: =+AU97*$E97*$G97*(1+'Sup Generales'!S$10) -> 348.2370461 | AA97: =+AV97*$E97*$G97*(1+'Sup Generales'!T$10) -> 352.8144215 | AB97: =+AW97*$E97*$G97*(1+'Sup Generales'!U$10) -> 357.4415425 | AC97: =+AX97*$E97*$G97*(1+'Sup Generales'!V$10) -> 362.1320987 | AE97: 2 | AF97: =ROUNDDOWN(K$75/$F97,0)-SUM($AE97:AE97) -> 2 | AG97: =ROUNDDOWN(L$75/$F97,0)-SUM($AE97:AF97) -> 2 | AH97: =ROUNDDOWN(M$75/$F97,0)-SUM($AE97:AG97) -> 2 | AI97: =ROUNDDOWN(N$75/$F97,0)-SUM($AE97:AH97) -> 2 | AJ97: =ROUNDDOWN(O$75/$F97,0)-SUM($AE97:AI97) -> 2 | AK97: =ROUNDDOWN(P$75/$F97,0)-SUM($AE97:AJ97) -> 2 | AL97: =ROUNDDOWN(Q$75/$F97,0)-SUM($AE97:AK97) -> 3 | AM97: =ROUNDDOWN(R$75/$F97,0)-SUM($AE97:AL97) -> 2 | AN97: =ROUNDDOWN(S$75/$F97,0)-SUM($AE97:AM97) -> 2 | AO97: =ROUNDDOWN(T$75/$F97,0)-SUM($AE97:AN97) -> 2 | AP97: =ROUNDDOWN(U$75/$F97,0)-SUM($AE97:AO97) -> 2 | AQ97: =ROUNDDOWN(V$75/$F97,0)-SUM($AE97:AP97) -> 2 | AR97: =ROUNDDOWN(W$75/$F97,0)-SUM($AE97:AQ97) -> 2 | AS97: =ROUNDDOWN(X$75/$F97,0)-SUM($AE97:AR97) -> 2 | AT97: =ROUNDDOWN(Y$75/$F97,0)-SUM($AE97:AS97) -> 3 | AU97: =ROUNDDOWN(Z$75/$F97,0)-SUM($AE97:AT97) -> 2 | AV97: =ROUNDDOWN(AA$75/$F97,0)-SUM($AE97:AU97) -> 2 | AW97: =ROUNDDOWN(AB$75/$F97,0)-SUM($AE97:AV97) -> 2 | AX97: =ROUNDDOWN(AC$75/$F97,0)-SUM($AE97:AW97) -> 2
B98: 21 | C98: ZAPATAS (JUEGO FORROS 2) X 4 | D98: JGO. | E98: 2 | F98: 20000 | G98: 74.13166667 | H98: Costo de mantenimiento mecánico | J98: =+AE98*$E98*$G98*(1+'Sup Generales'!C$10) -> 455.46496 | K98: =+AF98*$E98*$G98*(1+'Sup Generales'!D$10) -> 462.7523994 | L98: =+AG98*$E98*$G98*(1+'Sup Generales'!E$10) -> 474.7839617 | M98: =+AH98*$E98*$G98*(1+'Sup Generales'!F$10) -> 476.8350285 | N98: =+AI98*$E98*$G98*(1+'Sup Generales'!G$10) -> 478.122483 | O98: =+AJ98*$E98*$G98*(1+'Sup Generales'!H$10) -> 641.7678716 | P98: =+AK98*$E98*$G98*(1+'Sup Generales'!I$10) -> 490.6690411 | Q98: =+AL98*$E98*$G98*(1+'Sup Generales'!J$10) -> 499.1840657 | R98: =+AM98*$E98*$G98*(1+'Sup Generales'!K$10) -> 506.4525074 | S98: =+AN98*$E98*$G98*(1+'Sup Generales'!L$10) -> 513.2292092 | T98: =+AO98*$E98*$G98*(1+'Sup Generales'!M$10) -> 693.2380694 | U98: =+AP98*$E98*$G98*(1+'Sup Generales'!N$10) -> 525.8739248 | V98: =+AQ98*$E98*$G98*(1+'Sup Generales'!O$10) -> 532.3549805 | W98: =+AR98*$E98*$G98*(1+'Sup Generales'!P$10) -> 539.5563576 | X98: =+AS98*$E98*$G98*(1+'Sup Generales'!Q$10) -> 547.3156212 | Y98: =+AT98*$E98*$G98*(1+'Sup Generales'!R$10) -> 739.7897539 | Z98: =+AU98*$E98*$G98*(1+'Sup Generales'!S$10) -> 562.2227068 | AA98: =+AV98*$E98*$G98*(1+'Sup Generales'!T$10) -> 569.6128004 | AB98: =+AW98*$E98*$G98*(1+'Sup Generales'!U$10) -> 577.0832076 | AC98: =+AX98*$E98*$G98*(1+'Sup Generales'!V$10) -> 584.6560296 | AE98: 3 | AF98: =ROUNDDOWN(K$75/$F98,0)-SUM($AE98:AE98) -> 3 | AG98: =ROUNDDOWN(L$75/$F98,0)-SUM($AE98:AF98) -> 3 | AH98: =ROUNDDOWN(M$75/$F98,0)-SUM($AE98:AG98) -> 3 | AI98: =ROUNDDOWN(N$75/$F98,0)-SUM($AE98:AH98) -> 3 | AJ98: =ROUNDDOWN(O$75/$F98,0)-SUM($AE98:AI98) -> 4 | AK98: =ROUNDDOWN(P$75/$F98,0)-SUM($AE98:AJ98) -> 3 | AL98: =ROUNDDOWN(Q$75/$F98,0)-SUM($AE98:AK98) -> 3 | AM98: =ROUNDDOWN(R$75/$F98,0)-SUM($AE98:AL98) -> 3 | AN98: =ROUNDDOWN(S$75/$F98,0)-SUM($AE98:AM98) -> 3 | AO98: =ROUNDDOWN(T$75/$F98,0)-SUM($AE98:AN98) -> 4 | AP98: =ROUNDDOWN(U$75/$F98,0)-SUM($AE98:AO98) -> 3 | AQ98: =ROUNDDOWN(V$75/$F98,0)-SUM($AE98:AP98) -> 3 | AR98: =ROUNDDOWN(W$75/$F98,0)-SUM($AE98:AQ98) -> 3 | AS98: =ROUNDDOWN(X$75/$F98,0)-SUM($AE98:AR98) -> 3 | AT98: =ROUNDDOWN(Y$75/$F98,0)-SUM($AE98:AS98) -> 4 | AU98: =ROUNDDOWN(Z$75/$F98,0)-SUM($AE98:AT98) -> 3 | AV98: =ROUNDDOWN(AA$75/$F98,0)-SUM($AE98:AU98) -> 3 | AW98: =ROUNDDOWN(AB$75/$F98,0)-SUM($AE98:AV98) -> 3 | AX98: =ROUNDDOWN(AC$75/$F98,0)-SUM($AE98:AW98) -> 3
B99: 22 | C99: CAMBIO TAMBORES (JUEGO) | D99: UND | E99: 4 | F99: 180000 | G99: 151.96125 | H99: Costo de mantenimiento mecánico | J99: =+AE99*$E99*$G99*(1+'Sup Generales'!C$10) -> 0 | K99: =+AF99*$E99*$G99*(1+'Sup Generales'!D$10) -> 0 | L99: =+AG99*$E99*$G99*(1+'Sup Generales'!E$10) -> 648.83441 | M99: =+AH99*$E99*$G99*(1+'Sup Generales'!F$10) -> 0 | N99: =+AI99*$E99*$G99*(1+'Sup Generales'!G$10) -> 0 | O99: =+AJ99*$E99*$G99*(1+'Sup Generales'!H$10) -> 657.7745541 | P99: =+AK99*$E99*$G99*(1+'Sup Generales'!I$10) -> 0 | Q99: =+AL99*$E99*$G99*(1+'Sup Generales'!J$10) -> 0 | R99: =+AM99*$E99*$G99*(1+'Sup Generales'!K$10) -> 692.1122875 | S99: =+AN99*$E99*$G99*(1+'Sup Generales'!L$10) -> 0 | T99: =+AO99*$E99*$G99*(1+'Sup Generales'!M$10) -> 0 | U99: =+AP99*$E99*$G99*(1+'Sup Generales'!N$10) -> 718.6533776 | V99: =+AQ99*$E99*$G99*(1+'Sup Generales'!O$10) -> 0 | W99: =+AR99*$E99*$G99*(1+'Sup Generales'!P$10) -> 0 | X99: =+AS99*$E99*$G99*(1+'Sup Generales'!Q$10) -> 747.9553582 | Y99: =+AT99*$E99*$G99*(1+'Sup Generales'!R$10) -> 0 | Z99: =+AU99*$E99*$G99*(1+'Sup Generales'!S$10) -> 768.3272133 | AA99: =+AV99*$E99*$G99*(1+'Sup Generales'!T$10) -> 0 | AB99: =+AW99*$E99*$G99*(1+'Sup Generales'!U$10) -> 0 | AC99: =+AX99*$E99*$G99*(1+'Sup Generales'!V$10) -> 798.9843394 | AE99: 0 | AF99: =ROUNDDOWN(K$75/$F99,0)-SUM($AE99:AE99) -> 0 | AG99: =ROUNDDOWN(L$75/$F99,0)-SUM($AE99:AF99) -> 1 | AH99: =ROUNDDOWN(M$75/$F99,0)-SUM($AE99:AG99) -> 0 | AI99: =ROUNDDOWN(N$75/$F99,0)-SUM($AE99:AH99) -> 0 | AJ99: =ROUNDDOWN(O$75/$F99,0)-SUM($AE99:AI99) -> 1 | AK99: =ROUNDDOWN(P$75/$F99,0)-SUM($AE99:AJ99) -> 0 | AL99: =ROUNDDOWN(Q$75/$F99,0)-SUM($AE99:AK99) -> 0 | AM99: =ROUNDDOWN(R$75/$F99,0)-SUM($AE99:AL99) -> 1 | AN99: =ROUNDDOWN(S$75/$F99,0)-SUM($AE99:AM99) -> 0 | AO99: =ROUNDDOWN(T$75/$F99,0)-SUM($AE99:AN99) -> 0 | AP99: =ROUNDDOWN(U$75/$F99,0)-SUM($AE99:AO99) -> 1 | AQ99: =ROUNDDOWN(V$75/$F99,0)-SUM($AE99:AP99) -> 0 | AR99: =ROUNDDOWN(W$75/$F99,0)-SUM($AE99:AQ99) -> 0 | AS99: =ROUNDDOWN(X$75/$F99,0)-SUM($AE99:AR99) -> 1 | AT99: =ROUNDDOWN(Y$75/$F99,0)-SUM($AE99:AS99) -> 0 | AU99: =ROUNDDOWN(Z$75/$F99,0)-SUM($AE99:AT99) -> 1 | AV99: =ROUNDDOWN(AA$75/$F99,0)-SUM($AE99:AU99) -> 0 | AW99: =ROUNDDOWN(AB$75/$F99,0)-SUM($AE99:AV99) -> 0 | AX99: =ROUNDDOWN(AC$75/$F99,0)-SUM($AE99:AW99) -> 1
B100: 23 | C100: RACHES DE FRENO | D100: JGO. | E100: 4 | F100: 180000 | G100: 90.822 | H100: Costo de mantenimiento mecánico | J100: =+AE100*$E100*$G100*(1+'Sup Generales'!C$10) -> 0 | K100: =+AF100*$E100*$G100*(1+'Sup Generales'!D$10) -> 0 | L100: =+AG100*$E100*$G100*(1+'Sup Generales'!E$10) -> 387.7859572 | M100: =+AH100*$E100*$G100*(1+'Sup Generales'!F$10) -> 0 | N100: =+AI100*$E100*$G100*(1+'Sup Generales'!G$10) -> 0 | O100: =+AJ100*$E100*$G100*(1+'Sup Generales'!H$10) -> 393.1291731 | P100: =+AK100*$E100*$G100*(1+'Sup Generales'!I$10) -> 0 | Q100: =+AL100*$E100*$G100*(1+'Sup Generales'!J$10) -> 0 | R100: =+AM100*$E100*$G100*(1+'Sup Generales'!K$10) -> 413.6516525 | S100: =+AN100*$E100*$G100*(1+'Sup Generales'!L$10) -> 0 | T100: =+AO100*$E100*$G100*(1+'Sup Generales'!M$10) -> 0 | U100: =+AP100*$E100*$G100*(1+'Sup Generales'!N$10) -> 429.514347 | V100: =+AQ100*$E100*$G100*(1+'Sup Generales'!O$10) -> 0 | W100: =+AR100*$E100*$G100*(1+'Sup Generales'!P$10) -> 0 | X100: =+AS100*$E100*$G100*(1+'Sup Generales'!Q$10) -> 447.0271306 | Y100: =+AT100*$E100*$G100*(1+'Sup Generales'!R$10) -> 0 | Z100: =+AU100*$E100*$G100*(1+'Sup Generales'!S$10) -> 459.202686 | AA100: =+AV100*$E100*$G100*(1+'Sup Generales'!T$10) -> 0 | AB100: =+AW100*$E100*$G100*(1+'Sup Generales'!U$10) -> 0 | AC100: =+AX100*$E100*$G100*(1+'Sup Generales'!V$10) -> 477.5253933 | AE100: 0 | AF100: =ROUNDDOWN(K$75/$F100,0)-SUM($AE100:AE100) -> 0 | AG100: =ROUNDDOWN(L$75/$F100,0)-SUM($AE100:AF100) -> 1 | AH100: =ROUNDDOWN(M$75/$F100,0)-SUM($AE100:AG100) -> 0 | AI100: =ROUNDDOWN(N$75/$F100,0)-SUM($AE100:AH100) -> 0 | AJ100: =ROUNDDOWN(O$75/$F100,0)-SUM($AE100:AI100) -> 1 | AK100: =ROUNDDOWN(P$75/$F100,0)-SUM($AE100:AJ100) -> 0 | AL100: =ROUNDDOWN(Q$75/$F100,0)-SUM($AE100:AK100) -> 0 | AM100: =ROUNDDOWN(R$75/$F100,0)-SUM($AE100:AL100) -> 1 | AN100: =ROUNDDOWN(S$75/$F100,0)-SUM($AE100:AM100) -> 0 | AO100: =ROUNDDOWN(T$75/$F100,0)-SUM($AE100:AN100) -> 0 | AP100: =ROUNDDOWN(U$75/$F100,0)-SUM($AE100:AO100) -> 1 | AQ100: =ROUNDDOWN(V$75/$F100,0)-SUM($AE100:AP100) -> 0 | AR100: =ROUNDDOWN(W$75/$F100,0)-SUM($AE100:AQ100) -> 0 | AS100: =ROUNDDOWN(X$75/$F100,0)-SUM($AE100:AR100) -> 1 | AT100: =ROUNDDOWN(Y$75/$F100,0)-SUM($AE100:AS100) -> 0 | AU100: =ROUNDDOWN(Z$75/$F100,0)-SUM($AE100:AT100) -> 1 | AV100: =ROUNDDOWN(AA$75/$F100,0)-SUM($AE100:AU100) -> 0 | AW100: =ROUNDDOWN(AB$75/$F100,0)-SUM($AE100:AV100) -> 0 | AX100: =ROUNDDOWN(AC$75/$F100,0)-SUM($AE100:AW100) -> 1
B101: 24 | C101: BATERÍAS | D101: UND | E101: 2 | F101: 60000 | G101: 195.0585714 | H101: Costo de mantenimiento eléctrico | J101: =+AE101*$E101*$G101*(1+'Sup Generales'!C$10) -> 399.4799543 | K101: =+AF101*$E101*$G101*(1+'Sup Generales'!D$10) -> 405.8716336 | L101: =+AG101*$E101*$G101*(1+'Sup Generales'!E$10) -> 416.424296 | M101: =+AH101*$E101*$G101*(1+'Sup Generales'!F$10) -> 418.223249 | N101: =+AI101*$E101*$G101*(1+'Sup Generales'!G$10) -> 419.3524518 | O101: =+AJ101*$E101*$G101*(1+'Sup Generales'!H$10) -> 422.1621132 | P101: =+AK101*$E101*$G101*(1+'Sup Generales'!I$10) -> 430.3568075 | Q101: =+AL101*$E101*$G101*(1+'Sup Generales'!J$10) -> 437.8251792 | R101: =+AM101*$E101*$G101*(1+'Sup Generales'!K$10) -> 444.200196 | S101: =+AN101*$E101*$G101*(1+'Sup Generales'!L$10) -> 450.1439167 | T101: =+AO101*$E101*$G101*(1+'Sup Generales'!M$10) -> 456.0197874 | U101: =+AP101*$E101*$G101*(1+'Sup Generales'!N$10) -> 461.2343646 | V101: =+AQ101*$E101*$G101*(1+'Sup Generales'!O$10) -> 466.9187796 | W101: =+AR101*$E101*$G101*(1+'Sup Generales'!P$10) -> 473.2349752 | X101: =+AS101*$E101*$G101*(1+'Sup Generales'!Q$10) -> 480.0404829 | Y101: =+AT101*$E101*$G101*(1+'Sup Generales'!R$10) -> 973.2840164 | Z101: =+AU101*$E101*$G101*(1+'Sup Generales'!S$10) -> 493.115214 | AA101: =+AV101*$E101*$G101*(1+'Sup Generales'!T$10) -> 499.5969294 | AB101: =+AW101*$E101*$G101*(1+'Sup Generales'!U$10) -> 506.1490864 | AC101: =+AX101*$E101*$G101*(1+'Sup Generales'!V$10) -> 512.7910696 | AE101: 1 | AF101: =ROUNDDOWN(K$75/$F101,0)-SUM($AE101:AE101) -> 1 | AG101: =ROUNDDOWN(L$75/$F101,0)-SUM($AE101:AF101) -> 1 | AH101: =ROUNDDOWN(M$75/$F101,0)-SUM($AE101:AG101) -> 1 | AI101: =ROUNDDOWN(N$75/$F101,0)-SUM($AE101:AH101) -> 1 | AJ101: =ROUNDDOWN(O$75/$F101,0)-SUM($AE101:AI101) -> 1 | AK101: =ROUNDDOWN(P$75/$F101,0)-SUM($AE101:AJ101) -> 1 | AL101: =ROUNDDOWN(Q$75/$F101,0)-SUM($AE101:AK101) -> 1 | AM101: =ROUNDDOWN(R$75/$F101,0)-SUM($AE101:AL101) -> 1 | AN101: =ROUNDDOWN(S$75/$F101,0)-SUM($AE101:AM101) -> 1 | AO101: =ROUNDDOWN(T$75/$F101,0)-SUM($AE101:AN101) -> 1 | AP101: =ROUNDDOWN(U$75/$F101,0)-SUM($AE101:AO101) -> 1 | AQ101: =ROUNDDOWN(V$75/$F101,0)-SUM($AE101:AP101) -> 1 | AR101: =ROUNDDOWN(W$75/$F101,0)-SUM($AE101:AQ101) -> 1 | AS101: =ROUNDDOWN(X$75/$F101,0)-SUM($AE101:AR101) -> 1 | AT101: =ROUNDDOWN(Y$75/$F101,0)-SUM($AE101:AS101) -> 2 | AU101: =ROUNDDOWN(Z$75/$F101,0)-SUM($AE101:AT101) -> 1 | AV101: =ROUNDDOWN(AA$75/$F101,0)-SUM($AE101:AU101) -> 1 | AW101: =ROUNDDOWN(AB$75/$F101,0)-SUM($AE101:AV101) -> 1 | AX101: =ROUNDDOWN(AC$75/$F101,0)-SUM($AE101:AW101) -> 1
